Workbook

Sheet Read Me and Index
B1: File Description | H1: Worksheet Index | I1: DESCRIPTION OF WORKSHEETS. Also see write-up in Appendix B of the Ozone Transport Policy Analysis Final Rule TSD.
B2: This workbook contains the emissions and air quality data used to create charts and tables showing relative cost effectiveness values relevant to the Good Neighbor Plan (GNP), sometimes referred to as "knee-in-the-curve" graphs. Data from the Final GNP are noted with a "[From the Final GNP]" in the description in the index. AQAT calculations using subsets of these data were created to show the air quality impact of emissions reductions from the 11 states where the GNP is currently in effect (as of March 26th, 2024). It relies on the same "Step 3" configuration of AQAT used in the Final rule (see Ozone Transport Policy Analysis (OTPA) Final Rule TSD for more information). All of these data were available from the AQAT calculations for the final GNP. Additional AQAT calculations were also created for the 11 states using the "Full Geography" configuration of AQAT. These new AQAT estimates have been included in this workbook and are labeled "2026_11st_full_geo..." These calculations used the AQAT from the Final GNP (where the identification of the Full Geography states was updated to reflect the states linked in 2026). Note that California was not included as it is not covered in the EGU program. Wisconsin was also excluded from Full Geography scenarios as it was not linked to Connecticut receptors in 2026. From the OTPA Final Rule TSD (pg 46): "Step 3 Configuration - For the 'Step 3' configurations, all states that contributed at or above 1% of the NAAQS to a particular monitor in the air quality modeling base case for the year being analyzed (either 2023 or 2026), as well as the state containing the monitor were simultaneously adjusted to the emission levels for each of the scenarios in Table C1 [of the OTPA Final Rule TSD]. At that particular monitor all other states were adjusted to the engineering base case level. This approach forms our primary analysis, the results of which are discussed in the preamble of the final rule. "Full Geography Configuration - For the 'Full Geography' configuration, all states that were linked to any receptor in the 2023 or 2026 base cases (i.e., only states included in the rule), but no other states [footnote regarding California omitted], were simultaneously adjusted to the emission levels for each of the scenarios in Table C-1 [of the OTPA Final Rule TSD]. This approach presents an alternative way of thinking about the effect of the rule, in a more holistic way, but this approach introduces a 'who goes first' problem and the potential for capturing incidental overcontrol resulting from emissions reductions in states not linked to a particular receptor above 1% of the NAAQS. The results of the 'full geography' configuration are shown in Appendix D [of the OTPA Final Rule TSD]." | H2: 11 State EGU Figure | I2: [For the 11 States] Figure showing EGU emission reduction potential and resulting average ozone air quality improvement at various cost thresholds and potential technology breakpoints
H3: Tables | I3: [For the 11 States and based on the Final GNP] Tables showing average ozone air quality improvement at various cost thresholds and potential technology breakpoints for EGU and non-EGUs
H4: NOx Reduction 11 State Summary | I4: Calculation of reductions of ozone season NOx in 2026 by additional mitigation strategies (SCR retrofit on steam units <100 MW and O/G Steam units <150 tons; combustion control retrofits on CTs; and SCR retrofits on certain large Cts).
H5: Unit 2026 | I5: Unit level analysis of NOx reductions of additional NOx Mitigaion Strategies from a 2026 engineering analysis baseline
H6: Summary_Full_Geography_11_State | I6: [For the 11 States] Summary of average ozone air quality improvement for the Connecticut and Wisconsin receptors in 2026 from the 11 States (using the Full Geography configuration of AQAT and the primary calibration factors)
H7: Summary_Full_Geography_GNP | I7: [Based on the Final GNP] Summary of average ozone air quality improvement for all GNP receptors and for the Connecticut and Wisconsin receptors in 2026 from all GNP States (using the Full Geography configuration of AQAT and the primary calibration factors)
H8: Summary_Step3_GNP_and_11_State | I8: [Based on the Final GNP] Summary of average ozone air quality improvement for all GNP receptors and for the Connecticut and Wisconsin receptors in 2026 from all GNP States and from the 11 States (using the Step 3 configuration of AQAT and the primary calibration factors)
H9: 2026_11st_full_geo_nonEGU | I9: [For the 11 States] Static air quality design value and contribution estimates for all monitors, Engineering Analysis Baseline OS NOx + SCR Optimize + SOA CC + SNCR Optimize + SCR/SNCR Retrofit + non-EGU emissions reductions in 2026 (using the Full Geography configuration of AQAT and the primary calibration factors).
H10: 2026_11st_full_geo_newSCR | I10: [For the 11 States] Static air quality design value and contribution estimates for all monitors, Engineering Analysis Baseline OS NOx + SCR Optimize + SOA CC + SNCR Optimize + SCR/SNCR Retrofit emissions reductions in 2026 (using the Full Geography configuration of AQAT and the primary calibration factors).
H11: 2026_11st_full_geo_SNCRoptwCC | I11: [For the 11 States] Static air quality design value and contribution estimates for all monitors, Engineering Analysis Baseline OS NOx + SCR Optimize + SOA CC + SNCR Optimize emissions reductions in 2026 (using the Full Geography configuration of AQAT and the primary calibration factors). | J11: This file contains all the emissions and air quality data necessary to recreate the charts and tables showing the "knee in the curve". Most of the data is in the record from the original Final GNP (this is noted with a "[From the Final GNP]" in the description in the index. In addition, for the "Full Geography" scenarios for the 11 States, additional AQAT simulations were necessary. These new AQAT estimates have been included in this workbook and are labeled "2026_11st_full_geo...". These simulations used the AQAT from the Final GNP (where the identification of the Full Geography states was updated to reflect the states remaining in 2026). Note that California was not included in the EGU program and is not linked to Wisconsin or Connectic+J11ut receptors. Wisconsin was also excluded as it was not linked to Connecticut receptors in 2026. I3:I4
H12: 2026_11st_full_geo_SCRoptwCC | I12: [For the 11 States] Static air quality design value and contribution estimates for all monitors, Engineering Analysis Baseline OS NOx + SCR Optimize + SOA CC emissions reductions in 2026 (using the Full Geography configuration of AQAT and the primary calibration factors).
H13: 2026_11st_full_geo_base | I13: [For the 11 States] Static air quality design value and contribution estimates for all monitors, Engineering Analysis Baseline OS NOx emissions reductions in 2026 (using the Full Geography configuration of AQAT and the primary calibration factors).
H14: 2026_full_geo_nonEGU | I14: [From Final GNP] Static air quality design value and contribution estimates for all monitors, Engineering Analysis Baseline OS NOx + SCR Optimize + SOA CC + SNCR Optimize + SCR/SNCR Retrofit + non-EGU emissions reductions in 2026 (using the Full Geography configuration of AQAT and the primary calibration factors).
H15: 2026_full_geo_newSCR | I15: [From Final GNP] Static air quality design value and contribution estimates for all monitors, Engineering Analysis Baseline OS NOx + SCR Optimize + SOA CC + SNCR Optimize + SCR/SNCR Retrofit emissions reductions in 2026 (using the Full Geography configuration of AQAT and the primary calibration factors).
H16: 2026_full_geo_SNCRoptwCC | I16: [From Final GNP] Static air quality design value and contribution estimates for all monitors, Engineering Analysis Baseline OS NOx + SCR Optimize + SOA CC + SNCR Optimize emissions reductions in 2026 (using the Full Geography configuration of AQAT and the primary calibration factors).
H17: 2026_full_geo_SCRoptwCC | I17: [From Final GNP] Static air quality design value and contribution estimates for all monitors, Engineering Analysis Baseline OS NOx + SCR Optimize + SOA CC emissions reductions in 2026 (using the Full Geography configuration of AQAT and the primary calibration factors).
H18: 2026_full_geo_base | I18: [From Final GNP] Static air quality design value and contribution estimates for all monitors, Engineering Analysis Baseline OS NOx emissions reductions in 2026 (using the Full Geography configuration of AQAT and the primary calibration factors).
H19: 2026_EA | I19: [From Final GNP] EGU engineering analysis for 2026 for each state for various cost/stringency thresholds.
H20: 2026gf_All | I20: [From Final GNP] Contains average and maximum design values as well as state by state contributions for the 2026gf base case modeled in CAMx.
H21: 2026_step3_nonEGU_wIRA | I21: [From Final GNP] Static air quality design value and contribution estimates for all monitors, Engineering Analysis Baseline OS NOx + SCR Optimize + SOA CC + SNCR Optimize + SCR/SNCR Retrofit + non-EGU emissions reductions in 2026 (using the Step 3 configuration of AQAT and the primary calibration factors). Both the base and the policy scenario include the IRA.
H22: 2026_step3_newSCR_wIRA | I22: [From Final GNP] Static air quality design value and contribution estimates for all monitors, Engineering Analysis Baseline OS NOx + SCR Optimize + SOA CC + SNCR Optimize + SCR/SNCR Retrofit emissions reductions in 2026 (using the Step 3 configuration of AQAT and the primary calibration factors). Both the base and the policy scenario include the IRA.
H23: 2026_step3_base_wIRA | I23: [From Final GNP] Static air quality design value and contribution estimates for all monitors, Engineering Analysis Baseline OS NOx emissions reductions in 2026 (using the Step 3 configuration of AQAT and the primary calibration factors). The base includes the IRA.
H24: 2026_step3_nonEGU_1st | I24: [From Final GNP] Static air quality design value and contribution estimates for all monitors, Engineering Analysis Baseline OS NOx + SCR Optimize + SOA CC + SNCR Optimize + non-EGU emissions reductions in 2026 (using the Step 3 configuration of AQAT and the primary calibration factors).
H25: 2026_step3_nonEGU | I25: [From Final GNP] Static air quality design value and contribution estimates for all monitors, Engineering Analysis Baseline OS NOx + SCR Optimize + SOA CC + SNCR Optimize + SCR/SNCR Retrofit + non-EGU emissions reductions in 2026 (using the Step 3 configuration of AQAT and the primary calibration factors).
H26: 2026_step3_newSCR | I26: [From Final GNP] Static air quality design value and contribution estimates for all monitors, Engineering Analysis Baseline OS NOx + SCR Optimize + SOA CC + SNCR Optimize + SCR/SNCR Retrofit emissions reductions in 2026 (using the Step 3 configuration of AQAT and the primary calibration factors).
H27: 2026_step3_SNCRoptwCC | I27: [From Final GNP] Static air quality design value and contribution estimates for all monitors, Engineering Analysis Baseline OS NOx + SCR Optimize + SOA CC + SNCR Optimize emissions reductions in 2026 (using the Step 3 configuration of AQAT and the primary calibration factors).
H28: 2026_step3_SNCRopt | I28: [From Final GNP] Static air quality design value and contribution estimates for all monitors, Engineering Analysis Baseline OS NOx + SCR Optimize + SNCR Optimize emissions reductions in 2026 (using the Step 3 configuration of AQAT and the primary calibration factors).
H29: 2026_step3_SCRoptwCC | I29: [From Final GNP] Static air quality design value and contribution estimates for all monitors, Engineering Analysis Baseline OS NOx + SCR Optimize + SOA CC emissions reductions in 2026 (using the Step 3 configuration of AQAT and the primary calibration factors).
H30: 2026_step3_SCRopt | I30: [From Final GNP] Static air quality design value and contribution estimates for all monitors, Engineering Analysis Baseline OS NOx + SCR Optimize emissions reductions in 2026 (using the Step 3 configuration of AQAT and the primary calibration factors).
H31: 2026_step3_base | I31: [From Final GNP] Static air quality design value and contribution estimates for all monitors, Engineering Analysis Baseline OS NOx emissions reductions in 2026 (using the Step 3 configuration of AQAT and the primary calibration factors).

Sheet 11 State EGU Figure
E1: This is based on the "Step 3" configuration in AQAT for all 2026 receptors in Wisconsin and Connecticut.
A2: Method | B2: Reductions | C2: Cost | D2: NOx Reduction Potential | E2: Ozone Improvement | F2: ='11 State EGU Figure'!F2 -> 0
A3: SCR optimization | B3: =D3 -> 2,847 | C3: $1,600 | D3: ='2026_EA'!L62 -> 2,847 | E3: =Summary_Step3_GNP_and_11_State!BF29 -> 0.04
A4: SNCR optimization | B4: =D4-D3 -> 307 | C4: $1,800 | D4: ='2026_EA'!N62 -> 3,154 | E4: =Summary_Step3_GNP_and_11_State!BE29 -> 0.04
A5: SCR/SNCR retrofit | B5: =D5-D4 -> 5,215 | C5: $11,000 | D5: ='2026_EA'!O62 -> 8,369 | E5: =Summary_Step3_GNP_and_11_State!BD29 -> 0.10
A6: SCR on steam <100 MW, and O/G <150 tons/ozone season | B6: =-'NOx Reduction 11 State Summary'!E16 -> 1,719 | C6: $16,000 | D6: =D5+B6 -> 10,087 | E6: =E5+B6*$E$11 -> 0.12
A7: Combustion Controls on Turbines | B7: =-'NOx Reduction 11 State Summary'!F16 -> 659 | C7: $22,000 | D7: =D6+B7 -> 10,746 | E7: =E6+B7*$E$11 -> 0.13
A8: SCRs on large turbines (>100 MW) | B8: =-'NOx Reduction 11 State Summary'!G16 -> 554 | C8: $115,000 | D8: =D7+B8 -> 11,300 | E8: =E7+B8*$E$11 -> 0.14
A9: *Values may vary slightly relative to final engineeringanalysis and retrofit cost analyzer that were continually updated to incorporate latest fleet data. $50,000 per ton reflects low end, weighted average cost across all such units even higher.
D11: Average AQ ppb/ton factor | E11: =E5/D5 -> 1.226337763e-05
I16: (graph shows EGU reductions only)
A17: Method | B17: Reductions | D17: Ozone Improvement | E17: NOx Reduction Potential
A18: SCR optimization | B18: =B3 -> 2,847 | C18: $1,600 | D18: =E3 -> 0.04 | E18: =D3 -> 2,847
A19: SNCR optimization | B19: 307 | C19: $1,800 | D19: 0.04 | E19: 3,154
A20: SCR/SNCR retrofit | B20: 5,215 | C20: $11,000 | D20: 0.10 | E20: 8,369
A21: SCR on steam <100 MW, and O/G <150 tons/ozone season | B21: 1,719 | C21: $16,000 | D21: 0.12 | E21: 10,087
A22: Combustion Controls on Turbines | B22: 659 | C22: $22,000 | D22: 0.13 | E22: 10,746
A23: SCRs on large turbines (>100 MW) | B23: 554 | C23: $115,000 | D23: 0.14 | E23: 11,300

Sheet Tables
C6: Average air quality improvements (ppb) for 2026 relative to the Engineering Analysis Base for the Step 3 Configuration
C8: State | D8: Engineering Analysis Base | E8: SCR Optimize + SOA CC | F8: SCR Optimize + SOA CC + SNCR Optimize | G8: SCR Optimize + SOA CC + SNCR Optimize + SCR/SNCR Retrofit (“Full Step 3 – EGU only”) | H8: SCR Optimize + SOA CC + SNCR Optimize + SCR/SNCR Retrofit + non-EGU (“Full Step 3”)
C9: All GNP states (as finalized) for 2026 GNP receptors | D9: =Summary_Step3_GNP_and_11_State!BG14 -> 0.00 | E9: =Summary_Step3_GNP_and_11_State!BF14 -> 0.04 | F9: =Summary_Step3_GNP_and_11_State!BE14 -> 0.05 | G9: =Summary_Step3_GNP_and_11_State!BD14 -> 0.47 | H9: =Summary_Step3_GNP_and_11_State!BC14 -> 0.66
C10: All GNP states (as finalized) for 2026 receptors in Wisconsin and Connecticut | D10: =Summary_Step3_GNP_and_11_State!BG28 -> 0.00 | E10: =Summary_Step3_GNP_and_11_State!BF28 -> 0.10 | F10: =Summary_Step3_GNP_and_11_State!BE28 -> 0.11 | G10: =Summary_Step3_GNP_and_11_State!BD28 -> 0.27 | H10: =Summary_Step3_GNP_and_11_State!BC28 -> 0.55
C11: 11 states for 2026 receptors in Wisconsin and Connecticut | D11: =Summary_Step3_GNP_and_11_State!BG29 -> 0.00 | E11: =Summary_Step3_GNP_and_11_State!BF29 -> 0.04 | F11: =Summary_Step3_GNP_and_11_State!BE29 -> 0.04 | G11: =Summary_Step3_GNP_and_11_State!BD29 -> 0.10 | H11: =Summary_Step3_GNP_and_11_State!BC29 -> 0.32
C14: Average air quality improvements (ppb) for 2026 relative to the Engineering Analysis Base for the Full Geography Configuration
C16: State | D16: Engineering Analysis Base | E16: SCR Optimize + SOA CC | F16: SCR Optimize + SOA CC + SNCR Optimize | G16: SCR Optimize + SOA CC + SNCR Optimize + SCR/SNCR Retrofit (“Full Step 3 – EGU only”) | H16: SCR Optimize + SOA CC + SNCR Optimize + SCR/SNCR Retrofit + non-EGU (“Full Step 3”)
C17: All GNP states (as finalized) for 2026 GNP receptors | D17: =Summary_Full_Geography_GNP!$BH$16 -> 0.00 | E17: =Summary_Full_Geography_GNP!$BG$16 -> 0.04 | F17: =Summary_Full_Geography_GNP!$BF$16 -> 0.05 | G17: =Summary_Full_Geography_GNP!$BE$16 -> 0.42 | H17: =Summary_Full_Geography_GNP!$BD$16 -> 0.60
C18: All GNP states (as finalized) for 2026 receptors in Wisconsin and Connecticut | D18: =Summary_Full_Geography_GNP!$BH$30 -> 0.00 | E18: =Summary_Full_Geography_GNP!$BG$30 -> 0.13 | F18: =Summary_Full_Geography_GNP!$BF$30 -> 0.14 | G18: =Summary_Full_Geography_GNP!$BE$30 -> 0.38 | H18: =Summary_Full_Geography_GNP!$BD$30 -> 0.71
C19: 11 states for 2026 receptors in Wisconsin and Connecticut | D19: =Summary_Full_Geography_11_State!$BH$26 -> 0.00 | E19: =Summary_Full_Geography_11_State!$BG$26 -> 0.05 | F19: =Summary_Full_Geography_11_State!$BF$26 -> 0.05 | G19: =Summary_Full_Geography_11_State!$BE$26 -> 0.13 | H19: =Summary_Full_Geography_11_State!$BD$26 -> 0.36

Sheet NOx Reduction 11 State Summary
B2: Reductions of Ozone Season NOx (tons) in 2026 -- Additional EGU Mitigation Strategies beyond $11,000/ton
C4: 2023 Linked Non-Stayed States | D4: 2026 Linked Non-Stayed States | E4: Reductions SCR on < 100 MW | F4: Reductions Combustion Controls on Turbines | G4: Reductions SCRs on Combustion Turbines (Incremental)
B5: California | C5: X | D5: X | E5: N/A | F5: N/A | G5: N/A
B6: Illinois | C6: X | D6: X | E6: 0 | F6: -99 | G6: -111
B7: Indiana | C7: X | D7: X | E7: -38 | F7: -70 | G7: 0
B8: Maryland | C8: X | D8: X | E8: -51 | F8: -16 | G8: 0
B9: Michigan | C9: X | D9: X | E9: -368 | F9: -28 | G9: -281
B10: New Jersey | C10: X | D10: X | E10: 0 | F10: 0 | G10: 0
B11: New York | C11: X | D11: X | E11: -930 | F11: -277 | G11: 0
B12: Ohio | C12: X | D12: X | E12: 0 | F12: -49 | G12: -49
B13: Pennsylvania | C13: X | D13: X | E13: -274 | F13: -90 | G13: -48
B14: Virginia | C14: X | D14: X | E14: -57 | F14: -29 | G14: -66
B15: Wisconsin | C15: X | E15: N/A | F15: N/A | G15: N/A
B16: Subtotal | E16: =SUM(E5:E15) -> -1,719 | F16: =SUM(F5:F15) -> -659 | G16: =SUM(G5:G15) -> -554

Sheet Unit 2026
A1: Facility | B1: State | C1: RCU State | D1: 2023 EGU control strategy | E1: 2026 EGU control strategy | F1: ORIS | G1: Boiler | H1: CAMD ID | I1: Plant Type | J1: Retirement Month Check | K1: Retirement Year Check | L1: Retired Before EA Year | M1: Unit Type | N1: Existing SCR | O1: Existing SNCR | P1: Common Stack | Q1: Capacity (MW) | R1: 2021 NOx (tons) | S1: 2021 Heat Input (mmBtu) | T1: 2021 Gross Generation (mWh) | U1: 2019 to 2021 Average NOx (tons) | V1: 2021 NOx (tons), Retired Before 2026 | W1: Flag | X1: 2021 Heat Input (mmBtu), Retired Before 2026 | Y1: 2021 Gross Generation (mWh) Retired Before 2026 | Z1: 2021 NOx (tons), Retired Before 2026, Coal to Gas Conversion Before 2026 | AA1: Flag | AB1: 2021 NOx (tons), Retired Before 2026, Coal to Gas Conversion Before 2026, New SCRs Before 2026 | AC1: Flag | AD1: 2021 NOx (tons), Retired Before 2026, Coal to Gas Conversion Before 2026, New SCRs Before 2026, BART Limits and other specific EPA Limits (see flag) | AE1: Flag | AF1: 2021 NOx (tons), SCR Optimize | AG1: Flag | AH1: 2021 NOx (tons), SCR Optimize + Eligible SOA CC | AI1: Flag | AJ1: 2021 NOx (tons), SCR Optimize + SNCR Optimize | AK1: Flag | AL1: 2021 NOx (tons), SCR Optimize + Eligible SOA CC + SNCR Optimize | AM1: Flag | AN1: 2021 NOx (tons), SCR Optimize + Eligible SOA CC + SNCR Optimize + SCR (Half)/SNCR Retrofit on All Boilers | AO1: 2021 NOx (tons), SCR Optimize + Eligible SOA CC + SNCR Optimize + SCR/SNCR Retrofit on All Boilers | AP1: Flag | AQ1: Pre SCR/SNCR Retrofit on All Boilers NOx Rate (lb/mmBtu) | AR1: Post SCR/SNCR Retrofit on All Boilers NOx Rate (lb/mmBtu) | AS1: Additional (Not ARP or CSAPR) Unit | AT1: 2019 to 2021 Average Capacity Factor (%) | AU1: NOx Comb Cont | AV1: SCR on steam <100 MW, and for O/G Steam <150 tons/ozone season | AW1: Reductions Combustion Controls on Turbines without any | AX1: Reductions SCRs on Combustion Turbines(15% CF, >=100 MW) | AY1: Incremental Reductions SCRs on Combustion Turbines (SCR less SOA CC upgrades)
A2: AMEA Sylacauga Plant | B2: Alabama | D2: X | F2: 56018 | G2: 1 | H2: 89313 | I2: Combustion Turbine | M2: Combustion turbine | Q2: 48 | R2: 8 | S2: 185,597 | T2: 18,995 | U2: 8 | V2: 8 | X2: 185,597 | Y2: 18,995 | Z2: 8 | AB2: 8 | AD2: 8 | AF2: 8 | AH2: 8 | AJ2: 8 | AL2: 8 | AN2: 8 | AO2: 8 | AP2: Not Coal Steam or O/G Steam | AQ2: 0.084 | AR2: 0.084 | AT2: 10% | AU2: H2O | AV2: 0 | AW2: 0
A3: AMEA Sylacauga Plant | B3: Alabama | D3: X | F3: 56018 | G3: 2 | H3: 89314 | I3: Combustion Turbine | M3: Combustion turbine | Q3: 48 | R3: 8 | S3: 186,691 | T3: 18,957 | U3: 8 | V3: 8 | X3: 186,691 | Y3: 18,957 | Z3: 8 | AB3: 8 | AD3: 8 | AF3: 8 | AH3: 8 | AJ3: 8 | AL3: 8 | AN3: 8 | AO3: 8 | AP3: Not Coal Steam or O/G Steam | AQ3: 0.085 | AR3: 0.085 | AT3: 10% | AU3: H2O | AV3: 0 | AW3: 0
A4: Barry | B4: Alabama | D4: X | F4: 3 | G4: 1 | H4: 1 | I4: O/G Steam | M4: Tangentially-fired | O4: Y | P4: Y | Q4: 56 | U4: 3 | AP4: O/G Steam Under 100 MW | AQ4: 0.000 | AR4: 0.000 | AT4: 1% | AU4: LNC1 | AV4: 0
A5: Barry | B5: Alabama | D5: X | F5: 3 | G5: 2 | H5: 2 | I5: O/G Steam | M5: Tangentially-fired | O5: Y | P5: Y | Q5: 56 | U5: 3 | AP5: O/G Steam Under 100 MW | AQ5: 0.000 | AR5: 0.000 | AT5: 1% | AU5: LNC1 | AV5: 0
A6: Barry | B6: Alabama | D6: X | F6: 3 | G6: 4 | H6: 4 | I6: O/G Steam | M6: Tangentially-fired | O6: Y | Q6: 362 | R6: 473 | S6: 3,513,717 | T6: 370,510 | U6: 288 | V6: 473 | X6: 3,513,717 | Y6: 370,510 | Z6: 236 | AA6: Y | AB6: 236 | AD6: 236 | AF6: 236 | AH6: 236 | AJ6: 236 | AL6: 236 | AN6: 145 | AO6: 53 | AP6: O/G Steam SCR Retrofit | AQ6: 0.135 | AR6: 0.030 | AT6: 9% | AU6: LNC2 | AV6: 0
A7: Barry | B7: Alabama | D7: X | F7: 3 | G7: 5 | H7: 5 | I7: Coal Steam | J7: 12 | K7: 2028 | L7: 2029 | M7: Tangentially-fired | N7: Y | Q7: 756 | R7: 698 | S7: 20,662,771 | T7: 2,091,270 | U7: 601 | V7: 698 | X7: 20,662,771 | Y7: 2,091,270 | Z7: 698 | AB7: 698 | AD7: 698 | AF7: 698 | AH7: 698 | AJ7: 698 | AL7: 698 | AN7: 698 | AO7: 698 | AP7: Existing SCR | AQ7: 0.068 | AR7: 0.068 | AT7: 43% | AU7: LNC2 | AV7: 0
A8: Barry | B8: Alabama | D8: X | F8: 3 | G8: 6A | H8: 6 | I8: Combined Cycle | M8: Combined cycle | N8: Y | Q8: 200 | R8: 23 | S8: 5,071,075 | T8: 735,633 | U8: 24 | V8: 23 | X8: 5,071,075 | Y8: 735,633 | Z8: 23 | AB8: 23 | AD8: 23 | AF8: 23 | AH8: 23 | AJ8: 23 | AL8: 23 | AN8: 23 | AO8: 23 | AP8: Not Coal Steam or O/G Steam | AQ8: 0.009 | AR8: 0.009 | AT8: 52% | AU8: LNB | AV8: 0
A9: Barry | B9: Alabama | D9: X | F9: 3 | G9: 6B | H9: 7 | I9: Combined Cycle | M9: Combined cycle | N9: Y | Q9: 176 | R9: 30 | S9: 6,566,771 | T9: 930,238 | U9: 27 | V9: 30 | X9: 6,566,771 | Y9: 930,238 | Z9: 30 | AB9: 30 | AD9: 30 | AF9: 30 | AH9: 30 | AJ9: 30 | AL9: 30 | AN9: 30 | AO9: 30 | AP9: Not Coal Steam or O/G Steam | AQ9: 0.009 | AR9: 0.009 | AT9: 61% | AU9: DLNB | AV9: 0
A10: Barry | B10: Alabama | D10: X | F10: 3 | G10: 7A | H10: 8 | I10: Combined Cycle | M10: Combined cycle | N10: Y | Q10: 200 | R10: 31 | S10: 6,777,467 | T10: 937,068 | U10: 29 | V10: 31 | X10: 6,777,467 | Y10: 937,068 | Z10: 31 | AB10: 31 | AD10: 31 | AF10: 31 | AH10: 31 | AJ10: 31 | AL10: 31 | AN10: 31 | AO10: 31 | AP10: Not Coal Steam or O/G Steam | AQ10: 0.009 | AR10: 0.009 | AT10: 62% | AU10: LNB | AV10: 0
A11: Barry | B11: Alabama | D11: X | F11: 3 | G11: 7B | H11: 9 | I11: Combined Cycle | M11: Combined cycle | N11: Y | Q11: 179 | R11: 28 | S11: 6,717,795 | T11: 934,110 | U11: 28 | V11: 28 | X11: 6,717,795 | Y11: 934,110 | Z11: 28 | AB11: 28 | AD11: 28 | AF11: 28 | AH11: 28 | AJ11: 28 | AL11: 28 | AN11: 28 | AO11: 28 | AP11: Not Coal Steam or O/G Steam | AQ11: 0.008 | AR11: 0.008 | AT11: 63% | AU11: DLNB | AV11: 0
A12: Calhoun Generating Facility | B12: Alabama | D12: X | F12: 55409 | G12: CT1 | H12: 4688 | I12: Combustion Turbine | M12: Combustion turbine | Q12: 158 | R12: 2 | S12: 125,246 | T12: 11,995 | U12: 6 | V12: 2 | X12: 125,246 | Y12: 11,995 | Z12: 2 | AB12: 2 | AD12: 2 | AF12: 2 | AH12: 2 | AJ12: 2 | AL12: 2 | AN12: 2 | AO12: 2 | AP12: Not Coal Steam or O/G Steam | AQ12: 0.033 | AR12: 0.033 | AT12: 5% | AU12: DLNB + H2O | AV12: 0 | AW12: 0
A13: Calhoun Generating Facility | B13: Alabama | D13: X | F13: 55409 | G13: CT2 | H13: 4689 | I13: Combustion Turbine | M13: Combustion turbine | Q13: 158 | R13: 1 | S13: 58,243 | T13: 5,552 | U13: 5 | V13: 1 | X13: 58,243 | Y13: 5,552 | Z13: 1 | AB13: 1 | AD13: 1 | AF13: 1 | AH13: 1 | AJ13: 1 | AL13: 1 | AN13: 1 | AO13: 1 | AP13: Not Coal Steam or O/G Steam | AQ13: 0.035 | AR13: 0.035 | AT13: 4% | AU13: DLNB + H2O | AV13: 0 | AW13: 0
A14: Calhoun Generating Facility | B14: Alabama | D14: X | F14: 55409 | G14: CT3 | H14: 4690 | I14: Combustion Turbine | M14: Combustion turbine | Q14: 158 | R14: 1 | S14: 54,667 | T14: 5,022 | U14: 5 | V14: 1 | X14: 54,667 | Y14: 5,022 | Z14: 1 | AB14: 1 | AD14: 1 | AF14: 1 | AH14: 1 | AJ14: 1 | AL14: 1 | AN14: 1 | AO14: 1 | AP14: Not Coal Steam or O/G Steam | AQ14: 0.036 | AR14: 0.036 | AT14: 4% | AU14: DLNB + H2O | AV14: 0 | AW14: 0
A15: Calhoun Generating Facility | B15: Alabama | D15: X | F15: 55409 | G15: CT4 | H15: 4691 | I15: Combustion Turbine | M15: Combustion turbine | Q15: 158 | R15: 2 | S15: 128,934 | T15: 12,186 | U15: 6 | V15: 2 | X15: 128,934 | Y15: 12,186 | Z15: 2 | AB15: 2 | AD15: 2 | AF15: 2 | AH15: 2 | AJ15: 2 | AL15: 2 | AN15: 2 | AO15: 2 | AP15: Not Coal Steam or O/G Steam | AQ15: 0.033 | AR15: 0.033 | AT15: 5% | AU15: DLNB + H2O | AV15: 0 | AW15: 0
A16: Central Alabama Gen Station | B16: Alabama | D16: X | F16: 55440 | G16: CTGDB1 | H16: 4758 | I16: Combined Cycle | M16: Combined cycle | N16: Y | Q16: 399 | R16: 20 | S16: 4,347,066 | T16: 596,810 | U16: 26 | V16: 20 | X16: 4,347,066 | Y16: 596,810 | Z16: 20 | AB16: 20 | AD16: 20 | AF16: 20 | AH16: 20 | AJ16: 20 | AL16: 20 | AN16: 20 | AO16: 20 | AP16: Not Coal Steam or O/G Steam | AQ16: 0.009 | AR16: 0.009 | AT16: 55% | AU16: DLNB + H2O + NH3 | AV16: 0
A17: Central Alabama Gen Station | B17: Alabama | D17: X | F17: 55440 | G17: CTGDB2 | H17: 4759 | I17: Combined Cycle | M17: Combined cycle | N17: Y | Q17: 176 | R17: 22 | S17: 5,511,402 | T17: 740,229 | U17: 28 | V17: 22 | X17: 5,511,402 | Y17: 740,229 | Z17: 22 | AB17: 22 | AD17: 22 | AF17: 22 | AH17: 22 | AJ17: 22 | AL17: 22 | AN17: 22 | AO17: 22 | AP17: Not Coal Steam or O/G Steam | AQ17: 0.008 | AR17: 0.008 | AT17: 61% | AU17: DLNB + H2O | AV17: 0
A18: Central Alabama Gen Station | B18: Alabama | D18: X | F18: 55440 | G18: CTGDB3 | H18: 4760 | I18: Combined Cycle | M18: Combined cycle | N18: Y | Q18: 171 | R18: 16 | S18: 4,205,115 | T18: 583,591 | U18: 36 | V18: 16 | X18: 4,205,115 | Y18: 583,591 | Z18: 16 | AB18: 16 | AD18: 16 | AF18: 16 | AH18: 16 | AJ18: 16 | AL18: 16 | AN18: 16 | AO18: 16 | AP18: Not Coal Steam or O/G Steam | AQ18: 0.008 | AR18: 0.008 | AT18: 52% | AU18: DLNB + H2O | AV18: 0
A19: Colbert | B19: Alabama | D19: X | F19: 47 | G19: CCT1 | H19: 88150 | I19: Combustion Turbine | M19: Combustion turbine | Q19: 45 | R19: 2 | S19: 7,823 | T19: 566 | U19: 1 | V19: 2 | X19: 7,823 | Y19: 566 | Z19: 2 | AB19: 2 | AD19: 2 | AF19: 2 | AH19: 2 | AJ19: 2 | AL19: 2 | AN19: 2 | AO19: 2 | AP19: Not Coal Steam or O/G Steam | AQ19: 0.409 | AR19: 0.409 | AT19: 0% | AV19: 0 | AW19: -1
A20: Colbert | B20: Alabama | D20: X | F20: 47 | G20: CCT2 | H20: 88151 | I20: Combustion Turbine | M20: Combustion turbine | Q20: 45 | R20: 2 | S20: 7,659 | T20: 551 | U20: 1 | V20: 2 | X20: 7,659 | Y20: 551 | Z20: 2 | AB20: 2 | AD20: 2 | AF20: 2 | AH20: 2 | AJ20: 2 | AL20: 2 | AN20: 2 | AO20: 2 | AP20: Not Coal Steam or O/G Steam | AQ20: 0.409 | AR20: 0.409 | AT20: 0% | AV20: 0 | AW20: -1
A21: Colbert | B21: Alabama | D21: X | F21: 47 | G21: CCT3 | H21: 88152 | I21: Combustion Turbine | M21: Combustion turbine | Q21: 45 | R21: 2 | S21: 11,681 | T21: 853 | U21: 1 | V21: 2 | X21: 11,681 | Y21: 853 | Z21: 2 | AB21: 2 | AD21: 2 | AF21: 2 | AH21: 2 | AJ21: 2 | AL21: 2 | AN21: 2 | AO21: 2 | AP21: Not Coal Steam or O/G Steam | AQ21: 0.403 | AR21: 0.403 | AT21: 0% | AV21: 0 | AW21: -2
A22: Colbert | B22: Alabama | D22: X | F22: 47 | G22: CCT4 | H22: 88153 | I22: Combustion Turbine | M22: Combustion turbine | Q22: 45 | R22: 1 | S22: 7,163 | T22: 502 | U22: 1 | V22: 1 | X22: 7,163 | Y22: 502 | Z22: 1 | AB22: 1 | AD22: 1 | AF22: 1 | AH22: 1 | AJ22: 1 | AL22: 1 | AN22: 1 | AO22: 1 | AP22: Not Coal Steam or O/G Steam | AQ22: 0.400 | AR22: 0.400 | AT22: 0% | AV22: 0 | AW22: -1
A23: Colbert | B23: Alabama | D23: X | F23: 47 | G23: CCT5 | H23: 88154 | I23: Combustion Turbine | M23: Combustion turbine | Q23: 45 | R23: 3 | S23: 13,096 | T23: 948 | U23: 2 | V23: 3 | X23: 13,096 | Y23: 948 | Z23: 3 | AB23: 3 | AD23: 3 | AF23: 3 | AH23: 3 | AJ23: 3 | AL23: 3 | AN23: 3 | AO23: 3 | AP23: Not Coal Steam or O/G Steam | AQ23: 0.402 | AR23: 0.402 | AT23: 0% | AV23: 0 | AW23: -2
A24: Colbert | B24: Alabama | D24: X | F24: 47 | G24: CCT6 | H24: 88155 | I24: Combustion Turbine | M24: Combustion turbine | Q24: 45 | R24: 3 | S24: 13,835 | T24: 1,013 | U24: 2 | V24: 3 | X24: 13,835 | Y24: 1,013 | Z24: 3 | AB24: 3 | AD24: 3 | AF24: 3 | AH24: 3 | AJ24: 3 | AL24: 3 | AN24: 3 | AO24: 3 | AP24: Not Coal Steam or O/G Steam | AQ24: 0.402 | AR24: 0.402 | AT24: 0% | AV24: 0 | AW24: -3
A25: Colbert | B25: Alabama | D25: X | F25: 47 | G25: CCT7 | H25: 88156 | I25: Combustion Turbine | M25: Combustion turbine | Q25: 45 | R25: 3 | S25: 14,341 | T25: 992 | U25: 2 | V25: 3 | X25: 14,341 | Y25: 992 | Z25: 3 | AB25: 3 | AD25: 3 | AF25: 3 | AH25: 3 | AJ25: 3 | AL25: 3 | AN25: 3 | AO25: 3 | AP25: Not Coal Steam or O/G Steam | AQ25: 0.402 | AR25: 0.402 | AT25: 0% | AV25: 0 | AW25: -3
A26: Colbert | B26: Alabama | D26: X | F26: 47 | G26: CCT8 | H26: 88157 | I26: Combustion Turbine | M26: Combustion turbine | Q26: 45 | R26: 3 | S26: 14,142 | T26: 1,012 | U26: 2 | V26: 3 | X26: 14,142 | Y26: 1,012 | Z26: 3 | AB26: 3 | AD26: 3 | AF26: 3 | AH26: 3 | AJ26: 3 | AL26: 3 | AN26: 3 | AO26: 3 | AP26: Not Coal Steam or O/G Steam | AQ26: 0.402 | AR26: 0.402 | AT26: 0% | AV26: 0 | AW26: -3
A27: Decatur Energy Center | B27: Alabama | D27: X | F27: 55292 | G27: CTG-1 | H27: 4459 | I27: Combined Cycle | M27: Combined cycle | N27: Y | Q27: 260 | R27: 9 | S27: 1,549,360 | T27: 207,172 | U27: 10 | V27: 9 | X27: 1,549,360 | Y27: 207,172 | Z27: 9 | AB27: 9 | AD27: 9 | AF27: 9 | AH27: 9 | AJ27: 9 | AL27: 9 | AN27: 9 | AO27: 9 | AP27: Not Coal Steam or O/G Steam | AQ27: 0.011 | AR27: 0.011 | AT27: 26% | AU27: NH3 | AV27: 0
A28: Decatur Energy Center | B28: Alabama | D28: X | F28: 55292 | G28: CTG-2 | H28: 4460 | I28: Combined Cycle | M28: Combined cycle | N28: Y | Q28: 155 | R28: 9 | S28: 1,612,639 | T28: 216,289 | U28: 11 | V28: 9 | X28: 1,612,639 | Y28: 216,289 | Z28: 9 | AB28: 9 | AD28: 9 | AF28: 9 | AH28: 9 | AJ28: 9 | AL28: 9 | AN28: 9 | AO28: 9 | AP28: Not Coal Steam or O/G Steam | AQ28: 0.011 | AR28: 0.011 | AT28: 28% | AU28: DLNB | AV28: 0
A29: Decatur Energy Center | B29: Alabama | D29: X | F29: 55292 | G29: CTG-3 | H29: 4461 | I29: Combined Cycle | M29: Combined cycle | N29: Y | Q29: 155 | R29: 10 | S29: 1,729,017 | T29: 226,349 | U29: 12 | V29: 10 | X29: 1,729,017 | Y29: 226,349 | Z29: 10 | AB29: 10 | AD29: 10 | AF29: 10 | AH29: 10 | AJ29: 10 | AL29: 10 | AN29: 10 | AO29: 10 | AP29: Not Coal Steam or O/G Steam | AQ29: 0.012 | AR29: 0.012 | AT29: 28% | AU29: DLNB | AV29: 0
A30: E B Harris Generating Plant | B30: Alabama | D30: X | F30: 7897 | G30: 1A | H30: 3355 | I30: Combined Cycle | M30: Combined cycle | N30: Y | Q30: 293 | R30: 29 | S30: 4,018,790 | T30: 580,821 | U30: 25 | V30: 29 | X30: 4,018,790 | Y30: 580,821 | Z30: 29 | AB30: 29 | AD30: 29 | AF30: 24 | AG30: Optimize SCR | AH30: 24 | AJ30: 24 | AL30: 24 | AN30: 24 | AO30: 24 | AP30: Not Coal Steam or O/G Steam | AQ30: 0.012 | AR30: 0.012 | AT30: 46% | AU30: DLNB | AV30: 0
A31: E B Harris Generating Plant | B31: Alabama | D31: X | F31: 7897 | G31: 1B | H31: 3356 | I31: Combined Cycle | M31: Combined cycle | N31: Y | Q31: 183 | R31: 25 | S31: 5,006,870 | T31: 726,342 | U31: 24 | V31: 25 | X31: 5,006,870 | Y31: 726,342 | Z31: 25 | AB31: 25 | AD31: 25 | AF31: 25 | AH31: 25 | AJ31: 25 | AL31: 25 | AN31: 25 | AO31: 25 | AP31: Not Coal Steam or O/G Steam | AQ31: 0.010 | AR31: 0.010 | AT31: 50% | AU31: DLNB | AV31: 0
A32: E B Harris Generating Plant | B32: Alabama | D32: X | F32: 7897 | G32: 2A | H32: 3357 | I32: Combined Cycle | M32: Combined cycle | N32: Y | Q32: 300 | R32: 8 | S32: 2,030,950 | T32: 301,273 | U32: 14 | V32: 8 | X32: 2,030,950 | Y32: 301,273 | Z32: 8 | AB32: 8 | AD32: 8 | AF32: 8 | AH32: 8 | AJ32: 8 | AL32: 8 | AN32: 8 | AO32: 8 | AP32: Not Coal Steam or O/G Steam | AQ32: 0.008 | AR32: 0.008 | AT32: 32% | AU32: DLNB | AV32: 0
A33: E B Harris Generating Plant | B33: Alabama | D33: X | F33: 7897 | G33: 2B | H33: 3358 | I33: Combined Cycle | M33: Combined cycle | N33: Y | Q33: 178 | R33: 15 | S33: 3,768,467 | T33: 558,246 | U33: 16 | V33: 15 | X33: 3,768,467 | Y33: 558,246 | Z33: 15 | AB33: 15 | AD33: 15 | AF33: 15 | AH33: 15 | AJ33: 15 | AL33: 15 | AN33: 15 | AO33: 15 | AP33: Not Coal Steam or O/G Steam | AQ33: 0.008 | AR33: 0.008 | AT33: 37% | AU33: DLNB | AV33: 0
A34: E C Gaston | B34: Alabama | D34: X | F34: 26 | G34: 1 | H34: 30 | I34: O/G Steam | M34: Dry bottom wall-fired boiler | P34: Y | Q34: 254 | R34: 108 | S34: 2,331,795 | T34: 225,046 | U34: 184 | V34: 108 | X34: 2,331,795 | Y34: 225,046 | Z34: 108 | AB34: 108 | AD34: 108 | AF34: 108 | AH34: 108 | AJ34: 108 | AL34: 108 | AN34: 71 | AO34: 35 | AP34: O/G Steam SCR Retrofit | AQ34: 0.093 | AR34: 0.030 | AT34: 18% | AU34: LNB | AV34: 0
A35: E C Gaston | B35: Alabama | D35: X | F35: 26 | G35: 2 | H35: 31 | I35: O/G Steam | M35: Dry bottom wall-fired boiler | P35: Y | Q35: 256 | R35: 106 | S35: 2,193,061 | T35: 210,108 | U35: 198 | V35: 106 | X35: 2,193,061 | Y35: 210,108 | Z35: 106 | AB35: 106 | AD35: 106 | AF35: 106 | AH35: 106 | AJ35: 106 | AL35: 106 | AN35: 69 | AO35: 33 | AP35: O/G Steam SCR Retrofit | AQ35: 0.097 | AR35: 0.030 | AT35: 20% | AU35: LNB | AV35: 0
A36: E C Gaston | B36: Alabama | D36: X | F36: 26 | G36: 3 | H36: 32 | I36: O/G Steam | M36: Dry bottom wall-fired boiler | P36: Y | Q36: 254 | R36: 146 | S36: 2,775,938 | T36: 263,529 | U36: 217 | V36: 146 | X36: 2,775,938 | Y36: 263,529 | Z36: 146 | AB36: 146 | AD36: 146 | AF36: 146 | AH36: 146 | AJ36: 146 | AL36: 146 | AN36: 94 | AO36: 42 | AP36: O/G Steam SCR Retrofit | AQ36: 0.105 | AR36: 0.030 | AT36: 20% | AU36: LNB | AV36: 0
A37: E C Gaston | B37: Alabama | D37: X | F37: 26 | G37: 4 | H37: 33 | I37: O/G Steam | M37: Dry bottom wall-fired boiler | P37: Y | Q37: 256 | R37: 83 | S37: 1,514,556 | T37: 150,379 | U37: 178 | V37: 83 | X37: 1,514,556 | Y37: 150,379 | Z37: 83 | AB37: 83 | AD37: 83 | AF37: 83 | AH37: 83 | AJ37: 83 | AL37: 83 | AN37: 53 | AO37: 23 | AP37: O/G Steam SCR Retrofit | AQ37: 0.110 | AR37: 0.030 | AT37: 23% | AU37: LNB | AV37: 0
A38: E C Gaston | B38: Alabama | D38: X | F38: 26 | G38: 5 | H38: 34 | I38: Coal Steam | M38: Tangentially-fired | N38: Y | Q38: 832 | R38: 720 | S38: 17,304,088 | T38: 1,717,288 | U38: 811 | V38: 720 | X38: 17,304,088 | Y38: 1,717,288 | Z38: 720 | AB38: 720 | AD38: 720 | AF38: 692 | AG38: Optimize SCR | AH38: 692 | AJ38: 692 | AL38: 692 | AN38: 692 | AO38: 692 | AP38: Existing SCR | AQ38: 0.080 | AR38: 0.080 | AT38: 30% | AU38: LNC2 | AV38: 0
A39: Gadsden | B39: Alabama | D39: X | F39: 7 | G39: 1 | H39: 11 | I39: O/G Steam | J39: 1 | K39: 2023 | L39: 2023 | M39: Tangentially-fired | P39: Y | Q39: 64 | U39: 23 | V39: 0 | W39: Y | X39: 0 | Y39: 0 | Z39: 0 | AB39: 0 | AD39: 0 | AF39: 0 | AH39: 0 | AJ39: 0 | AL39: 0 | AN39: 0 | AO39: 0 | AP39: Retired | AQ39: 0.000 | AR39: 0.000 | AT39: 9% | AU39: LNB | AV39: 0
A40: Gadsden | B40: Alabama | D40: X | F40: 7 | G40: 2 | H40: 12 | I40: O/G Steam | J40: 1 | K40: 2023 | L40: 2023 | M40: Tangentially-fired | P40: Y | Q40: 66 | V40: 0 | W40: Y | X40: 0 | Y40: 0 | Z40: 0 | AB40: 0 | AD40: 0 | AF40: 0 | AH40: 0 | AJ40: 0 | AL40: 0 | AN40: 0 | AO40: 0 | AP40: Retired | AQ40: 0.000 | AR40: 0.000 | AU40: LNB | AV40: 0
A41: Greene County | B41: Alabama | D41: X | F41: 10 | G41: 1 | H41: 19 | I41: O/G Steam | J41: 12 | K41: 2025 | L41: 2026 | M41: Cell burner boiler | P41: Y | Q41: 258 | R41: 150 | S41: 2,634,645 | T41: 264,873 | U41: 296 | V41: 0 | W41: Y | X41: 0 | Y41: 0 | Z41: 0 | AB41: 0 | AD41: 0 | AF41: 0 | AH41: 0 | AJ41: 0 | AL41: 0 | AN41: 0 | AO41: 0 | AP41: Retired | AQ41: 0.000 | AR41: 0.000 | AT41: 30% | AU41: LNCB | AV41: 0
A42: Greene County | B42: Alabama | D42: X | F42: 10 | G42: 2 | H42: 20 | I42: O/G Steam | J42: 12 | K42: 2026 | L42: 2027 | M42: Dry bottom wall-fired boiler | P42: Y | Q42: 258 | R42: 103 | S42: 1,745,393 | T42: 169,799 | U42: 272 | V42: 103 | X42: 1,745,393 | Y42: 169,799 | Z42: 103 | AB42: 103 | AD42: 103 | AF42: 103 | AH42: 103 | AJ42: 103 | AL42: 103 | AN42: 64 | AO42: 26 | AP42: O/G Steam SCR Retrofit | AQ42: 0.118 | AR42: 0.030 | AT42: 28% | AU42: LNB | AV42: 0
A43: Greene County | B43: Alabama | D43: X | F43: 10 | G43: CT10 | H43: 21 | I43: Combustion Turbine | M43: Combustion turbine | Q43: 85 | R43: 2 | S43: 42,285 | T43: 3,099 | U43: 2 | V43: 2 | X43: 42,285 | Y43: 3,099 | Z43: 2 | AB43: 2 | AD43: 2 | AF43: 2 | AH43: 2 | AJ43: 2 | AL43: 2 | AN43: 2 | AO43: 2 | AP43: Not Coal Steam or O/G Steam | AQ43: 0.090 | AR43: 0.090 | AT43: 1% | AU43: H2O | AV43: 0 | AW43: 0
A44: Greene County | B44: Alabama | D44: X | F44: 10 | G44: CT2 | H44: 22 | I44: Combustion Turbine | M44: Combustion turbine | Q44: 84 | R44: 4 | S44: 119,398 | T44: 8,669 | U44: 3 | V44: 4 | X44: 119,398 | Y44: 8,669 | Z44: 4 | AB44: 4 | AD44: 4 | AF44: 4 | AH44: 4 | AJ44: 4 | AL44: 4 | AN44: 4 | AO44: 4 | AP44: Not Coal Steam or O/G Steam | AQ44: 0.074 | AR44: 0.074 | AT44: 1% | AU44: H2O | AV44: 0 | AW44: 0
A45: Greene County | B45: Alabama | D45: X | F45: 10 | G45: CT3 | H45: 23 | I45: Combustion Turbine | M45: Combustion turbine | Q45: 82 | R45: 2 | S45: 55,380 | T45: 4,065 | U45: 2 | V45: 2 | X45: 55,380 | Y45: 4,065 | Z45: 2 | AB45: 2 | AD45: 2 | AF45: 2 | AH45: 2 | AJ45: 2 | AL45: 2 | AN45: 2 | AO45: 2 | AP45: Not Coal Steam or O/G Steam | AQ45: 0.064 | AR45: 0.064 | AT45: 1% | AU45: H2O | AV45: 0 | AW45: 0
A46: Greene County | B46: Alabama | D46: X | F46: 10 | G46: CT4 | H46: 24 | I46: Combustion Turbine | M46: Combustion turbine | Q46: 81 | R46: 1 | S46: 36,616 | T46: 2,710 | U46: 2 | V46: 1 | X46: 36,616 | Y46: 2,710 | Z46: 1 | AB46: 1 | AD46: 1 | AF46: 1 | AH46: 1 | AJ46: 1 | AL46: 1 | AN46: 1 | AO46: 1 | AP46: Not Coal Steam or O/G Steam | AQ46: 0.077 | AR46: 0.077 | AT46: 1% | AU46: H2O | AV46: 0 | AW46: 0
A47: Greene County | B47: Alabama | D47: X | F47: 10 | G47: CT5 | H47: 25 | I47: Combustion Turbine | M47: Combustion turbine | Q47: 82 | R47: 2 | S47: 72,496 | T47: 5,297 | U47: 2 | V47: 2 | X47: 72,496 | Y47: 5,297 | Z47: 2 | AB47: 2 | AD47: 2 | AF47: 2 | AH47: 2 | AJ47: 2 | AL47: 2 | AN47: 2 | AO47: 2 | AP47: Not Coal Steam or O/G Steam | AQ47: 0.062 | AR47: 0.062 | AT47: 1% | AU47: H2O | AV47: 0 | AW47: 0
A48: Greene County | B48: Alabama | D48: X | F48: 10 | G48: CT6 | H48: 26 | I48: Combustion Turbine | M48: Combustion turbine | Q48: 81 | R48: 0 | S48: 6,700 | T48: 494 | U48: 1 | V48: 0 | X48: 6,700 | Y48: 494 | Z48: 0 | AB48: 0 | AD48: 0 | AF48: 0 | AH48: 0 | AJ48: 0 | AL48: 0 | AN48: 0 | AO48: 0 | AP48: Not Coal Steam or O/G Steam | AQ48: 0.067 | AR48: 0.067 | AT48: 1% | AU48: H2O | AV48: 0 | AW48: 0
A49: Greene County | B49: Alabama | D49: X | F49: 10 | G49: CT7 | H49: 27 | I49: Combustion Turbine | M49: Combustion turbine | Q49: 80 | R49: 0 | S49: 4,791 | T49: 353 | U49: 2 | V49: 0 | X49: 4,791 | Y49: 353 | Z49: 0 | AB49: 0 | AD49: 0 | AF49: 0 | AH49: 0 | AJ49: 0 | AL49: 0 | AN49: 0 | AO49: 0 | AP49: Not Coal Steam or O/G Steam | AQ49: 0.076 | AR49: 0.076 | AT49: 1% | AU49: H2O | AV49: 0 | AW49: 0
A50: Greene County | B50: Alabama | D50: X | F50: 10 | G50: CT8 | H50: 28 | I50: Combustion Turbine | M50: Combustion turbine | Q50: 83 | R50: 0 | S50: 5,065 | T50: 371 | U50: 1 | V50: 0 | X50: 5,065 | Y50: 371 | Z50: 0 | AB50: 0 | AD50: 0 | AF50: 0 | AH50: 0 | AJ50: 0 | AL50: 0 | AN50: 0 | AO50: 0 | AP50: Not Coal Steam or O/G Steam | AQ50: 0.073 | AR50: 0.073 | AT50: 0% | AU50: H2O | AV50: 0 | AW50: 0
A51: Greene County | B51: Alabama | D51: X | F51: 10 | G51: CT9 | H51: 29 | I51: Combustion Turbine | M51: Combustion turbine | Q51: 82 | R51: 0 | S51: 5,437 | T51: 393 | U51: 1 | V51: 0 | X51: 5,437 | Y51: 393 | Z51: 0 | AB51: 0 | AD51: 0 | AF51: 0 | AH51: 0 | AJ51: 0 | AL51: 0 | AN51: 0 | AO51: 0 | AP51: Not Coal Steam or O/G Steam | AQ51: 0.061 | AR51: 0.061 | AT51: 0% | AU51: H2O | AV51: 0 | AW51: 0
A52: Hillabee Energy Center | B52: Alabama | D52: X | F52: 55411 | G52: CT1 | H52: 4695 | I52: Combined Cycle | M52: Combined cycle | N52: Y | Q52: 284 | R52: 31 | S52: 8,678,935 | T52: 1,262,006 | U52: 31 | V52: 31 | X52: 8,678,935 | Y52: 1,262,006 | Z52: 31 | AB52: 31 | AD52: 31 | AF52: 31 | AH52: 31 | AJ52: 31 | AL52: 31 | AN52: 31 | AO52: 31 | AP52: Not Coal Steam or O/G Steam | AQ52: 0.007 | AR52: 0.007 | AT52: 75% | AU52: DLNB | AV52: 0
A53: Hillabee Energy Center | B53: Alabama | D53: X | F53: 55411 | G53: CT2 | H53: 4696 | I53: Combined Cycle | M53: Combined cycle | N53: Y | Q53: 234 | R53: 30 | S53: 8,142,191 | T53: 1,186,416 | U53: 30 | V53: 30 | X53: 8,142,191 | Y53: 1,186,416 | Z53: 30 | AB53: 30 | AD53: 30 | AF53: 30 | AH53: 30 | AJ53: 30 | AL53: 30 | AN53: 30 | AO53: 30 | AP53: Not Coal Steam or O/G Steam | AQ53: 0.007 | AR53: 0.007 | AT53: 73% | AU53: DLNB | AV53: 0
A54: Hog Bayou Energy Center | B54: Alabama | D54: X | F54: 55241 | G54: COG01 | H54: 4286 | I54: Combined Cycle | M54: Combined cycle | N54: Y | Q54: 155 | R54: 22 | S54: 5,331,554 | T54: 700,967 | U54: 25 | V54: 22 | X54: 5,331,554 | Y54: 700,967 | Z54: 22 | AB54: 22 | AD54: 22 | AF54: 22 | AH54: 22 | AJ54: 22 | AL54: 22 | AN54: 22 | AO54: 22 | AP54: Not Coal Steam or O/G Steam | AQ54: 0.008 | AR54: 0.008 | AT54: 59% | AU54: DLNB + H2O | AV54: 0
A55: James H Miller Jr | B55: Alabama | D55: X | F55: 6002 | G55: 1 | H55: 2669 | I55: Coal Steam | M55: Dry bottom wall-fired boiler | N55: Y | Q55: 688 | R55: 628 | S55: 17,926,122 | T55: 1,835,427 | U55: 688 | V55: 628 | X55: 17,926,122 | Y55: 1,835,427 | Z55: 628 | AB55: 628 | AD55: 628 | AF55: 628 | AH55: 628 | AJ55: 628 | AL55: 628 | AN55: 628 | AO55: 628 | AP55: Existing SCR | AQ55: 0.070 | AR55: 0.070 | AT55: 45% | AU55: LNB | AV55: 0
A56: James H Miller Jr | B56: Alabama | D56: X | F56: 6002 | G56: 2 | H56: 2670 | I56: Coal Steam | M56: Dry bottom wall-fired boiler | N56: Y | Q56: 695 | R56: 835 | S56: 25,301,758 | T56: 2,491,921 | U56: 717 | V56: 835 | X56: 25,301,758 | Y56: 2,491,921 | Z56: 835 | AB56: 835 | AD56: 835 | AF56: 835 | AH56: 835 | AJ56: 835 | AL56: 835 | AN56: 835 | AO56: 835 | AP56: Existing SCR | AQ56: 0.066 | AR56: 0.066 | AT56: 60% | AU56: LNB | AV56: 0
A57: James H Miller Jr | B57: Alabama | D57: X | F57: 6002 | G57: 3 | H57: 2671 | I57: Coal Steam | M57: Dry bottom wall-fired boiler | N57: Y | Q57: 687 | R57: 908 | S57: 25,321,700 | T57: 2,568,283 | U57: 817 | V57: 908 | X57: 25,321,700 | Y57: 2,568,283 | Z57: 908 | AB57: 908 | AD57: 908 | AF57: 908 | AH57: 908 | AJ57: 908 | AL57: 908 | AN57: 908 | AO57: 908 | AP57: Existing SCR | AQ57: 0.072 | AR57: 0.072 | AT57: 57% | AU57: LNB | AV57: 0
A58: James H Miller Jr | B58: Alabama | D58: X | F58: 6002 | G58: 4 | H58: 2672 | I58: Coal Steam | M58: Dry bottom wall-fired boiler | N58: Y | Q58: 699 | R58: 797 | S58: 26,945,179 | T58: 2,595,001 | U58: 755 | V58: 797 | X58: 26,945,179 | Y58: 2,595,001 | Z58: 797 | AB58: 797 | AD58: 797 | AF58: 797 | AH58: 797 | AJ58: 797 | AL58: 797 | AN58: 797 | AO58: 797 | AP58: Existing SCR | AQ58: 0.059 | AR58: 0.059 | AT58: 54% | AU58: LNB | AV58: 0
A59: McIntosh (7063) | B59: Alabama | D59: X | F59: 7063 | G59: **1 | H59: 2924 | I59: Combustion Turbine | M59: Other turbine | Q59: 110 | R59: 6 | S59: 56,741 | T59: 12,273 | U59: 3 | V59: 6 | X59: 56,741 | Y59: 12,273 | Z59: 6 | AB59: 6 | AD59: 6 | AF59: 6 | AH59: 6 | AJ59: 6 | AL59: 6 | AN59: 6 | AO59: 6 | AP59: Not Coal Steam or O/G Steam | AQ59: 0.224 | AR59: 0.224 | AT59: 1% | AV59: 0 | AW59: -5
A60: McIntosh (7063) | B60: Alabama | D60: X | F60: 7063 | G60: **2 | H60: 2925 | I60: Combustion Turbine | M60: Combustion turbine | Q60: 114 | R60: 8 | S60: 265,466 | T60: 22,115 | U60: 7 | V60: 8 | X60: 265,466 | Y60: 22,115 | Z60: 8 | AB60: 8 | AD60: 8 | AF60: 8 | AH60: 8 | AJ60: 8 | AL60: 8 | AN60: 8 | AO60: 8 | AP60: Not Coal Steam or O/G Steam | AQ60: 0.063 | AR60: 0.063 | AT60: 4% | AU60: H2O | AV60: 0 | AW60: 0
A61: McIntosh (7063) | B61: Alabama | D61: X | F61: 7063 | G61: **3 | H61: 2926 | I61: Combustion Turbine | M61: Combustion turbine | Q61: 114 | R61: 9 | S61: 285,331 | T61: 23,311 | U61: 10 | V61: 9 | X61: 285,331 | Y61: 23,311 | Z61: 9 | AB61: 9 | AD61: 9 | AF61: 9 | AH61: 9 | AJ61: 9 | AL61: 9 | AN61: 9 | AO61: 9 | AP61: Not Coal Steam or O/G Steam | AQ61: 0.060 | AR61: 0.060 | AT61: 7% | AU61: H2O | AV61: 0 | AW61: 0
A62: McIntosh (7063) | B62: Alabama | D62: X | F62: 7063 | G62: **4 | H62: 90423 | I62: Combustion Turbine | M62: Combustion turbine | Q62: 175 | R62: 25 | S62: 1,467,500 | T62: 141,161 | U62: 27 | V62: 25 | X62: 1,467,500 | Y62: 141,161 | Z62: 25 | AB62: 25 | AD62: 25 | AF62: 25 | AH62: 25 | AJ62: 25 | AL62: 25 | AN62: 25 | AO62: 25 | AP62: Not Coal Steam or O/G Steam | AQ62: 0.035 | AR62: 0.035 | AT62: 19% | AU62: DLNB | AV62: 0 | AW62: 0
A63: McIntosh (7063) | B63: Alabama | D63: X | F63: 7063 | G63: **5 | H63: 90424 | I63: Combustion Turbine | M63: Combustion turbine | Q63: 175 | R63: 26 | S63: 1,514,613 | T63: 145,511 | U63: 24 | V63: 26 | X63: 1,514,613 | Y63: 145,511 | Z63: 26 | AB63: 26 | AD63: 26 | AF63: 26 | AH63: 26 | AJ63: 26 | AL63: 26 | AN63: 26 | AO63: 26 | AP63: Not Coal Steam or O/G Steam | AQ63: 0.034 | AR63: 0.034 | AT63: 17% | AU63: DLNB | AV63: 0 | AW63: 0
A64: McWilliams | B64: Alabama | D64: X | F64: 533 | G64: **4 | H64: 320 | I64: Combined Cycle | M64: Combined cycle | Q64: 108 | R64: 31 | S64: 1,590,754 | T64: 154,870 | U64: 32 | V64: 31 | X64: 1,590,754 | Y64: 154,870 | Z64: 31 | AB64: 31 | AD64: 31 | AF64: 31 | AH64: 31 | AJ64: 31 | AL64: 31 | AN64: 31 | AO64: 31 | AP64: Not Coal Steam or O/G Steam | AQ64: 0.039 | AR64: 0.039 | AT64: 31% | AU64: DLNB + H2O | AV64: 0
A65: McWilliams | B65: Alabama | D65: X | F65: 533 | G65: **V1 | H65: 324 | I65: Combined Cycle | M65: Combined cycle | N65: Y | Q65: 176 | R65: 31 | S65: 5,529,428 | T65: 528,889 | U65: 33 | V65: 31 | X65: 5,529,428 | Y65: 528,889 | Z65: 31 | AB65: 31 | AD65: 31 | AF65: 31 | AH65: 31 | AJ65: 31 | AL65: 31 | AN65: 31 | AO65: 31 | AP65: Not Coal Steam or O/G Steam | AQ65: 0.011 | AR65: 0.011 | AT65: 76% | AU65: DLNB | AV65: 0
A66: McWilliams | B66: Alabama | D66: X | F66: 533 | G66: **V2 | H66: 325 | I66: Combined Cycle | M66: Combined cycle | N66: Y | Q66: 168 | R66: 34 | S66: 6,081,831 | T66: 577,847 | U66: 35 | V66: 34 | X66: 6,081,831 | Y66: 577,847 | Z66: 34 | AB66: 34 | AD66: 34 | AF66: 34 | AH66: 34 | AJ66: 34 | AL66: 34 | AN66: 34 | AO66: 34 | AP66: Not Coal Steam or O/G Steam | AQ66: 0.011 | AR66: 0.011 | AT66: 81% | AU66: DLNB | AV66: 0
A67: Morgan Energy Center | B67: Alabama | D67: X | F67: 55293 | G67: CT-1 | H67: 4462 | I67: Combined Cycle | M67: Combined cycle | N67: Y | Q67: 266 | R67: 11 | S67: 4,273,228 | T67: 568,396 | U67: 13 | V67: 11 | X67: 4,273,228 | Y67: 568,396 | Z67: 11 | AB67: 11 | AD67: 11 | AF67: 11 | AH67: 11 | AJ67: 11 | AL67: 11 | AN67: 11 | AO67: 11 | AP67: Not Coal Steam or O/G Steam | AQ67: 0.005 | AR67: 0.005 | AT67: 46% | AU67: DLNB | AV67: 0
A68: Morgan Energy Center | B68: Alabama | D68: X | F68: 55293 | G68: CT-2 | H68: 4463 | I68: Combined Cycle | M68: Combined cycle | N68: Y | Q68: 161 | R68: 15 | S68: 4,278,585 | T68: 559,931 | U68: 15 | V68: 15 | X68: 4,278,585 | Y68: 559,931 | Z68: 15 | AB68: 15 | AD68: 15 | AF68: 15 | AH68: 15 | AJ68: 15 | AL68: 15 | AN68: 15 | AO68: 15 | AP68: Not Coal Steam or O/G Steam | AQ68: 0.007 | AR68: 0.007 | AT68: 48% | AU68: DLNB | AV68: 0
A69: Morgan Energy Center | B69: Alabama | D69: X | F69: 55293 | G69: CT-3 | H69: 4464 | I69: Combined Cycle | M69: Combined cycle | N69: Y | Q69: 161 | R69: 14 | S69: 3,980,535 | T69: 524,698 | U69: 13 | V69: 14 | X69: 3,980,535 | Y69: 524,698 | Z69: 14 | AB69: 14 | AD69: 14 | AF69: 14 | AH69: 14 | AJ69: 14 | AL69: 14 | AN69: 14 | AO69: 14 | AP69: Not Coal Steam or O/G Steam | AQ69: 0.007 | AR69: 0.007 | AT69: 43% | AU69: DLNB | AV69: 0
A70: Plant H. Allen Franklin | B70: Alabama | D70: X | F70: 7710 | G70: 1A | H70: 3285 | I70: Combined Cycle | M70: Combined cycle | N70: Y | Q70: 240 | R70: 27 | S70: 5,683,094 | T70: 854,719 | U70: 27 | V70: 27 | X70: 5,683,094 | Y70: 854,719 | Z70: 27 | AB70: 27 | AD70: 27 | AF70: 27 | AH70: 27 | AJ70: 27 | AL70: 27 | AN70: 27 | AO70: 27 | AP70: Not Coal Steam or O/G Steam | AQ70: 0.009 | AR70: 0.009 | AT70: 64% | AU70: DLNB | AV70: 0
A71: Plant H. Allen Franklin | B71: Alabama | D71: X | F71: 7710 | G71: 1B | H71: 3286 | I71: Combined Cycle | M71: Combined cycle | N71: Y | Q71: 178 | R71: 27 | S71: 5,811,106 | T71: 870,409 | U71: 27 | V71: 27 | X71: 5,811,106 | Y71: 870,409 | Z71: 27 | AB71: 27 | AD71: 27 | AF71: 27 | AH71: 27 | AJ71: 27 | AL71: 27 | AN71: 27 | AO71: 27 | AP71: Not Coal Steam or O/G Steam | AQ71: 0.009 | AR71: 0.009 | AT71: 65% | AU71: DLNB | AV71: 0
A72: Plant H. Allen Franklin | B72: Alabama | D72: X | F72: 7710 | G72: 2A | H72: 3287 | I72: Combined Cycle | M72: Combined cycle | N72: Y | Q72: 293 | R72: 22 | S72: 4,712,040 | T72: 679,587 | U72: 27 | V72: 22 | X72: 4,712,040 | Y72: 679,587 | Z72: 22 | AB72: 22 | AD72: 22 | AF72: 22 | AH72: 22 | AJ72: 22 | AL72: 22 | AN72: 22 | AO72: 22 | AP72: Not Coal Steam or O/G Steam | AQ72: 0.009 | AR72: 0.009 | AT72: 65% | AU72: DLNB | AV72: 0
A73: Plant H. Allen Franklin | B73: Alabama | D73: X | F73: 7710 | G73: 2B | H73: 3288 | I73: Combined Cycle | M73: Combined cycle | N73: Y | Q73: 178 | R73: 21 | S73: 4,641,663 | T73: 680,062 | U73: 26 | V73: 21 | X73: 4,641,663 | Y73: 680,062 | Z73: 21 | AB73: 21 | AD73: 21 | AF73: 21 | AH73: 21 | AJ73: 21 | AL73: 21 | AN73: 21 | AO73: 21 | AP73: Not Coal Steam or O/G Steam | AQ73: 0.009 | AR73: 0.009 | AT73: 65% | AU73: DLNB | AV73: 0
A74: Plant H. Allen Franklin | B74: Alabama | D74: X | F74: 7710 | G74: 3A | H74: 3289 | I74: Combined Cycle | M74: Combined cycle | N74: Y | Q74: 293 | R74: 26 | S74: 6,251,194 | T74: 899,427 | U74: 27 | V74: 26 | X74: 6,251,194 | Y74: 899,427 | Z74: 26 | AB74: 26 | AD74: 26 | AF74: 26 | AH74: 26 | AJ74: 26 | AL74: 26 | AN74: 26 | AO74: 26 | AP74: Not Coal Steam or O/G Steam | AQ74: 0.008 | AR74: 0.008 | AT74: 69% | AU74: DLNB | AV74: 0
A75: Plant H. Allen Franklin | B75: Alabama | D75: X | F75: 7710 | G75: 3B | H75: 3290 | I75: Combined Cycle | M75: Combined cycle | N75: Y | Q75: 183 | R75: 28 | S75: 5,849,573 | T75: 853,044 | U75: 28 | V75: 28 | X75: 5,849,573 | Y75: 853,044 | Z75: 28 | AB75: 28 | AD75: 28 | AF75: 28 | AH75: 28 | AJ75: 28 | AL75: 28 | AN75: 28 | AO75: 28 | AP75: Not Coal Steam or O/G Steam | AQ75: 0.010 | AR75: 0.010 | AT75: 66% | AU75: DLNB | AV75: 0
A76: SABIC Innovative Plastics - Burkville | B76: Alabama | D76: X | F76: 7698 | G76: CC1 | H76: 3140 | I76: Combined Cycle | M76: Combined cycle | Q76: 80 | R76: 32 | S76: 2,368,504 | T76: 345,344 | U76: 29 | V76: 32 | X76: 2,368,504 | Y76: 345,344 | Z76: 32 | AB76: 32 | AD76: 32 | AF76: 32 | AH76: 32 | AJ76: 32 | AL76: 32 | AN76: 32 | AO76: 32 | AP76: Not Coal Steam or O/G Steam | AQ76: 0.027 | AR76: 0.027 | AT76: 41% | AU76: DLNB | AV76: 0
A77: Tenaska Lindsay Hill Generating Station | B77: Alabama | D77: X | F77: 55271 | G77: CT1 | H77: 4383 | I77: Combined Cycle | M77: Combined cycle | N77: Y | Q77: 392 | R77: 2 | S77: 381,101 | T77: 51,366 | U77: 7 | V77: 2 | X77: 381,101 | Y77: 51,366 | Z77: 2 | AB77: 2 | AD77: 2 | AF77: 2 | AH77: 2 | AJ77: 2 | AL77: 2 | AN77: 2 | AO77: 2 | AP77: Not Coal Steam or O/G Steam | AQ77: 0.011 | AR77: 0.011 | AT77: 19% | AU77: DLNB + H2O | AV77: 0
A78: Tenaska Lindsay Hill Generating Station | B78: Alabama | D78: X | F78: 55271 | G78: CT2 | H78: 4384 | I78: Combined Cycle | M78: Combined cycle | N78: Y | Q78: 152 | R78: 2 | S78: 411,876 | T78: 50,349 | U78: 7 | V78: 2 | X78: 411,876 | Y78: 50,349 | Z78: 2 | AB78: 2 | AD78: 2 | AF78: 2 | AH78: 2 | AJ78: 2 | AL78: 2 | AN78: 2 | AO78: 2 | AP78: Not Coal Steam or O/G Steam | AQ78: 0.011 | AR78: 0.011 | AT78: 20% | AU78: DLNB + H2O | AV78: 0
A79: Tenaska Lindsay Hill Generating Station | B79: Alabama | D79: X | F79: 55271 | G79: CT3 | H79: 4385 | I79: Combined Cycle | M79: Combined cycle | N79: Y | Q79: 152 | R79: 24 | S79: 6,665,235 | T79: 874,205 | U79: 14 | V79: 24 | X79: 6,665,235 | Y79: 874,205 | Z79: 24 | AB79: 24 | AD79: 24 | AF79: 24 | AH79: 24 | AJ79: 24 | AL79: 24 | AN79: 24 | AO79: 24 | AP79: Not Coal Steam or O/G Steam | AQ79: 0.007 | AR79: 0.007 | AT79: 42% | AU79: DLNB + H2O | AV79: 0
A80: Theodore Cogeneration | B80: Alabama | D80: X | F80: 7721 | G80: CC1 | H80: 3151 | I80: Combined Cycle | M80: Combined cycle | N80: Y | Q80: 166 | R80: 18 | S80: 5,096,523 | T80: 850,554 | U80: 20 | V80: 18 | X80: 5,096,523 | Y80: 850,554 | Z80: 18 | AB80: 18 | AD80: 18 | AF80: 18 | AH80: 18 | AJ80: 18 | AL80: 18 | AN80: 18 | AO80: 18 | AP80: Not Coal Steam or O/G Steam | AQ80: 0.007 | AR80: 0.007 | AT80: 59% | AU80: DLNB | AV80: 0
A81: Walton Discover Power Facility | B81: Alabama | D81: X | F81: 55138 | G81: 1A | H81: 88304 | I81: Combustion Turbine | M81: Combustion turbine | Q81: 50 | U81: 1 | AP81: Not Coal Steam or O/G Steam | AQ81: 0.000 | AR81: 0.000 | AT81: 1% | AU81: H2O | AV81: 0 | AW81: 0
A82: Walton Discover Power Facility | B82: Alabama | D82: X | F82: 55138 | G82: 1B | H82: 88305 | I82: Combustion Turbine | M82: Combustion turbine | Q82: 0 | U82: 2 | AP82: Not Coal Steam or O/G Steam | AQ82: 0.000 | AR82: 0.000 | AT82: 1% | AV82: 0 | AW82: 0
A83: Walton Discover Power Facility | B83: Alabama | D83: X | F83: 55138 | G83: 2A | H83: 88306 | I83: Combustion Turbine | M83: Combustion turbine | Q83: 50 | U83: 0 | AP83: Not Coal Steam or O/G Steam | AQ83: 0.000 | AR83: 0.000 | AT83: 0% | AU83: H2O | AV83: 0 | AW83: 0
A84: Walton Discover Power Facility | B84: Alabama | D84: X | F84: 55138 | G84: 2B | H84: 88307 | I84: Combustion Turbine | M84: Combustion turbine | Q84: 0 | U84: 0 | AP84: Not Coal Steam or O/G Steam | AQ84: 0.000 | AR84: 0.000 | AT84: 0% | AV84: 0 | AW84: 0
A85: Washington County Cogen (Olin) | B85: Alabama | D85: X | F85: 7697 | G85: CC1 | H85: 3139 | I85: Combined Cycle | M85: Combined cycle | Q85: 75 | R85: 42 | S85: 3,428,147 | T85: 469,534 | U85: 62 | V85: 42 | X85: 3,428,147 | Y85: 469,534 | Z85: 42 | AB85: 42 | AD85: 42 | AF85: 42 | AH85: 42 | AJ85: 42 | AL85: 42 | AN85: 42 | AO85: 42 | AP85: Not Coal Steam or O/G Steam | AQ85: 0.025 | AR85: 0.025 | AT85: 71% | AU85: DLNB | AV85: 0
A86: APS Saguaro Power Plant | B86: Arizona | F86: 118 | G86: CT3 | H86: 8250 | I86: Combustion Turbine | M86: Combustion turbine | Q86: 76 | R86: 6 | S86: 378,022 | T86: 29,313 | U86: 5 | V86: 6 | X86: 378,022 | Y86: 29,313 | Z86: 6 | AB86: 6 | AD86: 6 | AF86: 6 | AH86: 6 | AJ86: 6 | AL86: 6 | AN86: 6 | AO86: 6 | AP86: Not Coal Steam or O/G Steam | AQ86: 0.034 | AR86: 0.034 | AT86: 8% | AU86: DLNB | AV86: 0 | AW86: 0
A87: APS West Phoenix Power Plant | B87: Arizona | F87: 117 | G87: CC4 | H87: 70 | I87: Combined Cycle | M87: Combined cycle | Q87: 68 | R87: 22 | S87: 1,495,041 | T87: 183,566 | U87: 22 | V87: 22 | X87: 1,495,041 | Y87: 183,566 | Z87: 22 | AB87: 22 | AD87: 22 | AF87: 22 | AH87: 22 | AJ87: 22 | AL87: 22 | AN87: 22 | AO87: 22 | AP87: Not Coal Steam or O/G Steam | AQ87: 0.029 | AR87: 0.029 | AT87: 36% | AU87: LNB | AV87: 0
A88: APS West Phoenix Power Plant | B88: Arizona | F88: 117 | G88: CC5A | H88: 71 | I88: Combined Cycle | M88: Combined cycle | N88: Y | Q88: 155 | R88: 26 | S88: 3,369,384 | T88: 495,793 | U88: 25 | V88: 26 | X88: 3,369,384 | Y88: 495,793 | Z88: 26 | AB88: 26 | AD88: 26 | AF88: 20 | AG88: Optimize SCR | AH88: 20 | AJ88: 20 | AL88: 20 | AN88: 20 | AO88: 20 | AP88: Not Coal Steam or O/G Steam | AQ88: 0.012 | AR88: 0.012 | AT88: 46% | AU88: NH3 | AV88: 0
A89: APS West Phoenix Power Plant | B89: Arizona | F89: 117 | G89: CC5B | H89: 88097 | I89: Combined Cycle | M89: Combined cycle | N89: Y | Q89: 153 | R89: 31 | S89: 4,320,052 | T89: 625,127 | U89: 28 | V89: 31 | X89: 4,320,052 | Y89: 625,127 | Z89: 31 | AB89: 31 | AD89: 31 | AF89: 26 | AG89: Optimize SCR | AH89: 26 | AJ89: 26 | AL89: 26 | AN89: 26 | AO89: 26 | AP89: Not Coal Steam or O/G Steam | AQ89: 0.012 | AR89: 0.012 | AT89: 52% | AU89: DLNB | AV89: 0
A90: Agua Fria Generating Station | B90: Arizona | F90: 141 | G90: 1 | H90: 86 | I90: O/G Steam | M90: Dry bottom wall-fired boiler | Q90: 113 | R90: 33 | S90: 295,880 | T90: 27,373 | U90: 80 | V90: 33 | X90: 295,880 | Y90: 27,373 | Z90: 33 | AB90: 33 | AD90: 33 | AF90: 33 | AH90: 33 | AJ90: 33 | AL90: 33 | AN90: 33 | AO90: 33 | AP90: Oil/Gas Steam Under 150 Tons (2019-2021 Average) | AQ90: 0.224 | AR90: 0.224 | AT90: 8% | AV90: 0
A91: Agua Fria Generating Station | B91: Arizona | F91: 141 | G91: 2 | H91: 87 | I91: O/G Steam | M91: Dry bottom wall-fired boiler | Q91: 113 | R91: 30 | S91: 278,807 | T91: 25,772 | U91: 67 | V91: 30 | X91: 278,807 | Y91: 25,772 | Z91: 30 | AB91: 30 | AD91: 30 | AF91: 30 | AH91: 30 | AJ91: 30 | AL91: 30 | AN91: 30 | AO91: 30 | AP91: Oil/Gas Steam Under 150 Tons (2019-2021 Average) | AQ91: 0.214 | AR91: 0.214 | AT91: 7% | AV91: 0
A92: Agua Fria Generating Station | B92: Arizona | F92: 141 | G92: 3 | H92: 88 | I92: O/G Steam | M92: Dry bottom turbo-fired boiler | Q92: 181 | R92: 88 | S92: 520,440 | T92: 48,235 | U92: 226 | V92: 88 | X92: 520,440 | Y92: 48,235 | Z92: 88 | AB92: 88 | AD92: 88 | AF92: 88 | AH92: 88 | AJ92: 88 | AL92: 88 | AN92: 48 | AO92: 8 | AP92: O/G Steam SCR Retrofit | AQ92: 0.337 | AR92: 0.030 | AT92: 11% | AV92: 0
A93: Apache Station | B93: Arizona | F93: 160 | G93: 1 | H93: 92 | I93: O/G Steam | M93: Dry bottom wall-fired boiler | Q93: 72 | R93: 16 | S93: 828,335 | T93: 73,605 | U93: 22 | V93: 16 | X93: 828,335 | Y93: 73,605 | Z93: 16 | AB93: 16 | AD93: 16 | AF93: 16 | AH93: 16 | AJ93: 16 | AL93: 16 | AN93: 16 | AO93: 16 | AP93: O/G Steam Under 100 MW | AQ93: 0.039 | AR93: 0.039 | AT93: 31% | AU93: LNB | AV93: -4
A94: Apache Station | B94: Arizona | F94: 160 | G94: 2 | H94: 93 | I94: O/G Steam | M94: Dry bottom turbo-fired boiler | Q94: 175 | R94: 139 | S94: 4,503,917 | T94: 432,037 | U94: 178 | V94: 139 | X94: 4,503,917 | Y94: 432,037 | Z94: 139 | AB94: 139 | AD94: 139 | AF94: 139 | AH94: 139 | AJ94: 139 | AL94: 139 | AN94: 103 | AO94: 68 | AP94: O/G Steam SCR Retrofit | AQ94: 0.062 | AR94: 0.030 | AT94: 76% | AU94: FR + LNB + OFA | AV94: 0
A95: Apache Station | B95: Arizona | F95: 160 | G95: 3 | H95: 94 | I95: Coal Steam | M95: Dry bottom turbo-fired boiler | O95: Y | Q95: 175 | R95: 749 | S95: 6,681,656 | T95: 646,161 | U95: 515 | V95: 749 | X95: 6,681,656 | Y95: 646,161 | Z95: 749 | AB95: 749 | AD95: 749 | AF95: 749 | AH95: 749 | AJ95: 619 | AK95: Y | AL95: 619 | AN95: 393 | AO95: 167 | AP95: Coal Steam SCR Retrofit | AQ95: 0.185 | AR95: 0.050 | AT95: 77% | AU95: LNB + OFA | AV95: 0
A96: Apache Station | B96: Arizona | F96: 160 | G96: 4 | H96: 88320 | I96: Combustion Turbine | M96: Combustion turbine | N96: Y | Q96: 38 | R96: 3 | S96: 304,800 | T96: 28,975 | U96: 4 | V96: 3 | X96: 304,800 | Y96: 28,975 | Z96: 3 | AB96: 3 | AD96: 3 | AF96: 3 | AH96: 3 | AJ96: 3 | AL96: 3 | AN96: 3 | AO96: 3 | AP96: Not Coal Steam or O/G Steam | AQ96: 0.022 | AR96: 0.022 | AT96: 24% | AU96: H2O | AV96: 0
A97: Arlington Valley Energy Facility | B97: Arizona | F97: 55282 | G97: CTG1 | H97: 4420 | I97: Combined Cycle | M97: Combined cycle | N97: Y | Q97: 255 | R97: 18 | S97: 4,288,360 | T97: 605,883 | U97: 18 | V97: 18 | X97: 4,288,360 | Y97: 605,883 | Z97: 18 | AB97: 18 | AD97: 18 | AF97: 18 | AH97: 18 | AJ97: 18 | AL97: 18 | AN97: 18 | AO97: 18 | AP97: Not Coal Steam or O/G Steam | AQ97: 0.009 | AR97: 0.009 | AT97: 54% | AU97: DLNB | AV97: 0
A98: Arlington Valley Energy Facility | B98: Arizona | F98: 55282 | G98: CTG2 | H98: 4421 | I98: Combined Cycle | M98: Combined cycle | N98: Y | Q98: 163 | R98: 19 | S98: 4,384,775 | T98: 617,125 | U98: 18 | V98: 19 | X98: 4,384,775 | Y98: 617,125 | Z98: 19 | AB98: 19 | AD98: 19 | AF98: 19 | AH98: 19 | AJ98: 19 | AL98: 19 | AN98: 19 | AO98: 19 | AP98: Not Coal Steam or O/G Steam | AQ98: 0.009 | AR98: 0.009 | AT98: 57% | AU98: DLNB | AV98: 0
A99: Black Mountain Generating Station | B99: Arizona | F99: 56482 | G99: 1 | H99: 89755 | I99: Combustion Turbine | M99: Combustion turbine | Q99: 45 | R99: 24 | S99: 457,265 | T99: 46,049 | U99: 16 | V99: 24 | X99: 457,265 | Y99: 46,049 | Z99: 24 | AB99: 24 | AD99: 24 | AF99: 24 | AH99: 24 | AJ99: 24 | AL99: 24 | AN99: 24 | AO99: 24 | AP99: Not Coal Steam or O/G Steam | AQ99: 0.106 | AR99: 0.106 | AT99: 18% | AU99: H2O | AV99: 0 | AW99: 0
A100: Black Mountain Generating Station | B100: Arizona | F100: 56482 | G100: 2 | H100: 89756 | I100: Combustion Turbine | M100: Combustion turbine | Q100: 45 | R100: 17 | S100: 374,570 | T100: 36,627 | U100: 18 | V100: 17 | X100: 374,570 | Y100: 36,627 | Z100: 17 | AB100: 17 | AD100: 17 | AF100: 17 | AH100: 17 | AJ100: 17 | AL100: 17 | AN100: 17 | AO100: 17 | AP100: Not Coal Steam or O/G Steam | AQ100: 0.089 | AR100: 0.089 | AT100: 24% | AU100: H2O | AV100: 0 | AW100: 0
A101: Cholla | B101: Arizona | F101: 113 | G101: 1 | H101: 62 | I101: Coal Steam | L101: 2026 | M101: Tangentially-fired | Q101: 116 | R101: 389 | S101: 4,361,812 | T101: 376,547 | U101: 278 | V101: 0 | W101: Y | X101: 0 | Y101: 0 | Z101: 0 | AB101: 0 | AD101: 0 | AF101: 0 | AH101: 0 | AJ101: 0 | AL101: 0 | AN101: 0 | AO101: 0 | AP101: Retired | AQ101: 0.000 | AR101: 0.000 | AT101: 59% | AU101: LNC2 | AV101: 0
A102: Cholla | B102: Arizona | F102: 113 | G102: 3 | H102: 64 | I102: Coal Steam | L102: 2026 | M102: Tangentially-fired | Q102: 271 | R102: 816 | S102: 8,564,104 | T102: 732,405 | U102: 683 | V102: 0 | W102: Y | X102: 0 | Y102: 0 | Z102: 0 | AB102: 0 | AD102: 0 | AF102: 0 | AH102: 0 | AJ102: 0 | AL102: 0 | AN102: 0 | AO102: 0 | AP102: Retired | AQ102: 0.000 | AR102: 0.000 | AT102: 33% | AU102: LNC3 | AV102: 0
A103: Coolidge Generating Station | B103: Arizona | F103: 56948 | G103: CT01 | H103: 90464 | I103: Combustion Turbine | M103: Combustion turbine | N103: Y | Q103: 43 | R103: 0 | S103: 59,491 | T103: 5,905 | U103: 0 | V103: 0 | X103: 59,491 | Y103: 5,905 | Z103: 0 | AB103: 0 | AD103: 0 | AF103: 0 | AH103: 0 | AJ103: 0 | AL103: 0 | AN103: 0 | AO103: 0 | AP103: Not Coal Steam or O/G Steam | AQ103: 0.007 | AR103: 0.007 | AT103: 6% | AU103: H2O | AV103: 0
A104: Coolidge Generating Station | B104: Arizona | F104: 56948 | G104: CT02 | H104: 90465 | I104: Combustion Turbine | M104: Combustion turbine | N104: Y | Q104: 43 | R104: 0 | S104: 62,593 | T104: 6,161 | U104: 0 | V104: 0 | X104: 62,593 | Y104: 6,161 | Z104: 0 | AB104: 0 | AD104: 0 | AF104: 0 | AH104: 0 | AJ104: 0 | AL104: 0 | AN104: 0 | AO104: 0 | AP104: Not Coal Steam or O/G Steam | AQ104: 0.008 | AR104: 0.008 | AT104: 6% | AU104: H2O | AV104: 0
A105: Coolidge Generating Station | B105: Arizona | F105: 56948 | G105: CT03 | H105: 90466 | I105: Combustion Turbine | M105: Combustion turbine | N105: Y | Q105: 43 | R105: 0 | S105: 69,733 | T105: 6,943 | U105: 1 | V105: 0 | X105: 69,733 | Y105: 6,943 | Z105: 0 | AB105: 0 | AD105: 0 | AF105: 0 | AH105: 0 | AJ105: 0 | AL105: 0 | AN105: 0 | AO105: 0 | AP105: Not Coal Steam or O/G Steam | AQ105: 0.013 | AR105: 0.013 | AT105: 7% | AU105: H2O | AV105: 0
A106: Coolidge Generating Station | B106: Arizona | F106: 56948 | G106: CT04 | H106: 90467 | I106: Combustion Turbine | M106: Combustion turbine | N106: Y | Q106: 43 | R106: 0 | S106: 86,681 | T106: 8,452 | U106: 0 | V106: 0 | X106: 86,681 | Y106: 8,452 | Z106: 0 | AB106: 0 | AD106: 0 | AF106: 0 | AH106: 0 | AJ106: 0 | AL106: 0 | AN106: 0 | AO106: 0 | AP106: Not Coal Steam or O/G Steam | AQ106: 0.008 | AR106: 0.008 | AT106: 8% | AU106: H2O | AV106: 0
A107: Coolidge Generating Station | B107: Arizona | F107: 56948 | G107: CT05 | H107: 90468 | I107: Combustion Turbine | M107: Combustion turbine | N107: Y | Q107: 43 | R107: 1 | S107: 176,611 | T107: 18,035 | U107: 1 | V107: 1 | X107: 176,611 | Y107: 18,035 | Z107: 1 | AB107: 1 | AD107: 1 | AF107: 1 | AH107: 1 | AJ107: 1 | AL107: 1 | AN107: 1 | AO107: 1 | AP107: Not Coal Steam or O/G Steam | AQ107: 0.008 | AR107: 0.008 | AT107: 9% | AU107: H2O | AV107: 0
A108: Coolidge Generating Station | B108: Arizona | F108: 56948 | G108: CT06 | H108: 90469 | I108: Combustion Turbine | M108: Combustion turbine | N108: Y | Q108: 43 | R108: 1 | S108: 166,397 | T108: 16,623 | U108: 1 | V108: 1 | X108: 166,397 | Y108: 16,623 | Z108: 1 | AB108: 1 | AD108: 1 | AF108: 1 | AH108: 1 | AJ108: 1 | AL108: 1 | AN108: 1 | AO108: 1 | AP108: Not Coal Steam or O/G Steam | AQ108: 0.007 | AR108: 0.007 | AT108: 10% | AU108: H2O | AV108: 0
A109: Coolidge Generating Station | B109: Arizona | F109: 56948 | G109: CT07 | H109: 90470 | I109: Combustion Turbine | M109: Combustion turbine | N109: Y | Q109: 43 | R109: 1 | S109: 184,448 | T109: 18,525 | U109: 1 | V109: 1 | X109: 184,448 | Y109: 18,525 | Z109: 1 | AB109: 1 | AD109: 1 | AF109: 1 | AH109: 1 | AJ109: 1 | AL109: 1 | AN109: 1 | AO109: 1 | AP109: Not Coal Steam or O/G Steam | AQ109: 0.009 | AR109: 0.009 | AT109: 11% | AU109: H2O | AV109: 0
A110: Coolidge Generating Station | B110: Arizona | F110: 56948 | G110: CT08 | H110: 90471 | I110: Combustion Turbine | M110: Combustion turbine | N110: Y | Q110: 43 | R110: 1 | S110: 193,962 | T110: 19,751 | U110: 1 | V110: 1 | X110: 193,962 | Y110: 19,751 | Z110: 1 | AB110: 1 | AD110: 1 | AF110: 1 | AH110: 1 | AJ110: 1 | AL110: 1 | AN110: 1 | AO110: 1 | AP110: Not Coal Steam or O/G Steam | AQ110: 0.007 | AR110: 0.007 | AT110: 13% | AU110: H2O | AV110: 0
A111: Coolidge Generating Station | B111: Arizona | F111: 56948 | G111: CT09 | H111: 90472 | I111: Combustion Turbine | M111: Combustion turbine | N111: Y | Q111: 43 | R111: 0 | S111: 114,866 | T111: 11,802 | U111: 1 | V111: 0 | X111: 114,866 | Y111: 11,802 | Z111: 0 | AB111: 0 | AD111: 0 | AF111: 0 | AH111: 0 | AJ111: 0 | AL111: 0 | AN111: 0 | AO111: 0 | AP111: Not Coal Steam or O/G Steam | AQ111: 0.008 | AR111: 0.008 | AT111: 10% | AU111: H2O | AV111: 0
A112: Coolidge Generating Station | B112: Arizona | F112: 56948 | G112: CT10 | H112: 90473 | I112: Combustion Turbine | M112: Combustion turbine | N112: Y | Q112: 43 | R112: 0 | S112: 137,696 | T112: 13,941 | U112: 1 | V112: 0 | X112: 137,696 | Y112: 13,941 | Z112: 0 | AB112: 0 | AD112: 0 | AF112: 0 | AH112: 0 | AJ112: 0 | AL112: 0 | AN112: 0 | AO112: 0 | AP112: Not Coal Steam or O/G Steam | AQ112: 0.007 | AR112: 0.007 | AT112: 11% | AU112: H2O | AV112: 0
A113: Coolidge Generating Station | B113: Arizona | F113: 56948 | G113: CT11 | H113: 90474 | I113: Combustion Turbine | M113: Combustion turbine | N113: Y | Q113: 43 | R113: 1 | S113: 149,092 | T113: 14,929 | U113: 1 | V113: 1 | X113: 149,092 | Y113: 14,929 | Z113: 1 | AB113: 1 | AD113: 1 | AF113: 1 | AH113: 1 | AJ113: 1 | AL113: 1 | AN113: 1 | AO113: 1 | AP113: Not Coal Steam or O/G Steam | AQ113: 0.008 | AR113: 0.008 | AT113: 12% | AU113: H2O | AV113: 0
A114: Coolidge Generating Station | B114: Arizona | F114: 56948 | G114: CT12 | H114: 90475 | I114: Combustion Turbine | M114: Combustion turbine | N114: Y | Q114: 43 | R114: 1 | S114: 156,828 | T114: 15,855 | U114: 1 | V114: 1 | X114: 156,828 | Y114: 15,855 | Z114: 1 | AB114: 1 | AD114: 1 | AF114: 1 | AH114: 1 | AJ114: 1 | AL114: 1 | AN114: 1 | AO114: 1 | AP114: Not Coal Steam or O/G Steam | AQ114: 0.008 | AR114: 0.008 | AT114: 13% | AU114: H2O | AV114: 0
A115: Coronado Generating Station | B115: Arizona | F115: 6177 | G115: U1B | H115: 2823 | I115: Coal Steam | M115: Dry bottom turbo-fired boiler | Q115: 380 | R115: 1,542 | S115: 10,458,154 | T115: 1,025,817 | U115: 1,209 | V115: 1,542 | X115: 10,458,154 | Y115: 1,025,817 | Z115: 1,542 | AB115: 1,542 | AD115: 366 | AE115: Y | AF115: 366 | AH115: 366 | AJ115: 366 | AL115: 366 | AN115: 366 | AO115: 366 | AP115: Coal Steam Under 0.08 lb/mmBtu | AQ115: 0.070 | AR115: 0.070 | AT115: 51% | AU115: LNBO | AV115: 0
A116: Coronado Generating Station | B116: Arizona | F116: 6177 | G116: U2B | H116: 2824 | I116: Coal Steam | M116: Dry bottom turbo-fired boiler | N116: Y | Q116: 382 | R116: 377 | S116: 12,360,919 | T116: 1,143,783 | U116: 295 | V116: 377 | X116: 12,360,919 | Y116: 1,143,783 | Z116: 377 | AB116: 377 | AD116: 377 | AF116: 377 | AH116: 377 | AJ116: 377 | AL116: 377 | AN116: 377 | AO116: 377 | AP116: Existing SCR | AQ116: 0.061 | AR116: 0.061 | AT116: 59% | AU116: LNBO | AV116: 0
A117: De Moss Petrie Generating Station | B117: Arizona | F117: 124 | G117: GT1 | H117: 76 | I117: Combustion Turbine | M117: Combustion turbine | Q117: 75 | R117: 0 | S117: 10,332 | T117: 815 | U117: 1 | V117: 0 | X117: 10,332 | Y117: 815 | Z117: 0 | AB117: 0 | AD117: 0 | AF117: 0 | AH117: 0 | AJ117: 0 | AL117: 0 | AN117: 0 | AO117: 0 | AP117: Not Coal Steam or O/G Steam | AQ117: 0.076 | AR117: 0.076 | AT117: 2% | AU117: DLNB | AV117: 0 | AW117: 0
A118: Desert Basin Generating Station | B118: Arizona | F118: 55129 | G118: DBG1 | H118: 3964 | I118: Combined Cycle | M118: Combined cycle | N118: Y | Q118: 253 | R118: 24 | S118: 4,322,770 | T118: 562,630 | U118: 24 | V118: 24 | X118: 4,322,770 | Y118: 562,630 | Z118: 24 | AB118: 24 | AD118: 24 | AF118: 24 | AH118: 24 | AJ118: 24 | AL118: 24 | AN118: 24 | AO118: 24 | AP118: Not Coal Steam or O/G Steam | AQ118: 0.011 | AR118: 0.011 | AT118: 48% | AU118: LNB | AV118: 0
A119: Desert Basin Generating Station | B119: Arizona | F119: 55129 | G119: DBG2 | H119: 3965 | I119: Combined Cycle | M119: Combined cycle | N119: Y | Q119: 162 | R119: 26 | S119: 4,531,191 | T119: 589,400 | U119: 27 | V119: 26 | X119: 4,531,191 | Y119: 589,400 | Z119: 26 | AB119: 26 | AD119: 26 | AF119: 26 | AH119: 26 | AJ119: 26 | AL119: 26 | AN119: 26 | AO119: 26 | AP119: Not Coal Steam or O/G Steam | AQ119: 0.011 | AR119: 0.011 | AT119: 54% | AV119: 0
A120: Gila River Power Station | B120: Arizona | F120: 55306 | G120: 1CTGA | H120: 8508 | I120: Combined Cycle | M120: Combined cycle | N120: Y | Q120: 223 | R120: 18 | S120: 4,392,963 | T120: 616,585 | U120: 20 | V120: 18 | X120: 4,392,963 | Y120: 616,585 | Z120: 18 | AB120: 18 | AD120: 18 | AF120: 18 | AH120: 18 | AJ120: 18 | AL120: 18 | AN120: 18 | AO120: 18 | AP120: Not Coal Steam or O/G Steam | AQ120: 0.008 | AR120: 0.008 | AT120: 51% | AU120: LNB + NH3 | AV120: 0
A121: Gila River Power Station | B121: Arizona | F121: 55306 | G121: 1CTGB | H121: 8510 | I121: Combined Cycle | M121: Combined cycle | N121: Y | Q121: 146 | R121: 19 | S121: 4,311,081 | T121: 599,448 | U121: 20 | V121: 19 | X121: 4,311,081 | Y121: 599,448 | Z121: 19 | AB121: 19 | AD121: 19 | AF121: 19 | AH121: 19 | AJ121: 19 | AL121: 19 | AN121: 19 | AO121: 19 | AP121: Not Coal Steam or O/G Steam | AQ121: 0.009 | AR121: 0.009 | AT121: 53% | AU121: DLNB | AV121: 0
A122: Gila River Power Station | B122: Arizona | F122: 55306 | G122: 2CTGA | H122: 8512 | I122: Combined Cycle | M122: Combined cycle | N122: Y | Q122: 0 | R122: 20 | S122: 5,538,282 | T122: 770,046 | U122: 20 | V122: 20 | X122: 5,538,282 | Y122: 770,046 | Z122: 20 | AB122: 20 | AD122: 20 | AF122: 20 | AH122: 20 | AJ122: 20 | AL122: 20 | AN122: 20 | AO122: 20 | AP122: Not Coal Steam or O/G Steam | AQ122: 0.007 | AR122: 0.007 | AT122: 67% | AV122: 0
A123: Gila River Power Station | B123: Arizona | F123: 55306 | G123: 2CTGB | H123: 8514 | I123: Combined Cycle | M123: Combined cycle | N123: Y | Q123: 0 | R123: 20 | S123: 5,628,830 | T123: 784,375 | U123: 20 | V123: 20 | X123: 5,628,830 | Y123: 784,375 | Z123: 20 | AB123: 20 | AD123: 20 | AF123: 20 | AH123: 20 | AJ123: 20 | AL123: 20 | AN123: 20 | AO123: 20 | AP123: Not Coal Steam or O/G Steam | AQ123: 0.007 | AR123: 0.007 | AT123: 65% | AV123: 0
A124: Gila River Power Station | B124: Arizona | F124: 55306 | G124: 3CTGA | H124: 8516 | I124: Combined Cycle | M124: Combined cycle | N124: Y | Q124: 223 | R124: 20 | S124: 5,133,844 | T124: 719,120 | U124: 19 | V124: 20 | X124: 5,133,844 | Y124: 719,120 | Z124: 20 | AB124: 20 | AD124: 20 | AF124: 20 | AH124: 20 | AJ124: 20 | AL124: 20 | AN124: 20 | AO124: 20 | AP124: Not Coal Steam or O/G Steam | AQ124: 0.008 | AR124: 0.008 | AT124: 53% | AU124: LNB + NH3 | AV124: 0
A125: Gila River Power Station | B125: Arizona | F125: 55306 | G125: 3CTGB | H125: 8518 | I125: Combined Cycle | M125: Combined cycle | N125: Y | Q125: 146 | R125: 18 | S125: 5,129,974 | T125: 718,137 | U125: 18 | V125: 18 | X125: 5,129,974 | Y125: 718,137 | Z125: 18 | AB125: 18 | AD125: 18 | AF125: 18 | AH125: 18 | AJ125: 18 | AL125: 18 | AN125: 18 | AO125: 18 | AP125: Not Coal Steam or O/G Steam | AQ125: 0.007 | AR125: 0.007 | AT125: 53% | AU125: DLNB | AV125: 0
... 156 more rows

Sheet Summary_Full_Geography_11_State
B11: states to include in the average 1 = yes, 0 = no | BA11: 1 | BD11: Average Ozone Improvement
BD12: Only Receptors that remain in WI and CT
B13: AR | C13: CA | D13: IL | E13: IN | F13: KY | G13: LA | H13: MD | I13: MI | J13: MS | K13: MO | L13: NV | M13: NJ | N13: NY | O13: OH | P13: OK | Q13: PA | R13: TX | S13: UT | T13: VA | U13: WV | V13: TRIBAL | X13: nonstate | Y13: AZ | Z13: CO | AA13: CT | AB13: WI | AC13: NM | AD13: AR | AE13: CA | AF13: IL | AG13: IN | AH13: KY | AI13: LA | AJ13: MD | AK13: MI | AL13: MS | AM13: MO | AN13: NV | AO13: NJ | AP13: NY | AQ13: OH | AR13: OK | AS13: PA | AT13: TX | AU13: UT | AV13: VA | AW13: WV | AX13: TRIBAL | BA13: =OFFSET(W$18,$BA$11,0) -> 2026_step3_nonEGU | BD13: 2026_step3_nonEGU | BE13: 2026_step3_newSCR | BF13: 2026_step3_SNCRoptwCC | BG13: 2026_step3_SCRoptwCC | BH13: 2026_step3_base
X17: Average air quality improvement by state for receptors in WI and CT.
X18: nonstate | Y18: AZ | Z18: CO | AA18: CT | AB18: WI | AC18: NM | AD18: AR | AE18: CA | AF18: IL | AG18: IN | AH18: KY | AI18: LA | AJ18: MD | AK18: MI | AL18: MS | AM18: MO | AN18: NV | AO18: NJ | AP18: NY | AQ18: OH | AR18: OK | AS18: PA | AT18: TX | AU18: UT | AV18: VA | AW18: WV | AX18: TRIBAL
B19: 1 | C19: 1 | D19: 1 | E19: 1 | F19: 1 | G19: 1 | H19: 1 | I19: 1 | J19: 1 | K19: 1 | L19: 1 | M19: 1 | N19: 1 | O19: 1 | P19: 1 | Q19: 1 | R19: 1 | S19: 1 | T19: 1 | U19: 1 | W19: 2026_step3_nonEGU | X19: =(-AVERAGEIFS('2026_11st_full_geo_nonEGU'!BV$7:BV$736,'2026_11st_full_geo_base'!$G$7:$G$736,">=71",'2026_11st_full_geo_base'!$B$7:$B$736,"<>California",'2026_11st_full_geo_base'!$B$7:$B$736,"<>Texas",'2026_11st_full_geo_base'!$B$7:$B$736,"<>New Mexico", '2026_11st_full_geo_base'!$B$7:$B$736,"<>Arizona", '2026_11st_full_geo_base'!$B$7:$B$736,"<>Colorado", '2026_11st_full_geo_base'!$B$7:$B$736,"<>Utah")+AVERAGEIFS('2026_11st_full_geo_base'!BV$7:BV$736,'2026_11st_full_geo_base'!$G$7:$G$736,">=71", '2026_11st_full_geo_base'!$B$7:$B$736,"<>California",'2026_11st_full_geo_base'!$B$7:$B$736,"<>Texas",'2026_11st_full_geo_base'!$B$7:$B$736,"<>New Mexico", '2026_11st_full_geo_base'!$B$7:$B$736,"<>Arizona", '2026_11st_full_geo_base'!$B$7:$B$736,"<>Colorado", '2026_11st_full_geo_base'!$B$7:$B$736,"<>Utah"))*1 -> -0.03889106631 | Y19: =(-AVERAGEIFS('2026_11st_full_geo_nonEGU'!J$7:J$736,'2026_11st_full_geo_base'!$G$7:$G$736,">=71",'2026_11st_full_geo_base'!$B$7:$B$736,"<>California",'2026_11st_full_geo_base'!$B$7:$B$736,"<>Texas",'2026_11st_full_geo_base'!$B$7:$B$736,"<>New Mexico", '2026_11st_full_geo_base'!$B$7:$B$736,"<>Arizona", '2026_11st_full_geo_base'!$B$7:$B$736,"<>Colorado", '2026_11st_full_geo_base'!$B$7:$B$736,"<>Utah")+AVERAGEIFS('2026_11st_full_geo_base'!J$7:J$736,'2026_11st_full_geo_base'!$G$7:$G$736,">=71", '2026_11st_full_geo_base'!$B$7:$B$736,"<>California",'2026_11st_full_geo_base'!$B$7:$B$736,"<>Texas",'2026_11st_full_geo_base'!$B$7:$B$736,"<>New Mexico", '2026_11st_full_geo_base'!$B$7:$B$736,"<>Arizona", '2026_11st_full_geo_base'!$B$7:$B$736,"<>Colorado", '2026_11st_full_geo_base'!$B$7:$B$736,"<>Utah"))*1 -> 0 | Z19: =(-AVERAGEIFS('2026_11st_full_geo_nonEGU'!M$7:M$736,'2026_11st_full_geo_base'!$G$7:$G$736,">=71",'2026_11st_full_geo_base'!$B$7:$B$736,"<>California",'2026_11st_full_geo_base'!$B$7:$B$736,"<>Texas",'2026_11st_full_geo_base'!$B$7:$B$736,"<>New Mexico", '2026_11st_full_geo_base'!$B$7:$B$736,"<>Arizona", '2026_11st_full_geo_base'!$B$7:$B$736,"<>Colorado", '2026_11st_full_geo_base'!$B$7:$B$736,"<>Utah")+AVERAGEIFS('2026_11st_full_geo_base'!M$7:M$736,'2026_11st_full_geo_base'!$G$7:$G$736,">=71", '2026_11st_full_geo_base'!$B$7:$B$736,"<>California",'2026_11st_full_geo_base'!$B$7:$B$736,"<>Texas",'2026_11st_full_geo_base'!$B$7:$B$736,"<>New Mexico", '2026_11st_full_geo_base'!$B$7:$B$736,"<>Arizona", '2026_11st_full_geo_base'!$B$7:$B$736,"<>Colorado", '2026_11st_full_geo_base'!$B$7:$B$736,"<>Utah"))*1 -> 0 | AA19: =(-AVERAGEIFS('2026_11st_full_geo_nonEGU'!N$7:N$736,'2026_11st_full_geo_base'!$G$7:$G$736,">=71",'2026_11st_full_geo_base'!$B$7:$B$736,"<>California",'2026_11st_full_geo_base'!$B$7:$B$736,"<>Texas",'2026_11st_full_geo_base'!$B$7:$B$736,"<>New Mexico", '2026_11st_full_geo_base'!$B$7:$B$736,"<>Arizona", '2026_11st_full_geo_base'!$B$7:$B$736,"<>Colorado", '2026_11st_full_geo_base'!$B$7:$B$736,"<>Utah")+AVERAGEIFS('2026_11st_full_geo_base'!N$7:N$736,'2026_11st_full_geo_base'!$G$7:$G$736,">=71", '2026_11st_full_geo_base'!$B$7:$B$736,"<>California",'2026_11st_full_geo_base'!$B$7:$B$736,"<>Texas",'2026_11st_full_geo_base'!$B$7:$B$736,"<>New Mexico", '2026_11st_full_geo_base'!$B$7:$B$736,"<>Arizona", '2026_11st_full_geo_base'!$B$7:$B$736,"<>Colorado", '2026_11st_full_geo_base'!$B$7:$B$736,"<>Utah"))*1 -> 0 | AB19: =(-AVERAGEIFS('2026_11st_full_geo_nonEGU'!BD$7:BD$736,'2026_11st_full_geo_base'!$G$7:$G$736,">=71",'2026_11st_full_geo_base'!$B$7:$B$736,"<>California",'2026_11st_full_geo_base'!$B$7:$B$736,"<>Texas",'2026_11st_full_geo_base'!$B$7:$B$736,"<>New Mexico", '2026_11st_full_geo_base'!$B$7:$B$736,"<>Arizona", '2026_11st_full_geo_base'!$B$7:$B$736,"<>Colorado", '2026_11st_full_geo_base'!$B$7:$B$736,"<>Utah")+AVERAGEIFS('2026_11st_full_geo_base'!BD$7:BD$736,'2026_11st_full_geo_base'!$G$7:$G$736,">=71", '2026_11st_full_geo_base'!$B$7:$B$736,"<>California",'2026_11st_full_geo_base'!$B$7:$B$736,"<>Texas",'2026_11st_full_geo_base'!$B$7:$B$736,"<>New Mexico", '2026_11st_full_geo_base'!$B$7:$B$736,"<>Arizona", '2026_11st_full_geo_base'!$B$7:$B$736,"<>Colorado", '2026_11st_full_geo_base'!$B$7:$B$736,"<>Utah"))*1 -> 0 | AC19: =(-AVERAGEIFS('2026_11st_full_geo_nonEGU'!AL$7:AL$736,'2026_11st_full_geo_base'!$G$7:$G$736,">=71",'2026_11st_full_geo_base'!$B$7:$B$736,"<>California",'2026_11st_full_geo_base'!$B$7:$B$736,"<>Texas",'2026_11st_full_geo_base'!$B$7:$B$736,"<>New Mexico", '2026_11st_full_geo_base'!$B$7:$B$736,"<>Arizona", '2026_11st_full_geo_base'!$B$7:$B$736,"<>Colorado", '2026_11st_full_geo_base'!$B$7:$B$736,"<>Utah")+AVERAGEIFS('2026_11st_full_geo_base'!AL$7:AL$736,'2026_11st_full_geo_base'!$G$7:$G$736,">=71", '2026_11st_full_geo_base'!$B$7:$B$736,"<>California",'2026_11st_full_geo_base'!$B$7:$B$736,"<>Texas",'2026_11st_full_geo_base'!$B$7:$B$736,"<>New Mexico", '2026_11st_full_geo_base'!$B$7:$B$736,"<>Arizona", '2026_11st_full_geo_base'!$B$7:$B$736,"<>Colorado", '2026_11st_full_geo_base'!$B$7:$B$736,"<>Utah"))*1 -> 0 | AD19: =(-AVERAGEIFS('2026_11st_full_geo_nonEGU'!K$7:K$736,'2026_11st_full_geo_base'!$G$7:$G$736,">=71",'2026_11st_full_geo_base'!$B$7:$B$736,"<>California",'2026_11st_full_geo_base'!$B$7:$B$736,"<>Texas",'2026_11st_full_geo_base'!$B$7:$B$736,"<>New Mexico", '2026_11st_full_geo_base'!$B$7:$B$736,"<>Arizona", '2026_11st_full_geo_base'!$B$7:$B$736,"<>Colorado", '2026_11st_full_geo_base'!$B$7:$B$736,"<>Utah")+AVERAGEIFS('2026_11st_full_geo_base'!K$7:K$736,'2026_11st_full_geo_base'!$G$7:$G$736,">=71", '2026_11st_full_geo_base'!$B$7:$B$736,"<>California",'2026_11st_full_geo_base'!$B$7:$B$736,"<>Texas",'2026_11st_full_geo_base'!$B$7:$B$736,"<>New Mexico", '2026_11st_full_geo_base'!$B$7:$B$736,"<>Arizona", '2026_11st_full_geo_base'!$B$7:$B$736,"<>Colorado", '2026_11st_full_geo_base'!$B$7:$B$736,"<>Utah"))*B19 -> 0 | AE19: =(-AVERAGEIFS('2026_11st_full_geo_nonEGU'!L$7:L$736,'2026_11st_full_geo_base'!$G$7:$G$736,">=71",'2026_11st_full_geo_base'!$B$7:$B$736,"<>California",'2026_11st_full_geo_base'!$B$7:$B$736,"<>Texas",'2026_11st_full_geo_base'!$B$7:$B$736,"<>New Mexico", '2026_11st_full_geo_base'!$B$7:$B$736,"<>Arizona", '2026_11st_full_geo_base'!$B$7:$B$736,"<>Colorado", '2026_11st_full_geo_base'!$B$7:$B$736,"<>Utah")+AVERAGEIFS('2026_11st_full_geo_base'!L$7:L$736,'2026_11st_full_geo_base'!$G$7:$G$736,">=71", '2026_11st_full_geo_base'!$B$7:$B$736,"<>California",'2026_11st_full_geo_base'!$B$7:$B$736,"<>Texas",'2026_11st_full_geo_base'!$B$7:$B$736,"<>New Mexico", '2026_11st_full_geo_base'!$B$7:$B$736,"<>Arizona", '2026_11st_full_geo_base'!$B$7:$B$736,"<>Colorado", '2026_11st_full_geo_base'!$B$7:$B$736,"<>Utah"))*C19 -> 0.0004380470784 | AF19: =(-AVERAGEIFS('2026_11st_full_geo_nonEGU'!T$7:T$736,'2026_11st_full_geo_base'!$G$7:$G$736,">=71",'2026_11st_full_geo_base'!$B$7:$B$736,"<>California",'2026_11st_full_geo_base'!$B$7:$B$736,"<>Texas",'2026_11st_full_geo_base'!$B$7:$B$736,"<>New Mexico", '2026_11st_full_geo_base'!$B$7:$B$736,"<>Arizona", '2026_11st_full_geo_base'!$B$7:$B$736,"<>Colorado", '2026_11st_full_geo_base'!$B$7:$B$736,"<>Utah")+AVERAGEIFS('2026_11st_full_geo_base'!T$7:T$736,'2026_11st_full_geo_base'!$G$7:$G$736,">=71", '2026_11st_full_geo_base'!$B$7:$B$736,"<>California",'2026_11st_full_geo_base'!$B$7:$B$736,"<>Texas",'2026_11st_full_geo_base'!$B$7:$B$736,"<>New Mexico", '2026_11st_full_geo_base'!$B$7:$B$736,"<>Arizona", '2026_11st_full_geo_base'!$B$7:$B$736,"<>Colorado", '2026_11st_full_geo_base'!$B$7:$B$736,"<>Utah"))*D19 -> 0.01988790734 | AG19: =(-AVERAGEIFS('2026_11st_full_geo_nonEGU'!U$7:U$736,'2026_11st_full_geo_base'!$G$7:$G$736,">=71",'2026_11st_full_geo_base'!$B$7:$B$736,"<>California",'2026_11st_full_geo_base'!$B$7:$B$736,"<>Texas",'2026_11st_full_geo_base'!$B$7:$B$736,"<>New Mexico", '2026_11st_full_geo_base'!$B$7:$B$736,"<>Arizona", '2026_11st_full_geo_base'!$B$7:$B$736,"<>Colorado", '2026_11st_full_geo_base'!$B$7:$B$736,"<>Utah")+AVERAGEIFS('2026_11st_full_geo_base'!U$7:U$736,'2026_11st_full_geo_base'!$G$7:$G$736,">=71", '2026_11st_full_geo_base'!$B$7:$B$736,"<>California",'2026_11st_full_geo_base'!$B$7:$B$736,"<>Texas",'2026_11st_full_geo_base'!$B$7:$B$736,"<>New Mexico", '2026_11st_full_geo_base'!$B$7:$B$736,"<>Arizona", '2026_11st_full_geo_base'!$B$7:$B$736,"<>Colorado", '2026_11st_full_geo_base'!$B$7:$B$736,"<>Utah"))*E19 -> 0.1096285317 | AH19: =(-AVERAGEIFS('2026_11st_full_geo_nonEGU'!X$7:X$736,'2026_11st_full_geo_base'!$G$7:$G$736,">=71",'2026_11st_full_geo_base'!$B$7:$B$736,"<>California",'2026_11st_full_geo_base'!$B$7:$B$736,"<>Texas",'2026_11st_full_geo_base'!$B$7:$B$736,"<>New Mexico", '2026_11st_full_geo_base'!$B$7:$B$736,"<>Arizona", '2026_11st_full_geo_base'!$B$7:$B$736,"<>Colorado", '2026_11st_full_geo_base'!$B$7:$B$736,"<>Utah")+AVERAGEIFS('2026_11st_full_geo_base'!X$7:X$736,'2026_11st_full_geo_base'!$G$7:$G$736,">=71", '2026_11st_full_geo_base'!$B$7:$B$736,"<>California",'2026_11st_full_geo_base'!$B$7:$B$736,"<>Texas",'2026_11st_full_geo_base'!$B$7:$B$736,"<>New Mexico", '2026_11st_full_geo_base'!$B$7:$B$736,"<>Arizona", '2026_11st_full_geo_base'!$B$7:$B$736,"<>Colorado", '2026_11st_full_geo_base'!$B$7:$B$736,"<>Utah"))*F19 -> 0 | AI19: =(-AVERAGEIFS('2026_11st_full_geo_nonEGU'!Y$7:Y$736,'2026_11st_full_geo_base'!$G$7:$G$736,">=71",'2026_11st_full_geo_base'!$B$7:$B$736,"<>California",'2026_11st_full_geo_base'!$B$7:$B$736,"<>Texas",'2026_11st_full_geo_base'!$B$7:$B$736,"<>New Mexico", '2026_11st_full_geo_base'!$B$7:$B$736,"<>Arizona", '2026_11st_full_geo_base'!$B$7:$B$736,"<>Colorado", '2026_11st_full_geo_base'!$B$7:$B$736,"<>Utah")+AVERAGEIFS('2026_11st_full_geo_base'!Y$7:Y$736,'2026_11st_full_geo_base'!$G$7:$G$736,">=71", '2026_11st_full_geo_base'!$B$7:$B$736,"<>California",'2026_11st_full_geo_base'!$B$7:$B$736,"<>Texas",'2026_11st_full_geo_base'!$B$7:$B$736,"<>New Mexico", '2026_11st_full_geo_base'!$B$7:$B$736,"<>Arizona", '2026_11st_full_geo_base'!$B$7:$B$736,"<>Colorado", '2026_11st_full_geo_base'!$B$7:$B$736,"<>Utah"))*G19 -> 0 | AJ19: =(-AVERAGEIFS('2026_11st_full_geo_nonEGU'!AA$7:AA$736,'2026_11st_full_geo_base'!$G$7:$G$736,">=71",'2026_11st_full_geo_base'!$B$7:$B$736,"<>California",'2026_11st_full_geo_base'!$B$7:$B$736,"<>Texas",'2026_11st_full_geo_base'!$B$7:$B$736,"<>New Mexico", '2026_11st_full_geo_base'!$B$7:$B$736,"<>Arizona", '2026_11st_full_geo_base'!$B$7:$B$736,"<>Colorado", '2026_11st_full_geo_base'!$B$7:$B$736,"<>Utah")+AVERAGEIFS('2026_11st_full_geo_base'!AA$7:AA$736,'2026_11st_full_geo_base'!$G$7:$G$736,">=71", '2026_11st_full_geo_base'!$B$7:$B$736,"<>California",'2026_11st_full_geo_base'!$B$7:$B$736,"<>Texas",'2026_11st_full_geo_base'!$B$7:$B$736,"<>New Mexico", '2026_11st_full_geo_base'!$B$7:$B$736,"<>Arizona", '2026_11st_full_geo_base'!$B$7:$B$736,"<>Colorado", '2026_11st_full_geo_base'!$B$7:$B$736,"<>Utah"))*H19 -> 0.003219576539 | AK19: =(-AVERAGEIFS('2026_11st_full_geo_nonEGU'!AC$7:AC$736,'2026_11st_full_geo_base'!$G$7:$G$736,">=71",'2026_11st_full_geo_base'!$B$7:$B$736,"<>California",'2026_11st_full_geo_base'!$B$7:$B$736,"<>Texas",'2026_11st_full_geo_base'!$B$7:$B$736,"<>New Mexico", '2026_11st_full_geo_base'!$B$7:$B$736,"<>Arizona", '2026_11st_full_geo_base'!$B$7:$B$736,"<>Colorado", '2026_11st_full_geo_base'!$B$7:$B$736,"<>Utah")+AVERAGEIFS('2026_11st_full_geo_base'!AC$7:AC$736,'2026_11st_full_geo_base'!$G$7:$G$736,">=71", '2026_11st_full_geo_base'!$B$7:$B$736,"<>California",'2026_11st_full_geo_base'!$B$7:$B$736,"<>Texas",'2026_11st_full_geo_base'!$B$7:$B$736,"<>New Mexico", '2026_11st_full_geo_base'!$B$7:$B$736,"<>Arizona", '2026_11st_full_geo_base'!$B$7:$B$736,"<>Colorado", '2026_11st_full_geo_base'!$B$7:$B$736,"<>Utah"))*I19 -> 0.04416949767 | AL19: =(-AVERAGEIFS('2026_11st_full_geo_nonEGU'!AE$7:AE$736,'2026_11st_full_geo_base'!$G$7:$G$736,">=71",'2026_11st_full_geo_base'!$B$7:$B$736,"<>California",'2026_11st_full_geo_base'!$B$7:$B$736,"<>Texas",'2026_11st_full_geo_base'!$B$7:$B$736,"<>New Mexico", '2026_11st_full_geo_base'!$B$7:$B$736,"<>Arizona", '2026_11st_full_geo_base'!$B$7:$B$736,"<>Colorado", '2026_11st_full_geo_base'!$B$7:$B$736,"<>Utah")+AVERAGEIFS('2026_11st_full_geo_base'!AE$7:AE$736,'2026_11st_full_geo_base'!$G$7:$G$736,">=71", '2026_11st_full_geo_base'!$B$7:$B$736,"<>California",'2026_11st_full_geo_base'!$B$7:$B$736,"<>Texas",'2026_11st_full_geo_base'!$B$7:$B$736,"<>New Mexico", '2026_11st_full_geo_base'!$B$7:$B$736,"<>Arizona", '2026_11st_full_geo_base'!$B$7:$B$736,"<>Colorado", '2026_11st_full_geo_base'!$B$7:$B$736,"<>Utah"))*J19 -> 0 | AM19: =(-AVERAGEIFS('2026_11st_full_geo_nonEGU'!AF$7:AF$736,'2026_11st_full_geo_base'!$G$7:$G$736,">=71",'2026_11st_full_geo_base'!$B$7:$B$736,"<>California",'2026_11st_full_geo_base'!$B$7:$B$736,"<>Texas",'2026_11st_full_geo_base'!$B$7:$B$736,"<>New Mexico", '2026_11st_full_geo_base'!$B$7:$B$736,"<>Arizona", '2026_11st_full_geo_base'!$B$7:$B$736,"<>Colorado", '2026_11st_full_geo_base'!$B$7:$B$736,"<>Utah")+AVERAGEIFS('2026_11st_full_geo_base'!AF$7:AF$736,'2026_11st_full_geo_base'!$G$7:$G$736,">=71", '2026_11st_full_geo_base'!$B$7:$B$736,"<>California",'2026_11st_full_geo_base'!$B$7:$B$736,"<>Texas",'2026_11st_full_geo_base'!$B$7:$B$736,"<>New Mexico", '2026_11st_full_geo_base'!$B$7:$B$736,"<>Arizona", '2026_11st_full_geo_base'!$B$7:$B$736,"<>Colorado", '2026_11st_full_geo_base'!$B$7:$B$736,"<>Utah"))*K19 -> 0 | AN19: =(-AVERAGEIFS('2026_11st_full_geo_nonEGU'!AI$7:AI$736,'2026_11st_full_geo_base'!$G$7:$G$736,">=71",'2026_11st_full_geo_base'!$B$7:$B$736,"<>California",'2026_11st_full_geo_base'!$B$7:$B$736,"<>Texas",'2026_11st_full_geo_base'!$B$7:$B$736,"<>New Mexico", '2026_11st_full_geo_base'!$B$7:$B$736,"<>Arizona", '2026_11st_full_geo_base'!$B$7:$B$736,"<>Colorado", '2026_11st_full_geo_base'!$B$7:$B$736,"<>Utah")+AVERAGEIFS('2026_11st_full_geo_base'!AI$7:AI$736,'2026_11st_full_geo_base'!$G$7:$G$736,">=71", '2026_11st_full_geo_base'!$B$7:$B$736,"<>California",'2026_11st_full_geo_base'!$B$7:$B$736,"<>Texas",'2026_11st_full_geo_base'!$B$7:$B$736,"<>New Mexico", '2026_11st_full_geo_base'!$B$7:$B$736,"<>Arizona", '2026_11st_full_geo_base'!$B$7:$B$736,"<>Colorado", '2026_11st_full_geo_base'!$B$7:$B$736,"<>Utah"))*L19 -> 0 | AO19: =(-AVERAGEIFS('2026_11st_full_geo_nonEGU'!AK$7:AK$736,'2026_11st_full_geo_base'!$G$7:$G$736,">=71",'2026_11st_full_geo_base'!$B$7:$B$736,"<>California",'2026_11st_full_geo_base'!$B$7:$B$736,"<>Texas",'2026_11st_full_geo_base'!$B$7:$B$736,"<>New Mexico", '2026_11st_full_geo_base'!$B$7:$B$736,"<>Arizona", '2026_11st_full_geo_base'!$B$7:$B$736,"<>Colorado", '2026_11st_full_geo_base'!$B$7:$B$736,"<>Utah")+AVERAGEIFS('2026_11st_full_geo_base'!AK$7:AK$736,'2026_11st_full_geo_base'!$G$7:$G$736,">=71", '2026_11st_full_geo_base'!$B$7:$B$736,"<>California",'2026_11st_full_geo_base'!$B$7:$B$736,"<>Texas",'2026_11st_full_geo_base'!$B$7:$B$736,"<>New Mexico", '2026_11st_full_geo_base'!$B$7:$B$736,"<>Arizona", '2026_11st_full_geo_base'!$B$7:$B$736,"<>Colorado", '2026_11st_full_geo_base'!$B$7:$B$736,"<>Utah"))*M19 -> -0.00686339417 | AP19: =(-AVERAGEIFS('2026_11st_full_geo_nonEGU'!AM$7:AM$736,'2026_11st_full_geo_base'!$G$7:$G$736,">=71",'2026_11st_full_geo_base'!$B$7:$B$736,"<>California",'2026_11st_full_geo_base'!$B$7:$B$736,"<>Texas",'2026_11st_full_geo_base'!$B$7:$B$736,"<>New Mexico", '2026_11st_full_geo_base'!$B$7:$B$736,"<>Arizona", '2026_11st_full_geo_base'!$B$7:$B$736,"<>Colorado", '2026_11st_full_geo_base'!$B$7:$B$736,"<>Utah")+AVERAGEIFS('2026_11st_full_geo_base'!AM$7:AM$736,'2026_11st_full_geo_base'!$G$7:$G$736,">=71", '2026_11st_full_geo_base'!$B$7:$B$736,"<>California",'2026_11st_full_geo_base'!$B$7:$B$736,"<>Texas",'2026_11st_full_geo_base'!$B$7:$B$736,"<>New Mexico", '2026_11st_full_geo_base'!$B$7:$B$736,"<>Arizona", '2026_11st_full_geo_base'!$B$7:$B$736,"<>Colorado", '2026_11st_full_geo_base'!$B$7:$B$736,"<>Utah"))*N19 -> 0.03620474383 | AQ19: =(-AVERAGEIFS('2026_11st_full_geo_nonEGU'!AP$7:AP$736,'2026_11st_full_geo_base'!$G$7:$G$736,">=71",'2026_11st_full_geo_base'!$B$7:$B$736,"<>California",'2026_11st_full_geo_base'!$B$7:$B$736,"<>Texas",'2026_11st_full_geo_base'!$B$7:$B$736,"<>New Mexico", '2026_11st_full_geo_base'!$B$7:$B$736,"<>Arizona", '2026_11st_full_geo_base'!$B$7:$B$736,"<>Colorado", '2026_11st_full_geo_base'!$B$7:$B$736,"<>Utah")+AVERAGEIFS('2026_11st_full_geo_base'!AP$7:AP$736,'2026_11st_full_geo_base'!$G$7:$G$736,">=71", '2026_11st_full_geo_base'!$B$7:$B$736,"<>California",'2026_11st_full_geo_base'!$B$7:$B$736,"<>Texas",'2026_11st_full_geo_base'!$B$7:$B$736,"<>New Mexico", '2026_11st_full_geo_base'!$B$7:$B$736,"<>Arizona", '2026_11st_full_geo_base'!$B$7:$B$736,"<>Colorado", '2026_11st_full_geo_base'!$B$7:$B$736,"<>Utah"))*O19 -> 0.06754577163 | AR19: =(-AVERAGEIFS('2026_11st_full_geo_nonEGU'!AQ$7:AQ$736,'2026_11st_full_geo_base'!$G$7:$G$736,">=71",'2026_11st_full_geo_base'!$B$7:$B$736,"<>California",'2026_11st_full_geo_base'!$B$7:$B$736,"<>Texas",'2026_11st_full_geo_base'!$B$7:$B$736,"<>New Mexico", '2026_11st_full_geo_base'!$B$7:$B$736,"<>Arizona", '2026_11st_full_geo_base'!$B$7:$B$736,"<>Colorado", '2026_11st_full_geo_base'!$B$7:$B$736,"<>Utah")+AVERAGEIFS('2026_11st_full_geo_base'!AQ$7:AQ$736,'2026_11st_full_geo_base'!$G$7:$G$736,">=71", '2026_11st_full_geo_base'!$B$7:$B$736,"<>California",'2026_11st_full_geo_base'!$B$7:$B$736,"<>Texas",'2026_11st_full_geo_base'!$B$7:$B$736,"<>New Mexico", '2026_11st_full_geo_base'!$B$7:$B$736,"<>Arizona", '2026_11st_full_geo_base'!$B$7:$B$736,"<>Colorado", '2026_11st_full_geo_base'!$B$7:$B$736,"<>Utah"))*P19 -> 0 | AS19: =(-AVERAGEIFS('2026_11st_full_geo_nonEGU'!AS$7:AS$736,'2026_11st_full_geo_base'!$G$7:$G$736,">=71",'2026_11st_full_geo_base'!$B$7:$B$736,"<>California",'2026_11st_full_geo_base'!$B$7:$B$736,"<>Texas",'2026_11st_full_geo_base'!$B$7:$B$736,"<>New Mexico", '2026_11st_full_geo_base'!$B$7:$B$736,"<>Arizona", '2026_11st_full_geo_base'!$B$7:$B$736,"<>Colorado", '2026_11st_full_geo_base'!$B$7:$B$736,"<>Utah")+AVERAGEIFS('2026_11st_full_geo_base'!AS$7:AS$736,'2026_11st_full_geo_base'!$G$7:$G$736,">=71", '2026_11st_full_geo_base'!$B$7:$B$736,"<>California",'2026_11st_full_geo_base'!$B$7:$B$736,"<>Texas",'2026_11st_full_geo_base'!$B$7:$B$736,"<>New Mexico", '2026_11st_full_geo_base'!$B$7:$B$736,"<>Arizona", '2026_11st_full_geo_base'!$B$7:$B$736,"<>Colorado", '2026_11st_full_geo_base'!$B$7:$B$736,"<>Utah"))*Q19 -> 0.09850105027 | AT19: =(-AVERAGEIFS('2026_11st_full_geo_nonEGU'!AX$7:AX$736,'2026_11st_full_geo_base'!$G$7:$G$736,">=71",'2026_11st_full_geo_base'!$B$7:$B$736,"<>California",'2026_11st_full_geo_base'!$B$7:$B$736,"<>Texas",'2026_11st_full_geo_base'!$B$7:$B$736,"<>New Mexico", '2026_11st_full_geo_base'!$B$7:$B$736,"<>Arizona", '2026_11st_full_geo_base'!$B$7:$B$736,"<>Colorado", '2026_11st_full_geo_base'!$B$7:$B$736,"<>Utah")+AVERAGEIFS('2026_11st_full_geo_base'!AX$7:AX$736,'2026_11st_full_geo_base'!$G$7:$G$736,">=71", '2026_11st_full_geo_base'!$B$7:$B$736,"<>California",'2026_11st_full_geo_base'!$B$7:$B$736,"<>Texas",'2026_11st_full_geo_base'!$B$7:$B$736,"<>New Mexico", '2026_11st_full_geo_base'!$B$7:$B$736,"<>Arizona", '2026_11st_full_geo_base'!$B$7:$B$736,"<>Colorado", '2026_11st_full_geo_base'!$B$7:$B$736,"<>Utah"))*R19 -> 0 | AU19: =(-AVERAGEIFS('2026_11st_full_geo_nonEGU'!AY$7:AY$736,'2026_11st_full_geo_base'!$G$7:$G$736,">=71",'2026_11st_full_geo_base'!$B$7:$B$736,"<>California",'2026_11st_full_geo_base'!$B$7:$B$736,"<>Texas",'2026_11st_full_geo_base'!$B$7:$B$736,"<>New Mexico", '2026_11st_full_geo_base'!$B$7:$B$736,"<>Arizona", '2026_11st_full_geo_base'!$B$7:$B$736,"<>Colorado", '2026_11st_full_geo_base'!$B$7:$B$736,"<>Utah")+AVERAGEIFS('2026_11st_full_geo_base'!AY$7:AY$736,'2026_11st_full_geo_base'!$G$7:$G$736,">=71", '2026_11st_full_geo_base'!$B$7:$B$736,"<>California",'2026_11st_full_geo_base'!$B$7:$B$736,"<>Texas",'2026_11st_full_geo_base'!$B$7:$B$736,"<>New Mexico", '2026_11st_full_geo_base'!$B$7:$B$736,"<>Arizona", '2026_11st_full_geo_base'!$B$7:$B$736,"<>Colorado", '2026_11st_full_geo_base'!$B$7:$B$736,"<>Utah"))*S19 -> 0 | AV19: =(-AVERAGEIFS('2026_11st_full_geo_nonEGU'!BA$7:BA$736,'2026_11st_full_geo_base'!$G$7:$G$736,">=71",'2026_11st_full_geo_base'!$B$7:$B$736,"<>California",'2026_11st_full_geo_base'!$B$7:$B$736,"<>Texas",'2026_11st_full_geo_base'!$B$7:$B$736,"<>New Mexico", '2026_11st_full_geo_base'!$B$7:$B$736,"<>Arizona", '2026_11st_full_geo_base'!$B$7:$B$736,"<>Colorado", '2026_11st_full_geo_base'!$B$7:$B$736,"<>Utah")+AVERAGEIFS('2026_11st_full_geo_base'!BA$7:BA$736,'2026_11st_full_geo_base'!$G$7:$G$736,">=71", '2026_11st_full_geo_base'!$B$7:$B$736,"<>California",'2026_11st_full_geo_base'!$B$7:$B$736,"<>Texas",'2026_11st_full_geo_base'!$B$7:$B$736,"<>New Mexico", '2026_11st_full_geo_base'!$B$7:$B$736,"<>Arizona", '2026_11st_full_geo_base'!$B$7:$B$736,"<>Colorado", '2026_11st_full_geo_base'!$B$7:$B$736,"<>Utah"))*T19 -> 0.02534142209 | AW19: =(-AVERAGEIFS('2026_11st_full_geo_nonEGU'!BC$7:BC$736,'2026_11st_full_geo_base'!$G$7:$G$736,">=71",'2026_11st_full_geo_base'!$B$7:$B$736,"<>California",'2026_11st_full_geo_base'!$B$7:$B$736,"<>Texas",'2026_11st_full_geo_base'!$B$7:$B$736,"<>New Mexico", '2026_11st_full_geo_base'!$B$7:$B$736,"<>Arizona", '2026_11st_full_geo_base'!$B$7:$B$736,"<>Colorado", '2026_11st_full_geo_base'!$B$7:$B$736,"<>Utah")+AVERAGEIFS('2026_11st_full_geo_base'!BC$7:BC$736,'2026_11st_full_geo_base'!$G$7:$G$736,">=71", '2026_11st_full_geo_base'!$B$7:$B$736,"<>California",'2026_11st_full_geo_base'!$B$7:$B$736,"<>Texas",'2026_11st_full_geo_base'!$B$7:$B$736,"<>New Mexico", '2026_11st_full_geo_base'!$B$7:$B$736,"<>Arizona", '2026_11st_full_geo_base'!$B$7:$B$736,"<>Colorado", '2026_11st_full_geo_base'!$B$7:$B$736,"<>Utah"))*U19 -> 0 | AX19: =(-AVERAGEIFS('2026_11st_full_geo_nonEGU'!BF$7:BF$736,'2026_11st_full_geo_base'!$G$7:$G$736,">=71",'2026_11st_full_geo_base'!$B$7:$B$736,"<>California",'2026_11st_full_geo_base'!$B$7:$B$736,"<>Texas",'2026_11st_full_geo_base'!$B$7:$B$736,"<>New Mexico", '2026_11st_full_geo_base'!$B$7:$B$736,"<>Arizona", '2026_11st_full_geo_base'!$B$7:$B$736,"<>Colorado", '2026_11st_full_geo_base'!$B$7:$B$736,"<>Utah")+AVERAGEIFS('2026_11st_full_geo_base'!BF$7:BF$736,'2026_11st_full_geo_base'!$G$7:$G$736,">=71", '2026_11st_full_geo_base'!$B$7:$B$736,"<>California",'2026_11st_full_geo_base'!$B$7:$B$736,"<>Texas",'2026_11st_full_geo_base'!$B$7:$B$736,"<>New Mexico", '2026_11st_full_geo_base'!$B$7:$B$736,"<>Arizona", '2026_11st_full_geo_base'!$B$7:$B$736,"<>Colorado", '2026_11st_full_geo_base'!$B$7:$B$736,"<>Utah"))*S19 -> 0
B20: 1 | C20: 1 | D20: 1 | E20: 1 | F20: 1 | G20: 1 | H20: 1 | I20: 1 | J20: 1 | K20: 1 | L20: 1 | M20: 1 | N20: 1 | O20: 1 | P20: 1 | Q20: 1 | R20: 1 | S20: 1 | T20: 1 | U20: 1 | W20: 2026_step3_newSCR | X20: =(-AVERAGEIFS('2026_11st_full_geo_newSCR'!BV$7:BV$736,'2026_11st_full_geo_base'!$G$7:$G$736,">=71",'2026_11st_full_geo_base'!$B$7:$B$736,"<>California",'2026_11st_full_geo_base'!$B$7:$B$736,"<>Texas",'2026_11st_full_geo_base'!$B$7:$B$736,"<>New Mexico", '2026_11st_full_geo_base'!$B$7:$B$736,"<>Arizona", '2026_11st_full_geo_base'!$B$7:$B$736,"<>Colorado", '2026_11st_full_geo_base'!$B$7:$B$736,"<>Utah")+AVERAGEIFS('2026_11st_full_geo_base'!BV$7:BV$736,'2026_11st_full_geo_base'!$G$7:$G$736,">=71", '2026_11st_full_geo_base'!$B$7:$B$736,"<>California",'2026_11st_full_geo_base'!$B$7:$B$736,"<>Texas",'2026_11st_full_geo_base'!$B$7:$B$736,"<>New Mexico", '2026_11st_full_geo_base'!$B$7:$B$736,"<>Arizona", '2026_11st_full_geo_base'!$B$7:$B$736,"<>Colorado", '2026_11st_full_geo_base'!$B$7:$B$736,"<>Utah"))*1 -> -0.01417334305 | Y20: =(-AVERAGEIFS('2026_11st_full_geo_newSCR'!J$7:J$736,'2026_11st_full_geo_base'!$G$7:$G$736,">=71",'2026_11st_full_geo_base'!$B$7:$B$736,"<>California",'2026_11st_full_geo_base'!$B$7:$B$736,"<>Texas",'2026_11st_full_geo_base'!$B$7:$B$736,"<>New Mexico", '2026_11st_full_geo_base'!$B$7:$B$736,"<>Arizona", '2026_11st_full_geo_base'!$B$7:$B$736,"<>Colorado", '2026_11st_full_geo_base'!$B$7:$B$736,"<>Utah")+AVERAGEIFS('2026_11st_full_geo_base'!J$7:J$736,'2026_11st_full_geo_base'!$G$7:$G$736,">=71", '2026_11st_full_geo_base'!$B$7:$B$736,"<>California",'2026_11st_full_geo_base'!$B$7:$B$736,"<>Texas",'2026_11st_full_geo_base'!$B$7:$B$736,"<>New Mexico", '2026_11st_full_geo_base'!$B$7:$B$736,"<>Arizona", '2026_11st_full_geo_base'!$B$7:$B$736,"<>Colorado", '2026_11st_full_geo_base'!$B$7:$B$736,"<>Utah"))*1 -> 0 | Z20: =(-AVERAGEIFS('2026_11st_full_geo_newSCR'!M$7:M$736,'2026_11st_full_geo_base'!$G$7:$G$736,">=71",'2026_11st_full_geo_base'!$B$7:$B$736,"<>California",'2026_11st_full_geo_base'!$B$7:$B$736,"<>Texas",'2026_11st_full_geo_base'!$B$7:$B$736,"<>New Mexico", '2026_11st_full_geo_base'!$B$7:$B$736,"<>Arizona", '2026_11st_full_geo_base'!$B$7:$B$736,"<>Colorado", '2026_11st_full_geo_base'!$B$7:$B$736,"<>Utah")+AVERAGEIFS('2026_11st_full_geo_base'!M$7:M$736,'2026_11st_full_geo_base'!$G$7:$G$736,">=71", '2026_11st_full_geo_base'!$B$7:$B$736,"<>California",'2026_11st_full_geo_base'!$B$7:$B$736,"<>Texas",'2026_11st_full_geo_base'!$B$7:$B$736,"<>New Mexico", '2026_11st_full_geo_base'!$B$7:$B$736,"<>Arizona", '2026_11st_full_geo_base'!$B$7:$B$736,"<>Colorado", '2026_11st_full_geo_base'!$B$7:$B$736,"<>Utah"))*1 -> 0 | AA20: =(-AVERAGEIFS('2026_11st_full_geo_newSCR'!N$7:N$736,'2026_11st_full_geo_base'!$G$7:$G$736,">=71",'2026_11st_full_geo_base'!$B$7:$B$736,"<>California",'2026_11st_full_geo_base'!$B$7:$B$736,"<>Texas",'2026_11st_full_geo_base'!$B$7:$B$736,"<>New Mexico", '2026_11st_full_geo_base'!$B$7:$B$736,"<>Arizona", '2026_11st_full_geo_base'!$B$7:$B$736,"<>Colorado", '2026_11st_full_geo_base'!$B$7:$B$736,"<>Utah")+AVERAGEIFS('2026_11st_full_geo_base'!N$7:N$736,'2026_11st_full_geo_base'!$G$7:$G$736,">=71", '2026_11st_full_geo_base'!$B$7:$B$736,"<>California",'2026_11st_full_geo_base'!$B$7:$B$736,"<>Texas",'2026_11st_full_geo_base'!$B$7:$B$736,"<>New Mexico", '2026_11st_full_geo_base'!$B$7:$B$736,"<>Arizona", '2026_11st_full_geo_base'!$B$7:$B$736,"<>Colorado", '2026_11st_full_geo_base'!$B$7:$B$736,"<>Utah"))*1 -> 0 | AB20: =(-AVERAGEIFS('2026_11st_full_geo_newSCR'!BD$7:BD$736,'2026_11st_full_geo_base'!$G$7:$G$736,">=71",'2026_11st_full_geo_base'!$B$7:$B$736,"<>California",'2026_11st_full_geo_base'!$B$7:$B$736,"<>Texas",'2026_11st_full_geo_base'!$B$7:$B$736,"<>New Mexico", '2026_11st_full_geo_base'!$B$7:$B$736,"<>Arizona", '2026_11st_full_geo_base'!$B$7:$B$736,"<>Colorado", '2026_11st_full_geo_base'!$B$7:$B$736,"<>Utah")+AVERAGEIFS('2026_11st_full_geo_base'!BD$7:BD$736,'2026_11st_full_geo_base'!$G$7:$G$736,">=71", '2026_11st_full_geo_base'!$B$7:$B$736,"<>California",'2026_11st_full_geo_base'!$B$7:$B$736,"<>Texas",'2026_11st_full_geo_base'!$B$7:$B$736,"<>New Mexico", '2026_11st_full_geo_base'!$B$7:$B$736,"<>Arizona", '2026_11st_full_geo_base'!$B$7:$B$736,"<>Colorado", '2026_11st_full_geo_base'!$B$7:$B$736,"<>Utah"))*1 -> 0 | AC20: =(-AVERAGEIFS('2026_11st_full_geo_newSCR'!AL$7:AL$736,'2026_11st_full_geo_base'!$G$7:$G$736,">=71",'2026_11st_full_geo_base'!$B$7:$B$736,"<>California",'2026_11st_full_geo_base'!$B$7:$B$736,"<>Texas",'2026_11st_full_geo_base'!$B$7:$B$736,"<>New Mexico", '2026_11st_full_geo_base'!$B$7:$B$736,"<>Arizona", '2026_11st_full_geo_base'!$B$7:$B$736,"<>Colorado", '2026_11st_full_geo_base'!$B$7:$B$736,"<>Utah")+AVERAGEIFS('2026_11st_full_geo_base'!AL$7:AL$736,'2026_11st_full_geo_base'!$G$7:$G$736,">=71", '2026_11st_full_geo_base'!$B$7:$B$736,"<>California",'2026_11st_full_geo_base'!$B$7:$B$736,"<>Texas",'2026_11st_full_geo_base'!$B$7:$B$736,"<>New Mexico", '2026_11st_full_geo_base'!$B$7:$B$736,"<>Arizona", '2026_11st_full_geo_base'!$B$7:$B$736,"<>Colorado", '2026_11st_full_geo_base'!$B$7:$B$736,"<>Utah"))*1 -> 0 | AD20: =(-AVERAGEIFS('2026_11st_full_geo_newSCR'!K$7:K$736,'2026_11st_full_geo_base'!$G$7:$G$736,">=71",'2026_11st_full_geo_base'!$B$7:$B$736,"<>California",'2026_11st_full_geo_base'!$B$7:$B$736,"<>Texas",'2026_11st_full_geo_base'!$B$7:$B$736,"<>New Mexico", '2026_11st_full_geo_base'!$B$7:$B$736,"<>Arizona", '2026_11st_full_geo_base'!$B$7:$B$736,"<>Colorado", '2026_11st_full_geo_base'!$B$7:$B$736,"<>Utah")+AVERAGEIFS('2026_11st_full_geo_base'!K$7:K$736,'2026_11st_full_geo_base'!$G$7:$G$736,">=71", '2026_11st_full_geo_base'!$B$7:$B$736,"<>California",'2026_11st_full_geo_base'!$B$7:$B$736,"<>Texas",'2026_11st_full_geo_base'!$B$7:$B$736,"<>New Mexico", '2026_11st_full_geo_base'!$B$7:$B$736,"<>Arizona", '2026_11st_full_geo_base'!$B$7:$B$736,"<>Colorado", '2026_11st_full_geo_base'!$B$7:$B$736,"<>Utah"))*B20 -> 0 | AE20: =(-AVERAGEIFS('2026_11st_full_geo_newSCR'!L$7:L$736,'2026_11st_full_geo_base'!$G$7:$G$736,">=71",'2026_11st_full_geo_base'!$B$7:$B$736,"<>California",'2026_11st_full_geo_base'!$B$7:$B$736,"<>Texas",'2026_11st_full_geo_base'!$B$7:$B$736,"<>New Mexico", '2026_11st_full_geo_base'!$B$7:$B$736,"<>Arizona", '2026_11st_full_geo_base'!$B$7:$B$736,"<>Colorado", '2026_11st_full_geo_base'!$B$7:$B$736,"<>Utah")+AVERAGEIFS('2026_11st_full_geo_base'!L$7:L$736,'2026_11st_full_geo_base'!$G$7:$G$736,">=71", '2026_11st_full_geo_base'!$B$7:$B$736,"<>California",'2026_11st_full_geo_base'!$B$7:$B$736,"<>Texas",'2026_11st_full_geo_base'!$B$7:$B$736,"<>New Mexico", '2026_11st_full_geo_base'!$B$7:$B$736,"<>Arizona", '2026_11st_full_geo_base'!$B$7:$B$736,"<>Colorado", '2026_11st_full_geo_base'!$B$7:$B$736,"<>Utah"))*C20 -> 8.575705389e-05 | AF20: =(-AVERAGEIFS('2026_11st_full_geo_newSCR'!T$7:T$736,'2026_11st_full_geo_base'!$G$7:$G$736,">=71",'2026_11st_full_geo_base'!$B$7:$B$736,"<>California",'2026_11st_full_geo_base'!$B$7:$B$736,"<>Texas",'2026_11st_full_geo_base'!$B$7:$B$736,"<>New Mexico", '2026_11st_full_geo_base'!$B$7:$B$736,"<>Arizona", '2026_11st_full_geo_base'!$B$7:$B$736,"<>Colorado", '2026_11st_full_geo_base'!$B$7:$B$736,"<>Utah")+AVERAGEIFS('2026_11st_full_geo_base'!T$7:T$736,'2026_11st_full_geo_base'!$G$7:$G$736,">=71", '2026_11st_full_geo_base'!$B$7:$B$736,"<>California",'2026_11st_full_geo_base'!$B$7:$B$736,"<>Texas",'2026_11st_full_geo_base'!$B$7:$B$736,"<>New Mexico", '2026_11st_full_geo_base'!$B$7:$B$736,"<>Arizona", '2026_11st_full_geo_base'!$B$7:$B$736,"<>Colorado", '2026_11st_full_geo_base'!$B$7:$B$736,"<>Utah"))*D20 -> 0.007092272913 | AG20: =(-AVERAGEIFS('2026_11st_full_geo_newSCR'!U$7:U$736,'2026_11st_full_geo_base'!$G$7:$G$736,">=71",'2026_11st_full_geo_base'!$B$7:$B$736,"<>California",'2026_11st_full_geo_base'!$B$7:$B$736,"<>Texas",'2026_11st_full_geo_base'!$B$7:$B$736,"<>New Mexico", '2026_11st_full_geo_base'!$B$7:$B$736,"<>Arizona", '2026_11st_full_geo_base'!$B$7:$B$736,"<>Colorado", '2026_11st_full_geo_base'!$B$7:$B$736,"<>Utah")+AVERAGEIFS('2026_11st_full_geo_base'!U$7:U$736,'2026_11st_full_geo_base'!$G$7:$G$736,">=71", '2026_11st_full_geo_base'!$B$7:$B$736,"<>California",'2026_11st_full_geo_base'!$B$7:$B$736,"<>Texas",'2026_11st_full_geo_base'!$B$7:$B$736,"<>New Mexico", '2026_11st_full_geo_base'!$B$7:$B$736,"<>Arizona", '2026_11st_full_geo_base'!$B$7:$B$736,"<>Colorado", '2026_11st_full_geo_base'!$B$7:$B$736,"<>Utah"))*E20 -> 0.04417100535 | AH20: =(-AVERAGEIFS('2026_11st_full_geo_newSCR'!X$7:X$736,'2026_11st_full_geo_base'!$G$7:$G$736,">=71",'2026_11st_full_geo_base'!$B$7:$B$736,"<>California",'2026_11st_full_geo_base'!$B$7:$B$736,"<>Texas",'2026_11st_full_geo_base'!$B$7:$B$736,"<>New Mexico", '2026_11st_full_geo_base'!$B$7:$B$736,"<>Arizona", '2026_11st_full_geo_base'!$B$7:$B$736,"<>Colorado", '2026_11st_full_geo_base'!$B$7:$B$736,"<>Utah")+AVERAGEIFS('2026_11st_full_geo_base'!X$7:X$736,'2026_11st_full_geo_base'!$G$7:$G$736,">=71", '2026_11st_full_geo_base'!$B$7:$B$736,"<>California",'2026_11st_full_geo_base'!$B$7:$B$736,"<>Texas",'2026_11st_full_geo_base'!$B$7:$B$736,"<>New Mexico", '2026_11st_full_geo_base'!$B$7:$B$736,"<>Arizona", '2026_11st_full_geo_base'!$B$7:$B$736,"<>Colorado", '2026_11st_full_geo_base'!$B$7:$B$736,"<>Utah"))*F20 -> 0 | AI20: =(-AVERAGEIFS('2026_11st_full_geo_newSCR'!Y$7:Y$736,'2026_11st_full_geo_base'!$G$7:$G$736,">=71",'2026_11st_full_geo_base'!$B$7:$B$736,"<>California",'2026_11st_full_geo_base'!$B$7:$B$736,"<>Texas",'2026_11st_full_geo_base'!$B$7:$B$736,"<>New Mexico", '2026_11st_full_geo_base'!$B$7:$B$736,"<>Arizona", '2026_11st_full_geo_base'!$B$7:$B$736,"<>Colorado", '2026_11st_full_geo_base'!$B$7:$B$736,"<>Utah")+AVERAGEIFS('2026_11st_full_geo_base'!Y$7:Y$736,'2026_11st_full_geo_base'!$G$7:$G$736,">=71", '2026_11st_full_geo_base'!$B$7:$B$736,"<>California",'2026_11st_full_geo_base'!$B$7:$B$736,"<>Texas",'2026_11st_full_geo_base'!$B$7:$B$736,"<>New Mexico", '2026_11st_full_geo_base'!$B$7:$B$736,"<>Arizona", '2026_11st_full_geo_base'!$B$7:$B$736,"<>Colorado", '2026_11st_full_geo_base'!$B$7:$B$736,"<>Utah"))*G20 -> 0 | AJ20: =(-AVERAGEIFS('2026_11st_full_geo_newSCR'!AA$7:AA$736,'2026_11st_full_geo_base'!$G$7:$G$736,">=71",'2026_11st_full_geo_base'!$B$7:$B$736,"<>California",'2026_11st_full_geo_base'!$B$7:$B$736,"<>Texas",'2026_11st_full_geo_base'!$B$7:$B$736,"<>New Mexico", '2026_11st_full_geo_base'!$B$7:$B$736,"<>Arizona", '2026_11st_full_geo_base'!$B$7:$B$736,"<>Colorado", '2026_11st_full_geo_base'!$B$7:$B$736,"<>Utah")+AVERAGEIFS('2026_11st_full_geo_base'!AA$7:AA$736,'2026_11st_full_geo_base'!$G$7:$G$736,">=71", '2026_11st_full_geo_base'!$B$7:$B$736,"<>California",'2026_11st_full_geo_base'!$B$7:$B$736,"<>Texas",'2026_11st_full_geo_base'!$B$7:$B$736,"<>New Mexico", '2026_11st_full_geo_base'!$B$7:$B$736,"<>Arizona", '2026_11st_full_geo_base'!$B$7:$B$736,"<>Colorado", '2026_11st_full_geo_base'!$B$7:$B$736,"<>Utah"))*H20 -> 0.0008755249756 | AK20: =(-AVERAGEIFS('2026_11st_full_geo_newSCR'!AC$7:AC$736,'2026_11st_full_geo_base'!$G$7:$G$736,">=71",'2026_11st_full_geo_base'!$B$7:$B$736,"<>California",'2026_11st_full_geo_base'!$B$7:$B$736,"<>Texas",'2026_11st_full_geo_base'!$B$7:$B$736,"<>New Mexico", '2026_11st_full_geo_base'!$B$7:$B$736,"<>Arizona", '2026_11st_full_geo_base'!$B$7:$B$736,"<>Colorado", '2026_11st_full_geo_base'!$B$7:$B$736,"<>Utah")+AVERAGEIFS('2026_11st_full_geo_base'!AC$7:AC$736,'2026_11st_full_geo_base'!$G$7:$G$736,">=71", '2026_11st_full_geo_base'!$B$7:$B$736,"<>California",'2026_11st_full_geo_base'!$B$7:$B$736,"<>Texas",'2026_11st_full_geo_base'!$B$7:$B$736,"<>New Mexico", '2026_11st_full_geo_base'!$B$7:$B$736,"<>Arizona", '2026_11st_full_geo_base'!$B$7:$B$736,"<>Colorado", '2026_11st_full_geo_base'!$B$7:$B$736,"<>Utah"))*I20 -> 0.01750391556 | AL20: =(-AVERAGEIFS('2026_11st_full_geo_newSCR'!AE$7:AE$736,'2026_11st_full_geo_base'!$G$7:$G$736,">=71",'2026_11st_full_geo_base'!$B$7:$B$736,"<>California",'2026_11st_full_geo_base'!$B$7:$B$736,"<>Texas",'2026_11st_full_geo_base'!$B$7:$B$736,"<>New Mexico", '2026_11st_full_geo_base'!$B$7:$B$736,"<>Arizona", '2026_11st_full_geo_base'!$B$7:$B$736,"<>Colorado", '2026_11st_full_geo_base'!$B$7:$B$736,"<>Utah")+AVERAGEIFS('2026_11st_full_geo_base'!AE$7:AE$736,'2026_11st_full_geo_base'!$G$7:$G$736,">=71", '2026_11st_full_geo_base'!$B$7:$B$736,"<>California",'2026_11st_full_geo_base'!$B$7:$B$736,"<>Texas",'2026_11st_full_geo_base'!$B$7:$B$736,"<>New Mexico", '2026_11st_full_geo_base'!$B$7:$B$736,"<>Arizona", '2026_11st_full_geo_base'!$B$7:$B$736,"<>Colorado", '2026_11st_full_geo_base'!$B$7:$B$736,"<>Utah"))*J20 -> 0 | AM20: =(-AVERAGEIFS('2026_11st_full_geo_newSCR'!AF$7:AF$736,'2026_11st_full_geo_base'!$G$7:$G$736,">=71",'2026_11st_full_geo_base'!$B$7:$B$736,"<>California",'2026_11st_full_geo_base'!$B$7:$B$736,"<>Texas",'2026_11st_full_geo_base'!$B$7:$B$736,"<>New Mexico", '2026_11st_full_geo_base'!$B$7:$B$736,"<>Arizona", '2026_11st_full_geo_base'!$B$7:$B$736,"<>Colorado", '2026_11st_full_geo_base'!$B$7:$B$736,"<>Utah")+AVERAGEIFS('2026_11st_full_geo_base'!AF$7:AF$736,'2026_11st_full_geo_base'!$G$7:$G$736,">=71", '2026_11st_full_geo_base'!$B$7:$B$736,"<>California",'2026_11st_full_geo_base'!$B$7:$B$736,"<>Texas",'2026_11st_full_geo_base'!$B$7:$B$736,"<>New Mexico", '2026_11st_full_geo_base'!$B$7:$B$736,"<>Arizona", '2026_11st_full_geo_base'!$B$7:$B$736,"<>Colorado", '2026_11st_full_geo_base'!$B$7:$B$736,"<>Utah"))*K20 -> 0 | AN20: =(-AVERAGEIFS('2026_11st_full_geo_newSCR'!AI$7:AI$736,'2026_11st_full_geo_base'!$G$7:$G$736,">=71",'2026_11st_full_geo_base'!$B$7:$B$736,"<>California",'2026_11st_full_geo_base'!$B$7:$B$736,"<>Texas",'2026_11st_full_geo_base'!$B$7:$B$736,"<>New Mexico", '2026_11st_full_geo_base'!$B$7:$B$736,"<>Arizona", '2026_11st_full_geo_base'!$B$7:$B$736,"<>Colorado", '2026_11st_full_geo_base'!$B$7:$B$736,"<>Utah")+AVERAGEIFS('2026_11st_full_geo_base'!AI$7:AI$736,'2026_11st_full_geo_base'!$G$7:$G$736,">=71", '2026_11st_full_geo_base'!$B$7:$B$736,"<>California",'2026_11st_full_geo_base'!$B$7:$B$736,"<>Texas",'2026_11st_full_geo_base'!$B$7:$B$736,"<>New Mexico", '2026_11st_full_geo_base'!$B$7:$B$736,"<>Arizona", '2026_11st_full_geo_base'!$B$7:$B$736,"<>Colorado", '2026_11st_full_geo_base'!$B$7:$B$736,"<>Utah"))*L20 -> 0 | AO20: =(-AVERAGEIFS('2026_11st_full_geo_newSCR'!AK$7:AK$736,'2026_11st_full_geo_base'!$G$7:$G$736,">=71",'2026_11st_full_geo_base'!$B$7:$B$736,"<>California",'2026_11st_full_geo_base'!$B$7:$B$736,"<>Texas",'2026_11st_full_geo_base'!$B$7:$B$736,"<>New Mexico", '2026_11st_full_geo_base'!$B$7:$B$736,"<>Arizona", '2026_11st_full_geo_base'!$B$7:$B$736,"<>Colorado", '2026_11st_full_geo_base'!$B$7:$B$736,"<>Utah")+AVERAGEIFS('2026_11st_full_geo_base'!AK$7:AK$736,'2026_11st_full_geo_base'!$G$7:$G$736,">=71", '2026_11st_full_geo_base'!$B$7:$B$736,"<>California",'2026_11st_full_geo_base'!$B$7:$B$736,"<>Texas",'2026_11st_full_geo_base'!$B$7:$B$736,"<>New Mexico", '2026_11st_full_geo_base'!$B$7:$B$736,"<>Arizona", '2026_11st_full_geo_base'!$B$7:$B$736,"<>Colorado", '2026_11st_full_geo_base'!$B$7:$B$736,"<>Utah"))*M20 -> -0.00254574484 | AP20: =(-AVERAGEIFS('2026_11st_full_geo_newSCR'!AM$7:AM$736,'2026_11st_full_geo_base'!$G$7:$G$736,">=71",'2026_11st_full_geo_base'!$B$7:$B$736,"<>California",'2026_11st_full_geo_base'!$B$7:$B$736,"<>Texas",'2026_11st_full_geo_base'!$B$7:$B$736,"<>New Mexico", '2026_11st_full_geo_base'!$B$7:$B$736,"<>Arizona", '2026_11st_full_geo_base'!$B$7:$B$736,"<>Colorado", '2026_11st_full_geo_base'!$B$7:$B$736,"<>Utah")+AVERAGEIFS('2026_11st_full_geo_base'!AM$7:AM$736,'2026_11st_full_geo_base'!$G$7:$G$736,">=71", '2026_11st_full_geo_base'!$B$7:$B$736,"<>California",'2026_11st_full_geo_base'!$B$7:$B$736,"<>Texas",'2026_11st_full_geo_base'!$B$7:$B$736,"<>New Mexico", '2026_11st_full_geo_base'!$B$7:$B$736,"<>Arizona", '2026_11st_full_geo_base'!$B$7:$B$736,"<>Colorado", '2026_11st_full_geo_base'!$B$7:$B$736,"<>Utah"))*N20 -> 0.01378420995 | AQ20: =(-AVERAGEIFS('2026_11st_full_geo_newSCR'!AP$7:AP$736,'2026_11st_full_geo_base'!$G$7:$G$736,">=71",'2026_11st_full_geo_base'!$B$7:$B$736,"<>California",'2026_11st_full_geo_base'!$B$7:$B$736,"<>Texas",'2026_11st_full_geo_base'!$B$7:$B$736,"<>New Mexico", '2026_11st_full_geo_base'!$B$7:$B$736,"<>Arizona", '2026_11st_full_geo_base'!$B$7:$B$736,"<>Colorado", '2026_11st_full_geo_base'!$B$7:$B$736,"<>Utah")+AVERAGEIFS('2026_11st_full_geo_base'!AP$7:AP$736,'2026_11st_full_geo_base'!$G$7:$G$736,">=71", '2026_11st_full_geo_base'!$B$7:$B$736,"<>California",'2026_11st_full_geo_base'!$B$7:$B$736,"<>Texas",'2026_11st_full_geo_base'!$B$7:$B$736,"<>New Mexico", '2026_11st_full_geo_base'!$B$7:$B$736,"<>Arizona", '2026_11st_full_geo_base'!$B$7:$B$736,"<>Colorado", '2026_11st_full_geo_base'!$B$7:$B$736,"<>Utah"))*O20 -> 0.01830094404 | AR20: =(-AVERAGEIFS('2026_11st_full_geo_newSCR'!AQ$7:AQ$736,'2026_11st_full_geo_base'!$G$7:$G$736,">=71",'2026_11st_full_geo_base'!$B$7:$B$736,"<>California",'2026_11st_full_geo_base'!$B$7:$B$736,"<>Texas",'2026_11st_full_geo_base'!$B$7:$B$736,"<>New Mexico", '2026_11st_full_geo_base'!$B$7:$B$736,"<>Arizona", '2026_11st_full_geo_base'!$B$7:$B$736,"<>Colorado", '2026_11st_full_geo_base'!$B$7:$B$736,"<>Utah")+AVERAGEIFS('2026_11st_full_geo_base'!AQ$7:AQ$736,'2026_11st_full_geo_base'!$G$7:$G$736,">=71", '2026_11st_full_geo_base'!$B$7:$B$736,"<>California",'2026_11st_full_geo_base'!$B$7:$B$736,"<>Texas",'2026_11st_full_geo_base'!$B$7:$B$736,"<>New Mexico", '2026_11st_full_geo_base'!$B$7:$B$736,"<>Arizona", '2026_11st_full_geo_base'!$B$7:$B$736,"<>Colorado", '2026_11st_full_geo_base'!$B$7:$B$736,"<>Utah"))*P20 -> 0 | AS20: =(-AVERAGEIFS('2026_11st_full_geo_newSCR'!AS$7:AS$736,'2026_11st_full_geo_base'!$G$7:$G$736,">=71",'2026_11st_full_geo_base'!$B$7:$B$736,"<>California",'2026_11st_full_geo_base'!$B$7:$B$736,"<>Texas",'2026_11st_full_geo_base'!$B$7:$B$736,"<>New Mexico", '2026_11st_full_geo_base'!$B$7:$B$736,"<>Arizona", '2026_11st_full_geo_base'!$B$7:$B$736,"<>Colorado", '2026_11st_full_geo_base'!$B$7:$B$736,"<>Utah")+AVERAGEIFS('2026_11st_full_geo_base'!AS$7:AS$736,'2026_11st_full_geo_base'!$G$7:$G$736,">=71", '2026_11st_full_geo_base'!$B$7:$B$736,"<>California",'2026_11st_full_geo_base'!$B$7:$B$736,"<>Texas",'2026_11st_full_geo_base'!$B$7:$B$736,"<>New Mexico", '2026_11st_full_geo_base'!$B$7:$B$736,"<>Arizona", '2026_11st_full_geo_base'!$B$7:$B$736,"<>Colorado", '2026_11st_full_geo_base'!$B$7:$B$736,"<>Utah"))*Q20 -> 0.03500379442 | AT20: =(-AVERAGEIFS('2026_11st_full_geo_newSCR'!AX$7:AX$736,'2026_11st_full_geo_base'!$G$7:$G$736,">=71",'2026_11st_full_geo_base'!$B$7:$B$736,"<>California",'2026_11st_full_geo_base'!$B$7:$B$736,"<>Texas",'2026_11st_full_geo_base'!$B$7:$B$736,"<>New Mexico", '2026_11st_full_geo_base'!$B$7:$B$736,"<>Arizona", '2026_11st_full_geo_base'!$B$7:$B$736,"<>Colorado", '2026_11st_full_geo_base'!$B$7:$B$736,"<>Utah")+AVERAGEIFS('2026_11st_full_geo_base'!AX$7:AX$736,'2026_11st_full_geo_base'!$G$7:$G$736,">=71", '2026_11st_full_geo_base'!$B$7:$B$736,"<>California",'2026_11st_full_geo_base'!$B$7:$B$736,"<>Texas",'2026_11st_full_geo_base'!$B$7:$B$736,"<>New Mexico", '2026_11st_full_geo_base'!$B$7:$B$736,"<>Arizona", '2026_11st_full_geo_base'!$B$7:$B$736,"<>Colorado", '2026_11st_full_geo_base'!$B$7:$B$736,"<>Utah"))*R20 -> 0 | AU20: =(-AVERAGEIFS('2026_11st_full_geo_newSCR'!AY$7:AY$736,'2026_11st_full_geo_base'!$G$7:$G$736,">=71",'2026_11st_full_geo_base'!$B$7:$B$736,"<>California",'2026_11st_full_geo_base'!$B$7:$B$736,"<>Texas",'2026_11st_full_geo_base'!$B$7:$B$736,"<>New Mexico", '2026_11st_full_geo_base'!$B$7:$B$736,"<>Arizona", '2026_11st_full_geo_base'!$B$7:$B$736,"<>Colorado", '2026_11st_full_geo_base'!$B$7:$B$736,"<>Utah")+AVERAGEIFS('2026_11st_full_geo_base'!AY$7:AY$736,'2026_11st_full_geo_base'!$G$7:$G$736,">=71", '2026_11st_full_geo_base'!$B$7:$B$736,"<>California",'2026_11st_full_geo_base'!$B$7:$B$736,"<>Texas",'2026_11st_full_geo_base'!$B$7:$B$736,"<>New Mexico", '2026_11st_full_geo_base'!$B$7:$B$736,"<>Arizona", '2026_11st_full_geo_base'!$B$7:$B$736,"<>Colorado", '2026_11st_full_geo_base'!$B$7:$B$736,"<>Utah"))*S20 -> 0 | AV20: =(-AVERAGEIFS('2026_11st_full_geo_newSCR'!BA$7:BA$736,'2026_11st_full_geo_base'!$G$7:$G$736,">=71",'2026_11st_full_geo_base'!$B$7:$B$736,"<>California",'2026_11st_full_geo_base'!$B$7:$B$736,"<>Texas",'2026_11st_full_geo_base'!$B$7:$B$736,"<>New Mexico", '2026_11st_full_geo_base'!$B$7:$B$736,"<>Arizona", '2026_11st_full_geo_base'!$B$7:$B$736,"<>Colorado", '2026_11st_full_geo_base'!$B$7:$B$736,"<>Utah")+AVERAGEIFS('2026_11st_full_geo_base'!BA$7:BA$736,'2026_11st_full_geo_base'!$G$7:$G$736,">=71", '2026_11st_full_geo_base'!$B$7:$B$736,"<>California",'2026_11st_full_geo_base'!$B$7:$B$736,"<>Texas",'2026_11st_full_geo_base'!$B$7:$B$736,"<>New Mexico", '2026_11st_full_geo_base'!$B$7:$B$736,"<>Arizona", '2026_11st_full_geo_base'!$B$7:$B$736,"<>Colorado", '2026_11st_full_geo_base'!$B$7:$B$736,"<>Utah"))*T20 -> 0.005755911133 | AW20: =(-AVERAGEIFS('2026_11st_full_geo_newSCR'!BC$7:BC$736,'2026_11st_full_geo_base'!$G$7:$G$736,">=71",'2026_11st_full_geo_base'!$B$7:$B$736,"<>California",'2026_11st_full_geo_base'!$B$7:$B$736,"<>Texas",'2026_11st_full_geo_base'!$B$7:$B$736,"<>New Mexico", '2026_11st_full_geo_base'!$B$7:$B$736,"<>Arizona", '2026_11st_full_geo_base'!$B$7:$B$736,"<>Colorado", '2026_11st_full_geo_base'!$B$7:$B$736,"<>Utah")+AVERAGEIFS('2026_11st_full_geo_base'!BC$7:BC$736,'2026_11st_full_geo_base'!$G$7:$G$736,">=71", '2026_11st_full_geo_base'!$B$7:$B$736,"<>California",'2026_11st_full_geo_base'!$B$7:$B$736,"<>Texas",'2026_11st_full_geo_base'!$B$7:$B$736,"<>New Mexico", '2026_11st_full_geo_base'!$B$7:$B$736,"<>Arizona", '2026_11st_full_geo_base'!$B$7:$B$736,"<>Colorado", '2026_11st_full_geo_base'!$B$7:$B$736,"<>Utah"))*U20 -> 0 | AX20: =(-AVERAGEIFS('2026_11st_full_geo_newSCR'!BF$7:BF$736,'2026_11st_full_geo_base'!$G$7:$G$736,">=71",'2026_11st_full_geo_base'!$B$7:$B$736,"<>California",'2026_11st_full_geo_base'!$B$7:$B$736,"<>Texas",'2026_11st_full_geo_base'!$B$7:$B$736,"<>New Mexico", '2026_11st_full_geo_base'!$B$7:$B$736,"<>Arizona", '2026_11st_full_geo_base'!$B$7:$B$736,"<>Colorado", '2026_11st_full_geo_base'!$B$7:$B$736,"<>Utah")+AVERAGEIFS('2026_11st_full_geo_base'!BF$7:BF$736,'2026_11st_full_geo_base'!$G$7:$G$736,">=71", '2026_11st_full_geo_base'!$B$7:$B$736,"<>California",'2026_11st_full_geo_base'!$B$7:$B$736,"<>Texas",'2026_11st_full_geo_base'!$B$7:$B$736,"<>New Mexico", '2026_11st_full_geo_base'!$B$7:$B$736,"<>Arizona", '2026_11st_full_geo_base'!$B$7:$B$736,"<>Colorado", '2026_11st_full_geo_base'!$B$7:$B$736,"<>Utah"))*S20 -> 0
B21: 1 | C21: 1 | D21: 1 | E21: 1 | F21: 1 | G21: 1 | H21: 1 | I21: 1 | J21: 1 | K21: 1 | L21: 1 | M21: 1 | N21: 1 | O21: 1 | P21: 1 | Q21: 1 | R21: 1 | S21: 1 | T21: 1 | U21: 1 | W21: 2026_step3_SNCRoptwCC | X21: =(-AVERAGEIFS('2026_11st_full_geo_SNCRoptwCC'!BV$7:BV$736,'2026_11st_full_geo_base'!$G$7:$G$736,">=71",'2026_11st_full_geo_base'!$B$7:$B$736,"<>California",'2026_11st_full_geo_base'!$B$7:$B$736,"<>Texas",'2026_11st_full_geo_base'!$B$7:$B$736,"<>New Mexico", '2026_11st_full_geo_base'!$B$7:$B$736,"<>Arizona", '2026_11st_full_geo_base'!$B$7:$B$736,"<>Colorado", '2026_11st_full_geo_base'!$B$7:$B$736,"<>Utah")+AVERAGEIFS('2026_11st_full_geo_base'!BV$7:BV$736,'2026_11st_full_geo_base'!$G$7:$G$736,">=71", '2026_11st_full_geo_base'!$B$7:$B$736,"<>California",'2026_11st_full_geo_base'!$B$7:$B$736,"<>Texas",'2026_11st_full_geo_base'!$B$7:$B$736,"<>New Mexico", '2026_11st_full_geo_base'!$B$7:$B$736,"<>Arizona", '2026_11st_full_geo_base'!$B$7:$B$736,"<>Colorado", '2026_11st_full_geo_base'!$B$7:$B$736,"<>Utah"))*1 -> -0.006963628318 | Y21: =(-AVERAGEIFS('2026_11st_full_geo_SNCRoptwCC'!J$7:J$736,'2026_11st_full_geo_base'!$G$7:$G$736,">=71",'2026_11st_full_geo_base'!$B$7:$B$736,"<>California",'2026_11st_full_geo_base'!$B$7:$B$736,"<>Texas",'2026_11st_full_geo_base'!$B$7:$B$736,"<>New Mexico", '2026_11st_full_geo_base'!$B$7:$B$736,"<>Arizona", '2026_11st_full_geo_base'!$B$7:$B$736,"<>Colorado", '2026_11st_full_geo_base'!$B$7:$B$736,"<>Utah")+AVERAGEIFS('2026_11st_full_geo_base'!J$7:J$736,'2026_11st_full_geo_base'!$G$7:$G$736,">=71", '2026_11st_full_geo_base'!$B$7:$B$736,"<>California",'2026_11st_full_geo_base'!$B$7:$B$736,"<>Texas",'2026_11st_full_geo_base'!$B$7:$B$736,"<>New Mexico", '2026_11st_full_geo_base'!$B$7:$B$736,"<>Arizona", '2026_11st_full_geo_base'!$B$7:$B$736,"<>Colorado", '2026_11st_full_geo_base'!$B$7:$B$736,"<>Utah"))*1 -> 0 | Z21: =(-AVERAGEIFS('2026_11st_full_geo_SNCRoptwCC'!M$7:M$736,'2026_11st_full_geo_base'!$G$7:$G$736,">=71",'2026_11st_full_geo_base'!$B$7:$B$736,"<>California",'2026_11st_full_geo_base'!$B$7:$B$736,"<>Texas",'2026_11st_full_geo_base'!$B$7:$B$736,"<>New Mexico", '2026_11st_full_geo_base'!$B$7:$B$736,"<>Arizona", '2026_11st_full_geo_base'!$B$7:$B$736,"<>Colorado", '2026_11st_full_geo_base'!$B$7:$B$736,"<>Utah")+AVERAGEIFS('2026_11st_full_geo_base'!M$7:M$736,'2026_11st_full_geo_base'!$G$7:$G$736,">=71", '2026_11st_full_geo_base'!$B$7:$B$736,"<>California",'2026_11st_full_geo_base'!$B$7:$B$736,"<>Texas",'2026_11st_full_geo_base'!$B$7:$B$736,"<>New Mexico", '2026_11st_full_geo_base'!$B$7:$B$736,"<>Arizona", '2026_11st_full_geo_base'!$B$7:$B$736,"<>Colorado", '2026_11st_full_geo_base'!$B$7:$B$736,"<>Utah"))*1 -> 0 | AA21: =(-AVERAGEIFS('2026_11st_full_geo_SNCRoptwCC'!N$7:N$736,'2026_11st_full_geo_base'!$G$7:$G$736,">=71",'2026_11st_full_geo_base'!$B$7:$B$736,"<>California",'2026_11st_full_geo_base'!$B$7:$B$736,"<>Texas",'2026_11st_full_geo_base'!$B$7:$B$736,"<>New Mexico", '2026_11st_full_geo_base'!$B$7:$B$736,"<>Arizona", '2026_11st_full_geo_base'!$B$7:$B$736,"<>Colorado", '2026_11st_full_geo_base'!$B$7:$B$736,"<>Utah")+AVERAGEIFS('2026_11st_full_geo_base'!N$7:N$736,'2026_11st_full_geo_base'!$G$7:$G$736,">=71", '2026_11st_full_geo_base'!$B$7:$B$736,"<>California",'2026_11st_full_geo_base'!$B$7:$B$736,"<>Texas",'2026_11st_full_geo_base'!$B$7:$B$736,"<>New Mexico", '2026_11st_full_geo_base'!$B$7:$B$736,"<>Arizona", '2026_11st_full_geo_base'!$B$7:$B$736,"<>Colorado", '2026_11st_full_geo_base'!$B$7:$B$736,"<>Utah"))*1 -> 0 | AB21: =(-AVERAGEIFS('2026_11st_full_geo_SNCRoptwCC'!BD$7:BD$736,'2026_11st_full_geo_base'!$G$7:$G$736,">=71",'2026_11st_full_geo_base'!$B$7:$B$736,"<>California",'2026_11st_full_geo_base'!$B$7:$B$736,"<>Texas",'2026_11st_full_geo_base'!$B$7:$B$736,"<>New Mexico", '2026_11st_full_geo_base'!$B$7:$B$736,"<>Arizona", '2026_11st_full_geo_base'!$B$7:$B$736,"<>Colorado", '2026_11st_full_geo_base'!$B$7:$B$736,"<>Utah")+AVERAGEIFS('2026_11st_full_geo_base'!BD$7:BD$736,'2026_11st_full_geo_base'!$G$7:$G$736,">=71", '2026_11st_full_geo_base'!$B$7:$B$736,"<>California",'2026_11st_full_geo_base'!$B$7:$B$736,"<>Texas",'2026_11st_full_geo_base'!$B$7:$B$736,"<>New Mexico", '2026_11st_full_geo_base'!$B$7:$B$736,"<>Arizona", '2026_11st_full_geo_base'!$B$7:$B$736,"<>Colorado", '2026_11st_full_geo_base'!$B$7:$B$736,"<>Utah"))*1 -> 0 | AC21: =(-AVERAGEIFS('2026_11st_full_geo_SNCRoptwCC'!AL$7:AL$736,'2026_11st_full_geo_base'!$G$7:$G$736,">=71",'2026_11st_full_geo_base'!$B$7:$B$736,"<>California",'2026_11st_full_geo_base'!$B$7:$B$736,"<>Texas",'2026_11st_full_geo_base'!$B$7:$B$736,"<>New Mexico", '2026_11st_full_geo_base'!$B$7:$B$736,"<>Arizona", '2026_11st_full_geo_base'!$B$7:$B$736,"<>Colorado", '2026_11st_full_geo_base'!$B$7:$B$736,"<>Utah")+AVERAGEIFS('2026_11st_full_geo_base'!AL$7:AL$736,'2026_11st_full_geo_base'!$G$7:$G$736,">=71", '2026_11st_full_geo_base'!$B$7:$B$736,"<>California",'2026_11st_full_geo_base'!$B$7:$B$736,"<>Texas",'2026_11st_full_geo_base'!$B$7:$B$736,"<>New Mexico", '2026_11st_full_geo_base'!$B$7:$B$736,"<>Arizona", '2026_11st_full_geo_base'!$B$7:$B$736,"<>Colorado", '2026_11st_full_geo_base'!$B$7:$B$736,"<>Utah"))*1 -> 0 | AD21: =(-AVERAGEIFS('2026_11st_full_geo_SNCRoptwCC'!K$7:K$736,'2026_11st_full_geo_base'!$G$7:$G$736,">=71",'2026_11st_full_geo_base'!$B$7:$B$736,"<>California",'2026_11st_full_geo_base'!$B$7:$B$736,"<>Texas",'2026_11st_full_geo_base'!$B$7:$B$736,"<>New Mexico", '2026_11st_full_geo_base'!$B$7:$B$736,"<>Arizona", '2026_11st_full_geo_base'!$B$7:$B$736,"<>Colorado", '2026_11st_full_geo_base'!$B$7:$B$736,"<>Utah")+AVERAGEIFS('2026_11st_full_geo_base'!K$7:K$736,'2026_11st_full_geo_base'!$G$7:$G$736,">=71", '2026_11st_full_geo_base'!$B$7:$B$736,"<>California",'2026_11st_full_geo_base'!$B$7:$B$736,"<>Texas",'2026_11st_full_geo_base'!$B$7:$B$736,"<>New Mexico", '2026_11st_full_geo_base'!$B$7:$B$736,"<>Arizona", '2026_11st_full_geo_base'!$B$7:$B$736,"<>Colorado", '2026_11st_full_geo_base'!$B$7:$B$736,"<>Utah"))*B21 -> 0 | AE21: =(-AVERAGEIFS('2026_11st_full_geo_SNCRoptwCC'!L$7:L$736,'2026_11st_full_geo_base'!$G$7:$G$736,">=71",'2026_11st_full_geo_base'!$B$7:$B$736,"<>California",'2026_11st_full_geo_base'!$B$7:$B$736,"<>Texas",'2026_11st_full_geo_base'!$B$7:$B$736,"<>New Mexico", '2026_11st_full_geo_base'!$B$7:$B$736,"<>Arizona", '2026_11st_full_geo_base'!$B$7:$B$736,"<>Colorado", '2026_11st_full_geo_base'!$B$7:$B$736,"<>Utah")+AVERAGEIFS('2026_11st_full_geo_base'!L$7:L$736,'2026_11st_full_geo_base'!$G$7:$G$736,">=71", '2026_11st_full_geo_base'!$B$7:$B$736,"<>California",'2026_11st_full_geo_base'!$B$7:$B$736,"<>Texas",'2026_11st_full_geo_base'!$B$7:$B$736,"<>New Mexico", '2026_11st_full_geo_base'!$B$7:$B$736,"<>Arizona", '2026_11st_full_geo_base'!$B$7:$B$736,"<>Colorado", '2026_11st_full_geo_base'!$B$7:$B$736,"<>Utah"))*C21 -> 8.575705389e-05 | AF21: =(-AVERAGEIFS('2026_11st_full_geo_SNCRoptwCC'!T$7:T$736,'2026_11st_full_geo_base'!$G$7:$G$736,">=71",'2026_11st_full_geo_base'!$B$7:$B$736,"<>California",'2026_11st_full_geo_base'!$B$7:$B$736,"<>Texas",'2026_11st_full_geo_base'!$B$7:$B$736,"<>New Mexico", '2026_11st_full_geo_base'!$B$7:$B$736,"<>Arizona", '2026_11st_full_geo_base'!$B$7:$B$736,"<>Colorado", '2026_11st_full_geo_base'!$B$7:$B$736,"<>Utah")+AVERAGEIFS('2026_11st_full_geo_base'!T$7:T$736,'2026_11st_full_geo_base'!$G$7:$G$736,">=71", '2026_11st_full_geo_base'!$B$7:$B$736,"<>California",'2026_11st_full_geo_base'!$B$7:$B$736,"<>Texas",'2026_11st_full_geo_base'!$B$7:$B$736,"<>New Mexico", '2026_11st_full_geo_base'!$B$7:$B$736,"<>Arizona", '2026_11st_full_geo_base'!$B$7:$B$736,"<>Colorado", '2026_11st_full_geo_base'!$B$7:$B$736,"<>Utah"))*D21 -> 0.001271973468 | AG21: =(-AVERAGEIFS('2026_11st_full_geo_SNCRoptwCC'!U$7:U$736,'2026_11st_full_geo_base'!$G$7:$G$736,">=71",'2026_11st_full_geo_base'!$B$7:$B$736,"<>California",'2026_11st_full_geo_base'!$B$7:$B$736,"<>Texas",'2026_11st_full_geo_base'!$B$7:$B$736,"<>New Mexico", '2026_11st_full_geo_base'!$B$7:$B$736,"<>Arizona", '2026_11st_full_geo_base'!$B$7:$B$736,"<>Colorado", '2026_11st_full_geo_base'!$B$7:$B$736,"<>Utah")+AVERAGEIFS('2026_11st_full_geo_base'!U$7:U$736,'2026_11st_full_geo_base'!$G$7:$G$736,">=71", '2026_11st_full_geo_base'!$B$7:$B$736,"<>California",'2026_11st_full_geo_base'!$B$7:$B$736,"<>Texas",'2026_11st_full_geo_base'!$B$7:$B$736,"<>New Mexico", '2026_11st_full_geo_base'!$B$7:$B$736,"<>Arizona", '2026_11st_full_geo_base'!$B$7:$B$736,"<>Colorado", '2026_11st_full_geo_base'!$B$7:$B$736,"<>Utah"))*E21 -> 0.02551515042 | AH21: =(-AVERAGEIFS('2026_11st_full_geo_SNCRoptwCC'!X$7:X$736,'2026_11st_full_geo_base'!$G$7:$G$736,">=71",'2026_11st_full_geo_base'!$B$7:$B$736,"<>California",'2026_11st_full_geo_base'!$B$7:$B$736,"<>Texas",'2026_11st_full_geo_base'!$B$7:$B$736,"<>New Mexico", '2026_11st_full_geo_base'!$B$7:$B$736,"<>Arizona", '2026_11st_full_geo_base'!$B$7:$B$736,"<>Colorado", '2026_11st_full_geo_base'!$B$7:$B$736,"<>Utah")+AVERAGEIFS('2026_11st_full_geo_base'!X$7:X$736,'2026_11st_full_geo_base'!$G$7:$G$736,">=71", '2026_11st_full_geo_base'!$B$7:$B$736,"<>California",'2026_11st_full_geo_base'!$B$7:$B$736,"<>Texas",'2026_11st_full_geo_base'!$B$7:$B$736,"<>New Mexico", '2026_11st_full_geo_base'!$B$7:$B$736,"<>Arizona", '2026_11st_full_geo_base'!$B$7:$B$736,"<>Colorado", '2026_11st_full_geo_base'!$B$7:$B$736,"<>Utah"))*F21 -> 0 | AI21: =(-AVERAGEIFS('2026_11st_full_geo_SNCRoptwCC'!Y$7:Y$736,'2026_11st_full_geo_base'!$G$7:$G$736,">=71",'2026_11st_full_geo_base'!$B$7:$B$736,"<>California",'2026_11st_full_geo_base'!$B$7:$B$736,"<>Texas",'2026_11st_full_geo_base'!$B$7:$B$736,"<>New Mexico", '2026_11st_full_geo_base'!$B$7:$B$736,"<>Arizona", '2026_11st_full_geo_base'!$B$7:$B$736,"<>Colorado", '2026_11st_full_geo_base'!$B$7:$B$736,"<>Utah")+AVERAGEIFS('2026_11st_full_geo_base'!Y$7:Y$736,'2026_11st_full_geo_base'!$G$7:$G$736,">=71", '2026_11st_full_geo_base'!$B$7:$B$736,"<>California",'2026_11st_full_geo_base'!$B$7:$B$736,"<>Texas",'2026_11st_full_geo_base'!$B$7:$B$736,"<>New Mexico", '2026_11st_full_geo_base'!$B$7:$B$736,"<>Arizona", '2026_11st_full_geo_base'!$B$7:$B$736,"<>Colorado", '2026_11st_full_geo_base'!$B$7:$B$736,"<>Utah"))*G21 -> 0 | AJ21: =(-AVERAGEIFS('2026_11st_full_geo_SNCRoptwCC'!AA$7:AA$736,'2026_11st_full_geo_base'!$G$7:$G$736,">=71",'2026_11st_full_geo_base'!$B$7:$B$736,"<>California",'2026_11st_full_geo_base'!$B$7:$B$736,"<>Texas",'2026_11st_full_geo_base'!$B$7:$B$736,"<>New Mexico", '2026_11st_full_geo_base'!$B$7:$B$736,"<>Arizona", '2026_11st_full_geo_base'!$B$7:$B$736,"<>Colorado", '2026_11st_full_geo_base'!$B$7:$B$736,"<>Utah")+AVERAGEIFS('2026_11st_full_geo_base'!AA$7:AA$736,'2026_11st_full_geo_base'!$G$7:$G$736,">=71", '2026_11st_full_geo_base'!$B$7:$B$736,"<>California",'2026_11st_full_geo_base'!$B$7:$B$736,"<>Texas",'2026_11st_full_geo_base'!$B$7:$B$736,"<>New Mexico", '2026_11st_full_geo_base'!$B$7:$B$736,"<>Arizona", '2026_11st_full_geo_base'!$B$7:$B$736,"<>Colorado", '2026_11st_full_geo_base'!$B$7:$B$736,"<>Utah"))*H21 -> 0.0008755249756 | AK21: =(-AVERAGEIFS('2026_11st_full_geo_SNCRoptwCC'!AC$7:AC$736,'2026_11st_full_geo_base'!$G$7:$G$736,">=71",'2026_11st_full_geo_base'!$B$7:$B$736,"<>California",'2026_11st_full_geo_base'!$B$7:$B$736,"<>Texas",'2026_11st_full_geo_base'!$B$7:$B$736,"<>New Mexico", '2026_11st_full_geo_base'!$B$7:$B$736,"<>Arizona", '2026_11st_full_geo_base'!$B$7:$B$736,"<>Colorado", '2026_11st_full_geo_base'!$B$7:$B$736,"<>Utah")+AVERAGEIFS('2026_11st_full_geo_base'!AC$7:AC$736,'2026_11st_full_geo_base'!$G$7:$G$736,">=71", '2026_11st_full_geo_base'!$B$7:$B$736,"<>California",'2026_11st_full_geo_base'!$B$7:$B$736,"<>Texas",'2026_11st_full_geo_base'!$B$7:$B$736,"<>New Mexico", '2026_11st_full_geo_base'!$B$7:$B$736,"<>Arizona", '2026_11st_full_geo_base'!$B$7:$B$736,"<>Colorado", '2026_11st_full_geo_base'!$B$7:$B$736,"<>Utah"))*I21 -> 0.0001677728971 | AL21: =(-AVERAGEIFS('2026_11st_full_geo_SNCRoptwCC'!AE$7:AE$736,'2026_11st_full_geo_base'!$G$7:$G$736,">=71",'2026_11st_full_geo_base'!$B$7:$B$736,"<>California",'2026_11st_full_geo_base'!$B$7:$B$736,"<>Texas",'2026_11st_full_geo_base'!$B$7:$B$736,"<>New Mexico", '2026_11st_full_geo_base'!$B$7:$B$736,"<>Arizona", '2026_11st_full_geo_base'!$B$7:$B$736,"<>Colorado", '2026_11st_full_geo_base'!$B$7:$B$736,"<>Utah")+AVERAGEIFS('2026_11st_full_geo_base'!AE$7:AE$736,'2026_11st_full_geo_base'!$G$7:$G$736,">=71", '2026_11st_full_geo_base'!$B$7:$B$736,"<>California",'2026_11st_full_geo_base'!$B$7:$B$736,"<>Texas",'2026_11st_full_geo_base'!$B$7:$B$736,"<>New Mexico", '2026_11st_full_geo_base'!$B$7:$B$736,"<>Arizona", '2026_11st_full_geo_base'!$B$7:$B$736,"<>Colorado", '2026_11st_full_geo_base'!$B$7:$B$736,"<>Utah"))*J21 -> 0 | AM21: =(-AVERAGEIFS('2026_11st_full_geo_SNCRoptwCC'!AF$7:AF$736,'2026_11st_full_geo_base'!$G$7:$G$736,">=71",'2026_11st_full_geo_base'!$B$7:$B$736,"<>California",'2026_11st_full_geo_base'!$B$7:$B$736,"<>Texas",'2026_11st_full_geo_base'!$B$7:$B$736,"<>New Mexico", '2026_11st_full_geo_base'!$B$7:$B$736,"<>Arizona", '2026_11st_full_geo_base'!$B$7:$B$736,"<>Colorado", '2026_11st_full_geo_base'!$B$7:$B$736,"<>Utah")+AVERAGEIFS('2026_11st_full_geo_base'!AF$7:AF$736,'2026_11st_full_geo_base'!$G$7:$G$736,">=71", '2026_11st_full_geo_base'!$B$7:$B$736,"<>California",'2026_11st_full_geo_base'!$B$7:$B$736,"<>Texas",'2026_11st_full_geo_base'!$B$7:$B$736,"<>New Mexico", '2026_11st_full_geo_base'!$B$7:$B$736,"<>Arizona", '2026_11st_full_geo_base'!$B$7:$B$736,"<>Colorado", '2026_11st_full_geo_base'!$B$7:$B$736,"<>Utah"))*K21 -> 0 | AN21: =(-AVERAGEIFS('2026_11st_full_geo_SNCRoptwCC'!AI$7:AI$736,'2026_11st_full_geo_base'!$G$7:$G$736,">=71",'2026_11st_full_geo_base'!$B$7:$B$736,"<>California",'2026_11st_full_geo_base'!$B$7:$B$736,"<>Texas",'2026_11st_full_geo_base'!$B$7:$B$736,"<>New Mexico", '2026_11st_full_geo_base'!$B$7:$B$736,"<>Arizona", '2026_11st_full_geo_base'!$B$7:$B$736,"<>Colorado", '2026_11st_full_geo_base'!$B$7:$B$736,"<>Utah")+AVERAGEIFS('2026_11st_full_geo_base'!AI$7:AI$736,'2026_11st_full_geo_base'!$G$7:$G$736,">=71", '2026_11st_full_geo_base'!$B$7:$B$736,"<>California",'2026_11st_full_geo_base'!$B$7:$B$736,"<>Texas",'2026_11st_full_geo_base'!$B$7:$B$736,"<>New Mexico", '2026_11st_full_geo_base'!$B$7:$B$736,"<>Arizona", '2026_11st_full_geo_base'!$B$7:$B$736,"<>Colorado", '2026_11st_full_geo_base'!$B$7:$B$736,"<>Utah"))*L21 -> 0 | AO21: =(-AVERAGEIFS('2026_11st_full_geo_SNCRoptwCC'!AK$7:AK$736,'2026_11st_full_geo_base'!$G$7:$G$736,">=71",'2026_11st_full_geo_base'!$B$7:$B$736,"<>California",'2026_11st_full_geo_base'!$B$7:$B$736,"<>Texas",'2026_11st_full_geo_base'!$B$7:$B$736,"<>New Mexico", '2026_11st_full_geo_base'!$B$7:$B$736,"<>Arizona", '2026_11st_full_geo_base'!$B$7:$B$736,"<>Colorado", '2026_11st_full_geo_base'!$B$7:$B$736,"<>Utah")+AVERAGEIFS('2026_11st_full_geo_base'!AK$7:AK$736,'2026_11st_full_geo_base'!$G$7:$G$736,">=71", '2026_11st_full_geo_base'!$B$7:$B$736,"<>California",'2026_11st_full_geo_base'!$B$7:$B$736,"<>Texas",'2026_11st_full_geo_base'!$B$7:$B$736,"<>New Mexico", '2026_11st_full_geo_base'!$B$7:$B$736,"<>Arizona", '2026_11st_full_geo_base'!$B$7:$B$736,"<>Colorado", '2026_11st_full_geo_base'!$B$7:$B$736,"<>Utah"))*M21 -> -0.00254574484 | AP21: =(-AVERAGEIFS('2026_11st_full_geo_SNCRoptwCC'!AM$7:AM$736,'2026_11st_full_geo_base'!$G$7:$G$736,">=71",'2026_11st_full_geo_base'!$B$7:$B$736,"<>California",'2026_11st_full_geo_base'!$B$7:$B$736,"<>Texas",'2026_11st_full_geo_base'!$B$7:$B$736,"<>New Mexico", '2026_11st_full_geo_base'!$B$7:$B$736,"<>Arizona", '2026_11st_full_geo_base'!$B$7:$B$736,"<>Colorado", '2026_11st_full_geo_base'!$B$7:$B$736,"<>Utah")+AVERAGEIFS('2026_11st_full_geo_base'!AM$7:AM$736,'2026_11st_full_geo_base'!$G$7:$G$736,">=71", '2026_11st_full_geo_base'!$B$7:$B$736,"<>California",'2026_11st_full_geo_base'!$B$7:$B$736,"<>Texas",'2026_11st_full_geo_base'!$B$7:$B$736,"<>New Mexico", '2026_11st_full_geo_base'!$B$7:$B$736,"<>Arizona", '2026_11st_full_geo_base'!$B$7:$B$736,"<>Colorado", '2026_11st_full_geo_base'!$B$7:$B$736,"<>Utah"))*N21 -> 0.001503920532 | AQ21: =(-AVERAGEIFS('2026_11st_full_geo_SNCRoptwCC'!AP$7:AP$736,'2026_11st_full_geo_base'!$G$7:$G$736,">=71",'2026_11st_full_geo_base'!$B$7:$B$736,"<>California",'2026_11st_full_geo_base'!$B$7:$B$736,"<>Texas",'2026_11st_full_geo_base'!$B$7:$B$736,"<>New Mexico", '2026_11st_full_geo_base'!$B$7:$B$736,"<>Arizona", '2026_11st_full_geo_base'!$B$7:$B$736,"<>Colorado", '2026_11st_full_geo_base'!$B$7:$B$736,"<>Utah")+AVERAGEIFS('2026_11st_full_geo_base'!AP$7:AP$736,'2026_11st_full_geo_base'!$G$7:$G$736,">=71", '2026_11st_full_geo_base'!$B$7:$B$736,"<>California",'2026_11st_full_geo_base'!$B$7:$B$736,"<>Texas",'2026_11st_full_geo_base'!$B$7:$B$736,"<>New Mexico", '2026_11st_full_geo_base'!$B$7:$B$736,"<>Arizona", '2026_11st_full_geo_base'!$B$7:$B$736,"<>Colorado", '2026_11st_full_geo_base'!$B$7:$B$736,"<>Utah"))*O21 -> 0.01830094404 | AR21: =(-AVERAGEIFS('2026_11st_full_geo_SNCRoptwCC'!AQ$7:AQ$736,'2026_11st_full_geo_base'!$G$7:$G$736,">=71",'2026_11st_full_geo_base'!$B$7:$B$736,"<>California",'2026_11st_full_geo_base'!$B$7:$B$736,"<>Texas",'2026_11st_full_geo_base'!$B$7:$B$736,"<>New Mexico", '2026_11st_full_geo_base'!$B$7:$B$736,"<>Arizona", '2026_11st_full_geo_base'!$B$7:$B$736,"<>Colorado", '2026_11st_full_geo_base'!$B$7:$B$736,"<>Utah")+AVERAGEIFS('2026_11st_full_geo_base'!AQ$7:AQ$736,'2026_11st_full_geo_base'!$G$7:$G$736,">=71", '2026_11st_full_geo_base'!$B$7:$B$736,"<>California",'2026_11st_full_geo_base'!$B$7:$B$736,"<>Texas",'2026_11st_full_geo_base'!$B$7:$B$736,"<>New Mexico", '2026_11st_full_geo_base'!$B$7:$B$736,"<>Arizona", '2026_11st_full_geo_base'!$B$7:$B$736,"<>Colorado", '2026_11st_full_geo_base'!$B$7:$B$736,"<>Utah"))*P21 -> 0 | AS21: =(-AVERAGEIFS('2026_11st_full_geo_SNCRoptwCC'!AS$7:AS$736,'2026_11st_full_geo_base'!$G$7:$G$736,">=71",'2026_11st_full_geo_base'!$B$7:$B$736,"<>California",'2026_11st_full_geo_base'!$B$7:$B$736,"<>Texas",'2026_11st_full_geo_base'!$B$7:$B$736,"<>New Mexico", '2026_11st_full_geo_base'!$B$7:$B$736,"<>Arizona", '2026_11st_full_geo_base'!$B$7:$B$736,"<>Colorado", '2026_11st_full_geo_base'!$B$7:$B$736,"<>Utah")+AVERAGEIFS('2026_11st_full_geo_base'!AS$7:AS$736,'2026_11st_full_geo_base'!$G$7:$G$736,">=71", '2026_11st_full_geo_base'!$B$7:$B$736,"<>California",'2026_11st_full_geo_base'!$B$7:$B$736,"<>Texas",'2026_11st_full_geo_base'!$B$7:$B$736,"<>New Mexico", '2026_11st_full_geo_base'!$B$7:$B$736,"<>Arizona", '2026_11st_full_geo_base'!$B$7:$B$736,"<>Colorado", '2026_11st_full_geo_base'!$B$7:$B$736,"<>Utah"))*Q21 -> 0.01313244189 | AT21: =(-AVERAGEIFS('2026_11st_full_geo_SNCRoptwCC'!AX$7:AX$736,'2026_11st_full_geo_base'!$G$7:$G$736,">=71",'2026_11st_full_geo_base'!$B$7:$B$736,"<>California",'2026_11st_full_geo_base'!$B$7:$B$736,"<>Texas",'2026_11st_full_geo_base'!$B$7:$B$736,"<>New Mexico", '2026_11st_full_geo_base'!$B$7:$B$736,"<>Arizona", '2026_11st_full_geo_base'!$B$7:$B$736,"<>Colorado", '2026_11st_full_geo_base'!$B$7:$B$736,"<>Utah")+AVERAGEIFS('2026_11st_full_geo_base'!AX$7:AX$736,'2026_11st_full_geo_base'!$G$7:$G$736,">=71", '2026_11st_full_geo_base'!$B$7:$B$736,"<>California",'2026_11st_full_geo_base'!$B$7:$B$736,"<>Texas",'2026_11st_full_geo_base'!$B$7:$B$736,"<>New Mexico", '2026_11st_full_geo_base'!$B$7:$B$736,"<>Arizona", '2026_11st_full_geo_base'!$B$7:$B$736,"<>Colorado", '2026_11st_full_geo_base'!$B$7:$B$736,"<>Utah"))*R21 -> 0 | AU21: =(-AVERAGEIFS('2026_11st_full_geo_SNCRoptwCC'!AY$7:AY$736,'2026_11st_full_geo_base'!$G$7:$G$736,">=71",'2026_11st_full_geo_base'!$B$7:$B$736,"<>California",'2026_11st_full_geo_base'!$B$7:$B$736,"<>Texas",'2026_11st_full_geo_base'!$B$7:$B$736,"<>New Mexico", '2026_11st_full_geo_base'!$B$7:$B$736,"<>Arizona", '2026_11st_full_geo_base'!$B$7:$B$736,"<>Colorado", '2026_11st_full_geo_base'!$B$7:$B$736,"<>Utah")+AVERAGEIFS('2026_11st_full_geo_base'!AY$7:AY$736,'2026_11st_full_geo_base'!$G$7:$G$736,">=71", '2026_11st_full_geo_base'!$B$7:$B$736,"<>California",'2026_11st_full_geo_base'!$B$7:$B$736,"<>Texas",'2026_11st_full_geo_base'!$B$7:$B$736,"<>New Mexico", '2026_11st_full_geo_base'!$B$7:$B$736,"<>Arizona", '2026_11st_full_geo_base'!$B$7:$B$736,"<>Colorado", '2026_11st_full_geo_base'!$B$7:$B$736,"<>Utah"))*S21 -> 0 | AV21: =(-AVERAGEIFS('2026_11st_full_geo_SNCRoptwCC'!BA$7:BA$736,'2026_11st_full_geo_base'!$G$7:$G$736,">=71",'2026_11st_full_geo_base'!$B$7:$B$736,"<>California",'2026_11st_full_geo_base'!$B$7:$B$736,"<>Texas",'2026_11st_full_geo_base'!$B$7:$B$736,"<>New Mexico", '2026_11st_full_geo_base'!$B$7:$B$736,"<>Arizona", '2026_11st_full_geo_base'!$B$7:$B$736,"<>Colorado", '2026_11st_full_geo_base'!$B$7:$B$736,"<>Utah")+AVERAGEIFS('2026_11st_full_geo_base'!BA$7:BA$736,'2026_11st_full_geo_base'!$G$7:$G$736,">=71", '2026_11st_full_geo_base'!$B$7:$B$736,"<>California",'2026_11st_full_geo_base'!$B$7:$B$736,"<>Texas",'2026_11st_full_geo_base'!$B$7:$B$736,"<>New Mexico", '2026_11st_full_geo_base'!$B$7:$B$736,"<>Arizona", '2026_11st_full_geo_base'!$B$7:$B$736,"<>Colorado", '2026_11st_full_geo_base'!$B$7:$B$736,"<>Utah"))*T21 -> 0.002343807746 | AW21: =(-AVERAGEIFS('2026_11st_full_geo_SNCRoptwCC'!BC$7:BC$736,'2026_11st_full_geo_base'!$G$7:$G$736,">=71",'2026_11st_full_geo_base'!$B$7:$B$736,"<>California",'2026_11st_full_geo_base'!$B$7:$B$736,"<>Texas",'2026_11st_full_geo_base'!$B$7:$B$736,"<>New Mexico", '2026_11st_full_geo_base'!$B$7:$B$736,"<>Arizona", '2026_11st_full_geo_base'!$B$7:$B$736,"<>Colorado", '2026_11st_full_geo_base'!$B$7:$B$736,"<>Utah")+AVERAGEIFS('2026_11st_full_geo_base'!BC$7:BC$736,'2026_11st_full_geo_base'!$G$7:$G$736,">=71", '2026_11st_full_geo_base'!$B$7:$B$736,"<>California",'2026_11st_full_geo_base'!$B$7:$B$736,"<>Texas",'2026_11st_full_geo_base'!$B$7:$B$736,"<>New Mexico", '2026_11st_full_geo_base'!$B$7:$B$736,"<>Arizona", '2026_11st_full_geo_base'!$B$7:$B$736,"<>Colorado", '2026_11st_full_geo_base'!$B$7:$B$736,"<>Utah"))*U21 -> 0 | AX21: =(-AVERAGEIFS('2026_11st_full_geo_SNCRoptwCC'!BF$7:BF$736,'2026_11st_full_geo_base'!$G$7:$G$736,">=71",'2026_11st_full_geo_base'!$B$7:$B$736,"<>California",'2026_11st_full_geo_base'!$B$7:$B$736,"<>Texas",'2026_11st_full_geo_base'!$B$7:$B$736,"<>New Mexico", '2026_11st_full_geo_base'!$B$7:$B$736,"<>Arizona", '2026_11st_full_geo_base'!$B$7:$B$736,"<>Colorado", '2026_11st_full_geo_base'!$B$7:$B$736,"<>Utah")+AVERAGEIFS('2026_11st_full_geo_base'!BF$7:BF$736,'2026_11st_full_geo_base'!$G$7:$G$736,">=71", '2026_11st_full_geo_base'!$B$7:$B$736,"<>California",'2026_11st_full_geo_base'!$B$7:$B$736,"<>Texas",'2026_11st_full_geo_base'!$B$7:$B$736,"<>New Mexico", '2026_11st_full_geo_base'!$B$7:$B$736,"<>Arizona", '2026_11st_full_geo_base'!$B$7:$B$736,"<>Colorado", '2026_11st_full_geo_base'!$B$7:$B$736,"<>Utah"))*S21 -> 0
B22: 1 | C22: 1 | D22: 1 | E22: 1 | F22: 1 | G22: 1 | H22: 1 | I22: 1 | J22: 1 | K22: 1 | L22: 1 | M22: 1 | N22: 1 | O22: 1 | P22: 1 | Q22: 1 | R22: 1 | S22: 1 | T22: 1 | U22: 1 | W22: 2026_step3_SCRoptwCC | X22: =(-AVERAGEIFS('2026_11st_full_geo_SCRoptwCC'!BV$7:BV$736,'2026_11st_full_geo_base'!$G$7:$G$736,">=71",'2026_11st_full_geo_base'!$B$7:$B$736,"<>California",'2026_11st_full_geo_base'!$B$7:$B$736,"<>Texas",'2026_11st_full_geo_base'!$B$7:$B$736,"<>New Mexico", '2026_11st_full_geo_base'!$B$7:$B$736,"<>Arizona", '2026_11st_full_geo_base'!$B$7:$B$736,"<>Colorado", '2026_11st_full_geo_base'!$B$7:$B$736,"<>Utah")+AVERAGEIFS('2026_11st_full_geo_base'!BV$7:BV$736,'2026_11st_full_geo_base'!$G$7:$G$736,">=71", '2026_11st_full_geo_base'!$B$7:$B$736,"<>California",'2026_11st_full_geo_base'!$B$7:$B$736,"<>Texas",'2026_11st_full_geo_base'!$B$7:$B$736,"<>New Mexico", '2026_11st_full_geo_base'!$B$7:$B$736,"<>Arizona", '2026_11st_full_geo_base'!$B$7:$B$736,"<>Colorado", '2026_11st_full_geo_base'!$B$7:$B$736,"<>Utah"))*1 -> -0.006656700573 | Y22: =(-AVERAGEIFS('2026_11st_full_geo_SCRoptwCC'!J$7:J$736,'2026_11st_full_geo_base'!$G$7:$G$736,">=71",'2026_11st_full_geo_base'!$B$7:$B$736,"<>California",'2026_11st_full_geo_base'!$B$7:$B$736,"<>Texas",'2026_11st_full_geo_base'!$B$7:$B$736,"<>New Mexico", '2026_11st_full_geo_base'!$B$7:$B$736,"<>Arizona", '2026_11st_full_geo_base'!$B$7:$B$736,"<>Colorado", '2026_11st_full_geo_base'!$B$7:$B$736,"<>Utah")+AVERAGEIFS('2026_11st_full_geo_base'!J$7:J$736,'2026_11st_full_geo_base'!$G$7:$G$736,">=71", '2026_11st_full_geo_base'!$B$7:$B$736,"<>California",'2026_11st_full_geo_base'!$B$7:$B$736,"<>Texas",'2026_11st_full_geo_base'!$B$7:$B$736,"<>New Mexico", '2026_11st_full_geo_base'!$B$7:$B$736,"<>Arizona", '2026_11st_full_geo_base'!$B$7:$B$736,"<>Colorado", '2026_11st_full_geo_base'!$B$7:$B$736,"<>Utah"))*1 -> 0 | Z22: =(-AVERAGEIFS('2026_11st_full_geo_SCRoptwCC'!M$7:M$736,'2026_11st_full_geo_base'!$G$7:$G$736,">=71",'2026_11st_full_geo_base'!$B$7:$B$736,"<>California",'2026_11st_full_geo_base'!$B$7:$B$736,"<>Texas",'2026_11st_full_geo_base'!$B$7:$B$736,"<>New Mexico", '2026_11st_full_geo_base'!$B$7:$B$736,"<>Arizona", '2026_11st_full_geo_base'!$B$7:$B$736,"<>Colorado", '2026_11st_full_geo_base'!$B$7:$B$736,"<>Utah")+AVERAGEIFS('2026_11st_full_geo_base'!M$7:M$736,'2026_11st_full_geo_base'!$G$7:$G$736,">=71", '2026_11st_full_geo_base'!$B$7:$B$736,"<>California",'2026_11st_full_geo_base'!$B$7:$B$736,"<>Texas",'2026_11st_full_geo_base'!$B$7:$B$736,"<>New Mexico", '2026_11st_full_geo_base'!$B$7:$B$736,"<>Arizona", '2026_11st_full_geo_base'!$B$7:$B$736,"<>Colorado", '2026_11st_full_geo_base'!$B$7:$B$736,"<>Utah"))*1 -> 0 | AA22: =(-AVERAGEIFS('2026_11st_full_geo_SCRoptwCC'!N$7:N$736,'2026_11st_full_geo_base'!$G$7:$G$736,">=71",'2026_11st_full_geo_base'!$B$7:$B$736,"<>California",'2026_11st_full_geo_base'!$B$7:$B$736,"<>Texas",'2026_11st_full_geo_base'!$B$7:$B$736,"<>New Mexico", '2026_11st_full_geo_base'!$B$7:$B$736,"<>Arizona", '2026_11st_full_geo_base'!$B$7:$B$736,"<>Colorado", '2026_11st_full_geo_base'!$B$7:$B$736,"<>Utah")+AVERAGEIFS('2026_11st_full_geo_base'!N$7:N$736,'2026_11st_full_geo_base'!$G$7:$G$736,">=71", '2026_11st_full_geo_base'!$B$7:$B$736,"<>California",'2026_11st_full_geo_base'!$B$7:$B$736,"<>Texas",'2026_11st_full_geo_base'!$B$7:$B$736,"<>New Mexico", '2026_11st_full_geo_base'!$B$7:$B$736,"<>Arizona", '2026_11st_full_geo_base'!$B$7:$B$736,"<>Colorado", '2026_11st_full_geo_base'!$B$7:$B$736,"<>Utah"))*1 -> 0 | AB22: =(-AVERAGEIFS('2026_11st_full_geo_SCRoptwCC'!BD$7:BD$736,'2026_11st_full_geo_base'!$G$7:$G$736,">=71",'2026_11st_full_geo_base'!$B$7:$B$736,"<>California",'2026_11st_full_geo_base'!$B$7:$B$736,"<>Texas",'2026_11st_full_geo_base'!$B$7:$B$736,"<>New Mexico", '2026_11st_full_geo_base'!$B$7:$B$736,"<>Arizona", '2026_11st_full_geo_base'!$B$7:$B$736,"<>Colorado", '2026_11st_full_geo_base'!$B$7:$B$736,"<>Utah")+AVERAGEIFS('2026_11st_full_geo_base'!BD$7:BD$736,'2026_11st_full_geo_base'!$G$7:$G$736,">=71", '2026_11st_full_geo_base'!$B$7:$B$736,"<>California",'2026_11st_full_geo_base'!$B$7:$B$736,"<>Texas",'2026_11st_full_geo_base'!$B$7:$B$736,"<>New Mexico", '2026_11st_full_geo_base'!$B$7:$B$736,"<>Arizona", '2026_11st_full_geo_base'!$B$7:$B$736,"<>Colorado", '2026_11st_full_geo_base'!$B$7:$B$736,"<>Utah"))*1 -> 0 | AC22: =(-AVERAGEIFS('2026_11st_full_geo_SCRoptwCC'!AL$7:AL$736,'2026_11st_full_geo_base'!$G$7:$G$736,">=71",'2026_11st_full_geo_base'!$B$7:$B$736,"<>California",'2026_11st_full_geo_base'!$B$7:$B$736,"<>Texas",'2026_11st_full_geo_base'!$B$7:$B$736,"<>New Mexico", '2026_11st_full_geo_base'!$B$7:$B$736,"<>Arizona", '2026_11st_full_geo_base'!$B$7:$B$736,"<>Colorado", '2026_11st_full_geo_base'!$B$7:$B$736,"<>Utah")+AVERAGEIFS('2026_11st_full_geo_base'!AL$7:AL$736,'2026_11st_full_geo_base'!$G$7:$G$736,">=71", '2026_11st_full_geo_base'!$B$7:$B$736,"<>California",'2026_11st_full_geo_base'!$B$7:$B$736,"<>Texas",'2026_11st_full_geo_base'!$B$7:$B$736,"<>New Mexico", '2026_11st_full_geo_base'!$B$7:$B$736,"<>Arizona", '2026_11st_full_geo_base'!$B$7:$B$736,"<>Colorado", '2026_11st_full_geo_base'!$B$7:$B$736,"<>Utah"))*1 -> 0 | AD22: =(-AVERAGEIFS('2026_11st_full_geo_SCRoptwCC'!K$7:K$736,'2026_11st_full_geo_base'!$G$7:$G$736,">=71",'2026_11st_full_geo_base'!$B$7:$B$736,"<>California",'2026_11st_full_geo_base'!$B$7:$B$736,"<>Texas",'2026_11st_full_geo_base'!$B$7:$B$736,"<>New Mexico", '2026_11st_full_geo_base'!$B$7:$B$736,"<>Arizona", '2026_11st_full_geo_base'!$B$7:$B$736,"<>Colorado", '2026_11st_full_geo_base'!$B$7:$B$736,"<>Utah")+AVERAGEIFS('2026_11st_full_geo_base'!K$7:K$736,'2026_11st_full_geo_base'!$G$7:$G$736,">=71", '2026_11st_full_geo_base'!$B$7:$B$736,"<>California",'2026_11st_full_geo_base'!$B$7:$B$736,"<>Texas",'2026_11st_full_geo_base'!$B$7:$B$736,"<>New Mexico", '2026_11st_full_geo_base'!$B$7:$B$736,"<>Arizona", '2026_11st_full_geo_base'!$B$7:$B$736,"<>Colorado", '2026_11st_full_geo_base'!$B$7:$B$736,"<>Utah"))*B22 -> 0 | AE22: =(-AVERAGEIFS('2026_11st_full_geo_SCRoptwCC'!L$7:L$736,'2026_11st_full_geo_base'!$G$7:$G$736,">=71",'2026_11st_full_geo_base'!$B$7:$B$736,"<>California",'2026_11st_full_geo_base'!$B$7:$B$736,"<>Texas",'2026_11st_full_geo_base'!$B$7:$B$736,"<>New Mexico", '2026_11st_full_geo_base'!$B$7:$B$736,"<>Arizona", '2026_11st_full_geo_base'!$B$7:$B$736,"<>Colorado", '2026_11st_full_geo_base'!$B$7:$B$736,"<>Utah")+AVERAGEIFS('2026_11st_full_geo_base'!L$7:L$736,'2026_11st_full_geo_base'!$G$7:$G$736,">=71", '2026_11st_full_geo_base'!$B$7:$B$736,"<>California",'2026_11st_full_geo_base'!$B$7:$B$736,"<>Texas",'2026_11st_full_geo_base'!$B$7:$B$736,"<>New Mexico", '2026_11st_full_geo_base'!$B$7:$B$736,"<>Arizona", '2026_11st_full_geo_base'!$B$7:$B$736,"<>Colorado", '2026_11st_full_geo_base'!$B$7:$B$736,"<>Utah"))*C22 -> 8.575705389e-05 | AF22: =(-AVERAGEIFS('2026_11st_full_geo_SCRoptwCC'!T$7:T$736,'2026_11st_full_geo_base'!$G$7:$G$736,">=71",'2026_11st_full_geo_base'!$B$7:$B$736,"<>California",'2026_11st_full_geo_base'!$B$7:$B$736,"<>Texas",'2026_11st_full_geo_base'!$B$7:$B$736,"<>New Mexico", '2026_11st_full_geo_base'!$B$7:$B$736,"<>Arizona", '2026_11st_full_geo_base'!$B$7:$B$736,"<>Colorado", '2026_11st_full_geo_base'!$B$7:$B$736,"<>Utah")+AVERAGEIFS('2026_11st_full_geo_base'!T$7:T$736,'2026_11st_full_geo_base'!$G$7:$G$736,">=71", '2026_11st_full_geo_base'!$B$7:$B$736,"<>California",'2026_11st_full_geo_base'!$B$7:$B$736,"<>Texas",'2026_11st_full_geo_base'!$B$7:$B$736,"<>New Mexico", '2026_11st_full_geo_base'!$B$7:$B$736,"<>Arizona", '2026_11st_full_geo_base'!$B$7:$B$736,"<>Colorado", '2026_11st_full_geo_base'!$B$7:$B$736,"<>Utah"))*D22 -> 0.0003850485854 | AG22: =(-AVERAGEIFS('2026_11st_full_geo_SCRoptwCC'!U$7:U$736,'2026_11st_full_geo_base'!$G$7:$G$736,">=71",'2026_11st_full_geo_base'!$B$7:$B$736,"<>California",'2026_11st_full_geo_base'!$B$7:$B$736,"<>Texas",'2026_11st_full_geo_base'!$B$7:$B$736,"<>New Mexico", '2026_11st_full_geo_base'!$B$7:$B$736,"<>Arizona", '2026_11st_full_geo_base'!$B$7:$B$736,"<>Colorado", '2026_11st_full_geo_base'!$B$7:$B$736,"<>Utah")+AVERAGEIFS('2026_11st_full_geo_base'!U$7:U$736,'2026_11st_full_geo_base'!$G$7:$G$736,">=71", '2026_11st_full_geo_base'!$B$7:$B$736,"<>California",'2026_11st_full_geo_base'!$B$7:$B$736,"<>Texas",'2026_11st_full_geo_base'!$B$7:$B$736,"<>New Mexico", '2026_11st_full_geo_base'!$B$7:$B$736,"<>Arizona", '2026_11st_full_geo_base'!$B$7:$B$736,"<>Colorado", '2026_11st_full_geo_base'!$B$7:$B$736,"<>Utah"))*E22 -> 0.02544342144 | AH22: =(-AVERAGEIFS('2026_11st_full_geo_SCRoptwCC'!X$7:X$736,'2026_11st_full_geo_base'!$G$7:$G$736,">=71",'2026_11st_full_geo_base'!$B$7:$B$736,"<>California",'2026_11st_full_geo_base'!$B$7:$B$736,"<>Texas",'2026_11st_full_geo_base'!$B$7:$B$736,"<>New Mexico", '2026_11st_full_geo_base'!$B$7:$B$736,"<>Arizona", '2026_11st_full_geo_base'!$B$7:$B$736,"<>Colorado", '2026_11st_full_geo_base'!$B$7:$B$736,"<>Utah")+AVERAGEIFS('2026_11st_full_geo_base'!X$7:X$736,'2026_11st_full_geo_base'!$G$7:$G$736,">=71", '2026_11st_full_geo_base'!$B$7:$B$736,"<>California",'2026_11st_full_geo_base'!$B$7:$B$736,"<>Texas",'2026_11st_full_geo_base'!$B$7:$B$736,"<>New Mexico", '2026_11st_full_geo_base'!$B$7:$B$736,"<>Arizona", '2026_11st_full_geo_base'!$B$7:$B$736,"<>Colorado", '2026_11st_full_geo_base'!$B$7:$B$736,"<>Utah"))*F22 -> 0 | AI22: =(-AVERAGEIFS('2026_11st_full_geo_SCRoptwCC'!Y$7:Y$736,'2026_11st_full_geo_base'!$G$7:$G$736,">=71",'2026_11st_full_geo_base'!$B$7:$B$736,"<>California",'2026_11st_full_geo_base'!$B$7:$B$736,"<>Texas",'2026_11st_full_geo_base'!$B$7:$B$736,"<>New Mexico", '2026_11st_full_geo_base'!$B$7:$B$736,"<>Arizona", '2026_11st_full_geo_base'!$B$7:$B$736,"<>Colorado", '2026_11st_full_geo_base'!$B$7:$B$736,"<>Utah")+AVERAGEIFS('2026_11st_full_geo_base'!Y$7:Y$736,'2026_11st_full_geo_base'!$G$7:$G$736,">=71", '2026_11st_full_geo_base'!$B$7:$B$736,"<>California",'2026_11st_full_geo_base'!$B$7:$B$736,"<>Texas",'2026_11st_full_geo_base'!$B$7:$B$736,"<>New Mexico", '2026_11st_full_geo_base'!$B$7:$B$736,"<>Arizona", '2026_11st_full_geo_base'!$B$7:$B$736,"<>Colorado", '2026_11st_full_geo_base'!$B$7:$B$736,"<>Utah"))*G22 -> 0 | AJ22: =(-AVERAGEIFS('2026_11st_full_geo_SCRoptwCC'!AA$7:AA$736,'2026_11st_full_geo_base'!$G$7:$G$736,">=71",'2026_11st_full_geo_base'!$B$7:$B$736,"<>California",'2026_11st_full_geo_base'!$B$7:$B$736,"<>Texas",'2026_11st_full_geo_base'!$B$7:$B$736,"<>New Mexico", '2026_11st_full_geo_base'!$B$7:$B$736,"<>Arizona", '2026_11st_full_geo_base'!$B$7:$B$736,"<>Colorado", '2026_11st_full_geo_base'!$B$7:$B$736,"<>Utah")+AVERAGEIFS('2026_11st_full_geo_base'!AA$7:AA$736,'2026_11st_full_geo_base'!$G$7:$G$736,">=71", '2026_11st_full_geo_base'!$B$7:$B$736,"<>California",'2026_11st_full_geo_base'!$B$7:$B$736,"<>Texas",'2026_11st_full_geo_base'!$B$7:$B$736,"<>New Mexico", '2026_11st_full_geo_base'!$B$7:$B$736,"<>Arizona", '2026_11st_full_geo_base'!$B$7:$B$736,"<>Colorado", '2026_11st_full_geo_base'!$B$7:$B$736,"<>Utah"))*H22 -> 0.0007590924101 | AK22: =(-AVERAGEIFS('2026_11st_full_geo_SCRoptwCC'!AC$7:AC$736,'2026_11st_full_geo_base'!$G$7:$G$736,">=71",'2026_11st_full_geo_base'!$B$7:$B$736,"<>California",'2026_11st_full_geo_base'!$B$7:$B$736,"<>Texas",'2026_11st_full_geo_base'!$B$7:$B$736,"<>New Mexico", '2026_11st_full_geo_base'!$B$7:$B$736,"<>Arizona", '2026_11st_full_geo_base'!$B$7:$B$736,"<>Colorado", '2026_11st_full_geo_base'!$B$7:$B$736,"<>Utah")+AVERAGEIFS('2026_11st_full_geo_base'!AC$7:AC$736,'2026_11st_full_geo_base'!$G$7:$G$736,">=71", '2026_11st_full_geo_base'!$B$7:$B$736,"<>California",'2026_11st_full_geo_base'!$B$7:$B$736,"<>Texas",'2026_11st_full_geo_base'!$B$7:$B$736,"<>New Mexico", '2026_11st_full_geo_base'!$B$7:$B$736,"<>Arizona", '2026_11st_full_geo_base'!$B$7:$B$736,"<>Colorado", '2026_11st_full_geo_base'!$B$7:$B$736,"<>Utah"))*I22 -> 3.27619608e-05 | AL22: =(-AVERAGEIFS('2026_11st_full_geo_SCRoptwCC'!AE$7:AE$736,'2026_11st_full_geo_base'!$G$7:$G$736,">=71",'2026_11st_full_geo_base'!$B$7:$B$736,"<>California",'2026_11st_full_geo_base'!$B$7:$B$736,"<>Texas",'2026_11st_full_geo_base'!$B$7:$B$736,"<>New Mexico", '2026_11st_full_geo_base'!$B$7:$B$736,"<>Arizona", '2026_11st_full_geo_base'!$B$7:$B$736,"<>Colorado", '2026_11st_full_geo_base'!$B$7:$B$736,"<>Utah")+AVERAGEIFS('2026_11st_full_geo_base'!AE$7:AE$736,'2026_11st_full_geo_base'!$G$7:$G$736,">=71", '2026_11st_full_geo_base'!$B$7:$B$736,"<>California",'2026_11st_full_geo_base'!$B$7:$B$736,"<>Texas",'2026_11st_full_geo_base'!$B$7:$B$736,"<>New Mexico", '2026_11st_full_geo_base'!$B$7:$B$736,"<>Arizona", '2026_11st_full_geo_base'!$B$7:$B$736,"<>Colorado", '2026_11st_full_geo_base'!$B$7:$B$736,"<>Utah"))*J22 -> 0 | AM22: =(-AVERAGEIFS('2026_11st_full_geo_SCRoptwCC'!AF$7:AF$736,'2026_11st_full_geo_base'!$G$7:$G$736,">=71",'2026_11st_full_geo_base'!$B$7:$B$736,"<>California",'2026_11st_full_geo_base'!$B$7:$B$736,"<>Texas",'2026_11st_full_geo_base'!$B$7:$B$736,"<>New Mexico", '2026_11st_full_geo_base'!$B$7:$B$736,"<>Arizona", '2026_11st_full_geo_base'!$B$7:$B$736,"<>Colorado", '2026_11st_full_geo_base'!$B$7:$B$736,"<>Utah")+AVERAGEIFS('2026_11st_full_geo_base'!AF$7:AF$736,'2026_11st_full_geo_base'!$G$7:$G$736,">=71", '2026_11st_full_geo_base'!$B$7:$B$736,"<>California",'2026_11st_full_geo_base'!$B$7:$B$736,"<>Texas",'2026_11st_full_geo_base'!$B$7:$B$736,"<>New Mexico", '2026_11st_full_geo_base'!$B$7:$B$736,"<>Arizona", '2026_11st_full_geo_base'!$B$7:$B$736,"<>Colorado", '2026_11st_full_geo_base'!$B$7:$B$736,"<>Utah"))*K22 -> 0 | AN22: =(-AVERAGEIFS('2026_11st_full_geo_SCRoptwCC'!AI$7:AI$736,'2026_11st_full_geo_base'!$G$7:$G$736,">=71",'2026_11st_full_geo_base'!$B$7:$B$736,"<>California",'2026_11st_full_geo_base'!$B$7:$B$736,"<>Texas",'2026_11st_full_geo_base'!$B$7:$B$736,"<>New Mexico", '2026_11st_full_geo_base'!$B$7:$B$736,"<>Arizona", '2026_11st_full_geo_base'!$B$7:$B$736,"<>Colorado", '2026_11st_full_geo_base'!$B$7:$B$736,"<>Utah")+AVERAGEIFS('2026_11st_full_geo_base'!AI$7:AI$736,'2026_11st_full_geo_base'!$G$7:$G$736,">=71", '2026_11st_full_geo_base'!$B$7:$B$736,"<>California",'2026_11st_full_geo_base'!$B$7:$B$736,"<>Texas",'2026_11st_full_geo_base'!$B$7:$B$736,"<>New Mexico", '2026_11st_full_geo_base'!$B$7:$B$736,"<>Arizona", '2026_11st_full_geo_base'!$B$7:$B$736,"<>Colorado", '2026_11st_full_geo_base'!$B$7:$B$736,"<>Utah"))*L22 -> 0 | AO22: =(-AVERAGEIFS('2026_11st_full_geo_SCRoptwCC'!AK$7:AK$736,'2026_11st_full_geo_base'!$G$7:$G$736,">=71",'2026_11st_full_geo_base'!$B$7:$B$736,"<>California",'2026_11st_full_geo_base'!$B$7:$B$736,"<>Texas",'2026_11st_full_geo_base'!$B$7:$B$736,"<>New Mexico", '2026_11st_full_geo_base'!$B$7:$B$736,"<>Arizona", '2026_11st_full_geo_base'!$B$7:$B$736,"<>Colorado", '2026_11st_full_geo_base'!$B$7:$B$736,"<>Utah")+AVERAGEIFS('2026_11st_full_geo_base'!AK$7:AK$736,'2026_11st_full_geo_base'!$G$7:$G$736,">=71", '2026_11st_full_geo_base'!$B$7:$B$736,"<>California",'2026_11st_full_geo_base'!$B$7:$B$736,"<>Texas",'2026_11st_full_geo_base'!$B$7:$B$736,"<>New Mexico", '2026_11st_full_geo_base'!$B$7:$B$736,"<>Arizona", '2026_11st_full_geo_base'!$B$7:$B$736,"<>Colorado", '2026_11st_full_geo_base'!$B$7:$B$736,"<>Utah"))*M22 -> -0.00254574484 | AP22: =(-AVERAGEIFS('2026_11st_full_geo_SCRoptwCC'!AM$7:AM$736,'2026_11st_full_geo_base'!$G$7:$G$736,">=71",'2026_11st_full_geo_base'!$B$7:$B$736,"<>California",'2026_11st_full_geo_base'!$B$7:$B$736,"<>Texas",'2026_11st_full_geo_base'!$B$7:$B$736,"<>New Mexico", '2026_11st_full_geo_base'!$B$7:$B$736,"<>Arizona", '2026_11st_full_geo_base'!$B$7:$B$736,"<>Colorado", '2026_11st_full_geo_base'!$B$7:$B$736,"<>Utah")+AVERAGEIFS('2026_11st_full_geo_base'!AM$7:AM$736,'2026_11st_full_geo_base'!$G$7:$G$736,">=71", '2026_11st_full_geo_base'!$B$7:$B$736,"<>California",'2026_11st_full_geo_base'!$B$7:$B$736,"<>Texas",'2026_11st_full_geo_base'!$B$7:$B$736,"<>New Mexico", '2026_11st_full_geo_base'!$B$7:$B$736,"<>Arizona", '2026_11st_full_geo_base'!$B$7:$B$736,"<>Colorado", '2026_11st_full_geo_base'!$B$7:$B$736,"<>Utah"))*N22 -> 0.001503920532 | AQ22: =(-AVERAGEIFS('2026_11st_full_geo_SCRoptwCC'!AP$7:AP$736,'2026_11st_full_geo_base'!$G$7:$G$736,">=71",'2026_11st_full_geo_base'!$B$7:$B$736,"<>California",'2026_11st_full_geo_base'!$B$7:$B$736,"<>Texas",'2026_11st_full_geo_base'!$B$7:$B$736,"<>New Mexico", '2026_11st_full_geo_base'!$B$7:$B$736,"<>Arizona", '2026_11st_full_geo_base'!$B$7:$B$736,"<>Colorado", '2026_11st_full_geo_base'!$B$7:$B$736,"<>Utah")+AVERAGEIFS('2026_11st_full_geo_base'!AP$7:AP$736,'2026_11st_full_geo_base'!$G$7:$G$736,">=71", '2026_11st_full_geo_base'!$B$7:$B$736,"<>California",'2026_11st_full_geo_base'!$B$7:$B$736,"<>Texas",'2026_11st_full_geo_base'!$B$7:$B$736,"<>New Mexico", '2026_11st_full_geo_base'!$B$7:$B$736,"<>Arizona", '2026_11st_full_geo_base'!$B$7:$B$736,"<>Colorado", '2026_11st_full_geo_base'!$B$7:$B$736,"<>Utah"))*O22 -> 0.01830094404 | AR22: =(-AVERAGEIFS('2026_11st_full_geo_SCRoptwCC'!AQ$7:AQ$736,'2026_11st_full_geo_base'!$G$7:$G$736,">=71",'2026_11st_full_geo_base'!$B$7:$B$736,"<>California",'2026_11st_full_geo_base'!$B$7:$B$736,"<>Texas",'2026_11st_full_geo_base'!$B$7:$B$736,"<>New Mexico", '2026_11st_full_geo_base'!$B$7:$B$736,"<>Arizona", '2026_11st_full_geo_base'!$B$7:$B$736,"<>Colorado", '2026_11st_full_geo_base'!$B$7:$B$736,"<>Utah")+AVERAGEIFS('2026_11st_full_geo_base'!AQ$7:AQ$736,'2026_11st_full_geo_base'!$G$7:$G$736,">=71", '2026_11st_full_geo_base'!$B$7:$B$736,"<>California",'2026_11st_full_geo_base'!$B$7:$B$736,"<>Texas",'2026_11st_full_geo_base'!$B$7:$B$736,"<>New Mexico", '2026_11st_full_geo_base'!$B$7:$B$736,"<>Arizona", '2026_11st_full_geo_base'!$B$7:$B$736,"<>Colorado", '2026_11st_full_geo_base'!$B$7:$B$736,"<>Utah"))*P22 -> 0 | AS22: =(-AVERAGEIFS('2026_11st_full_geo_SCRoptwCC'!AS$7:AS$736,'2026_11st_full_geo_base'!$G$7:$G$736,">=71",'2026_11st_full_geo_base'!$B$7:$B$736,"<>California",'2026_11st_full_geo_base'!$B$7:$B$736,"<>Texas",'2026_11st_full_geo_base'!$B$7:$B$736,"<>New Mexico", '2026_11st_full_geo_base'!$B$7:$B$736,"<>Arizona", '2026_11st_full_geo_base'!$B$7:$B$736,"<>Colorado", '2026_11st_full_geo_base'!$B$7:$B$736,"<>Utah")+AVERAGEIFS('2026_11st_full_geo_base'!AS$7:AS$736,'2026_11st_full_geo_base'!$G$7:$G$736,">=71", '2026_11st_full_geo_base'!$B$7:$B$736,"<>California",'2026_11st_full_geo_base'!$B$7:$B$736,"<>Texas",'2026_11st_full_geo_base'!$B$7:$B$736,"<>New Mexico", '2026_11st_full_geo_base'!$B$7:$B$736,"<>Arizona", '2026_11st_full_geo_base'!$B$7:$B$736,"<>Colorado", '2026_11st_full_geo_base'!$B$7:$B$736,"<>Utah"))*Q22 -> 0.01022706745 | AT22: =(-AVERAGEIFS('2026_11st_full_geo_SCRoptwCC'!AX$7:AX$736,'2026_11st_full_geo_base'!$G$7:$G$736,">=71",'2026_11st_full_geo_base'!$B$7:$B$736,"<>California",'2026_11st_full_geo_base'!$B$7:$B$736,"<>Texas",'2026_11st_full_geo_base'!$B$7:$B$736,"<>New Mexico", '2026_11st_full_geo_base'!$B$7:$B$736,"<>Arizona", '2026_11st_full_geo_base'!$B$7:$B$736,"<>Colorado", '2026_11st_full_geo_base'!$B$7:$B$736,"<>Utah")+AVERAGEIFS('2026_11st_full_geo_base'!AX$7:AX$736,'2026_11st_full_geo_base'!$G$7:$G$736,">=71", '2026_11st_full_geo_base'!$B$7:$B$736,"<>California",'2026_11st_full_geo_base'!$B$7:$B$736,"<>Texas",'2026_11st_full_geo_base'!$B$7:$B$736,"<>New Mexico", '2026_11st_full_geo_base'!$B$7:$B$736,"<>Arizona", '2026_11st_full_geo_base'!$B$7:$B$736,"<>Colorado", '2026_11st_full_geo_base'!$B$7:$B$736,"<>Utah"))*R22 -> 0 | AU22: =(-AVERAGEIFS('2026_11st_full_geo_SCRoptwCC'!AY$7:AY$736,'2026_11st_full_geo_base'!$G$7:$G$736,">=71",'2026_11st_full_geo_base'!$B$7:$B$736,"<>California",'2026_11st_full_geo_base'!$B$7:$B$736,"<>Texas",'2026_11st_full_geo_base'!$B$7:$B$736,"<>New Mexico", '2026_11st_full_geo_base'!$B$7:$B$736,"<>Arizona", '2026_11st_full_geo_base'!$B$7:$B$736,"<>Colorado", '2026_11st_full_geo_base'!$B$7:$B$736,"<>Utah")+AVERAGEIFS('2026_11st_full_geo_base'!AY$7:AY$736,'2026_11st_full_geo_base'!$G$7:$G$736,">=71", '2026_11st_full_geo_base'!$B$7:$B$736,"<>California",'2026_11st_full_geo_base'!$B$7:$B$736,"<>Texas",'2026_11st_full_geo_base'!$B$7:$B$736,"<>New Mexico", '2026_11st_full_geo_base'!$B$7:$B$736,"<>Arizona", '2026_11st_full_geo_base'!$B$7:$B$736,"<>Colorado", '2026_11st_full_geo_base'!$B$7:$B$736,"<>Utah"))*S22 -> 0 | AV22: =(-AVERAGEIFS('2026_11st_full_geo_SCRoptwCC'!BA$7:BA$736,'2026_11st_full_geo_base'!$G$7:$G$736,">=71",'2026_11st_full_geo_base'!$B$7:$B$736,"<>California",'2026_11st_full_geo_base'!$B$7:$B$736,"<>Texas",'2026_11st_full_geo_base'!$B$7:$B$736,"<>New Mexico", '2026_11st_full_geo_base'!$B$7:$B$736,"<>Arizona", '2026_11st_full_geo_base'!$B$7:$B$736,"<>Colorado", '2026_11st_full_geo_base'!$B$7:$B$736,"<>Utah")+AVERAGEIFS('2026_11st_full_geo_base'!BA$7:BA$736,'2026_11st_full_geo_base'!$G$7:$G$736,">=71", '2026_11st_full_geo_base'!$B$7:$B$736,"<>California",'2026_11st_full_geo_base'!$B$7:$B$736,"<>Texas",'2026_11st_full_geo_base'!$B$7:$B$736,"<>New Mexico", '2026_11st_full_geo_base'!$B$7:$B$736,"<>Arizona", '2026_11st_full_geo_base'!$B$7:$B$736,"<>Colorado", '2026_11st_full_geo_base'!$B$7:$B$736,"<>Utah"))*T22 -> 0.002151200178 | AW22: =(-AVERAGEIFS('2026_11st_full_geo_SCRoptwCC'!BC$7:BC$736,'2026_11st_full_geo_base'!$G$7:$G$736,">=71",'2026_11st_full_geo_base'!$B$7:$B$736,"<>California",'2026_11st_full_geo_base'!$B$7:$B$736,"<>Texas",'2026_11st_full_geo_base'!$B$7:$B$736,"<>New Mexico", '2026_11st_full_geo_base'!$B$7:$B$736,"<>Arizona", '2026_11st_full_geo_base'!$B$7:$B$736,"<>Colorado", '2026_11st_full_geo_base'!$B$7:$B$736,"<>Utah")+AVERAGEIFS('2026_11st_full_geo_base'!BC$7:BC$736,'2026_11st_full_geo_base'!$G$7:$G$736,">=71", '2026_11st_full_geo_base'!$B$7:$B$736,"<>California",'2026_11st_full_geo_base'!$B$7:$B$736,"<>Texas",'2026_11st_full_geo_base'!$B$7:$B$736,"<>New Mexico", '2026_11st_full_geo_base'!$B$7:$B$736,"<>Arizona", '2026_11st_full_geo_base'!$B$7:$B$736,"<>Colorado", '2026_11st_full_geo_base'!$B$7:$B$736,"<>Utah"))*U22 -> 0 | AX22: =(-AVERAGEIFS('2026_11st_full_geo_SCRoptwCC'!BF$7:BF$736,'2026_11st_full_geo_base'!$G$7:$G$736,">=71",'2026_11st_full_geo_base'!$B$7:$B$736,"<>California",'2026_11st_full_geo_base'!$B$7:$B$736,"<>Texas",'2026_11st_full_geo_base'!$B$7:$B$736,"<>New Mexico", '2026_11st_full_geo_base'!$B$7:$B$736,"<>Arizona", '2026_11st_full_geo_base'!$B$7:$B$736,"<>Colorado", '2026_11st_full_geo_base'!$B$7:$B$736,"<>Utah")+AVERAGEIFS('2026_11st_full_geo_base'!BF$7:BF$736,'2026_11st_full_geo_base'!$G$7:$G$736,">=71", '2026_11st_full_geo_base'!$B$7:$B$736,"<>California",'2026_11st_full_geo_base'!$B$7:$B$736,"<>Texas",'2026_11st_full_geo_base'!$B$7:$B$736,"<>New Mexico", '2026_11st_full_geo_base'!$B$7:$B$736,"<>Arizona", '2026_11st_full_geo_base'!$B$7:$B$736,"<>Colorado", '2026_11st_full_geo_base'!$B$7:$B$736,"<>Utah"))*S22 -> 0
B23: 1 | C23: 1 | D23: 1 | E23: 1 | F23: 1 | G23: 1 | H23: 1 | I23: 1 | J23: 1 | K23: 1 | L23: 1 | M23: 1 | N23: 1 | O23: 1 | P23: 1 | Q23: 1 | R23: 1 | S23: 1 | T23: 1 | U23: 1 | W23: 2026_step3_base | X23: =(-AVERAGEIFS('2026_11st_full_geo_base'!BV$7:BV$736,'2026_11st_full_geo_base'!$G$7:$G$736,">=71",'2026_11st_full_geo_base'!$B$7:$B$736,"<>California",'2026_11st_full_geo_base'!$B$7:$B$736,"<>Texas",'2026_11st_full_geo_base'!$B$7:$B$736,"<>New Mexico", '2026_11st_full_geo_base'!$B$7:$B$736,"<>Arizona", '2026_11st_full_geo_base'!$B$7:$B$736,"<>Colorado", '2026_11st_full_geo_base'!$B$7:$B$736,"<>Utah")+AVERAGEIFS('2026_11st_full_geo_base'!BV$7:BV$736,'2026_11st_full_geo_base'!$G$7:$G$736,">=71", '2026_11st_full_geo_base'!$B$7:$B$736,"<>California",'2026_11st_full_geo_base'!$B$7:$B$736,"<>Texas",'2026_11st_full_geo_base'!$B$7:$B$736,"<>New Mexico", '2026_11st_full_geo_base'!$B$7:$B$736,"<>Arizona", '2026_11st_full_geo_base'!$B$7:$B$736,"<>Colorado", '2026_11st_full_geo_base'!$B$7:$B$736,"<>Utah"))*1 -> 0 | Y23: =(-AVERAGEIFS('2026_11st_full_geo_base'!J$7:J$736,'2026_11st_full_geo_base'!$G$7:$G$736,">=71",'2026_11st_full_geo_base'!$B$7:$B$736,"<>California",'2026_11st_full_geo_base'!$B$7:$B$736,"<>Texas",'2026_11st_full_geo_base'!$B$7:$B$736,"<>New Mexico", '2026_11st_full_geo_base'!$B$7:$B$736,"<>Arizona", '2026_11st_full_geo_base'!$B$7:$B$736,"<>Colorado", '2026_11st_full_geo_base'!$B$7:$B$736,"<>Utah")+AVERAGEIFS('2026_11st_full_geo_base'!J$7:J$736,'2026_11st_full_geo_base'!$G$7:$G$736,">=71", '2026_11st_full_geo_base'!$B$7:$B$736,"<>California",'2026_11st_full_geo_base'!$B$7:$B$736,"<>Texas",'2026_11st_full_geo_base'!$B$7:$B$736,"<>New Mexico", '2026_11st_full_geo_base'!$B$7:$B$736,"<>Arizona", '2026_11st_full_geo_base'!$B$7:$B$736,"<>Colorado", '2026_11st_full_geo_base'!$B$7:$B$736,"<>Utah"))*1 -> 0 | Z23: =(-AVERAGEIFS('2026_11st_full_geo_base'!M$7:M$736,'2026_11st_full_geo_base'!$G$7:$G$736,">=71",'2026_11st_full_geo_base'!$B$7:$B$736,"<>California",'2026_11st_full_geo_base'!$B$7:$B$736,"<>Texas",'2026_11st_full_geo_base'!$B$7:$B$736,"<>New Mexico", '2026_11st_full_geo_base'!$B$7:$B$736,"<>Arizona", '2026_11st_full_geo_base'!$B$7:$B$736,"<>Colorado", '2026_11st_full_geo_base'!$B$7:$B$736,"<>Utah")+AVERAGEIFS('2026_11st_full_geo_base'!M$7:M$736,'2026_11st_full_geo_base'!$G$7:$G$736,">=71", '2026_11st_full_geo_base'!$B$7:$B$736,"<>California",'2026_11st_full_geo_base'!$B$7:$B$736,"<>Texas",'2026_11st_full_geo_base'!$B$7:$B$736,"<>New Mexico", '2026_11st_full_geo_base'!$B$7:$B$736,"<>Arizona", '2026_11st_full_geo_base'!$B$7:$B$736,"<>Colorado", '2026_11st_full_geo_base'!$B$7:$B$736,"<>Utah"))*1 -> 0 | AA23: =(-AVERAGEIFS('2026_11st_full_geo_base'!N$7:N$736,'2026_11st_full_geo_base'!$G$7:$G$736,">=71",'2026_11st_full_geo_base'!$B$7:$B$736,"<>California",'2026_11st_full_geo_base'!$B$7:$B$736,"<>Texas",'2026_11st_full_geo_base'!$B$7:$B$736,"<>New Mexico", '2026_11st_full_geo_base'!$B$7:$B$736,"<>Arizona", '2026_11st_full_geo_base'!$B$7:$B$736,"<>Colorado", '2026_11st_full_geo_base'!$B$7:$B$736,"<>Utah")+AVERAGEIFS('2026_11st_full_geo_base'!N$7:N$736,'2026_11st_full_geo_base'!$G$7:$G$736,">=71", '2026_11st_full_geo_base'!$B$7:$B$736,"<>California",'2026_11st_full_geo_base'!$B$7:$B$736,"<>Texas",'2026_11st_full_geo_base'!$B$7:$B$736,"<>New Mexico", '2026_11st_full_geo_base'!$B$7:$B$736,"<>Arizona", '2026_11st_full_geo_base'!$B$7:$B$736,"<>Colorado", '2026_11st_full_geo_base'!$B$7:$B$736,"<>Utah"))*1 -> 0 | AB23: =(-AVERAGEIFS('2026_11st_full_geo_base'!BD$7:BD$736,'2026_11st_full_geo_base'!$G$7:$G$736,">=71",'2026_11st_full_geo_base'!$B$7:$B$736,"<>California",'2026_11st_full_geo_base'!$B$7:$B$736,"<>Texas",'2026_11st_full_geo_base'!$B$7:$B$736,"<>New Mexico", '2026_11st_full_geo_base'!$B$7:$B$736,"<>Arizona", '2026_11st_full_geo_base'!$B$7:$B$736,"<>Colorado", '2026_11st_full_geo_base'!$B$7:$B$736,"<>Utah")+AVERAGEIFS('2026_11st_full_geo_base'!BD$7:BD$736,'2026_11st_full_geo_base'!$G$7:$G$736,">=71", '2026_11st_full_geo_base'!$B$7:$B$736,"<>California",'2026_11st_full_geo_base'!$B$7:$B$736,"<>Texas",'2026_11st_full_geo_base'!$B$7:$B$736,"<>New Mexico", '2026_11st_full_geo_base'!$B$7:$B$736,"<>Arizona", '2026_11st_full_geo_base'!$B$7:$B$736,"<>Colorado", '2026_11st_full_geo_base'!$B$7:$B$736,"<>Utah"))*1 -> 0 | AC23: =(-AVERAGEIFS('2026_11st_full_geo_base'!AL$7:AL$736,'2026_11st_full_geo_base'!$G$7:$G$736,">=71",'2026_11st_full_geo_base'!$B$7:$B$736,"<>California",'2026_11st_full_geo_base'!$B$7:$B$736,"<>Texas",'2026_11st_full_geo_base'!$B$7:$B$736,"<>New Mexico", '2026_11st_full_geo_base'!$B$7:$B$736,"<>Arizona", '2026_11st_full_geo_base'!$B$7:$B$736,"<>Colorado", '2026_11st_full_geo_base'!$B$7:$B$736,"<>Utah")+AVERAGEIFS('2026_11st_full_geo_base'!AL$7:AL$736,'2026_11st_full_geo_base'!$G$7:$G$736,">=71", '2026_11st_full_geo_base'!$B$7:$B$736,"<>California",'2026_11st_full_geo_base'!$B$7:$B$736,"<>Texas",'2026_11st_full_geo_base'!$B$7:$B$736,"<>New Mexico", '2026_11st_full_geo_base'!$B$7:$B$736,"<>Arizona", '2026_11st_full_geo_base'!$B$7:$B$736,"<>Colorado", '2026_11st_full_geo_base'!$B$7:$B$736,"<>Utah"))*1 -> 0 | AD23: =(-AVERAGEIFS('2026_11st_full_geo_base'!K$7:K$736,'2026_11st_full_geo_base'!$G$7:$G$736,">=71",'2026_11st_full_geo_base'!$B$7:$B$736,"<>California",'2026_11st_full_geo_base'!$B$7:$B$736,"<>Texas",'2026_11st_full_geo_base'!$B$7:$B$736,"<>New Mexico", '2026_11st_full_geo_base'!$B$7:$B$736,"<>Arizona", '2026_11st_full_geo_base'!$B$7:$B$736,"<>Colorado", '2026_11st_full_geo_base'!$B$7:$B$736,"<>Utah")+AVERAGEIFS('2026_11st_full_geo_base'!K$7:K$736,'2026_11st_full_geo_base'!$G$7:$G$736,">=71", '2026_11st_full_geo_base'!$B$7:$B$736,"<>California",'2026_11st_full_geo_base'!$B$7:$B$736,"<>Texas",'2026_11st_full_geo_base'!$B$7:$B$736,"<>New Mexico", '2026_11st_full_geo_base'!$B$7:$B$736,"<>Arizona", '2026_11st_full_geo_base'!$B$7:$B$736,"<>Colorado", '2026_11st_full_geo_base'!$B$7:$B$736,"<>Utah"))*B23 -> 0 | AE23: =(-AVERAGEIFS('2026_11st_full_geo_base'!L$7:L$736,'2026_11st_full_geo_base'!$G$7:$G$736,">=71",'2026_11st_full_geo_base'!$B$7:$B$736,"<>California",'2026_11st_full_geo_base'!$B$7:$B$736,"<>Texas",'2026_11st_full_geo_base'!$B$7:$B$736,"<>New Mexico", '2026_11st_full_geo_base'!$B$7:$B$736,"<>Arizona", '2026_11st_full_geo_base'!$B$7:$B$736,"<>Colorado", '2026_11st_full_geo_base'!$B$7:$B$736,"<>Utah")+AVERAGEIFS('2026_11st_full_geo_base'!L$7:L$736,'2026_11st_full_geo_base'!$G$7:$G$736,">=71", '2026_11st_full_geo_base'!$B$7:$B$736,"<>California",'2026_11st_full_geo_base'!$B$7:$B$736,"<>Texas",'2026_11st_full_geo_base'!$B$7:$B$736,"<>New Mexico", '2026_11st_full_geo_base'!$B$7:$B$736,"<>Arizona", '2026_11st_full_geo_base'!$B$7:$B$736,"<>Colorado", '2026_11st_full_geo_base'!$B$7:$B$736,"<>Utah"))*C23 -> 0 | AF23: =(-AVERAGEIFS('2026_11st_full_geo_base'!T$7:T$736,'2026_11st_full_geo_base'!$G$7:$G$736,">=71",'2026_11st_full_geo_base'!$B$7:$B$736,"<>California",'2026_11st_full_geo_base'!$B$7:$B$736,"<>Texas",'2026_11st_full_geo_base'!$B$7:$B$736,"<>New Mexico", '2026_11st_full_geo_base'!$B$7:$B$736,"<>Arizona", '2026_11st_full_geo_base'!$B$7:$B$736,"<>Colorado", '2026_11st_full_geo_base'!$B$7:$B$736,"<>Utah")+AVERAGEIFS('2026_11st_full_geo_base'!T$7:T$736,'2026_11st_full_geo_base'!$G$7:$G$736,">=71", '2026_11st_full_geo_base'!$B$7:$B$736,"<>California",'2026_11st_full_geo_base'!$B$7:$B$736,"<>Texas",'2026_11st_full_geo_base'!$B$7:$B$736,"<>New Mexico", '2026_11st_full_geo_base'!$B$7:$B$736,"<>Arizona", '2026_11st_full_geo_base'!$B$7:$B$736,"<>Colorado", '2026_11st_full_geo_base'!$B$7:$B$736,"<>Utah"))*D23 -> 0 | AG23: =(-AVERAGEIFS('2026_11st_full_geo_base'!U$7:U$736,'2026_11st_full_geo_base'!$G$7:$G$736,">=71",'2026_11st_full_geo_base'!$B$7:$B$736,"<>California",'2026_11st_full_geo_base'!$B$7:$B$736,"<>Texas",'2026_11st_full_geo_base'!$B$7:$B$736,"<>New Mexico", '2026_11st_full_geo_base'!$B$7:$B$736,"<>Arizona", '2026_11st_full_geo_base'!$B$7:$B$736,"<>Colorado", '2026_11st_full_geo_base'!$B$7:$B$736,"<>Utah")+AVERAGEIFS('2026_11st_full_geo_base'!U$7:U$736,'2026_11st_full_geo_base'!$G$7:$G$736,">=71", '2026_11st_full_geo_base'!$B$7:$B$736,"<>California",'2026_11st_full_geo_base'!$B$7:$B$736,"<>Texas",'2026_11st_full_geo_base'!$B$7:$B$736,"<>New Mexico", '2026_11st_full_geo_base'!$B$7:$B$736,"<>Arizona", '2026_11st_full_geo_base'!$B$7:$B$736,"<>Colorado", '2026_11st_full_geo_base'!$B$7:$B$736,"<>Utah"))*E23 -> 0 | AH23: =(-AVERAGEIFS('2026_11st_full_geo_base'!X$7:X$736,'2026_11st_full_geo_base'!$G$7:$G$736,">=71",'2026_11st_full_geo_base'!$B$7:$B$736,"<>California",'2026_11st_full_geo_base'!$B$7:$B$736,"<>Texas",'2026_11st_full_geo_base'!$B$7:$B$736,"<>New Mexico", '2026_11st_full_geo_base'!$B$7:$B$736,"<>Arizona", '2026_11st_full_geo_base'!$B$7:$B$736,"<>Colorado", '2026_11st_full_geo_base'!$B$7:$B$736,"<>Utah")+AVERAGEIFS('2026_11st_full_geo_base'!X$7:X$736,'2026_11st_full_geo_base'!$G$7:$G$736,">=71", '2026_11st_full_geo_base'!$B$7:$B$736,"<>California",'2026_11st_full_geo_base'!$B$7:$B$736,"<>Texas",'2026_11st_full_geo_base'!$B$7:$B$736,"<>New Mexico", '2026_11st_full_geo_base'!$B$7:$B$736,"<>Arizona", '2026_11st_full_geo_base'!$B$7:$B$736,"<>Colorado", '2026_11st_full_geo_base'!$B$7:$B$736,"<>Utah"))*F23 -> 0 | AI23: =(-AVERAGEIFS('2026_11st_full_geo_base'!Y$7:Y$736,'2026_11st_full_geo_base'!$G$7:$G$736,">=71",'2026_11st_full_geo_base'!$B$7:$B$736,"<>California",'2026_11st_full_geo_base'!$B$7:$B$736,"<>Texas",'2026_11st_full_geo_base'!$B$7:$B$736,"<>New Mexico", '2026_11st_full_geo_base'!$B$7:$B$736,"<>Arizona", '2026_11st_full_geo_base'!$B$7:$B$736,"<>Colorado", '2026_11st_full_geo_base'!$B$7:$B$736,"<>Utah")+AVERAGEIFS('2026_11st_full_geo_base'!Y$7:Y$736,'2026_11st_full_geo_base'!$G$7:$G$736,">=71", '2026_11st_full_geo_base'!$B$7:$B$736,"<>California",'2026_11st_full_geo_base'!$B$7:$B$736,"<>Texas",'2026_11st_full_geo_base'!$B$7:$B$736,"<>New Mexico", '2026_11st_full_geo_base'!$B$7:$B$736,"<>Arizona", '2026_11st_full_geo_base'!$B$7:$B$736,"<>Colorado", '2026_11st_full_geo_base'!$B$7:$B$736,"<>Utah"))*G23 -> 0 | AJ23: =(-AVERAGEIFS('2026_11st_full_geo_base'!AA$7:AA$736,'2026_11st_full_geo_base'!$G$7:$G$736,">=71",'2026_11st_full_geo_base'!$B$7:$B$736,"<>California",'2026_11st_full_geo_base'!$B$7:$B$736,"<>Texas",'2026_11st_full_geo_base'!$B$7:$B$736,"<>New Mexico", '2026_11st_full_geo_base'!$B$7:$B$736,"<>Arizona", '2026_11st_full_geo_base'!$B$7:$B$736,"<>Colorado", '2026_11st_full_geo_base'!$B$7:$B$736,"<>Utah")+AVERAGEIFS('2026_11st_full_geo_base'!AA$7:AA$736,'2026_11st_full_geo_base'!$G$7:$G$736,">=71", '2026_11st_full_geo_base'!$B$7:$B$736,"<>California",'2026_11st_full_geo_base'!$B$7:$B$736,"<>Texas",'2026_11st_full_geo_base'!$B$7:$B$736,"<>New Mexico", '2026_11st_full_geo_base'!$B$7:$B$736,"<>Arizona", '2026_11st_full_geo_base'!$B$7:$B$736,"<>Colorado", '2026_11st_full_geo_base'!$B$7:$B$736,"<>Utah"))*H23 -> 0 | AK23: =(-AVERAGEIFS('2026_11st_full_geo_base'!AC$7:AC$736,'2026_11st_full_geo_base'!$G$7:$G$736,">=71",'2026_11st_full_geo_base'!$B$7:$B$736,"<>California",'2026_11st_full_geo_base'!$B$7:$B$736,"<>Texas",'2026_11st_full_geo_base'!$B$7:$B$736,"<>New Mexico", '2026_11st_full_geo_base'!$B$7:$B$736,"<>Arizona", '2026_11st_full_geo_base'!$B$7:$B$736,"<>Colorado", '2026_11st_full_geo_base'!$B$7:$B$736,"<>Utah")+AVERAGEIFS('2026_11st_full_geo_base'!AC$7:AC$736,'2026_11st_full_geo_base'!$G$7:$G$736,">=71", '2026_11st_full_geo_base'!$B$7:$B$736,"<>California",'2026_11st_full_geo_base'!$B$7:$B$736,"<>Texas",'2026_11st_full_geo_base'!$B$7:$B$736,"<>New Mexico", '2026_11st_full_geo_base'!$B$7:$B$736,"<>Arizona", '2026_11st_full_geo_base'!$B$7:$B$736,"<>Colorado", '2026_11st_full_geo_base'!$B$7:$B$736,"<>Utah"))*I23 -> 0 | AL23: =(-AVERAGEIFS('2026_11st_full_geo_base'!AE$7:AE$736,'2026_11st_full_geo_base'!$G$7:$G$736,">=71",'2026_11st_full_geo_base'!$B$7:$B$736,"<>California",'2026_11st_full_geo_base'!$B$7:$B$736,"<>Texas",'2026_11st_full_geo_base'!$B$7:$B$736,"<>New Mexico", '2026_11st_full_geo_base'!$B$7:$B$736,"<>Arizona", '2026_11st_full_geo_base'!$B$7:$B$736,"<>Colorado", '2026_11st_full_geo_base'!$B$7:$B$736,"<>Utah")+AVERAGEIFS('2026_11st_full_geo_base'!AE$7:AE$736,'2026_11st_full_geo_base'!$G$7:$G$736,">=71", '2026_11st_full_geo_base'!$B$7:$B$736,"<>California",'2026_11st_full_geo_base'!$B$7:$B$736,"<>Texas",'2026_11st_full_geo_base'!$B$7:$B$736,"<>New Mexico", '2026_11st_full_geo_base'!$B$7:$B$736,"<>Arizona", '2026_11st_full_geo_base'!$B$7:$B$736,"<>Colorado", '2026_11st_full_geo_base'!$B$7:$B$736,"<>Utah"))*J23 -> 0 | AM23: =(-AVERAGEIFS('2026_11st_full_geo_base'!AF$7:AF$736,'2026_11st_full_geo_base'!$G$7:$G$736,">=71",'2026_11st_full_geo_base'!$B$7:$B$736,"<>California",'2026_11st_full_geo_base'!$B$7:$B$736,"<>Texas",'2026_11st_full_geo_base'!$B$7:$B$736,"<>New Mexico", '2026_11st_full_geo_base'!$B$7:$B$736,"<>Arizona", '2026_11st_full_geo_base'!$B$7:$B$736,"<>Colorado", '2026_11st_full_geo_base'!$B$7:$B$736,"<>Utah")+AVERAGEIFS('2026_11st_full_geo_base'!AF$7:AF$736,'2026_11st_full_geo_base'!$G$7:$G$736,">=71", '2026_11st_full_geo_base'!$B$7:$B$736,"<>California",'2026_11st_full_geo_base'!$B$7:$B$736,"<>Texas",'2026_11st_full_geo_base'!$B$7:$B$736,"<>New Mexico", '2026_11st_full_geo_base'!$B$7:$B$736,"<>Arizona", '2026_11st_full_geo_base'!$B$7:$B$736,"<>Colorado", '2026_11st_full_geo_base'!$B$7:$B$736,"<>Utah"))*K23 -> 0 | AN23: =(-AVERAGEIFS('2026_11st_full_geo_base'!AI$7:AI$736,'2026_11st_full_geo_base'!$G$7:$G$736,">=71",'2026_11st_full_geo_base'!$B$7:$B$736,"<>California",'2026_11st_full_geo_base'!$B$7:$B$736,"<>Texas",'2026_11st_full_geo_base'!$B$7:$B$736,"<>New Mexico", '2026_11st_full_geo_base'!$B$7:$B$736,"<>Arizona", '2026_11st_full_geo_base'!$B$7:$B$736,"<>Colorado", '2026_11st_full_geo_base'!$B$7:$B$736,"<>Utah")+AVERAGEIFS('2026_11st_full_geo_base'!AI$7:AI$736,'2026_11st_full_geo_base'!$G$7:$G$736,">=71", '2026_11st_full_geo_base'!$B$7:$B$736,"<>California",'2026_11st_full_geo_base'!$B$7:$B$736,"<>Texas",'2026_11st_full_geo_base'!$B$7:$B$736,"<>New Mexico", '2026_11st_full_geo_base'!$B$7:$B$736,"<>Arizona", '2026_11st_full_geo_base'!$B$7:$B$736,"<>Colorado", '2026_11st_full_geo_base'!$B$7:$B$736,"<>Utah"))*L23 -> 0 | AO23: =(-AVERAGEIFS('2026_11st_full_geo_base'!AK$7:AK$736,'2026_11st_full_geo_base'!$G$7:$G$736,">=71",'2026_11st_full_geo_base'!$B$7:$B$736,"<>California",'2026_11st_full_geo_base'!$B$7:$B$736,"<>Texas",'2026_11st_full_geo_base'!$B$7:$B$736,"<>New Mexico", '2026_11st_full_geo_base'!$B$7:$B$736,"<>Arizona", '2026_11st_full_geo_base'!$B$7:$B$736,"<>Colorado", '2026_11st_full_geo_base'!$B$7:$B$736,"<>Utah")+AVERAGEIFS('2026_11st_full_geo_base'!AK$7:AK$736,'2026_11st_full_geo_base'!$G$7:$G$736,">=71", '2026_11st_full_geo_base'!$B$7:$B$736,"<>California",'2026_11st_full_geo_base'!$B$7:$B$736,"<>Texas",'2026_11st_full_geo_base'!$B$7:$B$736,"<>New Mexico", '2026_11st_full_geo_base'!$B$7:$B$736,"<>Arizona", '2026_11st_full_geo_base'!$B$7:$B$736,"<>Colorado", '2026_11st_full_geo_base'!$B$7:$B$736,"<>Utah"))*M23 -> 0 | AP23: =(-AVERAGEIFS('2026_11st_full_geo_base'!AM$7:AM$736,'2026_11st_full_geo_base'!$G$7:$G$736,">=71",'2026_11st_full_geo_base'!$B$7:$B$736,"<>California",'2026_11st_full_geo_base'!$B$7:$B$736,"<>Texas",'2026_11st_full_geo_base'!$B$7:$B$736,"<>New Mexico", '2026_11st_full_geo_base'!$B$7:$B$736,"<>Arizona", '2026_11st_full_geo_base'!$B$7:$B$736,"<>Colorado", '2026_11st_full_geo_base'!$B$7:$B$736,"<>Utah")+AVERAGEIFS('2026_11st_full_geo_base'!AM$7:AM$736,'2026_11st_full_geo_base'!$G$7:$G$736,">=71", '2026_11st_full_geo_base'!$B$7:$B$736,"<>California",'2026_11st_full_geo_base'!$B$7:$B$736,"<>Texas",'2026_11st_full_geo_base'!$B$7:$B$736,"<>New Mexico", '2026_11st_full_geo_base'!$B$7:$B$736,"<>Arizona", '2026_11st_full_geo_base'!$B$7:$B$736,"<>Colorado", '2026_11st_full_geo_base'!$B$7:$B$736,"<>Utah"))*N23 -> 0 | AQ23: =(-AVERAGEIFS('2026_11st_full_geo_base'!AP$7:AP$736,'2026_11st_full_geo_base'!$G$7:$G$736,">=71",'2026_11st_full_geo_base'!$B$7:$B$736,"<>California",'2026_11st_full_geo_base'!$B$7:$B$736,"<>Texas",'2026_11st_full_geo_base'!$B$7:$B$736,"<>New Mexico", '2026_11st_full_geo_base'!$B$7:$B$736,"<>Arizona", '2026_11st_full_geo_base'!$B$7:$B$736,"<>Colorado", '2026_11st_full_geo_base'!$B$7:$B$736,"<>Utah")+AVERAGEIFS('2026_11st_full_geo_base'!AP$7:AP$736,'2026_11st_full_geo_base'!$G$7:$G$736,">=71", '2026_11st_full_geo_base'!$B$7:$B$736,"<>California",'2026_11st_full_geo_base'!$B$7:$B$736,"<>Texas",'2026_11st_full_geo_base'!$B$7:$B$736,"<>New Mexico", '2026_11st_full_geo_base'!$B$7:$B$736,"<>Arizona", '2026_11st_full_geo_base'!$B$7:$B$736,"<>Colorado", '2026_11st_full_geo_base'!$B$7:$B$736,"<>Utah"))*O23 -> 0 | AR23: =(-AVERAGEIFS('2026_11st_full_geo_base'!AQ$7:AQ$736,'2026_11st_full_geo_base'!$G$7:$G$736,">=71",'2026_11st_full_geo_base'!$B$7:$B$736,"<>California",'2026_11st_full_geo_base'!$B$7:$B$736,"<>Texas",'2026_11st_full_geo_base'!$B$7:$B$736,"<>New Mexico", '2026_11st_full_geo_base'!$B$7:$B$736,"<>Arizona", '2026_11st_full_geo_base'!$B$7:$B$736,"<>Colorado", '2026_11st_full_geo_base'!$B$7:$B$736,"<>Utah")+AVERAGEIFS('2026_11st_full_geo_base'!AQ$7:AQ$736,'2026_11st_full_geo_base'!$G$7:$G$736,">=71", '2026_11st_full_geo_base'!$B$7:$B$736,"<>California",'2026_11st_full_geo_base'!$B$7:$B$736,"<>Texas",'2026_11st_full_geo_base'!$B$7:$B$736,"<>New Mexico", '2026_11st_full_geo_base'!$B$7:$B$736,"<>Arizona", '2026_11st_full_geo_base'!$B$7:$B$736,"<>Colorado", '2026_11st_full_geo_base'!$B$7:$B$736,"<>Utah"))*P23 -> 0 | AS23: =(-AVERAGEIFS('2026_11st_full_geo_base'!AS$7:AS$736,'2026_11st_full_geo_base'!$G$7:$G$736,">=71",'2026_11st_full_geo_base'!$B$7:$B$736,"<>California",'2026_11st_full_geo_base'!$B$7:$B$736,"<>Texas",'2026_11st_full_geo_base'!$B$7:$B$736,"<>New Mexico", '2026_11st_full_geo_base'!$B$7:$B$736,"<>Arizona", '2026_11st_full_geo_base'!$B$7:$B$736,"<>Colorado", '2026_11st_full_geo_base'!$B$7:$B$736,"<>Utah")+AVERAGEIFS('2026_11st_full_geo_base'!AS$7:AS$736,'2026_11st_full_geo_base'!$G$7:$G$736,">=71", '2026_11st_full_geo_base'!$B$7:$B$736,"<>California",'2026_11st_full_geo_base'!$B$7:$B$736,"<>Texas",'2026_11st_full_geo_base'!$B$7:$B$736,"<>New Mexico", '2026_11st_full_geo_base'!$B$7:$B$736,"<>Arizona", '2026_11st_full_geo_base'!$B$7:$B$736,"<>Colorado", '2026_11st_full_geo_base'!$B$7:$B$736,"<>Utah"))*Q23 -> 0 | AT23: =(-AVERAGEIFS('2026_11st_full_geo_base'!AX$7:AX$736,'2026_11st_full_geo_base'!$G$7:$G$736,">=71",'2026_11st_full_geo_base'!$B$7:$B$736,"<>California",'2026_11st_full_geo_base'!$B$7:$B$736,"<>Texas",'2026_11st_full_geo_base'!$B$7:$B$736,"<>New Mexico", '2026_11st_full_geo_base'!$B$7:$B$736,"<>Arizona", '2026_11st_full_geo_base'!$B$7:$B$736,"<>Colorado", '2026_11st_full_geo_base'!$B$7:$B$736,"<>Utah")+AVERAGEIFS('2026_11st_full_geo_base'!AX$7:AX$736,'2026_11st_full_geo_base'!$G$7:$G$736,">=71", '2026_11st_full_geo_base'!$B$7:$B$736,"<>California",'2026_11st_full_geo_base'!$B$7:$B$736,"<>Texas",'2026_11st_full_geo_base'!$B$7:$B$736,"<>New Mexico", '2026_11st_full_geo_base'!$B$7:$B$736,"<>Arizona", '2026_11st_full_geo_base'!$B$7:$B$736,"<>Colorado", '2026_11st_full_geo_base'!$B$7:$B$736,"<>Utah"))*R23 -> 0 | AU23: =(-AVERAGEIFS('2026_11st_full_geo_base'!AY$7:AY$736,'2026_11st_full_geo_base'!$G$7:$G$736,">=71",'2026_11st_full_geo_base'!$B$7:$B$736,"<>California",'2026_11st_full_geo_base'!$B$7:$B$736,"<>Texas",'2026_11st_full_geo_base'!$B$7:$B$736,"<>New Mexico", '2026_11st_full_geo_base'!$B$7:$B$736,"<>Arizona", '2026_11st_full_geo_base'!$B$7:$B$736,"<>Colorado", '2026_11st_full_geo_base'!$B$7:$B$736,"<>Utah")+AVERAGEIFS('2026_11st_full_geo_base'!AY$7:AY$736,'2026_11st_full_geo_base'!$G$7:$G$736,">=71", '2026_11st_full_geo_base'!$B$7:$B$736,"<>California",'2026_11st_full_geo_base'!$B$7:$B$736,"<>Texas",'2026_11st_full_geo_base'!$B$7:$B$736,"<>New Mexico", '2026_11st_full_geo_base'!$B$7:$B$736,"<>Arizona", '2026_11st_full_geo_base'!$B$7:$B$736,"<>Colorado", '2026_11st_full_geo_base'!$B$7:$B$736,"<>Utah"))*S23 -> 0 | AV23: =(-AVERAGEIFS('2026_11st_full_geo_base'!BA$7:BA$736,'2026_11st_full_geo_base'!$G$7:$G$736,">=71",'2026_11st_full_geo_base'!$B$7:$B$736,"<>California",'2026_11st_full_geo_base'!$B$7:$B$736,"<>Texas",'2026_11st_full_geo_base'!$B$7:$B$736,"<>New Mexico", '2026_11st_full_geo_base'!$B$7:$B$736,"<>Arizona", '2026_11st_full_geo_base'!$B$7:$B$736,"<>Colorado", '2026_11st_full_geo_base'!$B$7:$B$736,"<>Utah")+AVERAGEIFS('2026_11st_full_geo_base'!BA$7:BA$736,'2026_11st_full_geo_base'!$G$7:$G$736,">=71", '2026_11st_full_geo_base'!$B$7:$B$736,"<>California",'2026_11st_full_geo_base'!$B$7:$B$736,"<>Texas",'2026_11st_full_geo_base'!$B$7:$B$736,"<>New Mexico", '2026_11st_full_geo_base'!$B$7:$B$736,"<>Arizona", '2026_11st_full_geo_base'!$B$7:$B$736,"<>Colorado", '2026_11st_full_geo_base'!$B$7:$B$736,"<>Utah"))*T23 -> 0 | AW23: =(-AVERAGEIFS('2026_11st_full_geo_base'!BC$7:BC$736,'2026_11st_full_geo_base'!$G$7:$G$736,">=71",'2026_11st_full_geo_base'!$B$7:$B$736,"<>California",'2026_11st_full_geo_base'!$B$7:$B$736,"<>Texas",'2026_11st_full_geo_base'!$B$7:$B$736,"<>New Mexico", '2026_11st_full_geo_base'!$B$7:$B$736,"<>Arizona", '2026_11st_full_geo_base'!$B$7:$B$736,"<>Colorado", '2026_11st_full_geo_base'!$B$7:$B$736,"<>Utah")+AVERAGEIFS('2026_11st_full_geo_base'!BC$7:BC$736,'2026_11st_full_geo_base'!$G$7:$G$736,">=71", '2026_11st_full_geo_base'!$B$7:$B$736,"<>California",'2026_11st_full_geo_base'!$B$7:$B$736,"<>Texas",'2026_11st_full_geo_base'!$B$7:$B$736,"<>New Mexico", '2026_11st_full_geo_base'!$B$7:$B$736,"<>Arizona", '2026_11st_full_geo_base'!$B$7:$B$736,"<>Colorado", '2026_11st_full_geo_base'!$B$7:$B$736,"<>Utah"))*U23 -> 0 | AX23: =(-AVERAGEIFS('2026_11st_full_geo_base'!BF$7:BF$736,'2026_11st_full_geo_base'!$G$7:$G$736,">=71",'2026_11st_full_geo_base'!$B$7:$B$736,"<>California",'2026_11st_full_geo_base'!$B$7:$B$736,"<>Texas",'2026_11st_full_geo_base'!$B$7:$B$736,"<>New Mexico", '2026_11st_full_geo_base'!$B$7:$B$736,"<>Arizona", '2026_11st_full_geo_base'!$B$7:$B$736,"<>Colorado", '2026_11st_full_geo_base'!$B$7:$B$736,"<>Utah")+AVERAGEIFS('2026_11st_full_geo_base'!BF$7:BF$736,'2026_11st_full_geo_base'!$G$7:$G$736,">=71", '2026_11st_full_geo_base'!$B$7:$B$736,"<>California",'2026_11st_full_geo_base'!$B$7:$B$736,"<>Texas",'2026_11st_full_geo_base'!$B$7:$B$736,"<>New Mexico", '2026_11st_full_geo_base'!$B$7:$B$736,"<>Arizona", '2026_11st_full_geo_base'!$B$7:$B$736,"<>Colorado", '2026_11st_full_geo_base'!$B$7:$B$736,"<>Utah"))*S23 -> 0
B25: states to include in the average 1 = yes, 0 = no | BA25: Average Ozone Improvement
B26: 0 | C26: 0 | D26: 1 | E26: 1 | F26: 0 | G26: 0 | H26: 1 | I26: 1 | J26: 0 | K26: 0 | L26: 0 | M26: 1 | N26: 1 | O26: 1 | P26: 0 | Q26: 1 | R26: 0 | S26: 0 | T26: 1 | U26: 0 | X26: =OFFSET(X$18,$BA$11,0) -> -0.03889106631 | Y26: 0 | Z26: 0 | AA26: 0 | AB26: 0 | AC26: 0 | AD26: =IF(B26=1,OFFSET(AD$18,$BA$11,0),0) -> 0 | AE26: 0 | AF26: 0.01988790734 | AG26: 0.1096285317 | AH26: 0 | AI26: 0 | AJ26: 0.003219576539 | AK26: 0.04416949767 | AL26: 0 | AM26: 0 | AN26: 0 | AO26: -0.00686339417 | AP26: 0.03620474383 | AQ26: 0.06754577163 | AR26: 0 | AS26: 0.09850105027 | AT26: 0 | AU26: 0 | AV26: 0.02534142209 | AW26: 0 | AX26: =IF(S26=1,OFFSET(AX$18,$BA$11,0),0) -> 0 | BA26: =SUM(X26:AY26) -> 0.36 | BC26: 11 state | BD26: 0.36 | BE26: 0.13 | BF26: 0.05 | BG26: 0.05 | BH26: 0

Sheet Summary_Full_Geography_GNP
B5: states to include in the average 1 = yes, 0 = no | X5: Average air quality improvement by state for receptors in the GNP.
X6: nonstate | Y6: AZ | Z6: CO | AA6: CT | AB6: WI | AC6: NM | AD6: AR | AE6: CA | AF6: IL | AG6: IN | AH6: KY | AI6: LA | AJ6: MD | AK6: MI | AL6: MS | AM6: MO | AN6: NV | AO6: NJ | AP6: NY | AQ6: OH | AR6: OK | AS6: PA | AT6: TX | AU6: UT | AV6: VA | AW6: WV | AX6: TRIBAL
B7: 1 | C7: 1 | D7: 1 | E7: 1 | F7: 1 | G7: 1 | H7: 1 | I7: 1 | J7: 1 | K7: 1 | L7: 1 | M7: 1 | N7: 1 | O7: 1 | P7: 1 | Q7: 1 | R7: 1 | S7: 1 | T7: 1 | U7: 1 | W7: 2026_step3_nonEGU | X7: =(-AVERAGEIFS('2026_full_geo_nonEGU'!BV$7:BV$736,'2026_full_geo_base'!$G$7:$G$736,">=71",'2026_full_geo_base'!$B$7:$B$736,"<>California")+AVERAGEIFS('2026_full_geo_base'!BV$7:BV$736,'2026_full_geo_base'!$G$7:$G$736,">=71", '2026_full_geo_base'!$B$7:$B$736,"<>California"))*1 -> -0.04674822904 | Y7: =(-AVERAGEIFS('2026_full_geo_nonEGU'!J$7:J$736,'2026_full_geo_base'!$G$7:$G$736,">=71",'2026_full_geo_base'!$B$7:$B$736,"<>California")+AVERAGEIFS('2026_full_geo_base'!J$7:J$736,'2026_full_geo_base'!$G$7:$G$736,">=71", '2026_full_geo_base'!$B$7:$B$736,"<>California"))*1 -> 0 | Z7: =(-AVERAGEIFS('2026_full_geo_nonEGU'!M$7:M$736,'2026_full_geo_base'!$G$7:$G$736,">=71",'2026_full_geo_base'!$B$7:$B$736,"<>California")+AVERAGEIFS('2026_full_geo_base'!M$7:M$736,'2026_full_geo_base'!$G$7:$G$736,">=71", '2026_full_geo_base'!$B$7:$B$736,"<>California"))*1 -> 0 | AA7: =(-AVERAGEIFS('2026_full_geo_nonEGU'!N$7:N$736,'2026_full_geo_base'!$G$7:$G$736,">=71",'2026_full_geo_base'!$B$7:$B$736,"<>California")+AVERAGEIFS('2026_full_geo_base'!N$7:N$736,'2026_full_geo_base'!$G$7:$G$736,">=71", '2026_full_geo_base'!$B$7:$B$736,"<>California"))*1 -> 0 | AB7: =(-AVERAGEIFS('2026_full_geo_nonEGU'!BD$7:BD$736,'2026_full_geo_base'!$G$7:$G$736,">=71",'2026_full_geo_base'!$B$7:$B$736,"<>California")+AVERAGEIFS('2026_full_geo_base'!BD$7:BD$736,'2026_full_geo_base'!$G$7:$G$736,">=71", '2026_full_geo_base'!$B$7:$B$736,"<>California"))*1 -> 0 | AC7: =(-AVERAGEIFS('2026_full_geo_nonEGU'!AL$7:AL$736,'2026_full_geo_base'!$G$7:$G$736,">=71",'2026_full_geo_base'!$B$7:$B$736,"<>California")+AVERAGEIFS('2026_full_geo_base'!AL$7:AL$736,'2026_full_geo_base'!$G$7:$G$736,">=71", '2026_full_geo_base'!$B$7:$B$736,"<>California"))*1 -> 0 | AD7: =(-AVERAGEIFS('2026_full_geo_nonEGU'!K$7:K$736,'2026_full_geo_base'!$G$7:$G$736,">=71",'2026_full_geo_base'!$B$7:$B$736,"<>California")+AVERAGEIFS('2026_full_geo_base'!K$7:K$736,'2026_full_geo_base'!$G$7:$G$736,">=71", '2026_full_geo_base'!$B$7:$B$736,"<>California"))*B7 -> 0.02405791797 | AE7: =(-AVERAGEIFS('2026_full_geo_nonEGU'!L$7:L$736,'2026_full_geo_base'!$G$7:$G$736,">=71",'2026_full_geo_base'!$B$7:$B$736,"<>California")+AVERAGEIFS('2026_full_geo_base'!L$7:L$736,'2026_full_geo_base'!$G$7:$G$736,">=71", '2026_full_geo_base'!$B$7:$B$736,"<>California"))*C7 -> 0.0124114051 | AF7: =(-AVERAGEIFS('2026_full_geo_nonEGU'!T$7:T$736,'2026_full_geo_base'!$G$7:$G$736,">=71",'2026_full_geo_base'!$B$7:$B$736,"<>California")+AVERAGEIFS('2026_full_geo_base'!T$7:T$736,'2026_full_geo_base'!$G$7:$G$736,">=71", '2026_full_geo_base'!$B$7:$B$736,"<>California"))*D7 -> 0.003906131896 | AG7: =(-AVERAGEIFS('2026_full_geo_nonEGU'!U$7:U$736,'2026_full_geo_base'!$G$7:$G$736,">=71",'2026_full_geo_base'!$B$7:$B$736,"<>California")+AVERAGEIFS('2026_full_geo_base'!U$7:U$736,'2026_full_geo_base'!$G$7:$G$736,">=71", '2026_full_geo_base'!$B$7:$B$736,"<>California"))*E7 -> 0.02016500742 | AH7: =(-AVERAGEIFS('2026_full_geo_nonEGU'!X$7:X$736,'2026_full_geo_base'!$G$7:$G$736,">=71",'2026_full_geo_base'!$B$7:$B$736,"<>California")+AVERAGEIFS('2026_full_geo_base'!X$7:X$736,'2026_full_geo_base'!$G$7:$G$736,">=71", '2026_full_geo_base'!$B$7:$B$736,"<>California"))*F7 -> 0.01685957118 | AI7: =(-AVERAGEIFS('2026_full_geo_nonEGU'!Y$7:Y$736,'2026_full_geo_base'!$G$7:$G$736,">=71",'2026_full_geo_base'!$B$7:$B$736,"<>California")+AVERAGEIFS('2026_full_geo_base'!Y$7:Y$736,'2026_full_geo_base'!$G$7:$G$736,">=71", '2026_full_geo_base'!$B$7:$B$736,"<>California"))*G7 -> 0.1095652787 | AJ7: =(-AVERAGEIFS('2026_full_geo_nonEGU'!AA$7:AA$736,'2026_full_geo_base'!$G$7:$G$736,">=71",'2026_full_geo_base'!$B$7:$B$736,"<>California")+AVERAGEIFS('2026_full_geo_base'!AA$7:AA$736,'2026_full_geo_base'!$G$7:$G$736,">=71", '2026_full_geo_base'!$B$7:$B$736,"<>California"))*H7 -> 0.0005720996446 | AK7: =(-AVERAGEIFS('2026_full_geo_nonEGU'!AC$7:AC$736,'2026_full_geo_base'!$G$7:$G$736,">=71",'2026_full_geo_base'!$B$7:$B$736,"<>California")+AVERAGEIFS('2026_full_geo_base'!AC$7:AC$736,'2026_full_geo_base'!$G$7:$G$736,">=71", '2026_full_geo_base'!$B$7:$B$736,"<>California"))*I7 -> 0.008303355506 | AL7: =(-AVERAGEIFS('2026_full_geo_nonEGU'!AE$7:AE$736,'2026_full_geo_base'!$G$7:$G$736,">=71",'2026_full_geo_base'!$B$7:$B$736,"<>California")+AVERAGEIFS('2026_full_geo_base'!AE$7:AE$736,'2026_full_geo_base'!$G$7:$G$736,">=71", '2026_full_geo_base'!$B$7:$B$736,"<>California"))*J7 -> 0.0206832265 | AM7: =(-AVERAGEIFS('2026_full_geo_nonEGU'!AF$7:AF$736,'2026_full_geo_base'!$G$7:$G$736,">=71",'2026_full_geo_base'!$B$7:$B$736,"<>California")+AVERAGEIFS('2026_full_geo_base'!AF$7:AF$736,'2026_full_geo_base'!$G$7:$G$736,">=71", '2026_full_geo_base'!$B$7:$B$736,"<>California"))*K7 -> 0.02395099914 | AN7: =(-AVERAGEIFS('2026_full_geo_nonEGU'!AI$7:AI$736,'2026_full_geo_base'!$G$7:$G$736,">=71",'2026_full_geo_base'!$B$7:$B$736,"<>California")+AVERAGEIFS('2026_full_geo_base'!AI$7:AI$736,'2026_full_geo_base'!$G$7:$G$736,">=71", '2026_full_geo_base'!$B$7:$B$736,"<>California"))*L7 -> 4.056373508e-05 | AO7: =(-AVERAGEIFS('2026_full_geo_nonEGU'!AK$7:AK$736,'2026_full_geo_base'!$G$7:$G$736,">=71",'2026_full_geo_base'!$B$7:$B$736,"<>California")+AVERAGEIFS('2026_full_geo_base'!AK$7:AK$736,'2026_full_geo_base'!$G$7:$G$736,">=71", '2026_full_geo_base'!$B$7:$B$736,"<>California"))*M7 -> -0.001203807821 | AP7: =(-AVERAGEIFS('2026_full_geo_nonEGU'!AM$7:AM$736,'2026_full_geo_base'!$G$7:$G$736,">=71",'2026_full_geo_base'!$B$7:$B$736,"<>California")+AVERAGEIFS('2026_full_geo_base'!AM$7:AM$736,'2026_full_geo_base'!$G$7:$G$736,">=71", '2026_full_geo_base'!$B$7:$B$736,"<>California"))*N7 -> 0.006417612712 | AQ7: =(-AVERAGEIFS('2026_full_geo_nonEGU'!AP$7:AP$736,'2026_full_geo_base'!$G$7:$G$736,">=71",'2026_full_geo_base'!$B$7:$B$736,"<>California")+AVERAGEIFS('2026_full_geo_base'!AP$7:AP$736,'2026_full_geo_base'!$G$7:$G$736,">=71", '2026_full_geo_base'!$B$7:$B$736,"<>California"))*O7 -> 0.01258911418 | AR7: =(-AVERAGEIFS('2026_full_geo_nonEGU'!AQ$7:AQ$736,'2026_full_geo_base'!$G$7:$G$736,">=71",'2026_full_geo_base'!$B$7:$B$736,"<>California")+AVERAGEIFS('2026_full_geo_base'!AQ$7:AQ$736,'2026_full_geo_base'!$G$7:$G$736,">=71", '2026_full_geo_base'!$B$7:$B$736,"<>California"))*P7 -> 0.01794084553 | AS7: =(-AVERAGEIFS('2026_full_geo_nonEGU'!AS$7:AS$736,'2026_full_geo_base'!$G$7:$G$736,">=71",'2026_full_geo_base'!$B$7:$B$736,"<>California")+AVERAGEIFS('2026_full_geo_base'!AS$7:AS$736,'2026_full_geo_base'!$G$7:$G$736,">=71", '2026_full_geo_base'!$B$7:$B$736,"<>California"))*Q7 -> 0.01744141354 | AT7: =(-AVERAGEIFS('2026_full_geo_nonEGU'!AX$7:AX$736,'2026_full_geo_base'!$G$7:$G$736,">=71",'2026_full_geo_base'!$B$7:$B$736,"<>California")+AVERAGEIFS('2026_full_geo_base'!AX$7:AX$736,'2026_full_geo_base'!$G$7:$G$736,">=71", '2026_full_geo_base'!$B$7:$B$736,"<>California"))*R7 -> 0.2056787513 | AU7: =(-AVERAGEIFS('2026_full_geo_nonEGU'!AY$7:AY$736,'2026_full_geo_base'!$G$7:$G$736,">=71",'2026_full_geo_base'!$B$7:$B$736,"<>California")+AVERAGEIFS('2026_full_geo_base'!AY$7:AY$736,'2026_full_geo_base'!$G$7:$G$736,">=71", '2026_full_geo_base'!$B$7:$B$736,"<>California"))*S7 -> 0.1211304534 | AV7: =(-AVERAGEIFS('2026_full_geo_nonEGU'!BA$7:BA$736,'2026_full_geo_base'!$G$7:$G$736,">=71",'2026_full_geo_base'!$B$7:$B$736,"<>California")+AVERAGEIFS('2026_full_geo_base'!BA$7:BA$736,'2026_full_geo_base'!$G$7:$G$736,">=71", '2026_full_geo_base'!$B$7:$B$736,"<>California"))*T7 -> 0.004569308848 | AW7: =(-AVERAGEIFS('2026_full_geo_nonEGU'!BC$7:BC$736,'2026_full_geo_base'!$G$7:$G$736,">=71",'2026_full_geo_base'!$B$7:$B$736,"<>California")+AVERAGEIFS('2026_full_geo_base'!BC$7:BC$736,'2026_full_geo_base'!$G$7:$G$736,">=71", '2026_full_geo_base'!$B$7:$B$736,"<>California"))*U7 -> 0.01512889554 | AX7: =(-AVERAGEIFS('2026_full_geo_nonEGU'!BF$7:BF$736,'2026_full_geo_base'!$G$7:$G$736,">=71",'2026_full_geo_base'!$B$7:$B$736,"<>California")+AVERAGEIFS('2026_full_geo_base'!BF$7:BF$736,'2026_full_geo_base'!$G$7:$G$736,">=71", '2026_full_geo_base'!$B$7:$B$736,"<>California"))*S7 -> 0.01007545621
B8: 1 | C8: 1 | D8: 1 | E8: 1 | F8: 1 | G8: 1 | H8: 1 | I8: 1 | J8: 1 | K8: 1 | L8: 1 | M8: 1 | N8: 1 | O8: 1 | P8: 1 | Q8: 1 | R8: 1 | S8: 1 | T8: 1 | U8: 1 | W8: 2026_step3_newSCR | X8: =(-AVERAGEIFS('2026_full_geo_newSCR'!BV$7:BV$736,'2026_full_geo_base'!$G$7:$G$736,">=71",'2026_full_geo_base'!$B$7:$B$736,"<>California")+AVERAGEIFS('2026_full_geo_base'!BV$7:BV$736,'2026_full_geo_base'!$G$7:$G$736,">=71", '2026_full_geo_base'!$B$7:$B$736,"<>California"))*1 -> -0.02850874247 | Y8: =(-AVERAGEIFS('2026_full_geo_newSCR'!J$7:J$736,'2026_full_geo_base'!$G$7:$G$736,">=71",'2026_full_geo_base'!$B$7:$B$736,"<>California")+AVERAGEIFS('2026_full_geo_base'!J$7:J$736,'2026_full_geo_base'!$G$7:$G$736,">=71", '2026_full_geo_base'!$B$7:$B$736,"<>California"))*1 -> 0 | Z8: =(-AVERAGEIFS('2026_full_geo_newSCR'!M$7:M$736,'2026_full_geo_base'!$G$7:$G$736,">=71",'2026_full_geo_base'!$B$7:$B$736,"<>California")+AVERAGEIFS('2026_full_geo_base'!M$7:M$736,'2026_full_geo_base'!$G$7:$G$736,">=71", '2026_full_geo_base'!$B$7:$B$736,"<>California"))*1 -> 0 | AA8: =(-AVERAGEIFS('2026_full_geo_newSCR'!N$7:N$736,'2026_full_geo_base'!$G$7:$G$736,">=71",'2026_full_geo_base'!$B$7:$B$736,"<>California")+AVERAGEIFS('2026_full_geo_base'!N$7:N$736,'2026_full_geo_base'!$G$7:$G$736,">=71", '2026_full_geo_base'!$B$7:$B$736,"<>California"))*1 -> 0 | AB8: =(-AVERAGEIFS('2026_full_geo_newSCR'!BD$7:BD$736,'2026_full_geo_base'!$G$7:$G$736,">=71",'2026_full_geo_base'!$B$7:$B$736,"<>California")+AVERAGEIFS('2026_full_geo_base'!BD$7:BD$736,'2026_full_geo_base'!$G$7:$G$736,">=71", '2026_full_geo_base'!$B$7:$B$736,"<>California"))*1 -> 0 | AC8: =(-AVERAGEIFS('2026_full_geo_newSCR'!AL$7:AL$736,'2026_full_geo_base'!$G$7:$G$736,">=71",'2026_full_geo_base'!$B$7:$B$736,"<>California")+AVERAGEIFS('2026_full_geo_base'!AL$7:AL$736,'2026_full_geo_base'!$G$7:$G$736,">=71", '2026_full_geo_base'!$B$7:$B$736,"<>California"))*1 -> 0 | AD8: =(-AVERAGEIFS('2026_full_geo_newSCR'!K$7:K$736,'2026_full_geo_base'!$G$7:$G$736,">=71",'2026_full_geo_base'!$B$7:$B$736,"<>California")+AVERAGEIFS('2026_full_geo_base'!K$7:K$736,'2026_full_geo_base'!$G$7:$G$736,">=71", '2026_full_geo_base'!$B$7:$B$736,"<>California"))*B8 -> 0.0180986106 | AE8: =(-AVERAGEIFS('2026_full_geo_newSCR'!L$7:L$736,'2026_full_geo_base'!$G$7:$G$736,">=71",'2026_full_geo_base'!$B$7:$B$736,"<>California")+AVERAGEIFS('2026_full_geo_base'!L$7:L$736,'2026_full_geo_base'!$G$7:$G$736,">=71", '2026_full_geo_base'!$B$7:$B$736,"<>California"))*C8 -> 0.002429797134 | AF8: =(-AVERAGEIFS('2026_full_geo_newSCR'!T$7:T$736,'2026_full_geo_base'!$G$7:$G$736,">=71",'2026_full_geo_base'!$B$7:$B$736,"<>California")+AVERAGEIFS('2026_full_geo_base'!T$7:T$736,'2026_full_geo_base'!$G$7:$G$736,">=71", '2026_full_geo_base'!$B$7:$B$736,"<>California"))*D8 -> 0.001392974784 | AG8: =(-AVERAGEIFS('2026_full_geo_newSCR'!U$7:U$736,'2026_full_geo_base'!$G$7:$G$736,">=71",'2026_full_geo_base'!$B$7:$B$736,"<>California")+AVERAGEIFS('2026_full_geo_base'!U$7:U$736,'2026_full_geo_base'!$G$7:$G$736,">=71", '2026_full_geo_base'!$B$7:$B$736,"<>California"))*E8 -> 0.00812478866 | AH8: =(-AVERAGEIFS('2026_full_geo_newSCR'!X$7:X$736,'2026_full_geo_base'!$G$7:$G$736,">=71",'2026_full_geo_base'!$B$7:$B$736,"<>California")+AVERAGEIFS('2026_full_geo_base'!X$7:X$736,'2026_full_geo_base'!$G$7:$G$736,">=71", '2026_full_geo_base'!$B$7:$B$736,"<>California"))*F8 -> 0.0112206405 | AI8: =(-AVERAGEIFS('2026_full_geo_newSCR'!Y$7:Y$736,'2026_full_geo_base'!$G$7:$G$736,">=71",'2026_full_geo_base'!$B$7:$B$736,"<>California")+AVERAGEIFS('2026_full_geo_base'!Y$7:Y$736,'2026_full_geo_base'!$G$7:$G$736,">=71", '2026_full_geo_base'!$B$7:$B$736,"<>California"))*G8 -> 0.04953721434 | AJ8: =(-AVERAGEIFS('2026_full_geo_newSCR'!AA$7:AA$736,'2026_full_geo_base'!$G$7:$G$736,">=71",'2026_full_geo_base'!$B$7:$B$736,"<>California")+AVERAGEIFS('2026_full_geo_base'!AA$7:AA$736,'2026_full_geo_base'!$G$7:$G$736,">=71", '2026_full_geo_base'!$B$7:$B$736,"<>California"))*H8 -> 0.0001555755924 | AK8: =(-AVERAGEIFS('2026_full_geo_newSCR'!AC$7:AC$736,'2026_full_geo_base'!$G$7:$G$736,">=71",'2026_full_geo_base'!$B$7:$B$736,"<>California")+AVERAGEIFS('2026_full_geo_base'!AC$7:AC$736,'2026_full_geo_base'!$G$7:$G$736,">=71", '2026_full_geo_base'!$B$7:$B$736,"<>California"))*I8 -> 0.003290533995 | AL8: =(-AVERAGEIFS('2026_full_geo_newSCR'!AE$7:AE$736,'2026_full_geo_base'!$G$7:$G$736,">=71",'2026_full_geo_base'!$B$7:$B$736,"<>California")+AVERAGEIFS('2026_full_geo_base'!AE$7:AE$736,'2026_full_geo_base'!$G$7:$G$736,">=71", '2026_full_geo_base'!$B$7:$B$736,"<>California"))*J8 -> 0.01265291515 | AM8: =(-AVERAGEIFS('2026_full_geo_newSCR'!AF$7:AF$736,'2026_full_geo_base'!$G$7:$G$736,">=71",'2026_full_geo_base'!$B$7:$B$736,"<>California")+AVERAGEIFS('2026_full_geo_base'!AF$7:AF$736,'2026_full_geo_base'!$G$7:$G$736,">=71", '2026_full_geo_base'!$B$7:$B$736,"<>California"))*K8 -> 0.02023162713 | AN8: =(-AVERAGEIFS('2026_full_geo_newSCR'!AI$7:AI$736,'2026_full_geo_base'!$G$7:$G$736,">=71",'2026_full_geo_base'!$B$7:$B$736,"<>California")+AVERAGEIFS('2026_full_geo_base'!AI$7:AI$736,'2026_full_geo_base'!$G$7:$G$736,">=71", '2026_full_geo_base'!$B$7:$B$736,"<>California"))*L8 -> 4.056373508e-05 | AO8: =(-AVERAGEIFS('2026_full_geo_newSCR'!AK$7:AK$736,'2026_full_geo_base'!$G$7:$G$736,">=71",'2026_full_geo_base'!$B$7:$B$736,"<>California")+AVERAGEIFS('2026_full_geo_base'!AK$7:AK$736,'2026_full_geo_base'!$G$7:$G$736,">=71", '2026_full_geo_base'!$B$7:$B$736,"<>California"))*M8 -> -0.0004465119549 | AP8: =(-AVERAGEIFS('2026_full_geo_newSCR'!AM$7:AM$736,'2026_full_geo_base'!$G$7:$G$736,">=71",'2026_full_geo_base'!$B$7:$B$736,"<>California")+AVERAGEIFS('2026_full_geo_base'!AM$7:AM$736,'2026_full_geo_base'!$G$7:$G$736,">=71", '2026_full_geo_base'!$B$7:$B$736,"<>California"))*N8 -> 0.002443373758 | AQ8: =(-AVERAGEIFS('2026_full_geo_newSCR'!AP$7:AP$736,'2026_full_geo_base'!$G$7:$G$736,">=71",'2026_full_geo_base'!$B$7:$B$736,"<>California")+AVERAGEIFS('2026_full_geo_base'!AP$7:AP$736,'2026_full_geo_base'!$G$7:$G$736,">=71", '2026_full_geo_base'!$B$7:$B$736,"<>California"))*O8 -> 0.003410911869 | AR8: =(-AVERAGEIFS('2026_full_geo_newSCR'!AQ$7:AQ$736,'2026_full_geo_base'!$G$7:$G$736,">=71",'2026_full_geo_base'!$B$7:$B$736,"<>California")+AVERAGEIFS('2026_full_geo_base'!AQ$7:AQ$736,'2026_full_geo_base'!$G$7:$G$736,">=71", '2026_full_geo_base'!$B$7:$B$736,"<>California"))*P8 -> 0.01033948219 | AS8: =(-AVERAGEIFS('2026_full_geo_newSCR'!AS$7:AS$736,'2026_full_geo_base'!$G$7:$G$736,">=71",'2026_full_geo_base'!$B$7:$B$736,"<>California")+AVERAGEIFS('2026_full_geo_base'!AS$7:AS$736,'2026_full_geo_base'!$G$7:$G$736,">=71", '2026_full_geo_base'!$B$7:$B$736,"<>California"))*Q8 -> 0.006198062379 | AT8: =(-AVERAGEIFS('2026_full_geo_newSCR'!AX$7:AX$736,'2026_full_geo_base'!$G$7:$G$736,">=71",'2026_full_geo_base'!$B$7:$B$736,"<>California")+AVERAGEIFS('2026_full_geo_base'!AX$7:AX$736,'2026_full_geo_base'!$G$7:$G$736,">=71", '2026_full_geo_base'!$B$7:$B$736,"<>California"))*R8 -> 0.1583743493 | AU8: =(-AVERAGEIFS('2026_full_geo_newSCR'!AY$7:AY$736,'2026_full_geo_base'!$G$7:$G$736,">=71",'2026_full_geo_base'!$B$7:$B$736,"<>California")+AVERAGEIFS('2026_full_geo_base'!AY$7:AY$736,'2026_full_geo_base'!$G$7:$G$736,">=71", '2026_full_geo_base'!$B$7:$B$736,"<>California"))*S8 -> 0.1161630015 | AV8: =(-AVERAGEIFS('2026_full_geo_newSCR'!BA$7:BA$736,'2026_full_geo_base'!$G$7:$G$736,">=71",'2026_full_geo_base'!$B$7:$B$736,"<>California")+AVERAGEIFS('2026_full_geo_base'!BA$7:BA$736,'2026_full_geo_base'!$G$7:$G$736,">=71", '2026_full_geo_base'!$B$7:$B$736,"<>California"))*T8 -> 0.001037847662 | AW8: =(-AVERAGEIFS('2026_full_geo_newSCR'!BC$7:BC$736,'2026_full_geo_base'!$G$7:$G$736,">=71",'2026_full_geo_base'!$B$7:$B$736,"<>California")+AVERAGEIFS('2026_full_geo_base'!BC$7:BC$736,'2026_full_geo_base'!$G$7:$G$736,">=71", '2026_full_geo_base'!$B$7:$B$736,"<>California"))*U8 -> 0.01029171525 | AX8: =(-AVERAGEIFS('2026_full_geo_newSCR'!BF$7:BF$736,'2026_full_geo_base'!$G$7:$G$736,">=71",'2026_full_geo_base'!$B$7:$B$736,"<>California")+AVERAGEIFS('2026_full_geo_base'!BF$7:BF$736,'2026_full_geo_base'!$G$7:$G$736,">=71", '2026_full_geo_base'!$B$7:$B$736,"<>California"))*S8 -> 0.01007545621
B9: 1 | C9: 1 | D9: 1 | E9: 1 | F9: 1 | G9: 1 | H9: 1 | I9: 1 | J9: 1 | K9: 1 | L9: 1 | M9: 1 | N9: 1 | O9: 1 | P9: 1 | Q9: 1 | R9: 1 | S9: 1 | T9: 1 | U9: 1 | W9: 2026_step3_SNCRoptwCC | X9: =(-AVERAGEIFS('2026_full_geo_SNCRoptwCC'!BV$7:BV$736,'2026_full_geo_base'!$G$7:$G$736,">=71",'2026_full_geo_base'!$B$7:$B$736,"<>California")+AVERAGEIFS('2026_full_geo_base'!BV$7:BV$736,'2026_full_geo_base'!$G$7:$G$736,">=71", '2026_full_geo_base'!$B$7:$B$736,"<>California"))*1 -> -0.00555507866 | Y9: =(-AVERAGEIFS('2026_full_geo_SNCRoptwCC'!J$7:J$736,'2026_full_geo_base'!$G$7:$G$736,">=71",'2026_full_geo_base'!$B$7:$B$736,"<>California")+AVERAGEIFS('2026_full_geo_base'!J$7:J$736,'2026_full_geo_base'!$G$7:$G$736,">=71", '2026_full_geo_base'!$B$7:$B$736,"<>California"))*1 -> 0 | Z9: =(-AVERAGEIFS('2026_full_geo_SNCRoptwCC'!M$7:M$736,'2026_full_geo_base'!$G$7:$G$736,">=71",'2026_full_geo_base'!$B$7:$B$736,"<>California")+AVERAGEIFS('2026_full_geo_base'!M$7:M$736,'2026_full_geo_base'!$G$7:$G$736,">=71", '2026_full_geo_base'!$B$7:$B$736,"<>California"))*1 -> 0 | AA9: =(-AVERAGEIFS('2026_full_geo_SNCRoptwCC'!N$7:N$736,'2026_full_geo_base'!$G$7:$G$736,">=71",'2026_full_geo_base'!$B$7:$B$736,"<>California")+AVERAGEIFS('2026_full_geo_base'!N$7:N$736,'2026_full_geo_base'!$G$7:$G$736,">=71", '2026_full_geo_base'!$B$7:$B$736,"<>California"))*1 -> 0 | AB9: =(-AVERAGEIFS('2026_full_geo_SNCRoptwCC'!BD$7:BD$736,'2026_full_geo_base'!$G$7:$G$736,">=71",'2026_full_geo_base'!$B$7:$B$736,"<>California")+AVERAGEIFS('2026_full_geo_base'!BD$7:BD$736,'2026_full_geo_base'!$G$7:$G$736,">=71", '2026_full_geo_base'!$B$7:$B$736,"<>California"))*1 -> 0 | AC9: =(-AVERAGEIFS('2026_full_geo_SNCRoptwCC'!AL$7:AL$736,'2026_full_geo_base'!$G$7:$G$736,">=71",'2026_full_geo_base'!$B$7:$B$736,"<>California")+AVERAGEIFS('2026_full_geo_base'!AL$7:AL$736,'2026_full_geo_base'!$G$7:$G$736,">=71", '2026_full_geo_base'!$B$7:$B$736,"<>California"))*1 -> 0 | AD9: =(-AVERAGEIFS('2026_full_geo_SNCRoptwCC'!K$7:K$736,'2026_full_geo_base'!$G$7:$G$736,">=71",'2026_full_geo_base'!$B$7:$B$736,"<>California")+AVERAGEIFS('2026_full_geo_base'!K$7:K$736,'2026_full_geo_base'!$G$7:$G$736,">=71", '2026_full_geo_base'!$B$7:$B$736,"<>California"))*B9 -> 0.0001068921358 | AE9: =(-AVERAGEIFS('2026_full_geo_SNCRoptwCC'!L$7:L$736,'2026_full_geo_base'!$G$7:$G$736,">=71",'2026_full_geo_base'!$B$7:$B$736,"<>California")+AVERAGEIFS('2026_full_geo_base'!L$7:L$736,'2026_full_geo_base'!$G$7:$G$736,">=71", '2026_full_geo_base'!$B$7:$B$736,"<>California"))*C9 -> 0.002429797134 | AF9: =(-AVERAGEIFS('2026_full_geo_SNCRoptwCC'!T$7:T$736,'2026_full_geo_base'!$G$7:$G$736,">=71",'2026_full_geo_base'!$B$7:$B$736,"<>California")+AVERAGEIFS('2026_full_geo_base'!T$7:T$736,'2026_full_geo_base'!$G$7:$G$736,">=71", '2026_full_geo_base'!$B$7:$B$736,"<>California"))*D9 -> 0.000249824984 | AG9: =(-AVERAGEIFS('2026_full_geo_SNCRoptwCC'!U$7:U$736,'2026_full_geo_base'!$G$7:$G$736,">=71",'2026_full_geo_base'!$B$7:$B$736,"<>California")+AVERAGEIFS('2026_full_geo_base'!U$7:U$736,'2026_full_geo_base'!$G$7:$G$736,">=71", '2026_full_geo_base'!$B$7:$B$736,"<>California"))*E9 -> 0.004693241712 | AH9: =(-AVERAGEIFS('2026_full_geo_SNCRoptwCC'!X$7:X$736,'2026_full_geo_base'!$G$7:$G$736,">=71",'2026_full_geo_base'!$B$7:$B$736,"<>California")+AVERAGEIFS('2026_full_geo_base'!X$7:X$736,'2026_full_geo_base'!$G$7:$G$736,">=71", '2026_full_geo_base'!$B$7:$B$736,"<>California"))*F9 -> 0.001563554677 | AI9: =(-AVERAGEIFS('2026_full_geo_SNCRoptwCC'!Y$7:Y$736,'2026_full_geo_base'!$G$7:$G$736,">=71",'2026_full_geo_base'!$B$7:$B$736,"<>California")+AVERAGEIFS('2026_full_geo_base'!Y$7:Y$736,'2026_full_geo_base'!$G$7:$G$736,">=71", '2026_full_geo_base'!$B$7:$B$736,"<>California"))*G9 -> 0.005133593641 | AJ9: =(-AVERAGEIFS('2026_full_geo_SNCRoptwCC'!AA$7:AA$736,'2026_full_geo_base'!$G$7:$G$736,">=71",'2026_full_geo_base'!$B$7:$B$736,"<>California")+AVERAGEIFS('2026_full_geo_base'!AA$7:AA$736,'2026_full_geo_base'!$G$7:$G$736,">=71", '2026_full_geo_base'!$B$7:$B$736,"<>California"))*H9 -> 0.0001555755924 | AK9: =(-AVERAGEIFS('2026_full_geo_SNCRoptwCC'!AC$7:AC$736,'2026_full_geo_base'!$G$7:$G$736,">=71",'2026_full_geo_base'!$B$7:$B$736,"<>California")+AVERAGEIFS('2026_full_geo_base'!AC$7:AC$736,'2026_full_geo_base'!$G$7:$G$736,">=71", '2026_full_geo_base'!$B$7:$B$736,"<>California"))*I9 -> 3.153936726e-05 | AL9: =(-AVERAGEIFS('2026_full_geo_SNCRoptwCC'!AE$7:AE$736,'2026_full_geo_base'!$G$7:$G$736,">=71",'2026_full_geo_base'!$B$7:$B$736,"<>California")+AVERAGEIFS('2026_full_geo_base'!AE$7:AE$736,'2026_full_geo_base'!$G$7:$G$736,">=71", '2026_full_geo_base'!$B$7:$B$736,"<>California"))*J9 -> 0.003163186025 | AM9: =(-AVERAGEIFS('2026_full_geo_SNCRoptwCC'!AF$7:AF$736,'2026_full_geo_base'!$G$7:$G$736,">=71",'2026_full_geo_base'!$B$7:$B$736,"<>California")+AVERAGEIFS('2026_full_geo_base'!AF$7:AF$736,'2026_full_geo_base'!$G$7:$G$736,">=71", '2026_full_geo_base'!$B$7:$B$736,"<>California"))*K9 -> 0.0135044375 | AN9: =(-AVERAGEIFS('2026_full_geo_SNCRoptwCC'!AI$7:AI$736,'2026_full_geo_base'!$G$7:$G$736,">=71",'2026_full_geo_base'!$B$7:$B$736,"<>California")+AVERAGEIFS('2026_full_geo_base'!AI$7:AI$736,'2026_full_geo_base'!$G$7:$G$736,">=71", '2026_full_geo_base'!$B$7:$B$736,"<>California"))*L9 -> 4.056373508e-05 | AO9: =(-AVERAGEIFS('2026_full_geo_SNCRoptwCC'!AK$7:AK$736,'2026_full_geo_base'!$G$7:$G$736,">=71",'2026_full_geo_base'!$B$7:$B$736,"<>California")+AVERAGEIFS('2026_full_geo_base'!AK$7:AK$736,'2026_full_geo_base'!$G$7:$G$736,">=71", '2026_full_geo_base'!$B$7:$B$736,"<>California"))*M9 -> -0.0004465119549 | AP9: =(-AVERAGEIFS('2026_full_geo_SNCRoptwCC'!AM$7:AM$736,'2026_full_geo_base'!$G$7:$G$736,">=71",'2026_full_geo_base'!$B$7:$B$736,"<>California")+AVERAGEIFS('2026_full_geo_base'!AM$7:AM$736,'2026_full_geo_base'!$G$7:$G$736,">=71", '2026_full_geo_base'!$B$7:$B$736,"<>California"))*N9 -> 0.0002665832846 | AQ9: =(-AVERAGEIFS('2026_full_geo_SNCRoptwCC'!AP$7:AP$736,'2026_full_geo_base'!$G$7:$G$736,">=71",'2026_full_geo_base'!$B$7:$B$736,"<>California")+AVERAGEIFS('2026_full_geo_base'!AP$7:AP$736,'2026_full_geo_base'!$G$7:$G$736,">=71", '2026_full_geo_base'!$B$7:$B$736,"<>California"))*O9 -> 0.003410911869 | AR9: =(-AVERAGEIFS('2026_full_geo_SNCRoptwCC'!AQ$7:AQ$736,'2026_full_geo_base'!$G$7:$G$736,">=71",'2026_full_geo_base'!$B$7:$B$736,"<>California")+AVERAGEIFS('2026_full_geo_base'!AQ$7:AQ$736,'2026_full_geo_base'!$G$7:$G$736,">=71", '2026_full_geo_base'!$B$7:$B$736,"<>California"))*P9 -> 0.001542023334 | AS9: =(-AVERAGEIFS('2026_full_geo_SNCRoptwCC'!AS$7:AS$736,'2026_full_geo_base'!$G$7:$G$736,">=71",'2026_full_geo_base'!$B$7:$B$736,"<>California")+AVERAGEIFS('2026_full_geo_base'!AS$7:AS$736,'2026_full_geo_base'!$G$7:$G$736,">=71", '2026_full_geo_base'!$B$7:$B$736,"<>California"))*Q9 -> 0.002325339163 | AT9: =(-AVERAGEIFS('2026_full_geo_SNCRoptwCC'!AX$7:AX$736,'2026_full_geo_base'!$G$7:$G$736,">=71",'2026_full_geo_base'!$B$7:$B$736,"<>California")+AVERAGEIFS('2026_full_geo_base'!AX$7:AX$736,'2026_full_geo_base'!$G$7:$G$736,">=71", '2026_full_geo_base'!$B$7:$B$736,"<>California"))*R9 -> 0.01151239858 | AU9: =(-AVERAGEIFS('2026_full_geo_SNCRoptwCC'!AY$7:AY$736,'2026_full_geo_base'!$G$7:$G$736,">=71",'2026_full_geo_base'!$B$7:$B$736,"<>California")+AVERAGEIFS('2026_full_geo_base'!AY$7:AY$736,'2026_full_geo_base'!$G$7:$G$736,">=71", '2026_full_geo_base'!$B$7:$B$736,"<>California"))*S9 -> 0.0001436778443 | AV9: =(-AVERAGEIFS('2026_full_geo_SNCRoptwCC'!BA$7:BA$736,'2026_full_geo_base'!$G$7:$G$736,">=71",'2026_full_geo_base'!$B$7:$B$736,"<>California")+AVERAGEIFS('2026_full_geo_base'!BA$7:BA$736,'2026_full_geo_base'!$G$7:$G$736,">=71", '2026_full_geo_base'!$B$7:$B$736,"<>California"))*T9 -> 0.0004226117001 | AW9: =(-AVERAGEIFS('2026_full_geo_SNCRoptwCC'!BC$7:BC$736,'2026_full_geo_base'!$G$7:$G$736,">=71",'2026_full_geo_base'!$B$7:$B$736,"<>California")+AVERAGEIFS('2026_full_geo_base'!BC$7:BC$736,'2026_full_geo_base'!$G$7:$G$736,">=71", '2026_full_geo_base'!$B$7:$B$736,"<>California"))*U9 -> 0.003601734823 | AX9: =(-AVERAGEIFS('2026_full_geo_SNCRoptwCC'!BF$7:BF$736,'2026_full_geo_base'!$G$7:$G$736,">=71",'2026_full_geo_base'!$B$7:$B$736,"<>California")+AVERAGEIFS('2026_full_geo_base'!BF$7:BF$736,'2026_full_geo_base'!$G$7:$G$736,">=71", '2026_full_geo_base'!$B$7:$B$736,"<>California"))*S9 -> 0
B10: 1 | C10: 1 | D10: 1 | E10: 1 | F10: 1 | G10: 1 | H10: 1 | I10: 1 | J10: 1 | K10: 1 | L10: 1 | M10: 1 | N10: 1 | O10: 1 | P10: 1 | Q10: 1 | R10: 1 | S10: 1 | T10: 1 | U10: 1 | W10: 2026_step3_SCRoptwCC | X10: =(-AVERAGEIFS('2026_full_geo_SCRoptwCC'!BV$7:BV$736,'2026_full_geo_base'!$G$7:$G$736,">=71",'2026_full_geo_base'!$B$7:$B$736,"<>California")+AVERAGEIFS('2026_full_geo_base'!BV$7:BV$736,'2026_full_geo_base'!$G$7:$G$736,">=71", '2026_full_geo_base'!$B$7:$B$736,"<>California"))*1 -> -0.005121139532 | Y10: =(-AVERAGEIFS('2026_full_geo_SCRoptwCC'!J$7:J$736,'2026_full_geo_base'!$G$7:$G$736,">=71",'2026_full_geo_base'!$B$7:$B$736,"<>California")+AVERAGEIFS('2026_full_geo_base'!J$7:J$736,'2026_full_geo_base'!$G$7:$G$736,">=71", '2026_full_geo_base'!$B$7:$B$736,"<>California"))*1 -> 0 | Z10: =(-AVERAGEIFS('2026_full_geo_SCRoptwCC'!M$7:M$736,'2026_full_geo_base'!$G$7:$G$736,">=71",'2026_full_geo_base'!$B$7:$B$736,"<>California")+AVERAGEIFS('2026_full_geo_base'!M$7:M$736,'2026_full_geo_base'!$G$7:$G$736,">=71", '2026_full_geo_base'!$B$7:$B$736,"<>California"))*1 -> 0 | AA10: =(-AVERAGEIFS('2026_full_geo_SCRoptwCC'!N$7:N$736,'2026_full_geo_base'!$G$7:$G$736,">=71",'2026_full_geo_base'!$B$7:$B$736,"<>California")+AVERAGEIFS('2026_full_geo_base'!N$7:N$736,'2026_full_geo_base'!$G$7:$G$736,">=71", '2026_full_geo_base'!$B$7:$B$736,"<>California"))*1 -> 0 | AB10: =(-AVERAGEIFS('2026_full_geo_SCRoptwCC'!BD$7:BD$736,'2026_full_geo_base'!$G$7:$G$736,">=71",'2026_full_geo_base'!$B$7:$B$736,"<>California")+AVERAGEIFS('2026_full_geo_base'!BD$7:BD$736,'2026_full_geo_base'!$G$7:$G$736,">=71", '2026_full_geo_base'!$B$7:$B$736,"<>California"))*1 -> 0 | AC10: =(-AVERAGEIFS('2026_full_geo_SCRoptwCC'!AL$7:AL$736,'2026_full_geo_base'!$G$7:$G$736,">=71",'2026_full_geo_base'!$B$7:$B$736,"<>California")+AVERAGEIFS('2026_full_geo_base'!AL$7:AL$736,'2026_full_geo_base'!$G$7:$G$736,">=71", '2026_full_geo_base'!$B$7:$B$736,"<>California"))*1 -> 0 | AD10: =(-AVERAGEIFS('2026_full_geo_SCRoptwCC'!K$7:K$736,'2026_full_geo_base'!$G$7:$G$736,">=71",'2026_full_geo_base'!$B$7:$B$736,"<>California")+AVERAGEIFS('2026_full_geo_base'!K$7:K$736,'2026_full_geo_base'!$G$7:$G$736,">=71", '2026_full_geo_base'!$B$7:$B$736,"<>California"))*B10 -> 0.0001068921358 | AE10: =(-AVERAGEIFS('2026_full_geo_SCRoptwCC'!L$7:L$736,'2026_full_geo_base'!$G$7:$G$736,">=71",'2026_full_geo_base'!$B$7:$B$736,"<>California")+AVERAGEIFS('2026_full_geo_base'!L$7:L$736,'2026_full_geo_base'!$G$7:$G$736,">=71", '2026_full_geo_base'!$B$7:$B$736,"<>California"))*C10 -> 0.002429797134 | AF10: =(-AVERAGEIFS('2026_full_geo_SCRoptwCC'!T$7:T$736,'2026_full_geo_base'!$G$7:$G$736,">=71",'2026_full_geo_base'!$B$7:$B$736,"<>California")+AVERAGEIFS('2026_full_geo_base'!T$7:T$736,'2026_full_geo_base'!$G$7:$G$736,">=71", '2026_full_geo_base'!$B$7:$B$736,"<>California"))*D10 -> 7.562638618e-05 | AG10: =(-AVERAGEIFS('2026_full_geo_SCRoptwCC'!U$7:U$736,'2026_full_geo_base'!$G$7:$G$736,">=71",'2026_full_geo_base'!$B$7:$B$736,"<>California")+AVERAGEIFS('2026_full_geo_base'!U$7:U$736,'2026_full_geo_base'!$G$7:$G$736,">=71", '2026_full_geo_base'!$B$7:$B$736,"<>California"))*E10 -> 0.004680047926 | AH10: =(-AVERAGEIFS('2026_full_geo_SCRoptwCC'!X$7:X$736,'2026_full_geo_base'!$G$7:$G$736,">=71",'2026_full_geo_base'!$B$7:$B$736,"<>California")+AVERAGEIFS('2026_full_geo_base'!X$7:X$736,'2026_full_geo_base'!$G$7:$G$736,">=71", '2026_full_geo_base'!$B$7:$B$736,"<>California"))*F10 -> 0.001563554677 | AI10: =(-AVERAGEIFS('2026_full_geo_SCRoptwCC'!Y$7:Y$736,'2026_full_geo_base'!$G$7:$G$736,">=71",'2026_full_geo_base'!$B$7:$B$736,"<>California")+AVERAGEIFS('2026_full_geo_base'!Y$7:Y$736,'2026_full_geo_base'!$G$7:$G$736,">=71", '2026_full_geo_base'!$B$7:$B$736,"<>California"))*G10 -> 0.004324503364 | AJ10: =(-AVERAGEIFS('2026_full_geo_SCRoptwCC'!AA$7:AA$736,'2026_full_geo_base'!$G$7:$G$736,">=71",'2026_full_geo_base'!$B$7:$B$736,"<>California")+AVERAGEIFS('2026_full_geo_base'!AA$7:AA$736,'2026_full_geo_base'!$G$7:$G$736,">=71", '2026_full_geo_base'!$B$7:$B$736,"<>California"))*H10 -> 0.0001348862165 | AK10: =(-AVERAGEIFS('2026_full_geo_SCRoptwCC'!AC$7:AC$736,'2026_full_geo_base'!$G$7:$G$736,">=71",'2026_full_geo_base'!$B$7:$B$736,"<>California")+AVERAGEIFS('2026_full_geo_base'!AC$7:AC$736,'2026_full_geo_base'!$G$7:$G$736,">=71", '2026_full_geo_base'!$B$7:$B$736,"<>California"))*I10 -> 6.158870305e-06 | AL10: =(-AVERAGEIFS('2026_full_geo_SCRoptwCC'!AE$7:AE$736,'2026_full_geo_base'!$G$7:$G$736,">=71",'2026_full_geo_base'!$B$7:$B$736,"<>California")+AVERAGEIFS('2026_full_geo_base'!AE$7:AE$736,'2026_full_geo_base'!$G$7:$G$736,">=71", '2026_full_geo_base'!$B$7:$B$736,"<>California"))*J10 -> 0.003163186025 | AM10: =(-AVERAGEIFS('2026_full_geo_SCRoptwCC'!AF$7:AF$736,'2026_full_geo_base'!$G$7:$G$736,">=71",'2026_full_geo_base'!$B$7:$B$736,"<>California")+AVERAGEIFS('2026_full_geo_base'!AF$7:AF$736,'2026_full_geo_base'!$G$7:$G$736,">=71", '2026_full_geo_base'!$B$7:$B$736,"<>California"))*K10 -> 0.01322141789 | AN10: =(-AVERAGEIFS('2026_full_geo_SCRoptwCC'!AI$7:AI$736,'2026_full_geo_base'!$G$7:$G$736,">=71",'2026_full_geo_base'!$B$7:$B$736,"<>California")+AVERAGEIFS('2026_full_geo_base'!AI$7:AI$736,'2026_full_geo_base'!$G$7:$G$736,">=71", '2026_full_geo_base'!$B$7:$B$736,"<>California"))*L10 -> 4.056373508e-05 | AO10: =(-AVERAGEIFS('2026_full_geo_SCRoptwCC'!AK$7:AK$736,'2026_full_geo_base'!$G$7:$G$736,">=71",'2026_full_geo_base'!$B$7:$B$736,"<>California")+AVERAGEIFS('2026_full_geo_base'!AK$7:AK$736,'2026_full_geo_base'!$G$7:$G$736,">=71", '2026_full_geo_base'!$B$7:$B$736,"<>California"))*M10 -> -0.0004465119549 | AP10: =(-AVERAGEIFS('2026_full_geo_SCRoptwCC'!AM$7:AM$736,'2026_full_geo_base'!$G$7:$G$736,">=71",'2026_full_geo_base'!$B$7:$B$736,"<>California")+AVERAGEIFS('2026_full_geo_base'!AM$7:AM$736,'2026_full_geo_base'!$G$7:$G$736,">=71", '2026_full_geo_base'!$B$7:$B$736,"<>California"))*N10 -> 0.0002665832846 | AQ10: =(-AVERAGEIFS('2026_full_geo_SCRoptwCC'!AP$7:AP$736,'2026_full_geo_base'!$G$7:$G$736,">=71",'2026_full_geo_base'!$B$7:$B$736,"<>California")+AVERAGEIFS('2026_full_geo_base'!AP$7:AP$736,'2026_full_geo_base'!$G$7:$G$736,">=71", '2026_full_geo_base'!$B$7:$B$736,"<>California"))*O10 -> 0.003410911869 | AR10: =(-AVERAGEIFS('2026_full_geo_SCRoptwCC'!AQ$7:AQ$736,'2026_full_geo_base'!$G$7:$G$736,">=71",'2026_full_geo_base'!$B$7:$B$736,"<>California")+AVERAGEIFS('2026_full_geo_base'!AQ$7:AQ$736,'2026_full_geo_base'!$G$7:$G$736,">=71", '2026_full_geo_base'!$B$7:$B$736,"<>California"))*P10 -> 0.001542023334 | AS10: =(-AVERAGEIFS('2026_full_geo_SCRoptwCC'!AS$7:AS$736,'2026_full_geo_base'!$G$7:$G$736,">=71",'2026_full_geo_base'!$B$7:$B$736,"<>California")+AVERAGEIFS('2026_full_geo_base'!AS$7:AS$736,'2026_full_geo_base'!$G$7:$G$736,">=71", '2026_full_geo_base'!$B$7:$B$736,"<>California"))*Q10 -> 0.001810889449 | AT10: =(-AVERAGEIFS('2026_full_geo_SCRoptwCC'!AX$7:AX$736,'2026_full_geo_base'!$G$7:$G$736,">=71",'2026_full_geo_base'!$B$7:$B$736,"<>California")+AVERAGEIFS('2026_full_geo_base'!AX$7:AX$736,'2026_full_geo_base'!$G$7:$G$736,">=71", '2026_full_geo_base'!$B$7:$B$736,"<>California"))*R10 -> 0.00916630603 | AU10: =(-AVERAGEIFS('2026_full_geo_SCRoptwCC'!AY$7:AY$736,'2026_full_geo_base'!$G$7:$G$736,">=71",'2026_full_geo_base'!$B$7:$B$736,"<>California")+AVERAGEIFS('2026_full_geo_base'!AY$7:AY$736,'2026_full_geo_base'!$G$7:$G$736,">=71", '2026_full_geo_base'!$B$7:$B$736,"<>California"))*S10 -> 0.0001436778443 | AV10: =(-AVERAGEIFS('2026_full_geo_SCRoptwCC'!BA$7:BA$736,'2026_full_geo_base'!$G$7:$G$736,">=71",'2026_full_geo_base'!$B$7:$B$736,"<>California")+AVERAGEIFS('2026_full_geo_base'!BA$7:BA$736,'2026_full_geo_base'!$G$7:$G$736,">=71", '2026_full_geo_base'!$B$7:$B$736,"<>California"))*T10 -> 0.0003878826521 | AW10: =(-AVERAGEIFS('2026_full_geo_SCRoptwCC'!BC$7:BC$736,'2026_full_geo_base'!$G$7:$G$736,">=71",'2026_full_geo_base'!$B$7:$B$736,"<>California")+AVERAGEIFS('2026_full_geo_base'!BC$7:BC$736,'2026_full_geo_base'!$G$7:$G$736,">=71", '2026_full_geo_base'!$B$7:$B$736,"<>California"))*U10 -> 0.002778204467 | AX10: =(-AVERAGEIFS('2026_full_geo_SCRoptwCC'!BF$7:BF$736,'2026_full_geo_base'!$G$7:$G$736,">=71",'2026_full_geo_base'!$B$7:$B$736,"<>California")+AVERAGEIFS('2026_full_geo_base'!BF$7:BF$736,'2026_full_geo_base'!$G$7:$G$736,">=71", '2026_full_geo_base'!$B$7:$B$736,"<>California"))*S10 -> 0
B11: 1 | C11: 1 | D11: 1 | E11: 1 | F11: 1 | G11: 1 | H11: 1 | I11: 1 | J11: 1 | K11: 1 | L11: 1 | M11: 1 | N11: 1 | O11: 1 | P11: 1 | Q11: 1 | R11: 1 | S11: 1 | T11: 1 | U11: 1 | W11: 2026_step3_base | X11: =(-AVERAGEIFS('2026_full_geo_base'!BV$7:BV$736,'2026_full_geo_base'!$G$7:$G$736,">=71",'2026_full_geo_base'!$B$7:$B$736,"<>California")+AVERAGEIFS('2026_full_geo_base'!BV$7:BV$736,'2026_full_geo_base'!$G$7:$G$736,">=71", '2026_full_geo_base'!$B$7:$B$736,"<>California"))*1 -> 0 | Y11: =(-AVERAGEIFS('2026_full_geo_base'!J$7:J$736,'2026_full_geo_base'!$G$7:$G$736,">=71",'2026_full_geo_base'!$B$7:$B$736,"<>California")+AVERAGEIFS('2026_full_geo_base'!J$7:J$736,'2026_full_geo_base'!$G$7:$G$736,">=71", '2026_full_geo_base'!$B$7:$B$736,"<>California"))*1 -> 0 | Z11: =(-AVERAGEIFS('2026_full_geo_base'!M$7:M$736,'2026_full_geo_base'!$G$7:$G$736,">=71",'2026_full_geo_base'!$B$7:$B$736,"<>California")+AVERAGEIFS('2026_full_geo_base'!M$7:M$736,'2026_full_geo_base'!$G$7:$G$736,">=71", '2026_full_geo_base'!$B$7:$B$736,"<>California"))*1 -> 0 | AA11: =(-AVERAGEIFS('2026_full_geo_base'!N$7:N$736,'2026_full_geo_base'!$G$7:$G$736,">=71",'2026_full_geo_base'!$B$7:$B$736,"<>California")+AVERAGEIFS('2026_full_geo_base'!N$7:N$736,'2026_full_geo_base'!$G$7:$G$736,">=71", '2026_full_geo_base'!$B$7:$B$736,"<>California"))*1 -> 0 | AB11: =(-AVERAGEIFS('2026_full_geo_base'!BD$7:BD$736,'2026_full_geo_base'!$G$7:$G$736,">=71",'2026_full_geo_base'!$B$7:$B$736,"<>California")+AVERAGEIFS('2026_full_geo_base'!BD$7:BD$736,'2026_full_geo_base'!$G$7:$G$736,">=71", '2026_full_geo_base'!$B$7:$B$736,"<>California"))*1 -> 0 | AC11: =(-AVERAGEIFS('2026_full_geo_base'!AL$7:AL$736,'2026_full_geo_base'!$G$7:$G$736,">=71",'2026_full_geo_base'!$B$7:$B$736,"<>California")+AVERAGEIFS('2026_full_geo_base'!AL$7:AL$736,'2026_full_geo_base'!$G$7:$G$736,">=71", '2026_full_geo_base'!$B$7:$B$736,"<>California"))*1 -> 0 | AD11: =(-AVERAGEIFS('2026_full_geo_base'!K$7:K$736,'2026_full_geo_base'!$G$7:$G$736,">=71",'2026_full_geo_base'!$B$7:$B$736,"<>California")+AVERAGEIFS('2026_full_geo_base'!K$7:K$736,'2026_full_geo_base'!$G$7:$G$736,">=71", '2026_full_geo_base'!$B$7:$B$736,"<>California"))*B11 -> 0 | AE11: =(-AVERAGEIFS('2026_full_geo_base'!L$7:L$736,'2026_full_geo_base'!$G$7:$G$736,">=71",'2026_full_geo_base'!$B$7:$B$736,"<>California")+AVERAGEIFS('2026_full_geo_base'!L$7:L$736,'2026_full_geo_base'!$G$7:$G$736,">=71", '2026_full_geo_base'!$B$7:$B$736,"<>California"))*C11 -> 0 | AF11: =(-AVERAGEIFS('2026_full_geo_base'!T$7:T$736,'2026_full_geo_base'!$G$7:$G$736,">=71",'2026_full_geo_base'!$B$7:$B$736,"<>California")+AVERAGEIFS('2026_full_geo_base'!T$7:T$736,'2026_full_geo_base'!$G$7:$G$736,">=71", '2026_full_geo_base'!$B$7:$B$736,"<>California"))*D11 -> 0 | AG11: =(-AVERAGEIFS('2026_full_geo_base'!U$7:U$736,'2026_full_geo_base'!$G$7:$G$736,">=71",'2026_full_geo_base'!$B$7:$B$736,"<>California")+AVERAGEIFS('2026_full_geo_base'!U$7:U$736,'2026_full_geo_base'!$G$7:$G$736,">=71", '2026_full_geo_base'!$B$7:$B$736,"<>California"))*E11 -> 0 | AH11: =(-AVERAGEIFS('2026_full_geo_base'!X$7:X$736,'2026_full_geo_base'!$G$7:$G$736,">=71",'2026_full_geo_base'!$B$7:$B$736,"<>California")+AVERAGEIFS('2026_full_geo_base'!X$7:X$736,'2026_full_geo_base'!$G$7:$G$736,">=71", '2026_full_geo_base'!$B$7:$B$736,"<>California"))*F11 -> 0 | AI11: =(-AVERAGEIFS('2026_full_geo_base'!Y$7:Y$736,'2026_full_geo_base'!$G$7:$G$736,">=71",'2026_full_geo_base'!$B$7:$B$736,"<>California")+AVERAGEIFS('2026_full_geo_base'!Y$7:Y$736,'2026_full_geo_base'!$G$7:$G$736,">=71", '2026_full_geo_base'!$B$7:$B$736,"<>California"))*G11 -> 0 | AJ11: =(-AVERAGEIFS('2026_full_geo_base'!AA$7:AA$736,'2026_full_geo_base'!$G$7:$G$736,">=71",'2026_full_geo_base'!$B$7:$B$736,"<>California")+AVERAGEIFS('2026_full_geo_base'!AA$7:AA$736,'2026_full_geo_base'!$G$7:$G$736,">=71", '2026_full_geo_base'!$B$7:$B$736,"<>California"))*H11 -> 0 | AK11: =(-AVERAGEIFS('2026_full_geo_base'!AC$7:AC$736,'2026_full_geo_base'!$G$7:$G$736,">=71",'2026_full_geo_base'!$B$7:$B$736,"<>California")+AVERAGEIFS('2026_full_geo_base'!AC$7:AC$736,'2026_full_geo_base'!$G$7:$G$736,">=71", '2026_full_geo_base'!$B$7:$B$736,"<>California"))*I11 -> 0 | AL11: =(-AVERAGEIFS('2026_full_geo_base'!AE$7:AE$736,'2026_full_geo_base'!$G$7:$G$736,">=71",'2026_full_geo_base'!$B$7:$B$736,"<>California")+AVERAGEIFS('2026_full_geo_base'!AE$7:AE$736,'2026_full_geo_base'!$G$7:$G$736,">=71", '2026_full_geo_base'!$B$7:$B$736,"<>California"))*J11 -> 0 | AM11: =(-AVERAGEIFS('2026_full_geo_base'!AF$7:AF$736,'2026_full_geo_base'!$G$7:$G$736,">=71",'2026_full_geo_base'!$B$7:$B$736,"<>California")+AVERAGEIFS('2026_full_geo_base'!AF$7:AF$736,'2026_full_geo_base'!$G$7:$G$736,">=71", '2026_full_geo_base'!$B$7:$B$736,"<>California"))*K11 -> 0 | AN11: =(-AVERAGEIFS('2026_full_geo_base'!AI$7:AI$736,'2026_full_geo_base'!$G$7:$G$736,">=71",'2026_full_geo_base'!$B$7:$B$736,"<>California")+AVERAGEIFS('2026_full_geo_base'!AI$7:AI$736,'2026_full_geo_base'!$G$7:$G$736,">=71", '2026_full_geo_base'!$B$7:$B$736,"<>California"))*L11 -> 0 | AO11: =(-AVERAGEIFS('2026_full_geo_base'!AK$7:AK$736,'2026_full_geo_base'!$G$7:$G$736,">=71",'2026_full_geo_base'!$B$7:$B$736,"<>California")+AVERAGEIFS('2026_full_geo_base'!AK$7:AK$736,'2026_full_geo_base'!$G$7:$G$736,">=71", '2026_full_geo_base'!$B$7:$B$736,"<>California"))*M11 -> 0 | AP11: =(-AVERAGEIFS('2026_full_geo_base'!AM$7:AM$736,'2026_full_geo_base'!$G$7:$G$736,">=71",'2026_full_geo_base'!$B$7:$B$736,"<>California")+AVERAGEIFS('2026_full_geo_base'!AM$7:AM$736,'2026_full_geo_base'!$G$7:$G$736,">=71", '2026_full_geo_base'!$B$7:$B$736,"<>California"))*N11 -> 0 | AQ11: =(-AVERAGEIFS('2026_full_geo_base'!AP$7:AP$736,'2026_full_geo_base'!$G$7:$G$736,">=71",'2026_full_geo_base'!$B$7:$B$736,"<>California")+AVERAGEIFS('2026_full_geo_base'!AP$7:AP$736,'2026_full_geo_base'!$G$7:$G$736,">=71", '2026_full_geo_base'!$B$7:$B$736,"<>California"))*O11 -> 0 | AR11: =(-AVERAGEIFS('2026_full_geo_base'!AQ$7:AQ$736,'2026_full_geo_base'!$G$7:$G$736,">=71",'2026_full_geo_base'!$B$7:$B$736,"<>California")+AVERAGEIFS('2026_full_geo_base'!AQ$7:AQ$736,'2026_full_geo_base'!$G$7:$G$736,">=71", '2026_full_geo_base'!$B$7:$B$736,"<>California"))*P11 -> 0 | AS11: =(-AVERAGEIFS('2026_full_geo_base'!AS$7:AS$736,'2026_full_geo_base'!$G$7:$G$736,">=71",'2026_full_geo_base'!$B$7:$B$736,"<>California")+AVERAGEIFS('2026_full_geo_base'!AS$7:AS$736,'2026_full_geo_base'!$G$7:$G$736,">=71", '2026_full_geo_base'!$B$7:$B$736,"<>California"))*Q11 -> 0 | AT11: =(-AVERAGEIFS('2026_full_geo_base'!AX$7:AX$736,'2026_full_geo_base'!$G$7:$G$736,">=71",'2026_full_geo_base'!$B$7:$B$736,"<>California")+AVERAGEIFS('2026_full_geo_base'!AX$7:AX$736,'2026_full_geo_base'!$G$7:$G$736,">=71", '2026_full_geo_base'!$B$7:$B$736,"<>California"))*R11 -> 0 | AU11: =(-AVERAGEIFS('2026_full_geo_base'!AY$7:AY$736,'2026_full_geo_base'!$G$7:$G$736,">=71",'2026_full_geo_base'!$B$7:$B$736,"<>California")+AVERAGEIFS('2026_full_geo_base'!AY$7:AY$736,'2026_full_geo_base'!$G$7:$G$736,">=71", '2026_full_geo_base'!$B$7:$B$736,"<>California"))*S11 -> 0 | AV11: =(-AVERAGEIFS('2026_full_geo_base'!BA$7:BA$736,'2026_full_geo_base'!$G$7:$G$736,">=71",'2026_full_geo_base'!$B$7:$B$736,"<>California")+AVERAGEIFS('2026_full_geo_base'!BA$7:BA$736,'2026_full_geo_base'!$G$7:$G$736,">=71", '2026_full_geo_base'!$B$7:$B$736,"<>California"))*T11 -> 0 | AW11: =(-AVERAGEIFS('2026_full_geo_base'!BC$7:BC$736,'2026_full_geo_base'!$G$7:$G$736,">=71",'2026_full_geo_base'!$B$7:$B$736,"<>California")+AVERAGEIFS('2026_full_geo_base'!BC$7:BC$736,'2026_full_geo_base'!$G$7:$G$736,">=71", '2026_full_geo_base'!$B$7:$B$736,"<>California"))*U11 -> 0 | AX11: =(-AVERAGEIFS('2026_full_geo_base'!BF$7:BF$736,'2026_full_geo_base'!$G$7:$G$736,">=71",'2026_full_geo_base'!$B$7:$B$736,"<>California")+AVERAGEIFS('2026_full_geo_base'!BF$7:BF$736,'2026_full_geo_base'!$G$7:$G$736,">=71", '2026_full_geo_base'!$B$7:$B$736,"<>California"))*S11 -> 0 | BA11: 1
BD12: Average Ozone Improvement
BA13: =OFFSET(W$6,$BA$11,0) -> 2026_step3_nonEGU | BD13: 2026_step3_nonEGU | BE13: 2026_step3_newSCR | BF13: 2026_step3_SNCRoptwCC | BG13: 2026_step3_SCRoptwCC | BH13: 2026_step3_base
B14: states to include in the average 1 = yes, 0 = no
B15: AR | C15: CA | D15: IL | E15: IN | F15: KY | G15: LA | H15: MD | I15: MI | J15: MS | K15: MO | L15: NV | M15: NJ | N15: NY | O15: OH | P15: OK | Q15: PA | R15: TX | S15: UT | T15: VA | U15: WV | V15: TRIBAL | X15: nonstate | Y15: AZ | Z15: CO | AA15: CT | AB15: WI | AC15: NM | AD15: AR | AE15: CA | AF15: IL | AG15: IN | AH15: KY | AI15: LA | AJ15: MD | AK15: MI | AL15: MS | AM15: MO | AN15: NV | AO15: NJ | AP15: NY | AQ15: OH | AR15: OK | AS15: PA | AT15: TX | AU15: UT | AV15: VA | AW15: WV | AX15: TRIBAL | BC15: All GNP receptors
B16: 1 | C16: 1 | D16: 1 | E16: 1 | F16: 1 | G16: 1 | H16: 1 | I16: 1 | J16: 1 | K16: 1 | L16: 1 | M16: 1 | N16: 1 | O16: 1 | P16: 1 | Q16: 1 | R16: 1 | S16: 1 | T16: 1 | U16: 1 | X16: =OFFSET(X$6,$BA$11,0) -> -0.04674822904 | Y16: 0 | Z16: 0 | AA16: 0 | AB16: 0 | AC16: 0 | AD16: =IF(B16=1,OFFSET(AD$6,$BA$11,0),0) -> 0.02405791797 | AE16: 0.0124114051 | AF16: 0.003906131896 | AG16: 0.02016500742 | AH16: 0.01685957118 | AI16: 0.1095652787 | AJ16: 0.0005720996446 | AK16: 0.008303355506 | AL16: 0.0206832265 | AM16: 0.02395099914 | AN16: 4.056373508e-05 | AO16: -0.001203807821 | AP16: 0.006417612712 | AQ16: 0.01258911418 | AR16: 0.01794084553 | AS16: 0.01744141354 | AT16: 0.2056787513 | AU16: 0.1211304534 | AV16: 0.004569308848 | AW16: 0.01512889554 | AX16: =IF(S16=1,OFFSET(AX$6,$BA$11,0),0) -> 0.01007545621 | BA16: =SUM(X16:AZ16) -> 0.60 | BC16: GNP | BD16: 0.60 | BE16: 0.42 | BF16: 0.05 | BG16: 0.04 | BH16: 0
B21: states to include in the average 1 = yes, 0 = no | X21: Average air quality improvement by state for receptors in WI and CT.
X22: nonstate | Y22: AZ | Z22: CO | AA22: CT | AB22: WI | AC22: NM | AD22: AR | AE22: CA | AF22: IL | AG22: IN | AH22: KY | AI22: LA | AJ22: MD | AK22: MI | AL22: MS | AM22: MO | AN22: NV | AO22: NJ | AP22: NY | AQ22: OH | AR22: OK | AS22: PA | AT22: TX | AU22: UT | AV22: VA | AW22: WV | AX22: TRIBAL
B23: 1 | C23: 1 | D23: 1 | E23: 1 | F23: 1 | G23: 1 | H23: 1 | I23: 1 | J23: 1 | K23: 1 | L23: 1 | M23: 1 | N23: 1 | O23: 1 | P23: 1 | Q23: 1 | R23: 1 | S23: 1 | T23: 1 | U23: 1 | W23: 2026_step3_nonEGU | X23: =(-AVERAGEIFS('2026_full_geo_nonEGU'!BV$7:BV$736,'2026_full_geo_base'!$G$7:$G$736,">=71",'2026_full_geo_base'!$B$7:$B$736,"<>California",'2026_full_geo_base'!$B$7:$B$736,"<>Texas",'2026_full_geo_base'!$B$7:$B$736,"<>New Mexico", '2026_full_geo_base'!$B$7:$B$736,"<>Arizona", '2026_full_geo_base'!$B$7:$B$736,"<>Colorado", '2026_full_geo_base'!$B$7:$B$736,"<>Utah")+AVERAGEIFS('2026_full_geo_base'!BV$7:BV$736,'2026_full_geo_base'!$G$7:$G$736,">=71", '2026_full_geo_base'!$B$7:$B$736,"<>California",'2026_full_geo_base'!$B$7:$B$736,"<>Texas",'2026_full_geo_base'!$B$7:$B$736,"<>New Mexico", '2026_full_geo_base'!$B$7:$B$736,"<>Arizona", '2026_full_geo_base'!$B$7:$B$736,"<>Colorado", '2026_full_geo_base'!$B$7:$B$736,"<>Utah"))*1 -> -0.08146839679 | Y23: =(-AVERAGEIFS('2026_full_geo_nonEGU'!J$7:J$736,'2026_full_geo_base'!$G$7:$G$736,">=71",'2026_full_geo_base'!$B$7:$B$736,"<>California",'2026_full_geo_base'!$B$7:$B$736,"<>Texas",'2026_full_geo_base'!$B$7:$B$736,"<>New Mexico", '2026_full_geo_base'!$B$7:$B$736,"<>Arizona", '2026_full_geo_base'!$B$7:$B$736,"<>Colorado", '2026_full_geo_base'!$B$7:$B$736,"<>Utah")+AVERAGEIFS('2026_full_geo_base'!J$7:J$736,'2026_full_geo_base'!$G$7:$G$736,">=71", '2026_full_geo_base'!$B$7:$B$736,"<>California",'2026_full_geo_base'!$B$7:$B$736,"<>Texas",'2026_full_geo_base'!$B$7:$B$736,"<>New Mexico", '2026_full_geo_base'!$B$7:$B$736,"<>Arizona", '2026_full_geo_base'!$B$7:$B$736,"<>Colorado", '2026_full_geo_base'!$B$7:$B$736,"<>Utah"))*1 -> 0 | Z23: =(-AVERAGEIFS('2026_full_geo_nonEGU'!M$7:M$736,'2026_full_geo_base'!$G$7:$G$736,">=71",'2026_full_geo_base'!$B$7:$B$736,"<>California",'2026_full_geo_base'!$B$7:$B$736,"<>Texas",'2026_full_geo_base'!$B$7:$B$736,"<>New Mexico", '2026_full_geo_base'!$B$7:$B$736,"<>Arizona", '2026_full_geo_base'!$B$7:$B$736,"<>Colorado", '2026_full_geo_base'!$B$7:$B$736,"<>Utah")+AVERAGEIFS('2026_full_geo_base'!M$7:M$736,'2026_full_geo_base'!$G$7:$G$736,">=71", '2026_full_geo_base'!$B$7:$B$736,"<>California",'2026_full_geo_base'!$B$7:$B$736,"<>Texas",'2026_full_geo_base'!$B$7:$B$736,"<>New Mexico", '2026_full_geo_base'!$B$7:$B$736,"<>Arizona", '2026_full_geo_base'!$B$7:$B$736,"<>Colorado", '2026_full_geo_base'!$B$7:$B$736,"<>Utah"))*1 -> 0 | AA23: =(-AVERAGEIFS('2026_full_geo_nonEGU'!N$7:N$736,'2026_full_geo_base'!$G$7:$G$736,">=71",'2026_full_geo_base'!$B$7:$B$736,"<>California",'2026_full_geo_base'!$B$7:$B$736,"<>Texas",'2026_full_geo_base'!$B$7:$B$736,"<>New Mexico", '2026_full_geo_base'!$B$7:$B$736,"<>Arizona", '2026_full_geo_base'!$B$7:$B$736,"<>Colorado", '2026_full_geo_base'!$B$7:$B$736,"<>Utah")+AVERAGEIFS('2026_full_geo_base'!N$7:N$736,'2026_full_geo_base'!$G$7:$G$736,">=71", '2026_full_geo_base'!$B$7:$B$736,"<>California",'2026_full_geo_base'!$B$7:$B$736,"<>Texas",'2026_full_geo_base'!$B$7:$B$736,"<>New Mexico", '2026_full_geo_base'!$B$7:$B$736,"<>Arizona", '2026_full_geo_base'!$B$7:$B$736,"<>Colorado", '2026_full_geo_base'!$B$7:$B$736,"<>Utah"))*1 -> 0 | AB23: =(-AVERAGEIFS('2026_full_geo_nonEGU'!BD$7:BD$736,'2026_full_geo_base'!$G$7:$G$736,">=71",'2026_full_geo_base'!$B$7:$B$736,"<>California",'2026_full_geo_base'!$B$7:$B$736,"<>Texas",'2026_full_geo_base'!$B$7:$B$736,"<>New Mexico", '2026_full_geo_base'!$B$7:$B$736,"<>Arizona", '2026_full_geo_base'!$B$7:$B$736,"<>Colorado", '2026_full_geo_base'!$B$7:$B$736,"<>Utah")+AVERAGEIFS('2026_full_geo_base'!BD$7:BD$736,'2026_full_geo_base'!$G$7:$G$736,">=71", '2026_full_geo_base'!$B$7:$B$736,"<>California",'2026_full_geo_base'!$B$7:$B$736,"<>Texas",'2026_full_geo_base'!$B$7:$B$736,"<>New Mexico", '2026_full_geo_base'!$B$7:$B$736,"<>Arizona", '2026_full_geo_base'!$B$7:$B$736,"<>Colorado", '2026_full_geo_base'!$B$7:$B$736,"<>Utah"))*1 -> 0 | AC23: =(-AVERAGEIFS('2026_full_geo_nonEGU'!AL$7:AL$736,'2026_full_geo_base'!$G$7:$G$736,">=71",'2026_full_geo_base'!$B$7:$B$736,"<>California",'2026_full_geo_base'!$B$7:$B$736,"<>Texas",'2026_full_geo_base'!$B$7:$B$736,"<>New Mexico", '2026_full_geo_base'!$B$7:$B$736,"<>Arizona", '2026_full_geo_base'!$B$7:$B$736,"<>Colorado", '2026_full_geo_base'!$B$7:$B$736,"<>Utah")+AVERAGEIFS('2026_full_geo_base'!AL$7:AL$736,'2026_full_geo_base'!$G$7:$G$736,">=71", '2026_full_geo_base'!$B$7:$B$736,"<>California",'2026_full_geo_base'!$B$7:$B$736,"<>Texas",'2026_full_geo_base'!$B$7:$B$736,"<>New Mexico", '2026_full_geo_base'!$B$7:$B$736,"<>Arizona", '2026_full_geo_base'!$B$7:$B$736,"<>Colorado", '2026_full_geo_base'!$B$7:$B$736,"<>Utah"))*1 -> 0 | AD23: =(-AVERAGEIFS('2026_full_geo_nonEGU'!K$7:K$736,'2026_full_geo_base'!$G$7:$G$736,">=71",'2026_full_geo_base'!$B$7:$B$736,"<>California",'2026_full_geo_base'!$B$7:$B$736,"<>Texas",'2026_full_geo_base'!$B$7:$B$736,"<>New Mexico", '2026_full_geo_base'!$B$7:$B$736,"<>Arizona", '2026_full_geo_base'!$B$7:$B$736,"<>Colorado", '2026_full_geo_base'!$B$7:$B$736,"<>Utah")+AVERAGEIFS('2026_full_geo_base'!K$7:K$736,'2026_full_geo_base'!$G$7:$G$736,">=71", '2026_full_geo_base'!$B$7:$B$736,"<>California",'2026_full_geo_base'!$B$7:$B$736,"<>Texas",'2026_full_geo_base'!$B$7:$B$736,"<>New Mexico", '2026_full_geo_base'!$B$7:$B$736,"<>Arizona", '2026_full_geo_base'!$B$7:$B$736,"<>Colorado", '2026_full_geo_base'!$B$7:$B$736,"<>Utah"))*B23 -> 0.02661702947 | AE23: =(-AVERAGEIFS('2026_full_geo_nonEGU'!L$7:L$736,'2026_full_geo_base'!$G$7:$G$736,">=71",'2026_full_geo_base'!$B$7:$B$736,"<>California",'2026_full_geo_base'!$B$7:$B$736,"<>Texas",'2026_full_geo_base'!$B$7:$B$736,"<>New Mexico", '2026_full_geo_base'!$B$7:$B$736,"<>Arizona", '2026_full_geo_base'!$B$7:$B$736,"<>Colorado", '2026_full_geo_base'!$B$7:$B$736,"<>Utah")+AVERAGEIFS('2026_full_geo_base'!L$7:L$736,'2026_full_geo_base'!$G$7:$G$736,">=71", '2026_full_geo_base'!$B$7:$B$736,"<>California",'2026_full_geo_base'!$B$7:$B$736,"<>Texas",'2026_full_geo_base'!$B$7:$B$736,"<>New Mexico", '2026_full_geo_base'!$B$7:$B$736,"<>Arizona", '2026_full_geo_base'!$B$7:$B$736,"<>Colorado", '2026_full_geo_base'!$B$7:$B$736,"<>Utah"))*C23 -> 0.0004380470784 | AF23: =(-AVERAGEIFS('2026_full_geo_nonEGU'!T$7:T$736,'2026_full_geo_base'!$G$7:$G$736,">=71",'2026_full_geo_base'!$B$7:$B$736,"<>California",'2026_full_geo_base'!$B$7:$B$736,"<>Texas",'2026_full_geo_base'!$B$7:$B$736,"<>New Mexico", '2026_full_geo_base'!$B$7:$B$736,"<>Arizona", '2026_full_geo_base'!$B$7:$B$736,"<>Colorado", '2026_full_geo_base'!$B$7:$B$736,"<>Utah")+AVERAGEIFS('2026_full_geo_base'!T$7:T$736,'2026_full_geo_base'!$G$7:$G$736,">=71", '2026_full_geo_base'!$B$7:$B$736,"<>California",'2026_full_geo_base'!$B$7:$B$736,"<>Texas",'2026_full_geo_base'!$B$7:$B$736,"<>New Mexico", '2026_full_geo_base'!$B$7:$B$736,"<>Arizona", '2026_full_geo_base'!$B$7:$B$736,"<>Colorado", '2026_full_geo_base'!$B$7:$B$736,"<>Utah"))*D23 -> 0.01988790734 | AG23: =(-AVERAGEIFS('2026_full_geo_nonEGU'!U$7:U$736,'2026_full_geo_base'!$G$7:$G$736,">=71",'2026_full_geo_base'!$B$7:$B$736,"<>California",'2026_full_geo_base'!$B$7:$B$736,"<>Texas",'2026_full_geo_base'!$B$7:$B$736,"<>New Mexico", '2026_full_geo_base'!$B$7:$B$736,"<>Arizona", '2026_full_geo_base'!$B$7:$B$736,"<>Colorado", '2026_full_geo_base'!$B$7:$B$736,"<>Utah")+AVERAGEIFS('2026_full_geo_base'!U$7:U$736,'2026_full_geo_base'!$G$7:$G$736,">=71", '2026_full_geo_base'!$B$7:$B$736,"<>California",'2026_full_geo_base'!$B$7:$B$736,"<>Texas",'2026_full_geo_base'!$B$7:$B$736,"<>New Mexico", '2026_full_geo_base'!$B$7:$B$736,"<>Arizona", '2026_full_geo_base'!$B$7:$B$736,"<>Colorado", '2026_full_geo_base'!$B$7:$B$736,"<>Utah"))*E23 -> 0.1096285317 | AH23: =(-AVERAGEIFS('2026_full_geo_nonEGU'!X$7:X$736,'2026_full_geo_base'!$G$7:$G$736,">=71",'2026_full_geo_base'!$B$7:$B$736,"<>California",'2026_full_geo_base'!$B$7:$B$736,"<>Texas",'2026_full_geo_base'!$B$7:$B$736,"<>New Mexico", '2026_full_geo_base'!$B$7:$B$736,"<>Arizona", '2026_full_geo_base'!$B$7:$B$736,"<>Colorado", '2026_full_geo_base'!$B$7:$B$736,"<>Utah")+AVERAGEIFS('2026_full_geo_base'!X$7:X$736,'2026_full_geo_base'!$G$7:$G$736,">=71", '2026_full_geo_base'!$B$7:$B$736,"<>California",'2026_full_geo_base'!$B$7:$B$736,"<>Texas",'2026_full_geo_base'!$B$7:$B$736,"<>New Mexico", '2026_full_geo_base'!$B$7:$B$736,"<>Arizona", '2026_full_geo_base'!$B$7:$B$736,"<>Colorado", '2026_full_geo_base'!$B$7:$B$736,"<>Utah"))*F23 -> 0.07787743979 | AI23: =(-AVERAGEIFS('2026_full_geo_nonEGU'!Y$7:Y$736,'2026_full_geo_base'!$G$7:$G$736,">=71",'2026_full_geo_base'!$B$7:$B$736,"<>California",'2026_full_geo_base'!$B$7:$B$736,"<>Texas",'2026_full_geo_base'!$B$7:$B$736,"<>New Mexico", '2026_full_geo_base'!$B$7:$B$736,"<>Arizona", '2026_full_geo_base'!$B$7:$B$736,"<>Colorado", '2026_full_geo_base'!$B$7:$B$736,"<>Utah")+AVERAGEIFS('2026_full_geo_base'!Y$7:Y$736,'2026_full_geo_base'!$G$7:$G$736,">=71", '2026_full_geo_base'!$B$7:$B$736,"<>California",'2026_full_geo_base'!$B$7:$B$736,"<>Texas",'2026_full_geo_base'!$B$7:$B$736,"<>New Mexico", '2026_full_geo_base'!$B$7:$B$736,"<>Arizona", '2026_full_geo_base'!$B$7:$B$736,"<>Colorado", '2026_full_geo_base'!$B$7:$B$736,"<>Utah"))*G23 -> 0.02540159393 | AJ23: =(-AVERAGEIFS('2026_full_geo_nonEGU'!AA$7:AA$736,'2026_full_geo_base'!$G$7:$G$736,">=71",'2026_full_geo_base'!$B$7:$B$736,"<>California",'2026_full_geo_base'!$B$7:$B$736,"<>Texas",'2026_full_geo_base'!$B$7:$B$736,"<>New Mexico", '2026_full_geo_base'!$B$7:$B$736,"<>Arizona", '2026_full_geo_base'!$B$7:$B$736,"<>Colorado", '2026_full_geo_base'!$B$7:$B$736,"<>Utah")+AVERAGEIFS('2026_full_geo_base'!AA$7:AA$736,'2026_full_geo_base'!$G$7:$G$736,">=71", '2026_full_geo_base'!$B$7:$B$736,"<>California",'2026_full_geo_base'!$B$7:$B$736,"<>Texas",'2026_full_geo_base'!$B$7:$B$736,"<>New Mexico", '2026_full_geo_base'!$B$7:$B$736,"<>Arizona", '2026_full_geo_base'!$B$7:$B$736,"<>Colorado", '2026_full_geo_base'!$B$7:$B$736,"<>Utah"))*H23 -> 0.003219576539 | AK23: =(-AVERAGEIFS('2026_full_geo_nonEGU'!AC$7:AC$736,'2026_full_geo_base'!$G$7:$G$736,">=71",'2026_full_geo_base'!$B$7:$B$736,"<>California",'2026_full_geo_base'!$B$7:$B$736,"<>Texas",'2026_full_geo_base'!$B$7:$B$736,"<>New Mexico", '2026_full_geo_base'!$B$7:$B$736,"<>Arizona", '2026_full_geo_base'!$B$7:$B$736,"<>Colorado", '2026_full_geo_base'!$B$7:$B$736,"<>Utah")+AVERAGEIFS('2026_full_geo_base'!AC$7:AC$736,'2026_full_geo_base'!$G$7:$G$736,">=71", '2026_full_geo_base'!$B$7:$B$736,"<>California",'2026_full_geo_base'!$B$7:$B$736,"<>Texas",'2026_full_geo_base'!$B$7:$B$736,"<>New Mexico", '2026_full_geo_base'!$B$7:$B$736,"<>Arizona", '2026_full_geo_base'!$B$7:$B$736,"<>Colorado", '2026_full_geo_base'!$B$7:$B$736,"<>Utah"))*I23 -> 0.04416949767 | AL23: =(-AVERAGEIFS('2026_full_geo_nonEGU'!AE$7:AE$736,'2026_full_geo_base'!$G$7:$G$736,">=71",'2026_full_geo_base'!$B$7:$B$736,"<>California",'2026_full_geo_base'!$B$7:$B$736,"<>Texas",'2026_full_geo_base'!$B$7:$B$736,"<>New Mexico", '2026_full_geo_base'!$B$7:$B$736,"<>Arizona", '2026_full_geo_base'!$B$7:$B$736,"<>Colorado", '2026_full_geo_base'!$B$7:$B$736,"<>Utah")+AVERAGEIFS('2026_full_geo_base'!AE$7:AE$736,'2026_full_geo_base'!$G$7:$G$736,">=71", '2026_full_geo_base'!$B$7:$B$736,"<>California",'2026_full_geo_base'!$B$7:$B$736,"<>Texas",'2026_full_geo_base'!$B$7:$B$736,"<>New Mexico", '2026_full_geo_base'!$B$7:$B$736,"<>Arizona", '2026_full_geo_base'!$B$7:$B$736,"<>Colorado", '2026_full_geo_base'!$B$7:$B$736,"<>Utah"))*J23 -> 0.01227591392 | AM23: =(-AVERAGEIFS('2026_full_geo_nonEGU'!AF$7:AF$736,'2026_full_geo_base'!$G$7:$G$736,">=71",'2026_full_geo_base'!$B$7:$B$736,"<>California",'2026_full_geo_base'!$B$7:$B$736,"<>Texas",'2026_full_geo_base'!$B$7:$B$736,"<>New Mexico", '2026_full_geo_base'!$B$7:$B$736,"<>Arizona", '2026_full_geo_base'!$B$7:$B$736,"<>Colorado", '2026_full_geo_base'!$B$7:$B$736,"<>Utah")+AVERAGEIFS('2026_full_geo_base'!AF$7:AF$736,'2026_full_geo_base'!$G$7:$G$736,">=71", '2026_full_geo_base'!$B$7:$B$736,"<>California",'2026_full_geo_base'!$B$7:$B$736,"<>Texas",'2026_full_geo_base'!$B$7:$B$736,"<>New Mexico", '2026_full_geo_base'!$B$7:$B$736,"<>Arizona", '2026_full_geo_base'!$B$7:$B$736,"<>Colorado", '2026_full_geo_base'!$B$7:$B$736,"<>Utah"))*K23 -> 0.104561779 | AN23: =(-AVERAGEIFS('2026_full_geo_nonEGU'!AI$7:AI$736,'2026_full_geo_base'!$G$7:$G$736,">=71",'2026_full_geo_base'!$B$7:$B$736,"<>California",'2026_full_geo_base'!$B$7:$B$736,"<>Texas",'2026_full_geo_base'!$B$7:$B$736,"<>New Mexico", '2026_full_geo_base'!$B$7:$B$736,"<>Arizona", '2026_full_geo_base'!$B$7:$B$736,"<>Colorado", '2026_full_geo_base'!$B$7:$B$736,"<>Utah")+AVERAGEIFS('2026_full_geo_base'!AI$7:AI$736,'2026_full_geo_base'!$G$7:$G$736,">=71", '2026_full_geo_base'!$B$7:$B$736,"<>California",'2026_full_geo_base'!$B$7:$B$736,"<>Texas",'2026_full_geo_base'!$B$7:$B$736,"<>New Mexico", '2026_full_geo_base'!$B$7:$B$736,"<>Arizona", '2026_full_geo_base'!$B$7:$B$736,"<>Colorado", '2026_full_geo_base'!$B$7:$B$736,"<>Utah"))*L23 -> 2.016372993e-06 | AO23: =(-AVERAGEIFS('2026_full_geo_nonEGU'!AK$7:AK$736,'2026_full_geo_base'!$G$7:$G$736,">=71",'2026_full_geo_base'!$B$7:$B$736,"<>California",'2026_full_geo_base'!$B$7:$B$736,"<>Texas",'2026_full_geo_base'!$B$7:$B$736,"<>New Mexico", '2026_full_geo_base'!$B$7:$B$736,"<>Arizona", '2026_full_geo_base'!$B$7:$B$736,"<>Colorado", '2026_full_geo_base'!$B$7:$B$736,"<>Utah")+AVERAGEIFS('2026_full_geo_base'!AK$7:AK$736,'2026_full_geo_base'!$G$7:$G$736,">=71", '2026_full_geo_base'!$B$7:$B$736,"<>California",'2026_full_geo_base'!$B$7:$B$736,"<>Texas",'2026_full_geo_base'!$B$7:$B$736,"<>New Mexico", '2026_full_geo_base'!$B$7:$B$736,"<>Arizona", '2026_full_geo_base'!$B$7:$B$736,"<>Colorado", '2026_full_geo_base'!$B$7:$B$736,"<>Utah"))*M23 -> -0.00686339417 | AP23: =(-AVERAGEIFS('2026_full_geo_nonEGU'!AM$7:AM$736,'2026_full_geo_base'!$G$7:$G$736,">=71",'2026_full_geo_base'!$B$7:$B$736,"<>California",'2026_full_geo_base'!$B$7:$B$736,"<>Texas",'2026_full_geo_base'!$B$7:$B$736,"<>New Mexico", '2026_full_geo_base'!$B$7:$B$736,"<>Arizona", '2026_full_geo_base'!$B$7:$B$736,"<>Colorado", '2026_full_geo_base'!$B$7:$B$736,"<>Utah")+AVERAGEIFS('2026_full_geo_base'!AM$7:AM$736,'2026_full_geo_base'!$G$7:$G$736,">=71", '2026_full_geo_base'!$B$7:$B$736,"<>California",'2026_full_geo_base'!$B$7:$B$736,"<>Texas",'2026_full_geo_base'!$B$7:$B$736,"<>New Mexico", '2026_full_geo_base'!$B$7:$B$736,"<>Arizona", '2026_full_geo_base'!$B$7:$B$736,"<>Colorado", '2026_full_geo_base'!$B$7:$B$736,"<>Utah"))*N23 -> 0.03620474383 | AQ23: =(-AVERAGEIFS('2026_full_geo_nonEGU'!AP$7:AP$736,'2026_full_geo_base'!$G$7:$G$736,">=71",'2026_full_geo_base'!$B$7:$B$736,"<>California",'2026_full_geo_base'!$B$7:$B$736,"<>Texas",'2026_full_geo_base'!$B$7:$B$736,"<>New Mexico", '2026_full_geo_base'!$B$7:$B$736,"<>Arizona", '2026_full_geo_base'!$B$7:$B$736,"<>Colorado", '2026_full_geo_base'!$B$7:$B$736,"<>Utah")+AVERAGEIFS('2026_full_geo_base'!AP$7:AP$736,'2026_full_geo_base'!$G$7:$G$736,">=71", '2026_full_geo_base'!$B$7:$B$736,"<>California",'2026_full_geo_base'!$B$7:$B$736,"<>Texas",'2026_full_geo_base'!$B$7:$B$736,"<>New Mexico", '2026_full_geo_base'!$B$7:$B$736,"<>Arizona", '2026_full_geo_base'!$B$7:$B$736,"<>Colorado", '2026_full_geo_base'!$B$7:$B$736,"<>Utah"))*O23 -> 0.06754577163 | AR23: =(-AVERAGEIFS('2026_full_geo_nonEGU'!AQ$7:AQ$736,'2026_full_geo_base'!$G$7:$G$736,">=71",'2026_full_geo_base'!$B$7:$B$736,"<>California",'2026_full_geo_base'!$B$7:$B$736,"<>Texas",'2026_full_geo_base'!$B$7:$B$736,"<>New Mexico", '2026_full_geo_base'!$B$7:$B$736,"<>Arizona", '2026_full_geo_base'!$B$7:$B$736,"<>Colorado", '2026_full_geo_base'!$B$7:$B$736,"<>Utah")+AVERAGEIFS('2026_full_geo_base'!AQ$7:AQ$736,'2026_full_geo_base'!$G$7:$G$736,">=71", '2026_full_geo_base'!$B$7:$B$736,"<>California",'2026_full_geo_base'!$B$7:$B$736,"<>Texas",'2026_full_geo_base'!$B$7:$B$736,"<>New Mexico", '2026_full_geo_base'!$B$7:$B$736,"<>Arizona", '2026_full_geo_base'!$B$7:$B$736,"<>Colorado", '2026_full_geo_base'!$B$7:$B$736,"<>Utah"))*P23 -> 0.02761786613 | AS23: =(-AVERAGEIFS('2026_full_geo_nonEGU'!AS$7:AS$736,'2026_full_geo_base'!$G$7:$G$736,">=71",'2026_full_geo_base'!$B$7:$B$736,"<>California",'2026_full_geo_base'!$B$7:$B$736,"<>Texas",'2026_full_geo_base'!$B$7:$B$736,"<>New Mexico", '2026_full_geo_base'!$B$7:$B$736,"<>Arizona", '2026_full_geo_base'!$B$7:$B$736,"<>Colorado", '2026_full_geo_base'!$B$7:$B$736,"<>Utah")+AVERAGEIFS('2026_full_geo_base'!AS$7:AS$736,'2026_full_geo_base'!$G$7:$G$736,">=71", '2026_full_geo_base'!$B$7:$B$736,"<>California",'2026_full_geo_base'!$B$7:$B$736,"<>Texas",'2026_full_geo_base'!$B$7:$B$736,"<>New Mexico", '2026_full_geo_base'!$B$7:$B$736,"<>Arizona", '2026_full_geo_base'!$B$7:$B$736,"<>Colorado", '2026_full_geo_base'!$B$7:$B$736,"<>Utah"))*Q23 -> 0.09850105027 | AT23: =(-AVERAGEIFS('2026_full_geo_nonEGU'!AX$7:AX$736,'2026_full_geo_base'!$G$7:$G$736,">=71",'2026_full_geo_base'!$B$7:$B$736,"<>California",'2026_full_geo_base'!$B$7:$B$736,"<>Texas",'2026_full_geo_base'!$B$7:$B$736,"<>New Mexico", '2026_full_geo_base'!$B$7:$B$736,"<>Arizona", '2026_full_geo_base'!$B$7:$B$736,"<>Colorado", '2026_full_geo_base'!$B$7:$B$736,"<>Utah")+AVERAGEIFS('2026_full_geo_base'!AX$7:AX$736,'2026_full_geo_base'!$G$7:$G$736,">=71", '2026_full_geo_base'!$B$7:$B$736,"<>California",'2026_full_geo_base'!$B$7:$B$736,"<>Texas",'2026_full_geo_base'!$B$7:$B$736,"<>New Mexico", '2026_full_geo_base'!$B$7:$B$736,"<>Arizona", '2026_full_geo_base'!$B$7:$B$736,"<>Colorado", '2026_full_geo_base'!$B$7:$B$736,"<>Utah"))*R23 -> 0.03187530861 | AU23: =(-AVERAGEIFS('2026_full_geo_nonEGU'!AY$7:AY$736,'2026_full_geo_base'!$G$7:$G$736,">=71",'2026_full_geo_base'!$B$7:$B$736,"<>California",'2026_full_geo_base'!$B$7:$B$736,"<>Texas",'2026_full_geo_base'!$B$7:$B$736,"<>New Mexico", '2026_full_geo_base'!$B$7:$B$736,"<>Arizona", '2026_full_geo_base'!$B$7:$B$736,"<>Colorado", '2026_full_geo_base'!$B$7:$B$736,"<>Utah")+AVERAGEIFS('2026_full_geo_base'!AY$7:AY$736,'2026_full_geo_base'!$G$7:$G$736,">=71", '2026_full_geo_base'!$B$7:$B$736,"<>California",'2026_full_geo_base'!$B$7:$B$736,"<>Texas",'2026_full_geo_base'!$B$7:$B$736,"<>New Mexico", '2026_full_geo_base'!$B$7:$B$736,"<>Arizona", '2026_full_geo_base'!$B$7:$B$736,"<>Colorado", '2026_full_geo_base'!$B$7:$B$736,"<>Utah"))*S23 -> 0.004180795185 | AV23: =(-AVERAGEIFS('2026_full_geo_nonEGU'!BA$7:BA$736,'2026_full_geo_base'!$G$7:$G$736,">=71",'2026_full_geo_base'!$B$7:$B$736,"<>California",'2026_full_geo_base'!$B$7:$B$736,"<>Texas",'2026_full_geo_base'!$B$7:$B$736,"<>New Mexico", '2026_full_geo_base'!$B$7:$B$736,"<>Arizona", '2026_full_geo_base'!$B$7:$B$736,"<>Colorado", '2026_full_geo_base'!$B$7:$B$736,"<>Utah")+AVERAGEIFS('2026_full_geo_base'!BA$7:BA$736,'2026_full_geo_base'!$G$7:$G$736,">=71", '2026_full_geo_base'!$B$7:$B$736,"<>California",'2026_full_geo_base'!$B$7:$B$736,"<>Texas",'2026_full_geo_base'!$B$7:$B$736,"<>New Mexico", '2026_full_geo_base'!$B$7:$B$736,"<>Arizona", '2026_full_geo_base'!$B$7:$B$736,"<>Colorado", '2026_full_geo_base'!$B$7:$B$736,"<>Utah"))*T23 -> 0.02534142209 | AW23: =(-AVERAGEIFS('2026_full_geo_nonEGU'!BC$7:BC$736,'2026_full_geo_base'!$G$7:$G$736,">=71",'2026_full_geo_base'!$B$7:$B$736,"<>California",'2026_full_geo_base'!$B$7:$B$736,"<>Texas",'2026_full_geo_base'!$B$7:$B$736,"<>New Mexico", '2026_full_geo_base'!$B$7:$B$736,"<>Arizona", '2026_full_geo_base'!$B$7:$B$736,"<>Colorado", '2026_full_geo_base'!$B$7:$B$736,"<>Utah")+AVERAGEIFS('2026_full_geo_base'!BC$7:BC$736,'2026_full_geo_base'!$G$7:$G$736,">=71", '2026_full_geo_base'!$B$7:$B$736,"<>California",'2026_full_geo_base'!$B$7:$B$736,"<>Texas",'2026_full_geo_base'!$B$7:$B$736,"<>New Mexico", '2026_full_geo_base'!$B$7:$B$736,"<>Arizona", '2026_full_geo_base'!$B$7:$B$736,"<>Colorado", '2026_full_geo_base'!$B$7:$B$736,"<>Utah"))*U23 -> 0.08406047094 | AX23: =(-AVERAGEIFS('2026_full_geo_nonEGU'!BF$7:BF$736,'2026_full_geo_base'!$G$7:$G$736,">=71",'2026_full_geo_base'!$B$7:$B$736,"<>California",'2026_full_geo_base'!$B$7:$B$736,"<>Texas",'2026_full_geo_base'!$B$7:$B$736,"<>New Mexico", '2026_full_geo_base'!$B$7:$B$736,"<>Arizona", '2026_full_geo_base'!$B$7:$B$736,"<>Colorado", '2026_full_geo_base'!$B$7:$B$736,"<>Utah")+AVERAGEIFS('2026_full_geo_base'!BF$7:BF$736,'2026_full_geo_base'!$G$7:$G$736,">=71", '2026_full_geo_base'!$B$7:$B$736,"<>California",'2026_full_geo_base'!$B$7:$B$736,"<>Texas",'2026_full_geo_base'!$B$7:$B$736,"<>New Mexico", '2026_full_geo_base'!$B$7:$B$736,"<>Arizona", '2026_full_geo_base'!$B$7:$B$736,"<>Colorado", '2026_full_geo_base'!$B$7:$B$736,"<>Utah"))*S23 -> 0.001095747782
B24: 1 | C24: 1 | D24: 1 | E24: 1 | F24: 1 | G24: 1 | H24: 1 | I24: 1 | J24: 1 | K24: 1 | L24: 1 | M24: 1 | N24: 1 | O24: 1 | P24: 1 | Q24: 1 | R24: 1 | S24: 1 | T24: 1 | U24: 1 | W24: 2026_step3_newSCR | X24: =(-AVERAGEIFS('2026_full_geo_newSCR'!BV$7:BV$736,'2026_full_geo_base'!$G$7:$G$736,">=71",'2026_full_geo_base'!$B$7:$B$736,"<>California",'2026_full_geo_base'!$B$7:$B$736,"<>Texas",'2026_full_geo_base'!$B$7:$B$736,"<>New Mexico", '2026_full_geo_base'!$B$7:$B$736,"<>Arizona", '2026_full_geo_base'!$B$7:$B$736,"<>Colorado", '2026_full_geo_base'!$B$7:$B$736,"<>Utah")+AVERAGEIFS('2026_full_geo_base'!BV$7:BV$736,'2026_full_geo_base'!$G$7:$G$736,">=71", '2026_full_geo_base'!$B$7:$B$736,"<>California",'2026_full_geo_base'!$B$7:$B$736,"<>Texas",'2026_full_geo_base'!$B$7:$B$736,"<>New Mexico", '2026_full_geo_base'!$B$7:$B$736,"<>Arizona", '2026_full_geo_base'!$B$7:$B$736,"<>Colorado", '2026_full_geo_base'!$B$7:$B$736,"<>Utah"))*1 -> -0.04525283329 | Y24: =(-AVERAGEIFS('2026_full_geo_newSCR'!J$7:J$736,'2026_full_geo_base'!$G$7:$G$736,">=71",'2026_full_geo_base'!$B$7:$B$736,"<>California",'2026_full_geo_base'!$B$7:$B$736,"<>Texas",'2026_full_geo_base'!$B$7:$B$736,"<>New Mexico", '2026_full_geo_base'!$B$7:$B$736,"<>Arizona", '2026_full_geo_base'!$B$7:$B$736,"<>Colorado", '2026_full_geo_base'!$B$7:$B$736,"<>Utah")+AVERAGEIFS('2026_full_geo_base'!J$7:J$736,'2026_full_geo_base'!$G$7:$G$736,">=71", '2026_full_geo_base'!$B$7:$B$736,"<>California",'2026_full_geo_base'!$B$7:$B$736,"<>Texas",'2026_full_geo_base'!$B$7:$B$736,"<>New Mexico", '2026_full_geo_base'!$B$7:$B$736,"<>Arizona", '2026_full_geo_base'!$B$7:$B$736,"<>Colorado", '2026_full_geo_base'!$B$7:$B$736,"<>Utah"))*1 -> 0 | Z24: =(-AVERAGEIFS('2026_full_geo_newSCR'!M$7:M$736,'2026_full_geo_base'!$G$7:$G$736,">=71",'2026_full_geo_base'!$B$7:$B$736,"<>California",'2026_full_geo_base'!$B$7:$B$736,"<>Texas",'2026_full_geo_base'!$B$7:$B$736,"<>New Mexico", '2026_full_geo_base'!$B$7:$B$736,"<>Arizona", '2026_full_geo_base'!$B$7:$B$736,"<>Colorado", '2026_full_geo_base'!$B$7:$B$736,"<>Utah")+AVERAGEIFS('2026_full_geo_base'!M$7:M$736,'2026_full_geo_base'!$G$7:$G$736,">=71", '2026_full_geo_base'!$B$7:$B$736,"<>California",'2026_full_geo_base'!$B$7:$B$736,"<>Texas",'2026_full_geo_base'!$B$7:$B$736,"<>New Mexico", '2026_full_geo_base'!$B$7:$B$736,"<>Arizona", '2026_full_geo_base'!$B$7:$B$736,"<>Colorado", '2026_full_geo_base'!$B$7:$B$736,"<>Utah"))*1 -> 0 | AA24: =(-AVERAGEIFS('2026_full_geo_newSCR'!N$7:N$736,'2026_full_geo_base'!$G$7:$G$736,">=71",'2026_full_geo_base'!$B$7:$B$736,"<>California",'2026_full_geo_base'!$B$7:$B$736,"<>Texas",'2026_full_geo_base'!$B$7:$B$736,"<>New Mexico", '2026_full_geo_base'!$B$7:$B$736,"<>Arizona", '2026_full_geo_base'!$B$7:$B$736,"<>Colorado", '2026_full_geo_base'!$B$7:$B$736,"<>Utah")+AVERAGEIFS('2026_full_geo_base'!N$7:N$736,'2026_full_geo_base'!$G$7:$G$736,">=71", '2026_full_geo_base'!$B$7:$B$736,"<>California",'2026_full_geo_base'!$B$7:$B$736,"<>Texas",'2026_full_geo_base'!$B$7:$B$736,"<>New Mexico", '2026_full_geo_base'!$B$7:$B$736,"<>Arizona", '2026_full_geo_base'!$B$7:$B$736,"<>Colorado", '2026_full_geo_base'!$B$7:$B$736,"<>Utah"))*1 -> 0 | AB24: =(-AVERAGEIFS('2026_full_geo_newSCR'!BD$7:BD$736,'2026_full_geo_base'!$G$7:$G$736,">=71",'2026_full_geo_base'!$B$7:$B$736,"<>California",'2026_full_geo_base'!$B$7:$B$736,"<>Texas",'2026_full_geo_base'!$B$7:$B$736,"<>New Mexico", '2026_full_geo_base'!$B$7:$B$736,"<>Arizona", '2026_full_geo_base'!$B$7:$B$736,"<>Colorado", '2026_full_geo_base'!$B$7:$B$736,"<>Utah")+AVERAGEIFS('2026_full_geo_base'!BD$7:BD$736,'2026_full_geo_base'!$G$7:$G$736,">=71", '2026_full_geo_base'!$B$7:$B$736,"<>California",'2026_full_geo_base'!$B$7:$B$736,"<>Texas",'2026_full_geo_base'!$B$7:$B$736,"<>New Mexico", '2026_full_geo_base'!$B$7:$B$736,"<>Arizona", '2026_full_geo_base'!$B$7:$B$736,"<>Colorado", '2026_full_geo_base'!$B$7:$B$736,"<>Utah"))*1 -> 0 | AC24: =(-AVERAGEIFS('2026_full_geo_newSCR'!AL$7:AL$736,'2026_full_geo_base'!$G$7:$G$736,">=71",'2026_full_geo_base'!$B$7:$B$736,"<>California",'2026_full_geo_base'!$B$7:$B$736,"<>Texas",'2026_full_geo_base'!$B$7:$B$736,"<>New Mexico", '2026_full_geo_base'!$B$7:$B$736,"<>Arizona", '2026_full_geo_base'!$B$7:$B$736,"<>Colorado", '2026_full_geo_base'!$B$7:$B$736,"<>Utah")+AVERAGEIFS('2026_full_geo_base'!AL$7:AL$736,'2026_full_geo_base'!$G$7:$G$736,">=71", '2026_full_geo_base'!$B$7:$B$736,"<>California",'2026_full_geo_base'!$B$7:$B$736,"<>Texas",'2026_full_geo_base'!$B$7:$B$736,"<>New Mexico", '2026_full_geo_base'!$B$7:$B$736,"<>Arizona", '2026_full_geo_base'!$B$7:$B$736,"<>Colorado", '2026_full_geo_base'!$B$7:$B$736,"<>Utah"))*1 -> 0 | AD24: =(-AVERAGEIFS('2026_full_geo_newSCR'!K$7:K$736,'2026_full_geo_base'!$G$7:$G$736,">=71",'2026_full_geo_base'!$B$7:$B$736,"<>California",'2026_full_geo_base'!$B$7:$B$736,"<>Texas",'2026_full_geo_base'!$B$7:$B$736,"<>New Mexico", '2026_full_geo_base'!$B$7:$B$736,"<>Arizona", '2026_full_geo_base'!$B$7:$B$736,"<>Colorado", '2026_full_geo_base'!$B$7:$B$736,"<>Utah")+AVERAGEIFS('2026_full_geo_base'!K$7:K$736,'2026_full_geo_base'!$G$7:$G$736,">=71", '2026_full_geo_base'!$B$7:$B$736,"<>California",'2026_full_geo_base'!$B$7:$B$736,"<>Texas",'2026_full_geo_base'!$B$7:$B$736,"<>New Mexico", '2026_full_geo_base'!$B$7:$B$736,"<>Arizona", '2026_full_geo_base'!$B$7:$B$736,"<>Colorado", '2026_full_geo_base'!$B$7:$B$736,"<>Utah"))*B24 -> 0.02002381304 | AE24: =(-AVERAGEIFS('2026_full_geo_newSCR'!L$7:L$736,'2026_full_geo_base'!$G$7:$G$736,">=71",'2026_full_geo_base'!$B$7:$B$736,"<>California",'2026_full_geo_base'!$B$7:$B$736,"<>Texas",'2026_full_geo_base'!$B$7:$B$736,"<>New Mexico", '2026_full_geo_base'!$B$7:$B$736,"<>Arizona", '2026_full_geo_base'!$B$7:$B$736,"<>Colorado", '2026_full_geo_base'!$B$7:$B$736,"<>Utah")+AVERAGEIFS('2026_full_geo_base'!L$7:L$736,'2026_full_geo_base'!$G$7:$G$736,">=71", '2026_full_geo_base'!$B$7:$B$736,"<>California",'2026_full_geo_base'!$B$7:$B$736,"<>Texas",'2026_full_geo_base'!$B$7:$B$736,"<>New Mexico", '2026_full_geo_base'!$B$7:$B$736,"<>Arizona", '2026_full_geo_base'!$B$7:$B$736,"<>Colorado", '2026_full_geo_base'!$B$7:$B$736,"<>Utah"))*C24 -> 8.575705389e-05 | AF24: =(-AVERAGEIFS('2026_full_geo_newSCR'!T$7:T$736,'2026_full_geo_base'!$G$7:$G$736,">=71",'2026_full_geo_base'!$B$7:$B$736,"<>California",'2026_full_geo_base'!$B$7:$B$736,"<>Texas",'2026_full_geo_base'!$B$7:$B$736,"<>New Mexico", '2026_full_geo_base'!$B$7:$B$736,"<>Arizona", '2026_full_geo_base'!$B$7:$B$736,"<>Colorado", '2026_full_geo_base'!$B$7:$B$736,"<>Utah")+AVERAGEIFS('2026_full_geo_base'!T$7:T$736,'2026_full_geo_base'!$G$7:$G$736,">=71", '2026_full_geo_base'!$B$7:$B$736,"<>California",'2026_full_geo_base'!$B$7:$B$736,"<>Texas",'2026_full_geo_base'!$B$7:$B$736,"<>New Mexico", '2026_full_geo_base'!$B$7:$B$736,"<>Arizona", '2026_full_geo_base'!$B$7:$B$736,"<>Colorado", '2026_full_geo_base'!$B$7:$B$736,"<>Utah"))*D24 -> 0.007092272913 | AG24: =(-AVERAGEIFS('2026_full_geo_newSCR'!U$7:U$736,'2026_full_geo_base'!$G$7:$G$736,">=71",'2026_full_geo_base'!$B$7:$B$736,"<>California",'2026_full_geo_base'!$B$7:$B$736,"<>Texas",'2026_full_geo_base'!$B$7:$B$736,"<>New Mexico", '2026_full_geo_base'!$B$7:$B$736,"<>Arizona", '2026_full_geo_base'!$B$7:$B$736,"<>Colorado", '2026_full_geo_base'!$B$7:$B$736,"<>Utah")+AVERAGEIFS('2026_full_geo_base'!U$7:U$736,'2026_full_geo_base'!$G$7:$G$736,">=71", '2026_full_geo_base'!$B$7:$B$736,"<>California",'2026_full_geo_base'!$B$7:$B$736,"<>Texas",'2026_full_geo_base'!$B$7:$B$736,"<>New Mexico", '2026_full_geo_base'!$B$7:$B$736,"<>Arizona", '2026_full_geo_base'!$B$7:$B$736,"<>Colorado", '2026_full_geo_base'!$B$7:$B$736,"<>Utah"))*E24 -> 0.04417100535 | AH24: =(-AVERAGEIFS('2026_full_geo_newSCR'!X$7:X$736,'2026_full_geo_base'!$G$7:$G$736,">=71",'2026_full_geo_base'!$B$7:$B$736,"<>California",'2026_full_geo_base'!$B$7:$B$736,"<>Texas",'2026_full_geo_base'!$B$7:$B$736,"<>New Mexico", '2026_full_geo_base'!$B$7:$B$736,"<>Arizona", '2026_full_geo_base'!$B$7:$B$736,"<>Colorado", '2026_full_geo_base'!$B$7:$B$736,"<>Utah")+AVERAGEIFS('2026_full_geo_base'!X$7:X$736,'2026_full_geo_base'!$G$7:$G$736,">=71", '2026_full_geo_base'!$B$7:$B$736,"<>California",'2026_full_geo_base'!$B$7:$B$736,"<>Texas",'2026_full_geo_base'!$B$7:$B$736,"<>New Mexico", '2026_full_geo_base'!$B$7:$B$736,"<>Arizona", '2026_full_geo_base'!$B$7:$B$736,"<>Colorado", '2026_full_geo_base'!$B$7:$B$736,"<>Utah"))*F24 -> 0.05183018865 | AI24: =(-AVERAGEIFS('2026_full_geo_newSCR'!Y$7:Y$736,'2026_full_geo_base'!$G$7:$G$736,">=71",'2026_full_geo_base'!$B$7:$B$736,"<>California",'2026_full_geo_base'!$B$7:$B$736,"<>Texas",'2026_full_geo_base'!$B$7:$B$736,"<>New Mexico", '2026_full_geo_base'!$B$7:$B$736,"<>Arizona", '2026_full_geo_base'!$B$7:$B$736,"<>Colorado", '2026_full_geo_base'!$B$7:$B$736,"<>Utah")+AVERAGEIFS('2026_full_geo_base'!Y$7:Y$736,'2026_full_geo_base'!$G$7:$G$736,">=71", '2026_full_geo_base'!$B$7:$B$736,"<>California",'2026_full_geo_base'!$B$7:$B$736,"<>Texas",'2026_full_geo_base'!$B$7:$B$736,"<>New Mexico", '2026_full_geo_base'!$B$7:$B$736,"<>Arizona", '2026_full_geo_base'!$B$7:$B$736,"<>Colorado", '2026_full_geo_base'!$B$7:$B$736,"<>Utah"))*G24 -> 0.0114846986 | AJ24: =(-AVERAGEIFS('2026_full_geo_newSCR'!AA$7:AA$736,'2026_full_geo_base'!$G$7:$G$736,">=71",'2026_full_geo_base'!$B$7:$B$736,"<>California",'2026_full_geo_base'!$B$7:$B$736,"<>Texas",'2026_full_geo_base'!$B$7:$B$736,"<>New Mexico", '2026_full_geo_base'!$B$7:$B$736,"<>Arizona", '2026_full_geo_base'!$B$7:$B$736,"<>Colorado", '2026_full_geo_base'!$B$7:$B$736,"<>Utah")+AVERAGEIFS('2026_full_geo_base'!AA$7:AA$736,'2026_full_geo_base'!$G$7:$G$736,">=71", '2026_full_geo_base'!$B$7:$B$736,"<>California",'2026_full_geo_base'!$B$7:$B$736,"<>Texas",'2026_full_geo_base'!$B$7:$B$736,"<>New Mexico", '2026_full_geo_base'!$B$7:$B$736,"<>Arizona", '2026_full_geo_base'!$B$7:$B$736,"<>Colorado", '2026_full_geo_base'!$B$7:$B$736,"<>Utah"))*H24 -> 0.0008755249756 | AK24: =(-AVERAGEIFS('2026_full_geo_newSCR'!AC$7:AC$736,'2026_full_geo_base'!$G$7:$G$736,">=71",'2026_full_geo_base'!$B$7:$B$736,"<>California",'2026_full_geo_base'!$B$7:$B$736,"<>Texas",'2026_full_geo_base'!$B$7:$B$736,"<>New Mexico", '2026_full_geo_base'!$B$7:$B$736,"<>Arizona", '2026_full_geo_base'!$B$7:$B$736,"<>Colorado", '2026_full_geo_base'!$B$7:$B$736,"<>Utah")+AVERAGEIFS('2026_full_geo_base'!AC$7:AC$736,'2026_full_geo_base'!$G$7:$G$736,">=71", '2026_full_geo_base'!$B$7:$B$736,"<>California",'2026_full_geo_base'!$B$7:$B$736,"<>Texas",'2026_full_geo_base'!$B$7:$B$736,"<>New Mexico", '2026_full_geo_base'!$B$7:$B$736,"<>Arizona", '2026_full_geo_base'!$B$7:$B$736,"<>Colorado", '2026_full_geo_base'!$B$7:$B$736,"<>Utah"))*I24 -> 0.01750391556 | AL24: =(-AVERAGEIFS('2026_full_geo_newSCR'!AE$7:AE$736,'2026_full_geo_base'!$G$7:$G$736,">=71",'2026_full_geo_base'!$B$7:$B$736,"<>California",'2026_full_geo_base'!$B$7:$B$736,"<>Texas",'2026_full_geo_base'!$B$7:$B$736,"<>New Mexico", '2026_full_geo_base'!$B$7:$B$736,"<>Arizona", '2026_full_geo_base'!$B$7:$B$736,"<>Colorado", '2026_full_geo_base'!$B$7:$B$736,"<>Utah")+AVERAGEIFS('2026_full_geo_base'!AE$7:AE$736,'2026_full_geo_base'!$G$7:$G$736,">=71", '2026_full_geo_base'!$B$7:$B$736,"<>California",'2026_full_geo_base'!$B$7:$B$736,"<>Texas",'2026_full_geo_base'!$B$7:$B$736,"<>New Mexico", '2026_full_geo_base'!$B$7:$B$736,"<>Arizona", '2026_full_geo_base'!$B$7:$B$736,"<>Colorado", '2026_full_geo_base'!$B$7:$B$736,"<>Utah"))*J24 -> 0.007509761462 | AM24: =(-AVERAGEIFS('2026_full_geo_newSCR'!AF$7:AF$736,'2026_full_geo_base'!$G$7:$G$736,">=71",'2026_full_geo_base'!$B$7:$B$736,"<>California",'2026_full_geo_base'!$B$7:$B$736,"<>Texas",'2026_full_geo_base'!$B$7:$B$736,"<>New Mexico", '2026_full_geo_base'!$B$7:$B$736,"<>Arizona", '2026_full_geo_base'!$B$7:$B$736,"<>Colorado", '2026_full_geo_base'!$B$7:$B$736,"<>Utah")+AVERAGEIFS('2026_full_geo_base'!AF$7:AF$736,'2026_full_geo_base'!$G$7:$G$736,">=71", '2026_full_geo_base'!$B$7:$B$736,"<>California",'2026_full_geo_base'!$B$7:$B$736,"<>Texas",'2026_full_geo_base'!$B$7:$B$736,"<>New Mexico", '2026_full_geo_base'!$B$7:$B$736,"<>Arizona", '2026_full_geo_base'!$B$7:$B$736,"<>Colorado", '2026_full_geo_base'!$B$7:$B$736,"<>Utah"))*K24 -> 0.08832428714 | AN24: =(-AVERAGEIFS('2026_full_geo_newSCR'!AI$7:AI$736,'2026_full_geo_base'!$G$7:$G$736,">=71",'2026_full_geo_base'!$B$7:$B$736,"<>California",'2026_full_geo_base'!$B$7:$B$736,"<>Texas",'2026_full_geo_base'!$B$7:$B$736,"<>New Mexico", '2026_full_geo_base'!$B$7:$B$736,"<>Arizona", '2026_full_geo_base'!$B$7:$B$736,"<>Colorado", '2026_full_geo_base'!$B$7:$B$736,"<>Utah")+AVERAGEIFS('2026_full_geo_base'!AI$7:AI$736,'2026_full_geo_base'!$G$7:$G$736,">=71", '2026_full_geo_base'!$B$7:$B$736,"<>California",'2026_full_geo_base'!$B$7:$B$736,"<>Texas",'2026_full_geo_base'!$B$7:$B$736,"<>New Mexico", '2026_full_geo_base'!$B$7:$B$736,"<>Arizona", '2026_full_geo_base'!$B$7:$B$736,"<>Colorado", '2026_full_geo_base'!$B$7:$B$736,"<>Utah"))*L24 -> 2.016372993e-06 | AO24: =(-AVERAGEIFS('2026_full_geo_newSCR'!AK$7:AK$736,'2026_full_geo_base'!$G$7:$G$736,">=71",'2026_full_geo_base'!$B$7:$B$736,"<>California",'2026_full_geo_base'!$B$7:$B$736,"<>Texas",'2026_full_geo_base'!$B$7:$B$736,"<>New Mexico", '2026_full_geo_base'!$B$7:$B$736,"<>Arizona", '2026_full_geo_base'!$B$7:$B$736,"<>Colorado", '2026_full_geo_base'!$B$7:$B$736,"<>Utah")+AVERAGEIFS('2026_full_geo_base'!AK$7:AK$736,'2026_full_geo_base'!$G$7:$G$736,">=71", '2026_full_geo_base'!$B$7:$B$736,"<>California",'2026_full_geo_base'!$B$7:$B$736,"<>Texas",'2026_full_geo_base'!$B$7:$B$736,"<>New Mexico", '2026_full_geo_base'!$B$7:$B$736,"<>Arizona", '2026_full_geo_base'!$B$7:$B$736,"<>Colorado", '2026_full_geo_base'!$B$7:$B$736,"<>Utah"))*M24 -> -0.00254574484 | AP24: =(-AVERAGEIFS('2026_full_geo_newSCR'!AM$7:AM$736,'2026_full_geo_base'!$G$7:$G$736,">=71",'2026_full_geo_base'!$B$7:$B$736,"<>California",'2026_full_geo_base'!$B$7:$B$736,"<>Texas",'2026_full_geo_base'!$B$7:$B$736,"<>New Mexico", '2026_full_geo_base'!$B$7:$B$736,"<>Arizona", '2026_full_geo_base'!$B$7:$B$736,"<>Colorado", '2026_full_geo_base'!$B$7:$B$736,"<>Utah")+AVERAGEIFS('2026_full_geo_base'!AM$7:AM$736,'2026_full_geo_base'!$G$7:$G$736,">=71", '2026_full_geo_base'!$B$7:$B$736,"<>California",'2026_full_geo_base'!$B$7:$B$736,"<>Texas",'2026_full_geo_base'!$B$7:$B$736,"<>New Mexico", '2026_full_geo_base'!$B$7:$B$736,"<>Arizona", '2026_full_geo_base'!$B$7:$B$736,"<>Colorado", '2026_full_geo_base'!$B$7:$B$736,"<>Utah"))*N24 -> 0.01378420995 | AQ24: =(-AVERAGEIFS('2026_full_geo_newSCR'!AP$7:AP$736,'2026_full_geo_base'!$G$7:$G$736,">=71",'2026_full_geo_base'!$B$7:$B$736,"<>California",'2026_full_geo_base'!$B$7:$B$736,"<>Texas",'2026_full_geo_base'!$B$7:$B$736,"<>New Mexico", '2026_full_geo_base'!$B$7:$B$736,"<>Arizona", '2026_full_geo_base'!$B$7:$B$736,"<>Colorado", '2026_full_geo_base'!$B$7:$B$736,"<>Utah")+AVERAGEIFS('2026_full_geo_base'!AP$7:AP$736,'2026_full_geo_base'!$G$7:$G$736,">=71", '2026_full_geo_base'!$B$7:$B$736,"<>California",'2026_full_geo_base'!$B$7:$B$736,"<>Texas",'2026_full_geo_base'!$B$7:$B$736,"<>New Mexico", '2026_full_geo_base'!$B$7:$B$736,"<>Arizona", '2026_full_geo_base'!$B$7:$B$736,"<>Colorado", '2026_full_geo_base'!$B$7:$B$736,"<>Utah"))*O24 -> 0.01830094404 | AR24: =(-AVERAGEIFS('2026_full_geo_newSCR'!AQ$7:AQ$736,'2026_full_geo_base'!$G$7:$G$736,">=71",'2026_full_geo_base'!$B$7:$B$736,"<>California",'2026_full_geo_base'!$B$7:$B$736,"<>Texas",'2026_full_geo_base'!$B$7:$B$736,"<>New Mexico", '2026_full_geo_base'!$B$7:$B$736,"<>Arizona", '2026_full_geo_base'!$B$7:$B$736,"<>Colorado", '2026_full_geo_base'!$B$7:$B$736,"<>Utah")+AVERAGEIFS('2026_full_geo_base'!AQ$7:AQ$736,'2026_full_geo_base'!$G$7:$G$736,">=71", '2026_full_geo_base'!$B$7:$B$736,"<>California",'2026_full_geo_base'!$B$7:$B$736,"<>Texas",'2026_full_geo_base'!$B$7:$B$736,"<>New Mexico", '2026_full_geo_base'!$B$7:$B$736,"<>Arizona", '2026_full_geo_base'!$B$7:$B$736,"<>Colorado", '2026_full_geo_base'!$B$7:$B$736,"<>Utah"))*P24 -> 0.01591644242 | AS24: =(-AVERAGEIFS('2026_full_geo_newSCR'!AS$7:AS$736,'2026_full_geo_base'!$G$7:$G$736,">=71",'2026_full_geo_base'!$B$7:$B$736,"<>California",'2026_full_geo_base'!$B$7:$B$736,"<>Texas",'2026_full_geo_base'!$B$7:$B$736,"<>New Mexico", '2026_full_geo_base'!$B$7:$B$736,"<>Arizona", '2026_full_geo_base'!$B$7:$B$736,"<>Colorado", '2026_full_geo_base'!$B$7:$B$736,"<>Utah")+AVERAGEIFS('2026_full_geo_base'!AS$7:AS$736,'2026_full_geo_base'!$G$7:$G$736,">=71", '2026_full_geo_base'!$B$7:$B$736,"<>California",'2026_full_geo_base'!$B$7:$B$736,"<>Texas",'2026_full_geo_base'!$B$7:$B$736,"<>New Mexico", '2026_full_geo_base'!$B$7:$B$736,"<>Arizona", '2026_full_geo_base'!$B$7:$B$736,"<>Colorado", '2026_full_geo_base'!$B$7:$B$736,"<>Utah"))*Q24 -> 0.03500379442 | AT24: =(-AVERAGEIFS('2026_full_geo_newSCR'!AX$7:AX$736,'2026_full_geo_base'!$G$7:$G$736,">=71",'2026_full_geo_base'!$B$7:$B$736,"<>California",'2026_full_geo_base'!$B$7:$B$736,"<>Texas",'2026_full_geo_base'!$B$7:$B$736,"<>New Mexico", '2026_full_geo_base'!$B$7:$B$736,"<>Arizona", '2026_full_geo_base'!$B$7:$B$736,"<>Colorado", '2026_full_geo_base'!$B$7:$B$736,"<>Utah")+AVERAGEIFS('2026_full_geo_base'!AX$7:AX$736,'2026_full_geo_base'!$G$7:$G$736,">=71", '2026_full_geo_base'!$B$7:$B$736,"<>California",'2026_full_geo_base'!$B$7:$B$736,"<>Texas",'2026_full_geo_base'!$B$7:$B$736,"<>New Mexico", '2026_full_geo_base'!$B$7:$B$736,"<>Arizona", '2026_full_geo_base'!$B$7:$B$736,"<>Colorado", '2026_full_geo_base'!$B$7:$B$736,"<>Utah"))*R24 -> 0.02454425276 | AU24: =(-AVERAGEIFS('2026_full_geo_newSCR'!AY$7:AY$736,'2026_full_geo_base'!$G$7:$G$736,">=71",'2026_full_geo_base'!$B$7:$B$736,"<>California",'2026_full_geo_base'!$B$7:$B$736,"<>Texas",'2026_full_geo_base'!$B$7:$B$736,"<>New Mexico", '2026_full_geo_base'!$B$7:$B$736,"<>Arizona", '2026_full_geo_base'!$B$7:$B$736,"<>Colorado", '2026_full_geo_base'!$B$7:$B$736,"<>Utah")+AVERAGEIFS('2026_full_geo_base'!AY$7:AY$736,'2026_full_geo_base'!$G$7:$G$736,">=71", '2026_full_geo_base'!$B$7:$B$736,"<>California",'2026_full_geo_base'!$B$7:$B$736,"<>Texas",'2026_full_geo_base'!$B$7:$B$736,"<>New Mexico", '2026_full_geo_base'!$B$7:$B$736,"<>Arizona", '2026_full_geo_base'!$B$7:$B$736,"<>Colorado", '2026_full_geo_base'!$B$7:$B$736,"<>Utah"))*S24 -> 0.004009344502 | AV24: =(-AVERAGEIFS('2026_full_geo_newSCR'!BA$7:BA$736,'2026_full_geo_base'!$G$7:$G$736,">=71",'2026_full_geo_base'!$B$7:$B$736,"<>California",'2026_full_geo_base'!$B$7:$B$736,"<>Texas",'2026_full_geo_base'!$B$7:$B$736,"<>New Mexico", '2026_full_geo_base'!$B$7:$B$736,"<>Arizona", '2026_full_geo_base'!$B$7:$B$736,"<>Colorado", '2026_full_geo_base'!$B$7:$B$736,"<>Utah")+AVERAGEIFS('2026_full_geo_base'!BA$7:BA$736,'2026_full_geo_base'!$G$7:$G$736,">=71", '2026_full_geo_base'!$B$7:$B$736,"<>California",'2026_full_geo_base'!$B$7:$B$736,"<>Texas",'2026_full_geo_base'!$B$7:$B$736,"<>New Mexico", '2026_full_geo_base'!$B$7:$B$736,"<>Arizona", '2026_full_geo_base'!$B$7:$B$736,"<>Colorado", '2026_full_geo_base'!$B$7:$B$736,"<>Utah"))*T24 -> 0.005755911133 | AW24: =(-AVERAGEIFS('2026_full_geo_newSCR'!BC$7:BC$736,'2026_full_geo_base'!$G$7:$G$736,">=71",'2026_full_geo_base'!$B$7:$B$736,"<>California",'2026_full_geo_base'!$B$7:$B$736,"<>Texas",'2026_full_geo_base'!$B$7:$B$736,"<>New Mexico", '2026_full_geo_base'!$B$7:$B$736,"<>Arizona", '2026_full_geo_base'!$B$7:$B$736,"<>Colorado", '2026_full_geo_base'!$B$7:$B$736,"<>Utah")+AVERAGEIFS('2026_full_geo_base'!BC$7:BC$736,'2026_full_geo_base'!$G$7:$G$736,">=71", '2026_full_geo_base'!$B$7:$B$736,"<>California",'2026_full_geo_base'!$B$7:$B$736,"<>Texas",'2026_full_geo_base'!$B$7:$B$736,"<>New Mexico", '2026_full_geo_base'!$B$7:$B$736,"<>Arizona", '2026_full_geo_base'!$B$7:$B$736,"<>Colorado", '2026_full_geo_base'!$B$7:$B$736,"<>Utah"))*U24 -> 0.05718371365 | AX24: =(-AVERAGEIFS('2026_full_geo_newSCR'!BF$7:BF$736,'2026_full_geo_base'!$G$7:$G$736,">=71",'2026_full_geo_base'!$B$7:$B$736,"<>California",'2026_full_geo_base'!$B$7:$B$736,"<>Texas",'2026_full_geo_base'!$B$7:$B$736,"<>New Mexico", '2026_full_geo_base'!$B$7:$B$736,"<>Arizona", '2026_full_geo_base'!$B$7:$B$736,"<>Colorado", '2026_full_geo_base'!$B$7:$B$736,"<>Utah")+AVERAGEIFS('2026_full_geo_base'!BF$7:BF$736,'2026_full_geo_base'!$G$7:$G$736,">=71", '2026_full_geo_base'!$B$7:$B$736,"<>California",'2026_full_geo_base'!$B$7:$B$736,"<>Texas",'2026_full_geo_base'!$B$7:$B$736,"<>New Mexico", '2026_full_geo_base'!$B$7:$B$736,"<>Arizona", '2026_full_geo_base'!$B$7:$B$736,"<>Colorado", '2026_full_geo_base'!$B$7:$B$736,"<>Utah"))*S24 -> 0.001095747782
B25: 1 | C25: 1 | D25: 1 | E25: 1 | F25: 1 | G25: 1 | H25: 1 | I25: 1 | J25: 1 | K25: 1 | L25: 1 | M25: 1 | N25: 1 | O25: 1 | P25: 1 | Q25: 1 | R25: 1 | S25: 1 | T25: 1 | U25: 1 | W25: 2026_step3_SNCRoptwCC | X25: =(-AVERAGEIFS('2026_full_geo_SNCRoptwCC'!BV$7:BV$736,'2026_full_geo_base'!$G$7:$G$736,">=71",'2026_full_geo_base'!$B$7:$B$736,"<>California",'2026_full_geo_base'!$B$7:$B$736,"<>Texas",'2026_full_geo_base'!$B$7:$B$736,"<>New Mexico", '2026_full_geo_base'!$B$7:$B$736,"<>Arizona", '2026_full_geo_base'!$B$7:$B$736,"<>Colorado", '2026_full_geo_base'!$B$7:$B$736,"<>Utah")+AVERAGEIFS('2026_full_geo_base'!BV$7:BV$736,'2026_full_geo_base'!$G$7:$G$736,">=71", '2026_full_geo_base'!$B$7:$B$736,"<>California",'2026_full_geo_base'!$B$7:$B$736,"<>Texas",'2026_full_geo_base'!$B$7:$B$736,"<>New Mexico", '2026_full_geo_base'!$B$7:$B$736,"<>Arizona", '2026_full_geo_base'!$B$7:$B$736,"<>Colorado", '2026_full_geo_base'!$B$7:$B$736,"<>Utah"))*1 -> -0.01836338719 | Y25: =(-AVERAGEIFS('2026_full_geo_SNCRoptwCC'!J$7:J$736,'2026_full_geo_base'!$G$7:$G$736,">=71",'2026_full_geo_base'!$B$7:$B$736,"<>California",'2026_full_geo_base'!$B$7:$B$736,"<>Texas",'2026_full_geo_base'!$B$7:$B$736,"<>New Mexico", '2026_full_geo_base'!$B$7:$B$736,"<>Arizona", '2026_full_geo_base'!$B$7:$B$736,"<>Colorado", '2026_full_geo_base'!$B$7:$B$736,"<>Utah")+AVERAGEIFS('2026_full_geo_base'!J$7:J$736,'2026_full_geo_base'!$G$7:$G$736,">=71", '2026_full_geo_base'!$B$7:$B$736,"<>California",'2026_full_geo_base'!$B$7:$B$736,"<>Texas",'2026_full_geo_base'!$B$7:$B$736,"<>New Mexico", '2026_full_geo_base'!$B$7:$B$736,"<>Arizona", '2026_full_geo_base'!$B$7:$B$736,"<>Colorado", '2026_full_geo_base'!$B$7:$B$736,"<>Utah"))*1 -> 0 | Z25: =(-AVERAGEIFS('2026_full_geo_SNCRoptwCC'!M$7:M$736,'2026_full_geo_base'!$G$7:$G$736,">=71",'2026_full_geo_base'!$B$7:$B$736,"<>California",'2026_full_geo_base'!$B$7:$B$736,"<>Texas",'2026_full_geo_base'!$B$7:$B$736,"<>New Mexico", '2026_full_geo_base'!$B$7:$B$736,"<>Arizona", '2026_full_geo_base'!$B$7:$B$736,"<>Colorado", '2026_full_geo_base'!$B$7:$B$736,"<>Utah")+AVERAGEIFS('2026_full_geo_base'!M$7:M$736,'2026_full_geo_base'!$G$7:$G$736,">=71", '2026_full_geo_base'!$B$7:$B$736,"<>California",'2026_full_geo_base'!$B$7:$B$736,"<>Texas",'2026_full_geo_base'!$B$7:$B$736,"<>New Mexico", '2026_full_geo_base'!$B$7:$B$736,"<>Arizona", '2026_full_geo_base'!$B$7:$B$736,"<>Colorado", '2026_full_geo_base'!$B$7:$B$736,"<>Utah"))*1 -> 0 | AA25: =(-AVERAGEIFS('2026_full_geo_SNCRoptwCC'!N$7:N$736,'2026_full_geo_base'!$G$7:$G$736,">=71",'2026_full_geo_base'!$B$7:$B$736,"<>California",'2026_full_geo_base'!$B$7:$B$736,"<>Texas",'2026_full_geo_base'!$B$7:$B$736,"<>New Mexico", '2026_full_geo_base'!$B$7:$B$736,"<>Arizona", '2026_full_geo_base'!$B$7:$B$736,"<>Colorado", '2026_full_geo_base'!$B$7:$B$736,"<>Utah")+AVERAGEIFS('2026_full_geo_base'!N$7:N$736,'2026_full_geo_base'!$G$7:$G$736,">=71", '2026_full_geo_base'!$B$7:$B$736,"<>California",'2026_full_geo_base'!$B$7:$B$736,"<>Texas",'2026_full_geo_base'!$B$7:$B$736,"<>New Mexico", '2026_full_geo_base'!$B$7:$B$736,"<>Arizona", '2026_full_geo_base'!$B$7:$B$736,"<>Colorado", '2026_full_geo_base'!$B$7:$B$736,"<>Utah"))*1 -> 0 | AB25: =(-AVERAGEIFS('2026_full_geo_SNCRoptwCC'!BD$7:BD$736,'2026_full_geo_base'!$G$7:$G$736,">=71",'2026_full_geo_base'!$B$7:$B$736,"<>California",'2026_full_geo_base'!$B$7:$B$736,"<>Texas",'2026_full_geo_base'!$B$7:$B$736,"<>New Mexico", '2026_full_geo_base'!$B$7:$B$736,"<>Arizona", '2026_full_geo_base'!$B$7:$B$736,"<>Colorado", '2026_full_geo_base'!$B$7:$B$736,"<>Utah")+AVERAGEIFS('2026_full_geo_base'!BD$7:BD$736,'2026_full_geo_base'!$G$7:$G$736,">=71", '2026_full_geo_base'!$B$7:$B$736,"<>California",'2026_full_geo_base'!$B$7:$B$736,"<>Texas",'2026_full_geo_base'!$B$7:$B$736,"<>New Mexico", '2026_full_geo_base'!$B$7:$B$736,"<>Arizona", '2026_full_geo_base'!$B$7:$B$736,"<>Colorado", '2026_full_geo_base'!$B$7:$B$736,"<>Utah"))*1 -> 0 | AC25: =(-AVERAGEIFS('2026_full_geo_SNCRoptwCC'!AL$7:AL$736,'2026_full_geo_base'!$G$7:$G$736,">=71",'2026_full_geo_base'!$B$7:$B$736,"<>California",'2026_full_geo_base'!$B$7:$B$736,"<>Texas",'2026_full_geo_base'!$B$7:$B$736,"<>New Mexico", '2026_full_geo_base'!$B$7:$B$736,"<>Arizona", '2026_full_geo_base'!$B$7:$B$736,"<>Colorado", '2026_full_geo_base'!$B$7:$B$736,"<>Utah")+AVERAGEIFS('2026_full_geo_base'!AL$7:AL$736,'2026_full_geo_base'!$G$7:$G$736,">=71", '2026_full_geo_base'!$B$7:$B$736,"<>California",'2026_full_geo_base'!$B$7:$B$736,"<>Texas",'2026_full_geo_base'!$B$7:$B$736,"<>New Mexico", '2026_full_geo_base'!$B$7:$B$736,"<>Arizona", '2026_full_geo_base'!$B$7:$B$736,"<>Colorado", '2026_full_geo_base'!$B$7:$B$736,"<>Utah"))*1 -> 0 | AD25: =(-AVERAGEIFS('2026_full_geo_SNCRoptwCC'!K$7:K$736,'2026_full_geo_base'!$G$7:$G$736,">=71",'2026_full_geo_base'!$B$7:$B$736,"<>California",'2026_full_geo_base'!$B$7:$B$736,"<>Texas",'2026_full_geo_base'!$B$7:$B$736,"<>New Mexico", '2026_full_geo_base'!$B$7:$B$736,"<>Arizona", '2026_full_geo_base'!$B$7:$B$736,"<>Colorado", '2026_full_geo_base'!$B$7:$B$736,"<>Utah")+AVERAGEIFS('2026_full_geo_base'!K$7:K$736,'2026_full_geo_base'!$G$7:$G$736,">=71", '2026_full_geo_base'!$B$7:$B$736,"<>California",'2026_full_geo_base'!$B$7:$B$736,"<>Texas",'2026_full_geo_base'!$B$7:$B$736,"<>New Mexico", '2026_full_geo_base'!$B$7:$B$736,"<>Arizona", '2026_full_geo_base'!$B$7:$B$736,"<>Colorado", '2026_full_geo_base'!$B$7:$B$736,"<>Utah"))*B25 -> 0.0001182625667 | AE25: =(-AVERAGEIFS('2026_full_geo_SNCRoptwCC'!L$7:L$736,'2026_full_geo_base'!$G$7:$G$736,">=71",'2026_full_geo_base'!$B$7:$B$736,"<>California",'2026_full_geo_base'!$B$7:$B$736,"<>Texas",'2026_full_geo_base'!$B$7:$B$736,"<>New Mexico", '2026_full_geo_base'!$B$7:$B$736,"<>Arizona", '2026_full_geo_base'!$B$7:$B$736,"<>Colorado", '2026_full_geo_base'!$B$7:$B$736,"<>Utah")+AVERAGEIFS('2026_full_geo_base'!L$7:L$736,'2026_full_geo_base'!$G$7:$G$736,">=71", '2026_full_geo_base'!$B$7:$B$736,"<>California",'2026_full_geo_base'!$B$7:$B$736,"<>Texas",'2026_full_geo_base'!$B$7:$B$736,"<>New Mexico", '2026_full_geo_base'!$B$7:$B$736,"<>Arizona", '2026_full_geo_base'!$B$7:$B$736,"<>Colorado", '2026_full_geo_base'!$B$7:$B$736,"<>Utah"))*C25 -> 8.575705389e-05 | AF25: =(-AVERAGEIFS('2026_full_geo_SNCRoptwCC'!T$7:T$736,'2026_full_geo_base'!$G$7:$G$736,">=71",'2026_full_geo_base'!$B$7:$B$736,"<>California",'2026_full_geo_base'!$B$7:$B$736,"<>Texas",'2026_full_geo_base'!$B$7:$B$736,"<>New Mexico", '2026_full_geo_base'!$B$7:$B$736,"<>Arizona", '2026_full_geo_base'!$B$7:$B$736,"<>Colorado", '2026_full_geo_base'!$B$7:$B$736,"<>Utah")+AVERAGEIFS('2026_full_geo_base'!T$7:T$736,'2026_full_geo_base'!$G$7:$G$736,">=71", '2026_full_geo_base'!$B$7:$B$736,"<>California",'2026_full_geo_base'!$B$7:$B$736,"<>Texas",'2026_full_geo_base'!$B$7:$B$736,"<>New Mexico", '2026_full_geo_base'!$B$7:$B$736,"<>Arizona", '2026_full_geo_base'!$B$7:$B$736,"<>Colorado", '2026_full_geo_base'!$B$7:$B$736,"<>Utah"))*D25 -> 0.001271973468 | AG25: =(-AVERAGEIFS('2026_full_geo_SNCRoptwCC'!U$7:U$736,'2026_full_geo_base'!$G$7:$G$736,">=71",'2026_full_geo_base'!$B$7:$B$736,"<>California",'2026_full_geo_base'!$B$7:$B$736,"<>Texas",'2026_full_geo_base'!$B$7:$B$736,"<>New Mexico", '2026_full_geo_base'!$B$7:$B$736,"<>Arizona", '2026_full_geo_base'!$B$7:$B$736,"<>Colorado", '2026_full_geo_base'!$B$7:$B$736,"<>Utah")+AVERAGEIFS('2026_full_geo_base'!U$7:U$736,'2026_full_geo_base'!$G$7:$G$736,">=71", '2026_full_geo_base'!$B$7:$B$736,"<>California",'2026_full_geo_base'!$B$7:$B$736,"<>Texas",'2026_full_geo_base'!$B$7:$B$736,"<>New Mexico", '2026_full_geo_base'!$B$7:$B$736,"<>Arizona", '2026_full_geo_base'!$B$7:$B$736,"<>Colorado", '2026_full_geo_base'!$B$7:$B$736,"<>Utah"))*E25 -> 0.02551515042 | AH25: =(-AVERAGEIFS('2026_full_geo_SNCRoptwCC'!X$7:X$736,'2026_full_geo_base'!$G$7:$G$736,">=71",'2026_full_geo_base'!$B$7:$B$736,"<>California",'2026_full_geo_base'!$B$7:$B$736,"<>Texas",'2026_full_geo_base'!$B$7:$B$736,"<>New Mexico", '2026_full_geo_base'!$B$7:$B$736,"<>Arizona", '2026_full_geo_base'!$B$7:$B$736,"<>Colorado", '2026_full_geo_base'!$B$7:$B$736,"<>Utah")+AVERAGEIFS('2026_full_geo_base'!X$7:X$736,'2026_full_geo_base'!$G$7:$G$736,">=71", '2026_full_geo_base'!$B$7:$B$736,"<>California",'2026_full_geo_base'!$B$7:$B$736,"<>Texas",'2026_full_geo_base'!$B$7:$B$736,"<>New Mexico", '2026_full_geo_base'!$B$7:$B$736,"<>Arizona", '2026_full_geo_base'!$B$7:$B$736,"<>Colorado", '2026_full_geo_base'!$B$7:$B$736,"<>Utah"))*F25 -> 0.007222344741 | AI25: =(-AVERAGEIFS('2026_full_geo_SNCRoptwCC'!Y$7:Y$736,'2026_full_geo_base'!$G$7:$G$736,">=71",'2026_full_geo_base'!$B$7:$B$736,"<>California",'2026_full_geo_base'!$B$7:$B$736,"<>Texas",'2026_full_geo_base'!$B$7:$B$736,"<>New Mexico", '2026_full_geo_base'!$B$7:$B$736,"<>Arizona", '2026_full_geo_base'!$B$7:$B$736,"<>Colorado", '2026_full_geo_base'!$B$7:$B$736,"<>Utah")+AVERAGEIFS('2026_full_geo_base'!Y$7:Y$736,'2026_full_geo_base'!$G$7:$G$736,">=71", '2026_full_geo_base'!$B$7:$B$736,"<>California",'2026_full_geo_base'!$B$7:$B$736,"<>Texas",'2026_full_geo_base'!$B$7:$B$736,"<>New Mexico", '2026_full_geo_base'!$B$7:$B$736,"<>Arizona", '2026_full_geo_base'!$B$7:$B$736,"<>Colorado", '2026_full_geo_base'!$B$7:$B$736,"<>Utah"))*G25 -> 0.001190171399 | AJ25: =(-AVERAGEIFS('2026_full_geo_SNCRoptwCC'!AA$7:AA$736,'2026_full_geo_base'!$G$7:$G$736,">=71",'2026_full_geo_base'!$B$7:$B$736,"<>California",'2026_full_geo_base'!$B$7:$B$736,"<>Texas",'2026_full_geo_base'!$B$7:$B$736,"<>New Mexico", '2026_full_geo_base'!$B$7:$B$736,"<>Arizona", '2026_full_geo_base'!$B$7:$B$736,"<>Colorado", '2026_full_geo_base'!$B$7:$B$736,"<>Utah")+AVERAGEIFS('2026_full_geo_base'!AA$7:AA$736,'2026_full_geo_base'!$G$7:$G$736,">=71", '2026_full_geo_base'!$B$7:$B$736,"<>California",'2026_full_geo_base'!$B$7:$B$736,"<>Texas",'2026_full_geo_base'!$B$7:$B$736,"<>New Mexico", '2026_full_geo_base'!$B$7:$B$736,"<>Arizona", '2026_full_geo_base'!$B$7:$B$736,"<>Colorado", '2026_full_geo_base'!$B$7:$B$736,"<>Utah"))*H25 -> 0.0008755249756 | AK25: =(-AVERAGEIFS('2026_full_geo_SNCRoptwCC'!AC$7:AC$736,'2026_full_geo_base'!$G$7:$G$736,">=71",'2026_full_geo_base'!$B$7:$B$736,"<>California",'2026_full_geo_base'!$B$7:$B$736,"<>Texas",'2026_full_geo_base'!$B$7:$B$736,"<>New Mexico", '2026_full_geo_base'!$B$7:$B$736,"<>Arizona", '2026_full_geo_base'!$B$7:$B$736,"<>Colorado", '2026_full_geo_base'!$B$7:$B$736,"<>Utah")+AVERAGEIFS('2026_full_geo_base'!AC$7:AC$736,'2026_full_geo_base'!$G$7:$G$736,">=71", '2026_full_geo_base'!$B$7:$B$736,"<>California",'2026_full_geo_base'!$B$7:$B$736,"<>Texas",'2026_full_geo_base'!$B$7:$B$736,"<>New Mexico", '2026_full_geo_base'!$B$7:$B$736,"<>Arizona", '2026_full_geo_base'!$B$7:$B$736,"<>Colorado", '2026_full_geo_base'!$B$7:$B$736,"<>Utah"))*I25 -> 0.0001677728971 | AL25: =(-AVERAGEIFS('2026_full_geo_SNCRoptwCC'!AE$7:AE$736,'2026_full_geo_base'!$G$7:$G$736,">=71",'2026_full_geo_base'!$B$7:$B$736,"<>California",'2026_full_geo_base'!$B$7:$B$736,"<>Texas",'2026_full_geo_base'!$B$7:$B$736,"<>New Mexico", '2026_full_geo_base'!$B$7:$B$736,"<>Arizona", '2026_full_geo_base'!$B$7:$B$736,"<>Colorado", '2026_full_geo_base'!$B$7:$B$736,"<>Utah")+AVERAGEIFS('2026_full_geo_base'!AE$7:AE$736,'2026_full_geo_base'!$G$7:$G$736,">=71", '2026_full_geo_base'!$B$7:$B$736,"<>California",'2026_full_geo_base'!$B$7:$B$736,"<>Texas",'2026_full_geo_base'!$B$7:$B$736,"<>New Mexico", '2026_full_geo_base'!$B$7:$B$736,"<>Arizona", '2026_full_geo_base'!$B$7:$B$736,"<>Colorado", '2026_full_geo_base'!$B$7:$B$736,"<>Utah"))*J25 -> 0.001877414985 | AM25: =(-AVERAGEIFS('2026_full_geo_SNCRoptwCC'!AF$7:AF$736,'2026_full_geo_base'!$G$7:$G$736,">=71",'2026_full_geo_base'!$B$7:$B$736,"<>California",'2026_full_geo_base'!$B$7:$B$736,"<>Texas",'2026_full_geo_base'!$B$7:$B$736,"<>New Mexico", '2026_full_geo_base'!$B$7:$B$736,"<>Arizona", '2026_full_geo_base'!$B$7:$B$736,"<>Colorado", '2026_full_geo_base'!$B$7:$B$736,"<>Utah")+AVERAGEIFS('2026_full_geo_base'!AF$7:AF$736,'2026_full_geo_base'!$G$7:$G$736,">=71", '2026_full_geo_base'!$B$7:$B$736,"<>California",'2026_full_geo_base'!$B$7:$B$736,"<>Texas",'2026_full_geo_base'!$B$7:$B$736,"<>New Mexico", '2026_full_geo_base'!$B$7:$B$736,"<>Arizona", '2026_full_geo_base'!$B$7:$B$736,"<>Colorado", '2026_full_geo_base'!$B$7:$B$736,"<>Utah"))*K25 -> 0.05895570373 | AN25: =(-AVERAGEIFS('2026_full_geo_SNCRoptwCC'!AI$7:AI$736,'2026_full_geo_base'!$G$7:$G$736,">=71",'2026_full_geo_base'!$B$7:$B$736,"<>California",'2026_full_geo_base'!$B$7:$B$736,"<>Texas",'2026_full_geo_base'!$B$7:$B$736,"<>New Mexico", '2026_full_geo_base'!$B$7:$B$736,"<>Arizona", '2026_full_geo_base'!$B$7:$B$736,"<>Colorado", '2026_full_geo_base'!$B$7:$B$736,"<>Utah")+AVERAGEIFS('2026_full_geo_base'!AI$7:AI$736,'2026_full_geo_base'!$G$7:$G$736,">=71", '2026_full_geo_base'!$B$7:$B$736,"<>California",'2026_full_geo_base'!$B$7:$B$736,"<>Texas",'2026_full_geo_base'!$B$7:$B$736,"<>New Mexico", '2026_full_geo_base'!$B$7:$B$736,"<>Arizona", '2026_full_geo_base'!$B$7:$B$736,"<>Colorado", '2026_full_geo_base'!$B$7:$B$736,"<>Utah"))*L25 -> 2.016372993e-06 | AO25: =(-AVERAGEIFS('2026_full_geo_SNCRoptwCC'!AK$7:AK$736,'2026_full_geo_base'!$G$7:$G$736,">=71",'2026_full_geo_base'!$B$7:$B$736,"<>California",'2026_full_geo_base'!$B$7:$B$736,"<>Texas",'2026_full_geo_base'!$B$7:$B$736,"<>New Mexico", '2026_full_geo_base'!$B$7:$B$736,"<>Arizona", '2026_full_geo_base'!$B$7:$B$736,"<>Colorado", '2026_full_geo_base'!$B$7:$B$736,"<>Utah")+AVERAGEIFS('2026_full_geo_base'!AK$7:AK$736,'2026_full_geo_base'!$G$7:$G$736,">=71", '2026_full_geo_base'!$B$7:$B$736,"<>California",'2026_full_geo_base'!$B$7:$B$736,"<>Texas",'2026_full_geo_base'!$B$7:$B$736,"<>New Mexico", '2026_full_geo_base'!$B$7:$B$736,"<>Arizona", '2026_full_geo_base'!$B$7:$B$736,"<>Colorado", '2026_full_geo_base'!$B$7:$B$736,"<>Utah"))*M25 -> -0.00254574484 | AP25: =(-AVERAGEIFS('2026_full_geo_SNCRoptwCC'!AM$7:AM$736,'2026_full_geo_base'!$G$7:$G$736,">=71",'2026_full_geo_base'!$B$7:$B$736,"<>California",'2026_full_geo_base'!$B$7:$B$736,"<>Texas",'2026_full_geo_base'!$B$7:$B$736,"<>New Mexico", '2026_full_geo_base'!$B$7:$B$736,"<>Arizona", '2026_full_geo_base'!$B$7:$B$736,"<>Colorado", '2026_full_geo_base'!$B$7:$B$736,"<>Utah")+AVERAGEIFS('2026_full_geo_base'!AM$7:AM$736,'2026_full_geo_base'!$G$7:$G$736,">=71", '2026_full_geo_base'!$B$7:$B$736,"<>California",'2026_full_geo_base'!$B$7:$B$736,"<>Texas",'2026_full_geo_base'!$B$7:$B$736,"<>New Mexico", '2026_full_geo_base'!$B$7:$B$736,"<>Arizona", '2026_full_geo_base'!$B$7:$B$736,"<>Colorado", '2026_full_geo_base'!$B$7:$B$736,"<>Utah"))*N25 -> 0.001503920532 | AQ25: =(-AVERAGEIFS('2026_full_geo_SNCRoptwCC'!AP$7:AP$736,'2026_full_geo_base'!$G$7:$G$736,">=71",'2026_full_geo_base'!$B$7:$B$736,"<>California",'2026_full_geo_base'!$B$7:$B$736,"<>Texas",'2026_full_geo_base'!$B$7:$B$736,"<>New Mexico", '2026_full_geo_base'!$B$7:$B$736,"<>Arizona", '2026_full_geo_base'!$B$7:$B$736,"<>Colorado", '2026_full_geo_base'!$B$7:$B$736,"<>Utah")+AVERAGEIFS('2026_full_geo_base'!AP$7:AP$736,'2026_full_geo_base'!$G$7:$G$736,">=71", '2026_full_geo_base'!$B$7:$B$736,"<>California",'2026_full_geo_base'!$B$7:$B$736,"<>Texas",'2026_full_geo_base'!$B$7:$B$736,"<>New Mexico", '2026_full_geo_base'!$B$7:$B$736,"<>Arizona", '2026_full_geo_base'!$B$7:$B$736,"<>Colorado", '2026_full_geo_base'!$B$7:$B$736,"<>Utah"))*O25 -> 0.01830094404 | AR25: =(-AVERAGEIFS('2026_full_geo_SNCRoptwCC'!AQ$7:AQ$736,'2026_full_geo_base'!$G$7:$G$736,">=71",'2026_full_geo_base'!$B$7:$B$736,"<>California",'2026_full_geo_base'!$B$7:$B$736,"<>Texas",'2026_full_geo_base'!$B$7:$B$736,"<>New Mexico", '2026_full_geo_base'!$B$7:$B$736,"<>Arizona", '2026_full_geo_base'!$B$7:$B$736,"<>Colorado", '2026_full_geo_base'!$B$7:$B$736,"<>Utah")+AVERAGEIFS('2026_full_geo_base'!AQ$7:AQ$736,'2026_full_geo_base'!$G$7:$G$736,">=71", '2026_full_geo_base'!$B$7:$B$736,"<>California",'2026_full_geo_base'!$B$7:$B$736,"<>Texas",'2026_full_geo_base'!$B$7:$B$736,"<>New Mexico", '2026_full_geo_base'!$B$7:$B$736,"<>Arizona", '2026_full_geo_base'!$B$7:$B$736,"<>Colorado", '2026_full_geo_base'!$B$7:$B$736,"<>Utah"))*P25 -> 0.002373767386 | AS25: =(-AVERAGEIFS('2026_full_geo_SNCRoptwCC'!AS$7:AS$736,'2026_full_geo_base'!$G$7:$G$736,">=71",'2026_full_geo_base'!$B$7:$B$736,"<>California",'2026_full_geo_base'!$B$7:$B$736,"<>Texas",'2026_full_geo_base'!$B$7:$B$736,"<>New Mexico", '2026_full_geo_base'!$B$7:$B$736,"<>Arizona", '2026_full_geo_base'!$B$7:$B$736,"<>Colorado", '2026_full_geo_base'!$B$7:$B$736,"<>Utah")+AVERAGEIFS('2026_full_geo_base'!AS$7:AS$736,'2026_full_geo_base'!$G$7:$G$736,">=71", '2026_full_geo_base'!$B$7:$B$736,"<>California",'2026_full_geo_base'!$B$7:$B$736,"<>Texas",'2026_full_geo_base'!$B$7:$B$736,"<>New Mexico", '2026_full_geo_base'!$B$7:$B$736,"<>Arizona", '2026_full_geo_base'!$B$7:$B$736,"<>Colorado", '2026_full_geo_base'!$B$7:$B$736,"<>Utah"))*Q25 -> 0.01313244189 | AT25: =(-AVERAGEIFS('2026_full_geo_SNCRoptwCC'!AX$7:AX$736,'2026_full_geo_base'!$G$7:$G$736,">=71",'2026_full_geo_base'!$B$7:$B$736,"<>California",'2026_full_geo_base'!$B$7:$B$736,"<>Texas",'2026_full_geo_base'!$B$7:$B$736,"<>New Mexico", '2026_full_geo_base'!$B$7:$B$736,"<>Arizona", '2026_full_geo_base'!$B$7:$B$736,"<>Colorado", '2026_full_geo_base'!$B$7:$B$736,"<>Utah")+AVERAGEIFS('2026_full_geo_base'!AX$7:AX$736,'2026_full_geo_base'!$G$7:$G$736,">=71", '2026_full_geo_base'!$B$7:$B$736,"<>California",'2026_full_geo_base'!$B$7:$B$736,"<>Texas",'2026_full_geo_base'!$B$7:$B$736,"<>New Mexico", '2026_full_geo_base'!$B$7:$B$736,"<>Arizona", '2026_full_geo_base'!$B$7:$B$736,"<>Colorado", '2026_full_geo_base'!$B$7:$B$736,"<>Utah"))*R25 -> 0.001784147634 | AU25: =(-AVERAGEIFS('2026_full_geo_SNCRoptwCC'!AY$7:AY$736,'2026_full_geo_base'!$G$7:$G$736,">=71",'2026_full_geo_base'!$B$7:$B$736,"<>California",'2026_full_geo_base'!$B$7:$B$736,"<>Texas",'2026_full_geo_base'!$B$7:$B$736,"<>New Mexico", '2026_full_geo_base'!$B$7:$B$736,"<>Arizona", '2026_full_geo_base'!$B$7:$B$736,"<>Colorado", '2026_full_geo_base'!$B$7:$B$736,"<>Utah")+AVERAGEIFS('2026_full_geo_base'!AY$7:AY$736,'2026_full_geo_base'!$G$7:$G$736,">=71", '2026_full_geo_base'!$B$7:$B$736,"<>California",'2026_full_geo_base'!$B$7:$B$736,"<>Texas",'2026_full_geo_base'!$B$7:$B$736,"<>New Mexico", '2026_full_geo_base'!$B$7:$B$736,"<>Arizona", '2026_full_geo_base'!$B$7:$B$736,"<>Colorado", '2026_full_geo_base'!$B$7:$B$736,"<>Utah"))*S25 -> 4.959014209e-06 | AV25: =(-AVERAGEIFS('2026_full_geo_SNCRoptwCC'!BA$7:BA$736,'2026_full_geo_base'!$G$7:$G$736,">=71",'2026_full_geo_base'!$B$7:$B$736,"<>California",'2026_full_geo_base'!$B$7:$B$736,"<>Texas",'2026_full_geo_base'!$B$7:$B$736,"<>New Mexico", '2026_full_geo_base'!$B$7:$B$736,"<>Arizona", '2026_full_geo_base'!$B$7:$B$736,"<>Colorado", '2026_full_geo_base'!$B$7:$B$736,"<>Utah")+AVERAGEIFS('2026_full_geo_base'!BA$7:BA$736,'2026_full_geo_base'!$G$7:$G$736,">=71", '2026_full_geo_base'!$B$7:$B$736,"<>California",'2026_full_geo_base'!$B$7:$B$736,"<>Texas",'2026_full_geo_base'!$B$7:$B$736,"<>New Mexico", '2026_full_geo_base'!$B$7:$B$736,"<>Arizona", '2026_full_geo_base'!$B$7:$B$736,"<>Colorado", '2026_full_geo_base'!$B$7:$B$736,"<>Utah"))*T25 -> 0.002343807746 | AW25: =(-AVERAGEIFS('2026_full_geo_SNCRoptwCC'!BC$7:BC$736,'2026_full_geo_base'!$G$7:$G$736,">=71",'2026_full_geo_base'!$B$7:$B$736,"<>California",'2026_full_geo_base'!$B$7:$B$736,"<>Texas",'2026_full_geo_base'!$B$7:$B$736,"<>New Mexico", '2026_full_geo_base'!$B$7:$B$736,"<>Arizona", '2026_full_geo_base'!$B$7:$B$736,"<>Colorado", '2026_full_geo_base'!$B$7:$B$736,"<>Utah")+AVERAGEIFS('2026_full_geo_base'!BC$7:BC$736,'2026_full_geo_base'!$G$7:$G$736,">=71", '2026_full_geo_base'!$B$7:$B$736,"<>California",'2026_full_geo_base'!$B$7:$B$736,"<>Texas",'2026_full_geo_base'!$B$7:$B$736,"<>New Mexico", '2026_full_geo_base'!$B$7:$B$736,"<>Arizona", '2026_full_geo_base'!$B$7:$B$736,"<>Colorado", '2026_full_geo_base'!$B$7:$B$736,"<>Utah"))*U25 -> 0.02001226888 | AX25: =(-AVERAGEIFS('2026_full_geo_SNCRoptwCC'!BF$7:BF$736,'2026_full_geo_base'!$G$7:$G$736,">=71",'2026_full_geo_base'!$B$7:$B$736,"<>California",'2026_full_geo_base'!$B$7:$B$736,"<>Texas",'2026_full_geo_base'!$B$7:$B$736,"<>New Mexico", '2026_full_geo_base'!$B$7:$B$736,"<>Arizona", '2026_full_geo_base'!$B$7:$B$736,"<>Colorado", '2026_full_geo_base'!$B$7:$B$736,"<>Utah")+AVERAGEIFS('2026_full_geo_base'!BF$7:BF$736,'2026_full_geo_base'!$G$7:$G$736,">=71", '2026_full_geo_base'!$B$7:$B$736,"<>California",'2026_full_geo_base'!$B$7:$B$736,"<>Texas",'2026_full_geo_base'!$B$7:$B$736,"<>New Mexico", '2026_full_geo_base'!$B$7:$B$736,"<>Arizona", '2026_full_geo_base'!$B$7:$B$736,"<>Colorado", '2026_full_geo_base'!$B$7:$B$736,"<>Utah"))*S25 -> 0
